Workbook

Sheet PantallaPrincipal

Sheet HojaMaestra (hidden)
A1: Cod Prod | C1: Productos
A2: 4 | B2: PRODUCTO | C2: =IFERROR(VLOOKUP(A2,Param!CE8:CF25,2,0),"Sin Datos") -> Mejora de Hipoteca | F2: Simulador Maestro
A4: =VLOOKUP(C4,Param!AF8:AG27,2,0) -> 10 | B4: Plazo | C4: 10 años | F4: Gastos | I4: Seguros | L4: Resultados
B5: Localización del terreno | C5: =IFERROR(VLOOKUP(A2,Param!BX8:BZ9,3,0),"Sin Datos") -> Sin Datos | F5: Avalúo | G5: =TablaTasas!R3 -> 4228.2 | I5: Seguro de desempleo | J5: =IFERROR(IF(OR(A2=16,A2=17,A2=18),O43,IF(C30="Pagos Fijos",O41,O42)),0) -> 364.5 | L5: Valor del Inmueble | M5: =IFERROR(C7,0) -> 1350000
F6: Comisión por Apertura | G6: =TablaTasas!S3 -> 18225 | I6: Seguro de vida | J6: =IFERROR(IF(OR(A2=16,A2=17,A2=18),M43,IF(C30="Pagos Fijos",M41,M42)),0) -> 515.16 | L6: Enganche Mínimo | M6: =IFERROR(TablaTasas!M3,0) -> 135000
B7: Valor del Inmueble Aceptado | C7: 1350000 | F7: Notariales | G7: =TablaTasas!T3 -> 67500 | I7: Seguro ITP | J7: =IFERROR(IF(OR(A2=16,A2=17,A2=18),N43,IF(C30="Pagos Fijos",N41,N42)),0) -> 128.79 | L7: Eng Adicional Propuesto | M7: =IFERROR(C26,0) -> 0
B8: Capt. Tipo de Ingreso | F8: Gastos Totales: | G8: =TablaTasas!U3 -> 89953.2 | I8: Seguro de daños | J8: =IFERROR(IF($C$21="SI",IF(OR($A$2=16,$A$2=17,$A$2=18),$P$43,IF($C$30="Pagos Fijos",$P$41,$P$42)),0),0) -> 81.5178168
B9: Tipo de Ingreso | C9: Asalariado | I9: =Param!C15 -> Seguro No se 1 | J9: =IFERROR(C48,0) -> 0 | L9: Enganche Total | M9: =IFERROR(IF(OR(A2=3,A2=17),TablaTasas!N3,$M$6+$M$7),0) -> 135000
B10: Participantes | C10: Titular | F10: Gastos Créd Inf | G10: =(C34+C35)*Param!DK8 -> 0 | I10: =Param!C16 -> Seguro No se 2 | J10: =IFERROR(C49,0) -> 0 | L10: Gastos | M10: =IFERROR(IF(OR(A2=3,A2=17),TablaTasas!U3,G8),0) -> 89953.2
B11: Ingresos Titular | C11: 45000 | I11: =Param!C17 -> Seguro No se 3 | J11: =IFERROR(C50,0) -> 0
B12: Ingresos Conyuge | F12: Comis Aper COFINA | G12: =IFERROR(VLOOKUP(C25,Param!AJ8:AU9,3,0)*TablaTasas!M88,0) -> 273.375 | I12: Total Seguros: | J12: =IFERROR(SUM(J5:J11)+J14,0) -> 1089.967817 | L12: Desembolso Total | M12: =IFERROR(IF(C44<>"SI",M9+M10,0),0) -> 224953.2
B13: Suma de Ingresos | C13: =IFERROR(C11+C12,"Sin Datos") -> 45000 | F13: Gastos COFINAVIT | G13: =G5+G12+G7+G10 -> 72001.575
B14: 10% Ingresos Titular | C14: =IFERROR(C11*0.1,"Sin Datos") -> 4500 | I14: Seg daños Inm Garanti | J14: =IFERROR(IF($C$21="SI",IF($A$2=14,$Q$41,0),0),0) -> 0 | L14: Tasa Aceptada | M14: =IFERROR(IF($M$16>=Param!$ET$8,TablaTasas!$Q$3+Param!$EW$8,TablaTasas!$Q$3),0) -> 0.102
B15: Tope | C15: =IFERROR(Param!CC8,"Sin Datos") -> 5500 | L15: % de Financiamiento | M15: =IFERROR(IF(A2<>14,$M$16/$M$5,$M$16/($M$5+$C$41)),0) -> 0.9
B16: Aport Bim Aceptado | C16: =IFERROR(IF(C14>=C15,C15,C14),"Sin Datos") -> 4500 | L16: Crédito Banregio | M16: =IFERROR(TablaTasas!$O$3,0) -> 1215000
B17: Financiar comisión por apertura | C17: NO | M17: 0
B18: Período de Gracia | C18: NO | L18: Aportación Bimestral | M18: =IFERROR($C$16,0) -> 4500
B19: Seguro de desempleo | C19: SI | L19: Plazo de período de Gracia | M19: 0 | N19: Meses
B20: Seguro de desempleo Aceptado | C20: =IFERROR(IF(C9="Asalariado","SI",C19),"Sin Datos") -> SI | F20: =C2 -> Mejora de Hipoteca | L20: Monto P/Calculo de Seguros | M20: =IFERROR(VLOOKUP(M19+1,TablaAmortNaranjaFlex!$B$10:$D$249,3,0),0) -> 1215000
B21: Aplica Seguro de Daños | C21: =IFERROR(VLOOKUP(A2,Param!CH8:CJ25,3,0),0) -> SI | L21: Crédito Banregio Sin Comis | M21: =IFERROR(C7*TablaTasas!Q3,0) -> 137700
B22: Localización del Inmueble | C22: ESTADO DE MEXICO | L22: CAT sin iva Pag Naran Flex | M22: =IFERROR(TablaAmortNaranjaFlex!$O$7,0) -> -0.01495888562
B23: % Gtos Notar Capturado | C23: 0.05 | L23: CAT sin iva Pag Fij | M23: =IFERROR(TablAmoPagosFijos!$O$7,0) -> 0.1291647527
B24: % de Gtos Notariales Aceptado | C24: =IFERROR(IF(C23=0,VLOOKUP(C22,Param!I8:J39,2,0),C23),0) -> 0.05 | F24: =IFERROR(VLOOKUP(C22,Param!I8:K39,3,0),0) -> 0.03 | L24: CAT sin iva Pag Crec | M24: =IFERROR(TablAmoPagosCrec!$O$7,0) -> 0.126221547
B25: Comisión | C25: 1.5% por Apertura - 0% Penalización por Prepago | L25: Resultado CAT sin IVA | M25: =IFERROR(IF(OR($A$2=16,$A$2=17,$A$2=18),$M$22,IF($C$30="Pagos Fijos",$M$23,IF($C$30="Pagos Crecientes",$M$24,0))),0) -> 0.1291647527 | O25: =SIERROR(SI(O($A$2=16,$A$2=17,$A$2=18),$M$22,SI($C$30="Pagos Fijos",$M$23,SI($C$30="Pagos Crecientes",$M$24,0))),0)
B26: Eng Adicional | L26: Pago Mensual Gral | M26: =IFERROR(IF(OR($A$2=16,$A$2=17,$A$2=18),TablaAmortNaranjaFlex!$AH$8,IF($C$30="Pagos Fijos",TablAmoPagosFijos!$BE$8,IF($C$30="Pagos Crecientes",TablAmoPagosCrec!$BL$8,0))),0) -> 17547.47834
B27: % Finan Capturado | C27: 0 | F27: Comision por apertura puede financiarse sola o en conjunto con gastos financiados
B28: % de finan Aceptado | C28: =IFERROR(IF(C27=0,TablaTasas!$P$3,C27),0) -> 0.9 | F28: Secuencia en 1 + 1 | L28: Comisión Apertura COFINAVIT | M28: =IFERROR(VLOOKUP(C25,Param!AJ8:AU9,3,0)*M20,0) -> 18225
B29: Crédito Banregio Original | C29: =IFERROR(IF(C17="SI",C7*TablaTasas!P3+G6,C7*TablaTasas!P3),0) -> 1215000 | F29: Gastos de infonavit en COFINAVIT
A30: =VLOOKUP($C$30,Param!$EJ$8:$EK$9,2,0) -> 1 | B30: Esquema de Pago | C30: Pagos Fijos | L30: Estudio Técnico con IVA | M30: =IFERROR(Param!$DH$8,0) -> 1740
B31: COFINAVIT
B32: Saldo SubCuenta Titular | C32: 0 | F32: 3000000 | L32: % de Mejora Hipoteca | M32: =IFERROR(TablaTasas!$W$3,0) -> 0
B33: Saldo Subcuenta Conyuge | C33: 0 | F33: =F32*0.05 -> 150000 | L33: Créd. Adic. Disponible | M33: =IFERROR(TablaTasas!$N$38,0) -> 0
B34: Crédito Infonavit Titular | C34: 0 | L34: Acepta Línea de crédito | M34: =IFERROR(TablaTasas!$O$38,0) -> NO
B35: Crédito Infonavit Conyuge | C35: 0 | L35: Monto Línea Créd. Adic. | M35: =IFERROR(TablaTasas!$X$3,0) -> 0
B36: Desc Infonavit Titular | C36: 0 | L36: Monto Final disponible Mej | M36: =IFERROR(TablaTasas!$Q$38,0) -> 1215000
B37: Desc Infonavit Conyuge | C37: 0
B38: 1+1 | L38: Factor de Pago Total | M38: =IFERROR(($M$61/HojaMaestra!$M$16)*1000,0) -> 14.442369
B39: Cuenta 2 Avalúo? | C39: NO
B40: Monto 2 Avalúo | C40: =IF(C39="SI",0,Param!$BG$5) -> 0 | M40: Seguro Vida | N40: Seguro ITP | O40: Seg. Desempleo | P40: Seg. Daños | Q40: Seg. Daños Inm Garantia
B41: Segunda Garantía Adicional | C41: 0 | L41: Seg. Pagos Fijos | M41: =IFERROR(VLOOKUP($M$19+1,TablAmoPagosFijos!$B$10:$X$261,20,0),0) -> 515.16 | N41: =IFERROR(VLOOKUP($M$19+1,TablAmoPagosFijos!$B$10:$X$261,21,0),0) -> 128.79 | O41: =IFERROR(VLOOKUP($M$19+1,TablAmoPagosFijos!$B$10:$X$261,22,0),0) -> 364.5 | P41: =IFERROR(VLOOKUP($M$19+1,TablAmoPagosFijos!$B$10:$X$261,23,0),0) -> 81.5178168 | Q41: =$C$41*Param!$D$8*Param!$D$9/1000*(1+Param!$T$8) -> 0
B42: Se adeuda casa? | C42: NO | L42: Seg. Pagos Crecientes | M42: =IFERROR(VLOOKUP($M$19+1,TablAmoPagosCrec!$B$10:$AA$261,23,0),0) -> 515.16 | N42: =IFERROR(VLOOKUP($M$19+1,TablAmoPagosCrec!$B$10:$AA$261,24,0),0) -> 128.79 | O42: =IFERROR(VLOOKUP($M$19+1,TablAmoPagosCrec!$B$10:$AA$261,25,0),0) -> 364.5 | P42: =IFERROR(VLOOKUP($M$19+1,TablAmoPagosCrec!$B$10:$AA$261,26,0),0) -> 81.5178168 | Q42: =$C$41*Param!$D$8*Param!$D$9/1000*(1+Param!$T$8) -> 0
B43: Monto Adeuda Casa | C43: 0 | L43: Seg. Pagos Naranja | M43: =IFERROR(VLOOKUP($M$19+1,TablaAmortNaranjaFlex!$B$10:$AA$261,22,0),0) -> 515.16 | N43: =IFERROR(VLOOKUP($M$19+1,TablaAmortNaranjaFlex!$B$10:$AA$261,23,0),0) -> 128.79 | O43: =IFERROR(VLOOKUP($M$19+1,TablaAmortNaranjaFlex!$B$10:$AA$261,24,0),0) -> 364.5 | P43: =IFERROR(VLOOKUP($M$19+1,TablaAmortNaranjaFlex!$B$10:$AA$261,25,0),0) -> 81.5178168 | Q43: =$C$41*Param!$D$8*Param!$D$9/1000*(1+Param!$T$8) -> 0
B44: Financiar Gastos? | C44: NO
B45: Ministraciones | L45: % de financiamiento 1 + 1 | M45: =IFERROR($M$16/($M$5+$C$41),0) -> 0.9
B46: Estudio Técnico | C46: NO
B47: Seguros Opcionales | M47: Comisión
B48: =Param!C15 -> Seguro No se 1 | C48: 0 | L48: Pagos Fijos | M48: =IFERROR(VLOOKUP($M$19+1,TablAmoPagosFijos!$B$10:$X$261,8,0),0) -> 250
B49: =Param!C16 -> Seguro No se 2 | C49: 0 | L49: Pagos Crecientes | M49: =IFERROR(VLOOKUP($M$19+1,TablAmoPagosCrec!$B$10:$AA$261,8,0),0) -> 250
B50: =Param!C17 -> Seguro No se 3 | C50: 0 | L50: Pagos Naranja | M50: =IFERROR(VLOOKUP($M$19+1,TablaAmortNaranjaFlex!$B$10:$AA$261,8,0),0) -> 250
B51: Mejora Hipoteca
B52: Mejora Hipoteca? | C52: NO | M52: Pago Mensual
B53: Monto Mejora Hipoteca | C53: 0 | L53: Pagos Fijos | M53: =IFERROR(VLOOKUP($M$19+1,TablAmoPagosFijos!$B$10:$X$261,4,0),0) -> 16207.51052
B54: Tasa | L54: Pagos Crecientes | M54: =IFERROR(VLOOKUP($M$19+1,TablAmoPagosCrec!$B$10:$AA$261,4,0),0) -> 11185.51987
B55: Tasa Capturada | C55: 0 | L55: Pagos Naranja | M55: =IFERROR(VLOOKUP($M$19+1,TablaAmortNaranjaFlex!$B$10:$AA$261,4,0),0) -> 0 | O55: =SIERROR(CONSULTAV($M$19+1,TablaAmortNaranjaFlex!$B$10:$AA$261,4,0),0)
B56: % de Tasa Aceptada | C56: =IFERROR(IF(C55=0,TablaTasas!D10,C55),"Sin Datos") -> 0.102
B57: Datos Clientes | L57: Pago Mensual Inicial
B58: Cliente | L58: Pago Mensual Aplicable | M58: =IF(OR($A$2=16,$A$2=17,$A$2=18),M55,IF($C$30="Pagos Fijos",$M$53,$M$54)) -> 16207.51052
B59: Tel | L59: Comisión Aplicable | M59: =IF(OR(A2=16,A2=17,A2=18),M50,IF(C30="Pagos Fijos",M48,M49)) -> 250
B60: Cel | L60: Total Seguros | M60: =J12 -> 1089.967817
B61: Correo | L61: Pago Mensual Inicial | M61: =SUM(M58:M60) -> 17547.47834
B62: Ejecutivo
L63: Letrero Programa Asalariado | M63: =IFERROR(VLOOKUP(A2,Param!EY8:FA25,3,0)," ") -> Ninguno
L65: Dirección formulario Nuev o Resu | M65: 1
L67: Monto del primer avalúo | M67: =IFERROR(IF(C46="SI",Param!$BE$5+Param!DH8,Param!$BE$5),0) -> 4228.2
L69: =IFERROR(IF(C46="SI",Param!$BE$5+Param!DH8,Param!$BE$5)+IF(AND($C$39="NO",$A$2=14),$C$40,0),0)
L72: Avalúo 1 | M72: Avalúo 2 | N72: Estudio Técnico | O72: Ministraciones
L73: =Param!BE5 -> 4228.2 | M73: =Param!BG5 -> 0 | N73: =Param!DH8 -> 1740

Sheet CaratViv (hidden)
F3: =IFERROR(IF(HojaMaestra!C58=""," ",HojaMaestra!C58)," ") -> 
C5: DETALLE | F5: PAGO MENSUAL
C6: =IFERROR(HojaMaestra!C2,"Sin Datos") -> Mejora de Hipoteca | F6: =IFERROR(G16,0) -> 17547.47834
F8: DESGLOSE PAGO MENSUAL
C9: Mi propiedad esta ubicada en: | D9: =IFERROR(HojaMaestra!C22,0) -> ESTADO DE MEXICO | F9: Pago mensual: | G9: =IFERROR(HojaMaestra!$M$58,0) -> 16207.51052
C10: Con un valor de: | D10: =IFERROR(HojaMaestra!C7,"Sin Datos") -> 1350000 | F10: Comisión por administración: | G10: =IFERROR(HojaMaestra!$M$59,0) -> 250
C11: Por lo cual requiero de un crédito de: | D11: =IFERROR(D10-G27,0) -> 1215000 | F11: Seguro de vida: | G11: =IFERROR(HojaMaestra!J6,0) -> 515.16
C12: Comprobando ingresos netos | D12: =IF(HojaMaestra!C10="Titular","Individual","Mancomunado") -> Individual | F12: Seguro ITP: | G12: =IFERROR(HojaMaestra!J7,0) -> 128.79
C13: Por la cantidad de: | D13: =IFERROR(HojaMaestra!C13,0) -> 45000 | F13: Seguro de desempleo: | G13: =IFERROR(HojaMaestra!J5,0) -> 364.5
C14: Al ser asalariado aplica seg de desempleo | D14: =IFERROR(HojaMaestra!C20,0) -> SI | F14: Seguro de daños | G14: =IFERROR(HojaMaestra!J8,0) -> 81.5178168
C15: Al ser asalariado aplica programa de: | D15: =IFERROR(HojaMaestra!$M$63,0) -> Ninguno
C16: Lo pagaré en: | D16: =IFERROR(HojaMaestra!$C$4,0) -> 10 años | F16: Total: | G16: =SUM(G9:G14) -> 17547.47834
C17: En un esquema de: | D17: =IFERROR(HojaMaestra!$C$30,0) -> Pagos Fijos
C18: Con un tasa anual de: | D18: =IFERROR(HojaMaestra!M14,0) -> 0.102
C19: Dare un enganche mínimo de: | D19: =IFERROR(HojaMaestra!M6,0) -> 135000
C20: Y un enganche extra de: | D20: =IFERROR(HojaMaestra!$M$7,0) -> 0
C21: % de financiamiento bancario: | D21: =IFERROR(HojaMaestra!M15,0) -> 0.9
C22: Quiero financiar comisión por apertura: | D22: =IFERROR(HojaMaestra!C17,0) -> NO
C23: Factor de pago: | D23: =IFERROR(HojaMaestra!$M$38,0) -> 14.442369
C24: CAT promedio sin IVA: | D24: =IFERROR(HojaMaestra!M25,0) -> 0.1291647527
C25: GASTOS INICIALES | F25: RESUMEN DE CRÉDITO
C26: Avalúo | D26: =IFERROR(HojaMaestra!G5,0) -> 4228.2 | F26: Crédito bancario total: | G26: =IFERROR(HojaMaestra!M16,0) -> 1215000
C27: Gastos notariales: | D27: =IFERROR(HojaMaestra!G7,0) -> 67500 | F27: Enganche: | G27: =IFERROR(HojaMaestra!M9,0) -> 135000
C28: Comisión por apertura | D28: =IFERROR(HojaMaestra!G6,0) -> 18225 | F28: Contarías con: | G28: =IFERROR(G26+G27,0) -> 1350000
C29: Total de Gastos | D29: =IFERROR(HojaMaestra!G8,0) -> 89953.2 | F29: Ejecutivo: | G29: =IF(HojaMaestra!$C$62="","",HojaMaestra!$C$62) -> 
C30: Desembolso total | D30: =IFERROR(HojaMaestra!M12,0) -> 224953.2 | F30: Celular Ejecutivo: | G30: =IF(OR(HojaMaestra!$C$60="",HojaMaestra!$C$60=0),"",HojaMaestra!$C$60) -> 
C32: Observaciones:
C33: - Los impuestos y derechos para el Estado de la República que seleccionó se calculan sobre un porcentaje estimado y valor
C34: del inmueble capturado, los importes correctos así como sus honorarios los definirá el Notario.
C35: - El crédito solicitado dependerá de la capacidad de pago de cada cliente.
C36: - La Tasa será asignada en base al perfil de riesgo del cliente.
C37: - Banregio se reserva el derecho de solicitar información adicional y/o restringir parámetros de enganche, monto, plazo
C38: o tasa en función de las características específicas del solicitante y del inmueble objeto de la operación.
C39: - Esta cotización tiene carácter informativo, Banregio se reserva el derecho de cambiar cualquier condición sin previo aviso.
C40: - Este documento NO implica que el crédito ha sido autorizado, ni establece obligación alguna para Banregio.
C41: y valor del inmueble capturado, los importes

Sheet TablaTasas (hidden)
B2: Tabla de Tasas y Cálculos generales de % de financiamiento, Enganche y Crédito | M2: Enganche Mínimo | N2: Enganche Total Requerido | O2: Crédito | P2: % Financiamiento | Q2: Tasa Final | R2: Avalúo | S2: Comis por Apertura | T2: Notariales | U2: Gastos | V2: Crédito sin Finan Comis por Apert | W2: % Crédito Adic Mej de Hipot | X2: Monto Adic Mej Hipo | Y2: Tasa | AD2: % Financiamiento | AH2: Rangos de Celdas
L3: Resultados Generales | M3: =IFERROR(VLOOKUP(HojaMaestra!$A$2,TablaTasas!$AH$4:$AR$21,3,0),0) -> 135000 | N3: =IFERROR(VLOOKUP(HojaMaestra!$A$2,TablaTasas!$AH$4:$AR$21,4,0),0) -> 135000 | O3: =IFERROR(VLOOKUP(HojaMaestra!$A$2,TablaTasas!$AH$4:$AR$21,5,0),0) -> 1215000 | P3: =IFERROR(VLOOKUP(HojaMaestra!$A$2,TablaTasas!$AH$4:$AR$21,6,0),0) -> 0.9 | Q3: =IFERROR(VLOOKUP(HojaMaestra!$A$2,TablaTasas!$AH$4:$AR$21,7,0),0) -> 0.102 | R3: =IFERROR(VLOOKUP(HojaMaestra!$A$2,TablaTasas!$AH$4:$AR$21,8,0),0) -> 4228.2 | S3: =IFERROR(VLOOKUP(HojaMaestra!$A$2,TablaTasas!$AH$4:$AR$21,9,0),0) -> 18225 | T3: =IFERROR(VLOOKUP(HojaMaestra!$A$2,TablaTasas!$AH$4:$AR$21,10,0),0) -> 67500 | U3: =IFERROR(VLOOKUP(HojaMaestra!$A$2,TablaTasas!$AH$4:$AR$21,11,0),0) -> 89953.2 | V3: =VLOOKUP(HojaMaestra!$A$2,TablaTasas!$AH$4:$AN$21,5,0) -> 1215000 | W3: =IF($O$38="SI",$S$35,0) -> 0 | X3: =$P$38 -> 0 | Y3: =IF($O$6=0,VLOOKUP(HojaMaestra!$A$2,TablaTasas!$AH$4:$AN$21,7,0),$O$6) -> 0.102 | AA3: Tasas | AD3: Min. | AE3: Max. | AF3: Resultado | AH3: Cód | AI3: Productos | AJ3: Enganche Mínimo | AK3: Enganche Total Requerido | AL3: Crédito | AM3: % Financiamiento | AN3: Tasa | AO3: Avalúo 1 Tot | AP3: Comis por Apertura | AQ3: Notariales | AR3: Gastos | AT3: Tasa Creciente
A4: No. Prod | B4: Plazo años | C4: Destino / Aforo | AA4: Período de cambio | AB4: Tasas | AD4: 0 | AE4: 0 | AF4: 1 | AH4: =Param!CE8 -> 1 | AI4: =Param!CF8 -> Adquisición Tradicional | AJ4: =$M$10 -> 135000 | AK4: =$N$10 -> 135000 | AL4: =$O$10 -> 1215000 | AM4: =$P$10 -> 0.9 | AN4: =$Q$10 -> 0.102 | AO4: =$O$17 -> 4228.2 | AP4: =$P$17 -> 18225 | AQ4: =$Q$17 -> 67500 | AR4: =$R$17 -> 89953.2 | AT4: 0.1175
A5: =HojaMaestra!$A$2 -> 4 | B5: =IF(VLOOKUP(HojaMaestra!C4,Param!AF8:AG27,2,0)<=10,10,IF(VLOOKUP(HojaMaestra!C4,Param!AF8:AG27,2,0)<=15,15,20)) -> 10 | C5: =HojaMaestra!C2 -> Mejora de Hipoteca | M5: Eng. Propuesto | N5: Valor del Inmueble | O5: Tasa Capturada | P5: % Finan Propuesto | Q5: Comisión de Apertura Infonavit | R5: Comisión de Apertura | S5: Crédito + Comisión por Apert. | T5: % Notariales Capt | AA5: 37 | AB5: 0.0974 | AD5: 0 | AE5: 0.5001 | AF5: 2 | AH5: =Param!CE9 -> 2 | AI5: =Param!CF9 -> Adquisición con Apoyo Infonavit | AJ5: =$M$10 -> 135000 | AK5: =$N$10 -> 135000 | AL5: =$O$10 -> 1215000 | AM5: =$P$10 -> 0.9 | AN5: =$Q$10 -> 0.102 | AO5: =$O$17 -> 4228.2 | AP5: =$P$17 -> 18225 | AQ5: =$Q$17 -> 67500 | AR5: =$R$17 -> 89953.2
A6: =D10 -> 0.102 | L6: Valores Capturados | M6: =HojaMaestra!$C$26 -> 0 | N6: =HojaMaestra!$C$7 -> 1350000 | O6: =HojaMaestra!$C$55 -> 0 | P6: =HojaMaestra!$C$27 -> 0 | Q6: =IFERROR(VLOOKUP(HojaMaestra!$C$25,Param!AJ8:AU9,3,0)*HojaMaestra!$M$21,0) -> 2065.5 | R6: =IFERROR($V$3*VLOOKUP(HojaMaestra!$C$25,Param!AJ8:AL9,3,0),0) -> 18225 | S6: =$O$3+HojaMaestra!$G$12 -> 1215273.375 | T6: =HojaMaestra!C23 -> 0.05 | AA6: 73 | AB6: 0.1074 | AD6: 0.5001 | AE6: 0.701 | AF6: 3 | AH6: =Param!CE10 -> 3 | AI6: =Param!CF10 -> Adquisición con Cofinavit | AJ6: =M79 -> 135000 | AK6: =N79 -> 224953.2 | AL6: =O79 -> 1215000 | AM6: =P79 -> 0.9 | AN6: =Q79 -> 0.102 | AO6: =N88 -> 4228.2 | AP6: =M88 -> 18225 | AQ6: =O88 -> 67500 | AR6: =Q88 -> 89953.2
E7: 1 | F7: 2 | G7: 3 | H7: 4 | I7: 5 | AA7: 240 | AB7: 0.1174 | AD7: 0.7001 | AE7: 0.8001 | AF7: 4 | AH7: =Param!CE11 -> 4 | AI7: =Param!CF11 -> Mejora de Hipoteca | AJ7: =M28 -> 135000 | AK7: =N28 -> 135000 | AL7: =O28 -> 1215000 | AM7: =P28 -> 0.9 | AN7: =Q28 -> 0.102 | AO7: =O41 -> 4228.2 | AP7: =P41 -> 18225 | AQ7: =Q41 -> 67500 | AR7: =R41 -> 89953.2
D8: % Finan => | E8: 0.5 | F8: 0.7 | G8: 0.8 | H8: 0.9 | I8: 0.95 | AD8: 0.8001 | AE8: 0.901 | AF8: 5 | AH8: =Param!CE12 -> 5 | AI8: =Param!CF12 -> Hipoteca Vertical | AJ8: 135000 | AK8: 135000 | AL8: 1215000 | AM8: 0.9 | AN8: 0.102 | AO8: 4228.2 | AP8: 18225 | AQ8: 67500 | AR8: 89953.2
B9: Plazo años | C9: Destino / Aforo | D9: % más alto | E9: =E16 -> Hasta 50% | F9: =F16 -> Hasta 70% | G9: =G16 -> Hasta 80% | H9: =H16 -> Hasta 90% | I9: =I16 -> Hasta 95% | M9: Eng. Min | N9: Enganche Requerido | O9: Crédito | P9: % Financiamiento | Q9: Tasa | S9: Hipoteca Gral. | AD9: 0.9001 | AE9: 0.95 | AF9: 5 | AH9: =Param!CE13 -> 6 | AI9: =Param!CF13 -> Terreno_ | AJ9: 135000 | AK9: 135000 | AL9: 1215000 | AM9: 0.9 | AN9: 0.102 | AO9: 4228.2 | AP9: 18225 | AQ9: 67500 | AR9: 89953.2
B10: =IFERROR(DGET($A$16:$I64,B16,$A$4:$B$5),"N/A") -> 10 | C10: =IFERROR(DGET($A$16:$I64,C16,$A$4:$B$5),"N/A") -> Mejora de Hipoteca | D10: =IFERROR(DGET($A$16:$I64,D16,$A$4:$B$5),"N/A") -> 0.102 | E10: =IFERROR(DGET($A$16:$I64,E16,$A$4:$B$5),0) -> 0.096 | F10: =IFERROR(DGET($A$16:$I64,F16,$A$4:$B$5),0) -> 0.096 | G10: =IFERROR(DGET($A$16:$I64,G16,$A$4:$B$5),0) -> 0.102 | H10: =IFERROR(DGET($A$16:$I64,H16,$A$4:$B$5),0) -> 0.102 | I10: =IFERROR(DGET($A$16:$I64,I16,$A$4:$B$5),0) -> 0 | L10: Resultados Hipoteca Gral | M10: =$P$20 -> 135000 | N10: =Q20 -> 135000 | O10: =R23 -> 1215000 | P10: =S23 -> 0.9 | Q10: =T23 -> 0.102 | AH10: =Param!CE14 -> 7 | AI10: =Param!CF14 -> Construcción_ | AJ10: 135000 | AK10: 135000 | AL10: 1215000 | AM10: 0.9 | AN10: 0.102 | AO10: 4228.2 | AP10: 18225 | AQ10: 67500 | AR10: 89953.2
C11: Tope % de financiamiento | D11: =MAX(E11:I11) -> 0.9 | E11: =IF(AND(E10=$D$10,E10>F10),E8,0) -> 0 | F11: =IF(AND(F10=$D$10,F10>G10),F8,0) -> 0 | G11: =IF(AND(G10=$D$10,G10>H10),G8,0) -> 0 | H11: =IF(AND(H10=$D$10,H10>I10),H8,0) -> 0.9 | I11: =IF(I10=D10,I8,0) -> 0 | AH11: =Param!CE15 -> 8 | AI11: =Param!CF15 -> Terreno Plus | AJ11: 135000 | AK11: 135000 | AL11: 1215000 | AM11: 0.9 | AN11: 0.102 | AO11: 4228.2 | AP11: 18225 | AQ11: 67500 | AR11: 89953.2
C12: Tope Tasa % Finan Propu | D12: =MAX(E12:I12) -> 0.102 | E12: =IF($P$3<>0,IF($P$3<=E8,E10,0),0) -> 0 | F12: =IF(AND($P$3>E8,$P$3<=F8),F10,0) -> 0 | G12: =IF(AND($P$3>F8,$P$3<=G8),G10,0) -> 0 | H12: =IF(AND($P$3>G8,$P$3<=H8),H10,0) -> 0.102 | I12: =IF(AND($P$3>H8,$P$3<=I8),I10,0) -> 0 | AH12: =Param!CE16 -> 9 | AI12: =Param!CF16 -> Construcción Plus | AJ12: 135000 | AK12: 135000 | AL12: 1215000 | AM12: 0.9 | AN12: 0.102 | AO12: 4228.2 | AP12: 18225 | AQ12: 67500 | AR12: 89953.2
C13: TOPE | D13: =MAX(E13:I13) -> 0.9 | E13: =IF(E10=0,0,E8) -> 0.5 | F13: =IF(F10=0,0,F8) -> 0.7 | G13: =IF(G10=0,0,G8) -> 0.8 | H13: =IF(H10=0,0,H8) -> 0.9 | I13: =IF(I10=0,0,I8) -> 0 | M13: Valor Inmueble | N13: % Financ. Orig. | O13: Eng. Mínimo Original | P13: Tasa Orig | R13: Eng Adic Propuesto | S13: % Finan Capt | T13: Tasa Capt | AH13: =Param!CE17 -> 10 | AI13: =Param!CF17 -> Remodelación | AJ13: 135000 | AK13: 135000 | AL13: 1215000 | AM13: 0.9 | AN13: 0.102 | AO13: 4228.2 | AP13: 18225 | AQ13: 67500 | AR13: 89953.2
L14: Valores Iniciales | M14: =$N$6 -> 1350000 | N14: =$D$11 -> 0.9 | O14: =HojaMaestra!$C$7*(1-$N$14) -> 135000 | P14: =$D$10 -> 0.102 | R14: =HojaMaestra!$C$26 -> 0 | S14: =HojaMaestra!$C$27 -> 0 | T14: =HojaMaestra!$C$55 -> 0 | AH14: =Param!CE18 -> 11 | AI14: =Param!CF18 -> Terminación de Obra | AJ14: 135000 | AK14: 135000 | AL14: 1215000 | AM14: 0.9 | AN14: 0.102 | AO14: 4228.2 | AP14: 18225 | AQ14: 67500 | AR14: 89953.2
B15: Hipoteca Naranja | AH15: =Param!CE19 -> 12 | AI15: =Param!CF19 -> Construcción/Remodelación por ministraciones. | AJ15: 135000 | AK15: 135000 | AL15: 1215000 | AM15: 0.9 | AN15: 0.102 | AO15: 4228.2 | AP15: 18225 | AQ15: 67500 | AR15: 89953.2
A16: No. Prod | B16: Plazo años | C16: Destino / Aforo | D16: % mas alto | E16: Hasta 50% | F16: Hasta 70% | G16: Hasta 80% | H16: Hasta 90% | I16: Hasta 95% | M16: Avalúo | N16: Ministraciones/Estudio Tecn? | O16: Avalúo 1 Tot | P16: Comis por Apertura | Q16: Notariales | R16: Gastos | AH16: =Param!CE20 -> 13 | AI16: =Param!CF20 -> Adq. De Terreno mas Const. Por ministraciones | AJ16: 135000 | AK16: 135000 | AL16: 1215000 | AM16: 0.9 | AN16: 0.102 | AO16: 4228.2 | AP16: 18225 | AQ16: 67500 | AR16: 89953.2
A17: 1 | B17: 10 | C17: Adquisición Tradicional | D17: =MAX(E17:I17) -> 0.102 | E17: 0.096 | F17: 0.096 | G17: 0.102 | H17: 0.102 | L17: Gastos | M17: =Param!BE5 -> 4228.2 | N17: =IF(HojaMaestra!C46="SI",Param!DH8,0) -> 0 | O17: =M17+N17 -> 4228.2 | P17: =IFERROR($R$20*VLOOKUP(HojaMaestra!$C$25,Param!AJ8:AL9,3,0),0) -> 18225 | Q17: =IFERROR(N6*HojaMaestra!C24,0) -> 67500 | R17: =SUM(O17:Q17) -> 89953.2 | AH17: =Param!CE21 -> 14 | AI17: =Param!CF21 -> Hipoteca Uno + Uno | AJ17: =M52 -> 224953.2 | AK17: =N52 -> 224953.2 | AL17: =O52 -> 1215000 | AM17: =P52 -> 0.9 | AN17: =Q52 -> 0.102 | AO17: =M62 -> 4228.2 | AP17: =N62 -> 18225 | AQ17: =O62 -> 67500 | AR17: =P62 -> 89953.2
A18: 2 | B18: 10 | C18: Adquisición con Apoyo Infonavit | D18: 0.097 | E18: 0.096 | F18: 0.096 | G18: 0.102 | H18: 0.102 | I18: 0.102 | AH18: =Param!CE22 -> 15 | AI18: =Param!CF22 -> Liquidez | AJ18: 135000 | AK18: 135000 | AL18: 1215000 | AM18: 0.9 | AN18: 0.102 | AO18: 4228.2 | AP18: 18225 | AQ18: 67500 | AR18: 89953.2
A19: 3 | B19: 10 | C19: Adquisición con Cofinavit | D19: 0.097 | E19: 0.096 | F19: 0.096 | G19: 0.102 | H19: 0.102 | I19: 0.102 | M19: % Finan 1 | N19: Eng Min Orig. | O19: Eng Adic Propuesto | P19: Eng Min | Q19: Enganche Total | R19: Crédito sin finan apertura | S19: Crédito con finan apertura | AH19: =Param!CE23 -> 16 | AI19: =Param!CF23 -> Hipoteca_Naranja_Flex | AJ19: 135000 | AK19: 135000 | AL19: 1215000 | AM19: 0.9 | AN19: 0.102 | AO19: 4228.2 | AP19: 18225 | AQ19: 67500 | AR19: 89953.2
A20: 4 | B20: 10 | C20: Mejora de Hipoteca | D20: 0.102 | E20: 0.096 | F20: 0.096 | G20: 0.102 | H20: 0.102 | M20: =IF($P$6=0,$N$14,IF($P$6>$N$14,"error",$P$6)) -> 0.9 | N20: =HojaMaestra!$C$7*(1-$M$20) -> 135000 | O20: =HojaMaestra!$C$26 -> 0 | P20: =IF($N$20-$O$20<0,0,$N$20-$O$20) -> 135000 | Q20: =$O$20+$P$20 -> 135000 | R20: =HojaMaestra!$C$7-$Q$20 -> 1215000 | S20: =R20+P17 -> 1233225 | AH20: =Param!CE24 -> 17 | AI20: =Param!CF24 -> Hipoteca Naranja Flex con Apoyo Infonavit | AJ20: 135000 | AK20: 135000 | AL20: 1215000 | AM20: 0.9 | AN20: 0.102 | AO20: 4228.2 | AP20: 18225 | AQ20: 67500 | AR20: 89953.2
A21: 5 | B21: 10 | C21: Hipoteca Vertical | D21: 0.102 | E21: 0.096 | F21: 0.096 | G21: 0.102 | AH21: =Param!CE25 -> 18 | AI21: =Param!CF25 -> Hipoteca Naranja Flex con COFINAVIT | AJ21: =M79 -> 135000 | AK21: =N79 -> 224953.2 | AL21: =O79 -> 1215000 | AM21: =P79 -> 0.9 | AN21: =Q79 -> 0.102 | AO21: =N88 -> 4228.2 | AP21: =M88 -> 18225 | AQ21: =O88 -> 67500 | AR21: =Q88 -> 89953.2
A22: 6 | B22: 10 | C22: Terrenos | D22: 0.1065 | E22: 0.1005 | F22: 0.1005 | G22: 0.1065 | H22: 0.1065 | R22: Crédito Tot | S22: % Financiamiento | T22: Tasa
A23: 7 | B23: 10 | C23: Construcciones | D23: 0.1065 | E23: 0.1005 | F23: 0.1005 | G23: 0.1065 | H23: 0.1065 | R23: =IFERROR(IF(HojaMaestra!$C$17="NO",R20,S20),0) -> 1215000 | S23: =IFERROR(R23/M14,0) -> 0.9 | T23: =IFERROR(IF(T14=0,HLOOKUP(VLOOKUP(S23,$AE$4:$AF$9,2,TRUE),$E$7:$I$10,4,0),T14),"Sin Datos") -> 0.102
A24: 8 | B24: 10 | C24: Terreno Plus | D24: 0.1065 | E24: 0.1005 | F24: 0.1005 | G24: 0.1065 | H24: 0.1065
A25: 9 | B25: 10 | C25: Construcción Plus | D25: 0.1065 | E25: 0.1005 | F25: 0.1005 | G25: 0.1065 | H25: 0.1065
A26: 10 | B26: 10 | C26: Remodelación | D26: 0.1005 | E26: 0.1005
A27: 11 | B27: 10 | C27: Terminación de Obra | D27: 0.1005 | E27: 0.1005 | M27: Eng. Min | N27: Eng. Requerido | O27: Crédito | P27: % Financiamiento | Q27: Tasa | S27: Mejora de Hipoteca
A28: 12 | B28: 10 | C28: Construcción/Remodelación por ministraciones. | D28: 0.1065 | E28: 0.1005 | F28: 0.1005 | G28: 0.1065 | L28: Resultados Mejora de Hipoteca | M28: =P35 -> 135000 | N28: =Q35 -> 135000 | O28: =R47 -> 1215000 | P28: =S47 -> 0.9 | Q28: =T47 -> 0.102
A29: 13 | B29: 10 | C29: Adq. De Terreno mas Const. Por ministraciones | D29: 0.1065 | E29: 0.1005 | F29: 0.1005 | G29: 0.1065
A30: 14 | B30: 10 | C30: Hipoteca Uno + Uno | D30: 0.096 | E30: 0.096 | F30: 0.096
A31: 15 | B31: 10 | C31: Liquidez | D31: 0.1225 | E31: 0.1225 | M31: Valor Inmueble | N31: % Financ. Orig. | O31: Eng. Mínimo Original | P31: Tasa Orig | R31: Eng. Adicional Propuesto | S31: % Finan Capt | T31: Tasa Capt
A32: 1 | B32: 15 | C32: Adquisición Tradicional | D32: 0.109 | E32: 0.102 | F32: 0.102 | G32: 0.109 | H32: 0.109 | L32: Valores Iniciales | M32: =$N$6 -> 1350000 | N32: =$D$11 -> 0.9 | O32: =HojaMaestra!$C$7*(1-$N$32) -> 135000 | P32: =$D$10 -> 0.102 | R32: =HojaMaestra!$C$26 -> 0 | S32: =HojaMaestra!$C$27 -> 0 | T32: =HojaMaestra!$C$55 -> 0
A33: 2 | B33: 15 | C33: Adquisición con Apoyo Infonavit | D33: =MAX(E33:I33) -> 0.109 | E33: 0.102 | F33: 0.102 | G33: 0.109 | H33: 0.109 | I33: 0.109
A34: 3 | B34: 15 | C34: Adquisición con Cofinavit | D34: =MAX(E34:I34) -> 0.109 | E34: 0.102 | F34: 0.102 | G34: 0.109 | H34: 0.109 | I34: 0.109 | M34: % Financiamiento | N34: Eng Min | O34: Eng Adic Propuesto | P34: Eng Min | Q34: Eng Tot | R34: Crédito | S34: % Eng. Min Disp. | T34: Créd Adic Propuesto
A35: 4 | B35: 15 | C35: Mejora de Hipoteca | D35: 0.109 | E35: 0.102 | F35: 0.102 | G35: 0.109 | H35: 0.109 | L35: Proceso | M35: =IF($P$6=0,$N$32,IF($P$6>$N$32,"error",$P$6)) -> 0.9 | N35: =HojaMaestra!$C$7*(1-$M$35) -> 135000 | O35: =$R$32 -> 0 | P35: =IF($N$35-$O$35<0,0,$N$35-$O$35) -> 135000 | Q35: =$O$35+$P$35 -> 135000 | R35: =$N$6-$Q$35 -> 1215000 | S35: =Param!$CX$8 -> 0.2 | T35: =$R$35*$S$35 -> 243000
A36: 5 | B36: 15 | C36: Hipoteca Vertical | D36: 0.109 | E36: 0.102 | F36: 0.102 | G36: 0.109
A37: 6 | B37: 15 | C37: Terrenos | D37: 0.1135 | E37: 0.1065 | F37: 0.1065 | G37: 0.1135 | H37: 0.1135 | M37: Tope Max | N37: Créd. Adic. Disponoble | O37: Acepta Línes de crédito | P37: Línea de crédito Acep | Q37: Monto disponible | R37: Financiamiento | S37: % Financiamiento | T37: Tasa | W37: 2660000
A38: 7 | B38: 15 | C38: Construcciónes | D38: 0.1135 | E38: 0.1065 | F38: 0.1065 | G38: 0.1135 | H38: 0.1135 | M38: =$M$32-$O$32 -> 1215000 | N38: =IF($R$35+$T$35>$M$38,0,$T$35) -> 0 | O38: =HojaMaestra!$C$52 -> NO | P38: =IF($O$38="SI",$N$38,0) -> 0 | Q38: =$R$35+$P$38 -> 1215000 | R38: =$R$35+$P$38 -> 1215000 | S38: =$R$38/$M$32 -> 0.9 | T38: =IFERROR(HLOOKUP(VLOOKUP(S38,$AE$4:$AF$9,2,TRUE),$E$7:$I$10,4,0),"Sin Datos") -> 0.102 | W38: 200000
A39: 8 | B39: 15 | C39: Terreno Plus | D39: 0.1135 | E39: 0.1065 | F39: 0.1065 | G39: 0.1135 | H39: 0.1135 | W39: =W37-W38 -> 2460000
A40: 9 | B40: 15 | C40: Construcción Plus | D40: 0.1135 | E40: 0.1065 | F40: 0.1065 | G40: 0.1135 | H40: 0.1135 | M40: Avalúo | N40: Ministraciones/Estudio Tecn? | O40: Avalúo 1 Tot | P40: Comis por Apertura | Q40: Notariales | R40: Gastos | W40: 40000
A41: 10 | B41: 15 | C41: Remodelación | D41: 0.1065 | E41: 0.1065 | L41: Gastos | M41: =Param!BE5 -> 4228.2 | N41: =IF(HojaMaestra!C46="SI",Param!DH8,0) -> 0 | O41: =M41+N41 -> 4228.2 | P41: =IFERROR(R35*VLOOKUP(HojaMaestra!C25,Param!AJ8:AU9,3,FALSE),0) -> 18225 | Q41: =IFERROR(M32*HojaMaestra!C24,0) -> 67500 | R41: =SUM(O41:Q41) -> 89953.2 | W41: =W39+W40 -> 2500000
A42: 11 | B42: 15 | C42: Terminación de Obra | D42: 0.1065 | E42: 0.1065
A43: 12 | B43: 15 | C43: Construcción/Remodelación por ministraciones. | D43: 0.1135 | E43: 0.1065 | F43: 0.1065 | G43: 0.1135 | S43: Crédito SIN Fina apert | T43: Crédito CON Fina apert
A44: 13 | B44: 15 | C44: Adq. De Terreno mas Const. Por ministraciones | D44: 0.1135 | E44: 0.1065 | F44: 0.1065 | G44: 0.1135 | S44: =R38 -> 1215000 | T44: =S44+P41 -> 1233225 | W44: 300000
A45: 14 | B45: 15 | C45: Hipoteca Uno + Uno | D45: 0.102 | E45: 0.102 | F45: 0.102 | W45: 351150
A46: 15 | B46: 15 | C46: LIquidez | D46: 0.125 | E46: 0.125 | R46: Crédito Tot | S46: % Financiamiento | T46: Tasa
A47: 1 | B47: 20 | C47: Adquisición Tradicional | D47: 0.11 | E47: 0.105 | F47: 0.105 | G47: 0.11 | H47: 0.11 | R47: =IFERROR(IF(HojaMaestra!$C$17="NO",S44,T44),0) -> 1215000 | S47: =IFERROR(R47/M32,0) -> 0.9 | T47: =IFERROR(IF(T32=0,HLOOKUP(VLOOKUP(S47,$AE$4:$AF$9,2,TRUE),$E$7:$I$10,4,0),T32),"Sin Datos") -> 0.102 | W47: =W45+W44 -> 651150
A48: 2 | B48: 20 | C48: Adquisición con Apoyo Infonavit | D48: =MAX(E48:I48) -> 0.11 | E48: 0.105 | F48: 0.105 | G48: 0.11 | H48: 0.11 | I48: 0.11
A49: 3 | B49: 20 | C49: Adquisición con Cofinavit | D49: =MAX(E49:I49) -> 0.11 | E49: 0.105 | F49: 0.105 | G49: 0.11 | H49: 0.11 | I49: 0.11 | W49: 2500000
A50: 4 | B50: 20 | C50: Mejora de Hipoteca | D50: 0.11 | E50: 0.105 | F50: 0.105 | G50: 0.11 | H50: 0.11 | W50: 351150
A51: 5 | B51: 20 | C51: Hipoteca Vertical | D51: 0.11 | E51: 0.105 | F51: 0.105 | G51: 0.11 | M51: Eng. Min | N51: Desembolso Tot Requerido | O51: Crédito | P51: % Financiamiento | Q51: Tasa | S51: Hipoteca Uno + Uno | W51: =W49+W50 -> 2851150
A52: 6 | B52: 20 | C52: Terreno_ | D52: 0.115 | E52: 0.11 | F52: 0.11 | G52: 0.115 | H52: 0.115 | L52: RESULTADOS 1 + 1 | M52: =T62 -> 224953.2 | N52: =T62 -> 224953.2 | O52: =M65 -> 1215000 | P52: =N65 -> 0.9 | Q52: =O65 -> 0.102
A53: 7 | B53: 20 | C53: Construcción_ | D53: 0.115 | E53: 0.11 | F53: 0.11 | G53: 0.115 | H53: 0.115
A54: 8 | B54: 20 | C54: Terreno Plus | D54: 0.115 | E54: 0.11 | F54: 0.11 | G54: 0.115 | H54: 0.115
A55: 9 | B55: 20 | C55: Construcción Plus | D55: 0.115 | E55: 0.11 | F55: 0.11 | G55: 0.115 | H55: 0.115 | M55: Valor Inmueble | N55: % Financ. Orig. | O55: Eng. Mínimo Original | P55: Tasa Orig | R55: Eng. Adicional Propuesto | S55: % Finan Capt | T55: Tasa Capt
A56: 10 | B56: 20 | C56: Remodelación | D56: 0.11 | E56: 0.11 | L56: Valores Iniciales | M56: =$N$6 -> 1350000 | N56: =$D$11 -> 0.9 | O56: =HojaMaestra!$C$7*(1-$N$56) -> 135000 | P56: =$D$10 -> 0.102 | R56: =HojaMaestra!$C$26 -> 0 | S56: =HojaMaestra!$C$27 -> 0 | T56: =HojaMaestra!$C$55 -> 0
A57: 11 | B57: 20 | C57: Terminación de Obra | D57: 0.11 | E57: 0.11
A58: 12 | B58: 20 | C58: Construcción/Remodelación por Ministraciones. | D58: 0.115 | E58: 0.11 | F58: 0.11 | G58: 0.115 | L58: Proceso | M58: Garantia 2 Casa | N58: Valor de las 2 casas | O58: Tope | P58: Monto de Tope | Q58: % Finan | R58: Tasa 1 | S58: Enganche Min 1 | T58: % Financiamiento 1
A59: 13 | B59: 20 | C59: Adq. De Terreno mas Const. Por ministraciones | D59: 0.115 | E59: 0.11 | F59: 0.11 | G59: 0.115 | M59: =HojaMaestra!$C$41 -> 0 | N59: =$M$56+$M$59 -> 1350000 | O59: =IF(HojaMaestra!$C$27=0,$D$13,HojaMaestra!$C$28) -> 0.9 | P59: =$N$59*$O$59 -> 1215000 | Q59: =D11 -> 0.9 | R59: =$D$10 -> 0.102 | S59: =IF($N$6-$P$59<=0,0,$N$6-$P$59) -> 135000 | T59: =$P$59/$N$59 -> 0.9
A60: 14 | B60: 20 | C60: Hipoteca Uno + Uno | D60: 0.105 | E60: 0.105 | F60: 0.105
A61: 15 | B61: 20 | C61: Liquidez | D61: 0.13 | E61: 0.13 | M61: Avaluos | N61: Comis por apertura | O61: Notariales | P61: Gastos | Q61: Adeudo 2a inmueble | R61: Requerido | S61: Requerido 2 | T61: Enganche
A62: 16 | B62: 20 | C62: Hipoteca_Naranja_Flex | D62: =MAX(E62:I62) -> 0.098 | E62: 0.098 | F62: 0.098 | G62: 0.098 | H62: 0.098 | M62: =IF(HojaMaestra!C39="SI",Param!BE5+Param!BG5,Param!BE5) -> 4228.2 | N62: =IFERROR($R$20*VLOOKUP(HojaMaestra!$C$25,Param!AJ8:AL9,3,0),0) -> 18225 | O62: =(M56*HojaMaestra!C24)+(M59*HojaMaestra!F24) -> 67500 | P62: =M62+N62+O62 -> 89953.2 | Q62: =IF(HojaMaestra!C42="SI",HojaMaestra!C43,0) -> 0 | R62: =M56+P62+Q62 -> 1439953.2 | S62: =R62-R56 -> 1439953.2 | T62: =IF(S62>=P59,S62-P59,0) -> 224953.2
A63: 17 | B63: 20 | C63: Hipoteca Naranja Flex con Apoyo Infonavit | D63: 0.098 | E63: 0.098 | F63: 0.093 | G63: 0.093 | H63: 0.093 | I63: 0.098
A64: 18 | B64: 20 | C64: Hipoteca Naranja Flex con COFINAVIT | D64: =MAX(E64:I64) -> 0.098 | E64: 0.098 | F64: 0.098 | G64: 0.098 | H64: 0.098 | I64: 0.098 | M64: Crédito | N64: % Financiamiento | O64: Tasa
M65: =IF(S62>=P59,P59,S62) -> 1215000 | N65: =M65/N59 -> 0.9 | O65: =IFERROR(IF(T56=0,HLOOKUP(VLOOKUP(N65,$AE$4:$AF$9,2,TRUE),$E$7:$I$10,4,0),T56),"Sin Datos") -> 0.102
M78: Eng. Min | N78: Enganche Requerido | O78: Crédito | P78: % Financiamiento | Q78: Tasa | S78: COFINAVIT
L79: RESULTADOS COFINAVIT | M79: =Q91 -> 135000 | N79: =M94 -> 224953.2 | O79: =N94 -> 1215000 | P79: =O94 -> 0.9 | Q79: =P94 -> 0.102
M81: Valor Inmueble | N81: % Financ. Orig. | O81: Enganche Mínimo Original | P81: Tasa Orig | Q81: Finan Original | R81: Eng. Adicional Propuesto | S81: % Finan Capt | T81: Tasa Capt
L82: Valores Iniciales | M82: =$N$6 -> 1350000 | N82: =$D$11 -> 0.9 | O82: =HojaMaestra!$C$7*(1-$N$82) -> 135000 | P82: =$D$10 -> 0.102 | Q82: =M82-O82 -> 1215000 | R82: =HojaMaestra!$C$26 -> 0 | S82: =HojaMaestra!$C$27 -> 0 | T82: =HojaMaestra!$C$55 -> 0
M84: Crédito Infonavit | N84: SubCuenta | O84: Descuento Infonavit | P84: Enganche 1 | Q84: Enganche 2 | R84: Sobrante Eng Adic | S84: Financia 2 | T84: SubTotCred
M85: =SUM(HojaMaestra!$C$34:$C$35) -> 0 | N85: =SUM(HojaMaestra!$C$32:$C$33) -> 0 | O85: =SUM(HojaMaestra!$C$36:$C$37) -> 0 | P85: =IF(M85>=O82,0,O82-M85) -> 135000 | Q85: =IF(R82>=P85,0,P85-R82) -> 135000 | R85: =IF(R82>=P85,R82-P85,0) -> 0 | S85: =IF(M85>=O82,M82-M85,Q82) -> 1215000 | T85: =M82-M85-N85-R82 -> 1350000
M87: Comis Apert | N87: Avalúo | O87: Notariales | P87: Gastos COFI | Q87: Gastos 1 | R87: Cred-Info-Gastos | S87: Enganche 3 | T87: Sobrante Credit
M88: =IFERROR(O91*VLOOKUP(HojaMaestra!C25,Param!AJ8:AU9,3,FALSE),0) -> 18225 | N88: =Param!BE5 -> 4228.2 | O88: =M82*HojaMaestra!C24 -> 67500 | P88: =M85*Param!$DK$8 -> 0 | Q88: =SUM(M88:P88) -> 89953.2 | R88: =N85-Q88 -> -89953.2 | S88: =IF(R88<=0,ABS(R88),0) -> 89953.2 | T88: =IF(R88>0,R88,0) -> 0
M90: Enganche 4 | N90: Sobrante Eng Adc 2 | O90: Cred S/Finan Apert | P90: Cred C/Finan Apert | Q90: EngMin
M91: =Q88+Q91+R82 -> 224953.2 | N91: =IF(R85>=S88,R85-S88,0) -> 0 | O91: =IF(Q82>T85,T85,Q82) -> 1215000 | P91: =O91+M88 -> 1233225 | Q91: =IF(Q82>T85,0,T85-Q82) -> 135000
M93: Eng Tot | N93: Crédito Ban 1 | O93: % Financiamiento | P93: Tasa | Q93: Comprobación
M94: =M91 -> 224953.2 | N94: =IF(HojaMaestra!C17="NO",O91,P91) -> 1215000 | O94: =N94/M82 -> 0.9 | P94: =IFERROR(IF(T82=0,HLOOKUP(VLOOKUP(O94,$AE$4:$AF$9,2,TRUE),$E$7:$I$10,4,0),T82),"Sin Datos") -> 0.102 | Q94: =($N$94+$N$85+$M$85+$R$82)/$N$6 -> 0.9

Sheet Param (hidden)
CH2: Resultado Parametros según producto seleccionado
CH3: Cód | CI3: Productos | CJ3: Seg Daños | CK3: Esq. Pago | CL3: Estudio Tec | CM3: Valor Min del Inm | CN3: Período de Gracia | CO3: Letr Gastos Admon (Fijos) | CP3: Letr Gastos Admon (Creciente) | CQ3: Tipo Ingresos | CR3: Tope % Finan
B4: Configuraciones Parametros Generales del Cotizador | CH4: =DGET(CH7:CN25,CH7,CI3:CI4) -> 4 | CI4: =HojaMaestra!$C$2 -> Mejora de Hipoteca | CJ4: =DGET($CH$7:$CN$25,CJ7,$CI$3:$CI$4) -> SI | CK4: =DGET($CH$7:$CN$25,CK7,$CI$3:$CI$4) -> SoloPagosFijos | CL4: =DGET($CH$7:$CN$25,CL7,$CI$3:$CI$4) -> NO | CM4: =DGET($CH$7:$CN$25,CM7,$CI$3:$CI$4) -> 500000 | CN4: =DGET($CH$7:$CN$25,CN7,$CI$3:$CI$4) -> SoloNO | CO4: =DGET($CH$7:$CQ$25,CO7,$CH$3:$CH$4) -> Comisión por Administración | CP4: =DGET($CH$7:$CQ$25,CP7,$CH$3:$CH$4) -> Comisión por Administración | CQ4: =DGET($CH$7:$CQ$25,CQ7,$CI$3:$CI$4) -> AmbosTiposIngresos | CR4: =MAX(TablaTasas!$E$13:$I$13) -> 0.9
BD5: Valor con IVA | BE5: =MAX(BE8:BE17) -> 4228.2 | BF5: Valor con IVA | BG5: =MAX(BG8:BG17) -> 0 | DP5: CRECIENTE
B6: Seguros | H6: Notariales | R6: Impuestos | AE6: Plazo | AI6: Comisión | AO6: COFINAVIT Y COFINAVIT AG | AS6: TRADICIONAL Y APOYO INFONAVIT | AW6: Proporción de Ingresos/Pago Mensual | AZ6: Avalúos | BD6: 1er. Avalúo | BF6: 2do. Avalúo | BI6: Período de Gracia | BX6: Terrenos | CB6: Tope Ingreso Total (Apoyo Infon) | CE6: Rangos de Celdas | CH6: Parametros | CT6: Razón de Crecimiento | CW6: % Línea adicional | CZ6: Mínimo Valor del Inmueble | DC6: Mínimo Valor de Terreno Plus | DF6: Valor Estudio Tec. Ministraciones por mes | DJ6: % gastos de Crédito Infonavit | DP6: Comisión | DU6: COFINAVIT Y COFINAVIT AG | DY6: TRADICIONAL Y APOYO INFONAVIT | EF6: Incremento Anual Máximo | EI6: Esquema de Pagos | EM6: Factor de Crecimiento | EP6: Meses de Ministraciones | ES6: Monto Mínimo para crédito Jumbo | EV6: % Incremento Jumbo | EY6: Letrero Programa Asalariado
B7: Cód | C7: Tipo | D7: Daños | H7: Cód | I7: Estado | J7: Porcentaje | K7: % 2 Avaluo | R7: Cód | S7: Impuesto | T7: % | AE7: Cód | AF7: Opción | AG7: Años | AI7: Cód | AJ7: Comisión | AK7: Importe | AL7: Comisión Apertura | AM7: Comision Prepago | AO7: Importe | AP7: Apertura | AQ7: Prepago | AS7: Importe | AT7: Apertura | AU7: Prepago | AW7: Cód | AX7: Proporción | AZ7: Cód | BA7: DE | BB7: HASTA | BC7: PORCENTAJE | BD7: Selección | BE7: Total | BF7: Selección | BG7: Total | BX7: Cód | BY7: Opción | BZ7: Terrenos | CB7: Cód | CC7: Tope | CE7: Cód | CF7: Productos | CH7: Cód | CI7: Productos | CJ7: Seg Daños | CK7: Esq. Pago | CL7: Estudio Tec | CM7: Valor Min del Inm | CN7: Período de Gracia | CO7: Letr Gastos Admon (Fijos) | CP7: Letr Gastos Admon (Creciente) | CQ7: Tipo Ingresos | CT7: Cód | CU7: Valor | CW7: Cód | CX7: Valor | CZ7: Cód | DA7: Valor | DC7: Cód | DD7: Valor | DF7: Cód | DG7: Valor | DH7: Monto con Iva | DJ7: Cód | DK7: Valor | DP7: Comisión | DQ7: Importe | DR7: Comisión Apertura | DS7: Comision Prepago | DU7: Importe | DV7: Apertura | DW7: Prepago | DY7: Importe | DZ7: Apertura | EA7: Prepago | EF7: Cód | EG7: Valor | EI7: Cód | EJ7: Esquema de Pagos | EK7: Resul Código | EM7: Cód | EN7: Valor | EP7: Cód | EQ7: Meses | ES7: Cód | ET7: Monto | EV7: Cód | EW7: Valor | EY7: Cód | EZ7: Productos | FA7: Letrero Programa Asalariado
B8: 1 | C8: Sobre V. Construcción | D8: 0.074364 | H8: 1 | I8: Aguascalientes | J8: 0.03 | K8: 0.03 | R8: 1 | S8: IVA Gral | T8: 0.16 | AE8: 1 | AF8: 1 año | AG8: 1 | AI8: 1 | AJ8: =($AL$8*100)&"% por Apertura - "&($AM$8*100)&"% Penalización por Prepago" -> 1.5% por Apertura - 0% Penalización por Prepago | AK8: 250 | AL8: 0.015 | AM8: 0 | AO8: 250 | AP8: 0.015 | AQ8: 0 | AS8: 250 | AT8: 0.015 | AU8: 0 | AW8: 1 | AX8: 2 | AZ8: 1 | BA8: 0.01 | BB8: 799999.99 | BC8: 2174 | BD8: =IF(AND(HojaMaestra!$C$7>=Param!BA8,HojaMaestra!$C$7<=Param!BB8),BC8,0) -> 0 | BE8: =Param!$BD$8*(1+$T$8) -> 0 | BF8: =IF(AND(HojaMaestra!$C$41>=BA8,HojaMaestra!$C$41<=BB8),BC8,0) -> 0 | BG8: =Param!$BF$8*(1+$T$8) -> 0 | BJ8: Tipo | BK8: 1 | BL8: 2 | BM8: 3 | BN8: 4 | BO8: 5 | BP8: 6 | BQ8: 7 | BR8: 8 | BS8: 9 | BT8: 10 | BU8: 11 | BV8: 12 | BX8: 1 | BY8: Terreno Plus | BZ8: Citadino | CB8: 1 | CC8: 5500 | CE8: 1 | CF8: Adquisición Tradicional | CH8: =CE8 -> 1 | CI8: =CF8 -> Adquisición Tradicional | CJ8: SI | CK8: AmbosPagos | CL8: NO | CM8: 500000 | CN8: SoloNO | CO8: Comisión por Autorización Diferida | CP8: Comisión por Autorización Diferida | CQ8: AmbosTiposIngresos | CT8: 1 | CU8: -0.0013 | CW8: 1 | CX8: 0.2 | CZ8: 1 | DA8: 500000 | DC8: 1 | DD8: 700000 | DF8: 1 | DG8: 1500 | DH8: =DG8*(1+T8) -> 1740 | DJ8: 1 | DK8: 0.05 | DP8: =(DR8*100)&"% por Apertura - "&(DS8*100)&"% Penalización por Prepago" -> 1.5% por Apertura - 0% Penalización por Prepago | DQ8: =IF(HojaMaestra!$A$2>2,$DU$8,$DY$8) -> 250 | DR8: 0.015 | DS8: =IF(HojaMaestra!$A$2>2,$DW$8,$EA$8) -> 0 | DU8: 250 | DV8: 0 | DW8: 0 | DY8: 250 | DZ8: 0.015 | EA8: 0 | EF8: 1 | EG8: 0.016 | EI8: 1 | EJ8: Pagos Fijos | EK8: 1 | EM8: 1 | EN8: 0.00133333 | EP8: 1 | EQ8: 18 | ES8: 1 | ET8: 10000000 | EV8: 1 | EW8: 0.005 | EY8: 1 | EZ8: Adquisición Tradicional | FA8: Ninguno
B9: 2 | C9: Porcentaje de daños | D9: 0.7 | H9: 2 | I9: Baja california norte | J9: 0.05 | K9: 0.03 | AE9: 2 | AF9: 2 años | AG9: 2 | AI9: 2 | AJ9: =(AL9*100)&"% por Apertura - "&(AM9*100)&"% Penalización por Prepago" -> 0% por Apertura - 1.5% Penalización por Prepago | AK9: 250 | AL9: 0 | AM9: 0.015 | AO9: 250 | AP9: 0 | AQ9: 0 | AS9: 250 | AT9: 0 | AU9: 0.015 | AZ9: 2 | BA9: 800000 | BB9: 1999999.99 | BC9: 2.7 | BD9: =IF(AND(HojaMaestra!$C$7>=Param!BA9,HojaMaestra!$C$7<=Param!BB9),BC9,0) -> 2.7 | BE9: =HojaMaestra!$C$7/1000*BD9*(1+$T$8) -> 4228.2 | BF9: =IF(AND(HojaMaestra!$C$41>=BA9,HojaMaestra!$C$41<=BB9),BC9,0) -> 0 | BG9: =HojaMaestra!$C$41/1000*BF9*(1+$T$8) -> 0 | BJ9: =HojaMaestra!C2 -> Mejora de Hipoteca | BK9: =VLOOKUP($BJ$9,$BJ$17:$BV$34,2,0) -> 0 | BL9: =VLOOKUP($BJ$9,$BJ$17:$BV$34,3,0) -> 0 | BM9: =VLOOKUP($BJ$9,$BJ$17:$BV$34,4,0) -> 0.8 | BN9: =VLOOKUP($BJ$9,$BJ$17:$BV$34,5,0) -> 0 | BO9: =VLOOKUP($BJ$9,$BJ$17:$BV$34,6,0) -> 0 | BP9: =VLOOKUP($BJ$9,$BJ$17:$BV$34,7,0) -> 0.7 | BQ9: =VLOOKUP($BJ$9,$BJ$17:$BV$34,8,0) -> 0 | BR9: =VLOOKUP($BJ$9,$BJ$17:$BV$34,9,0) -> 0 | BS9: =VLOOKUP($BJ$9,$BJ$17:$BV$34,10,0) -> 0 | BT9: =VLOOKUP($BJ$9,$BJ$17:$BV$34,11,0) -> 0 | BU9: =VLOOKUP($BJ$9,$BJ$17:$BV$34,12,0) -> 0 | BV9: =VLOOKUP($BJ$9,$BJ$17:$BV$34,13,0) -> 0.6 | BX9: 2 | BY9: Terreno | BZ9: Campestre | CE9: 2 | CF9: Adquisición con Apoyo Infonavit | CH9: =CE9 -> 2 | CI9: =CF9 -> Adquisición con Apoyo Infonavit | CJ9: SI | CK9: AmbosPagos | CL9: NO | CM9: 500000 | CN9: SoloNO | CO9: Comisión por Autorización Diferida | CP9: Comisión por Autorización Diferida | CQ9: SoloAsalariado | CT9: 2 | CU9: -0.0011 | DP9: =(DR9*100)&"% por Apertura - "&(DS9*100)&"% Penalización por Prepago" -> 0% por Apertura - 1.5% Penalización por Prepago | DQ9: =IF(HojaMaestra!$A$2>2,$DU$9,$DY$9) -> 250 | DR9: =IF(HojaMaestra!A$2>2,$DV$9,$DW$9) -> 0 | DS9: 0.015 | DU9: 250 | DV9: 0 | DW9: 0 | DY9: 250 | DZ9: 0 | EA9: 0.015 | EI9: 2 | EJ9: Pagos Crecientes | EK9: 2 | EY9: 2 | EZ9: Adquisición con Apoyo Infonavit | FA9: Asalariado
H10: 3 | I10: Baja california sur | J10: 0.05 | K10: 0.03 | AE10: 3 | AF10: 3 años | AG10: 3 | AZ10: 3 | BA10: 2000000 | BB10: 2999999.99 | BC10: 2.5 | BD10: =IF(AND(HojaMaestra!$C$7>=Param!BA10,HojaMaestra!$C$7<=Param!BB10),BC10,0) -> 0 | BE10: =HojaMaestra!$C$7/1000*BD10*(1+$T$8) -> 0 | BF10: =IF(AND(HojaMaestra!$C$41>=BA10,HojaMaestra!$C$41<=BB10),BC10,0) -> 0 | BG10: =HojaMaestra!$C$41/1000*BF10*(1+$T$8) -> 0 | BJ10: =HojaMaestra!C28 -> 0.9 | BK10: =IF($BJ$10<=BK9,BK8,0) -> 0 | BL10: 0 | BM10: 0 | BN10: 0 | BO10: 0 | BP10: 0 | BQ10: 0 | BR10: 0 | BS10: 0 | BT10: 0 | BU10: 0 | BV10: 0 | CE10: 3 | CF10: Adquisición con Cofinavit | CH10: 3 | CI10: Adquisición con Cofinavit | CJ10: SI | CK10: AmbosPagos | CL10: NO | CM10: 500000 | CN10: SoloNO | CO10: Comisión por Autorización Diferida | CP10: Comisión por Autorización Diferida | CQ10: SoloAsalariado | CT10: 3 | CU10: 0.0017 | EY10: 3 | EZ10: Adquisición con Cofinavit | FA10: Asalariado
B11: Cód | C11: Tipo | D11: Titular | E11: Mancomunado | F11: 2 Titulares | H11: 4 | I11: Campeche | J11: 0.03 | K11: 0.03 | AE11: 4 | AF11: 4 años | AG11: 4 | AZ11: 4 | BA11: 3000000 | BB11: 3999999.99 | BC11: 2.4 | BD11: =IF(AND(HojaMaestra!$C$7>=Param!BA11,HojaMaestra!$C$7<=Param!BB11),BC11,0) -> 0 | BE11: =HojaMaestra!$C$7/1000*BD11*(1+$T$8) -> 0 | BF11: =IF(AND(HojaMaestra!$C$41>=BA11,HojaMaestra!$C$41<=BB11),BC11,0) -> 0 | BG11: =HojaMaestra!$C$41/1000*BF11*(1+$T$8) -> 0 | CE11: 4 | CF11: Mejora de Hipoteca | CH11: 4 | CI11: Mejora de Hipoteca | CJ11: SI | CK11: SoloPagosFijos | CL11: NO | CM11: 500000 | CN11: SoloNO | CO11: Comisión por Administración | CP11: Comisión por Administración | CQ11: AmbosTiposIngresos | EY11: 4 | EZ11: Mejora de Hipoteca | FA11: Ninguno
B12: 1 | C12: Seg Vida Titular | D12: 0.424 | E12: 0.592 | F12: 0.592 | H12: 5 | I12: Coahuila de zaragoza | J12: 0.06 | K12: 0.03 | AE12: 5 | AF12: 5 años | AG12: 5 | AZ12: 5 | BA12: 4000000 | BB12: 4999999.99 | BC12: 2.35 | BD12: =IF(AND(HojaMaestra!$C$7>=Param!BA12,HojaMaestra!$C$7<=Param!BB12),BC12,0) -> 0 | BE12: =HojaMaestra!$C$7/1000*BD12*(1+$T$8) -> 0 | BF12: =IF(AND(HojaMaestra!$C$41>=BA12,HojaMaestra!$C$41<=BB12),BC12,0) -> 0 | BG12: =HojaMaestra!$C$41/1000*BF12*(1+$T$8) -> 0 | BJ12: =MAX(BK10:BV10) -> 0 | BK12: Meses de Período de gracia | CE12: 5 | CF12: Hipoteca Vertical | CH12: 5 | CI12: Hipoteca Vertical | CJ12: SI | CK12: SoloPagosFijos | CL12: NO | CM12: 1000000 | CN12: SoloSI | CO12: Comisión por Administración | CP12: Comisión por Administración | CQ12: AmbosTiposIngresos | EY12: 5 | EZ12: Hipoteca Vertical | FA12: Ninguno
B13: 2 | C13: Seguro ITP | D13: 0.106 | E13: 0.148 | F13: 0.148 | H13: 6 | I13: Colima | J13: 0.03 | K13: 0.03 | AE13: 6 | AF13: 6 años | AG13: 6 | AZ13: 6 | BA13: 5000000 | BB13: 5999999.99 | BC13: 2.3 | BD13: =IF(AND(HojaMaestra!$C$7>=Param!BA13,HojaMaestra!$C$7<=Param!BB13),BC13,0) -> 0 | BE13: =HojaMaestra!$C$7/1000*BD13*(1+$T$8) -> 0 | BF13: =IF(AND(HojaMaestra!$C$41>=BA13,HojaMaestra!$C$41<=BB13),BC13,0) -> 0 | BG13: =HojaMaestra!$C$41/1000*BF13*(1+$T$8) -> 0 | BJ13: RESULTADO | CE13: 6 | CF13: Terreno_ | CH13: 6 | CI13: Terreno_ | CJ13: NO | CK13: SoloPagosFijos | CL13: NO | CM13: 500000 | CN13: SoloNO | CO13: Comisión por Administración | CP13: Comisión por Administración | CQ13: AmbosTiposIngresos | EY13: 6 | EZ13: Terreno_ | FA13: Ninguno
B14: 3 | C14: Seguro Desempleo | D14: 0.3 | E14: 0.3 | F14: 0.3 | H14: 7 | I14: Chiapas | J14: 0.06 | K14: 0.03 | AE14: 7 | AF14: 7 años | AG14: 7 | AZ14: 7 | BA14: 6000000 | BB14: 6999999.99 | BC14: 2.25 | BD14: =IF(AND(HojaMaestra!$C$7>=Param!BA14,HojaMaestra!$C$7<=Param!BB14),BC14,0) -> 0 | BE14: =HojaMaestra!$C$7/1000*BD14*(1+$T$8) -> 0 | BF14: =IF(AND(HojaMaestra!$C$41>=BA14,HojaMaestra!$C$41<=BB14),BC14,0) -> 0 | BG14: =HojaMaestra!$C$41/1000*BF14*(1+$T$8) -> 0 | CE14: 7 | CF14: Construcción_ | CH14: 7 | CI14: Construcción_ | CJ14: NO | CK14: SoloPagosFijos | CL14: NO | CM14: 500000 | CN14: SoloNO | CO14: Comisión por Administración | CP14: Comisión por Administración | CQ14: AmbosTiposIngresos | EY14: 7 | EZ14: Construcción_ | FA14: Ninguno
B15: 4 | C15: Seguro No se 1 | D15: 400 | H15: 8 | I15: Chihuahua | J15: 0.05 | K15: 0.03 | AE15: 8 | AF15: 8 años | AG15: 8 | AZ15: 8 | BA15: 7000000 | BB15: 7999999.99 | BC15: 2.2 | BD15: =IF(AND(HojaMaestra!$C$7>=Param!BA15,HojaMaestra!$C$7<=Param!BB15),BC15,0) -> 0 | BE15: =HojaMaestra!$C$7/1000*BD15*(1+$T$8) -> 0 | BF15: =IF(AND(HojaMaestra!$C$41>=BA15,HojaMaestra!$C$41<=BB15),BC15,0) -> 0 | BG15: =HojaMaestra!$C$41/1000*BF15*(1+$T$8) -> 0 | BJ15: Período de Gracia | CE15: 8 | CF15: Terreno Plus | CH15: 8 | CI15: Terreno Plus | CJ15: NO | CK15: SoloPagosFijos | CL15: NO | CM15: 700000 | CN15: SoloNO | CO15: Comisión por Administración | CP15: Comisión por Administración | CQ15: AmbosTiposIngresos | EY15: 8 | EZ15: Terreno Plus | FA15: Ninguno
B16: 5 | C16: Seguro No se 2 | D16: 500 | H16: 9 | I16: Distrito federal | J16: 0.07 | K16: 0.03 | AE16: 9 | AF16: 9 años | AG16: 9 | AZ16: 9 | BA16: 8000000 | BB16: 8999999.99 | BC16: 2.1 | BD16: =IF(AND(HojaMaestra!$C$7>=Param!BA16,HojaMaestra!$C$7<=Param!BB16),BC16,0) -> 0 | BE16: =HojaMaestra!$C$7/1000*BD16*(1+$T$8) -> 0 | BF16: =IF(AND(HojaMaestra!$C$41>=BA16,HojaMaestra!$C$41<=BB16),BC16,0) -> 0 | BG16: =HojaMaestra!$C$41/1000*BF16*(1+$T$8) -> 0 | BI16: Cód | BJ16: Producto | BK16: 1 | BL16: 2 | BM16: 3 | BN16: 4 | BO16: 5 | BP16: 6 | BQ16: 7 | BR16: 8 | BS16: 9 | BT16: 10 | BU16: 11 | BV16: 12 | CE16: 9 | CF16: Construcción Plus | CH16: 9 | CI16: Construcción Plus | CJ16: NO | CK16: SoloPagosFijos | CL16: NO | CM16: 700000 | CN16: SoloNO | CO16: Comisión por Administración | CP16: Comisión por Administración | CQ16: AmbosTiposIngresos | EY16: 9 | EZ16: Construcción Plus | FA16: Ninguno
B17: 6 | C17: Seguro No se 3 | D17: 600 | H17: 10 | I17: Durango | J17: 0.05 | K17: 0.03 | AE17: 10 | AF17: 10 años | AG17: 10 | AZ17: 10 | BA17: 9000000 | BB17: 1000000000 | BC17: 2 | BD17: =IF(AND(HojaMaestra!$C$7>=Param!BA17,HojaMaestra!$C$7<=Param!BB17),BC17,0) -> 0 | BE17: =HojaMaestra!$C$7/1000*BD17*(1+$T$8) -> 0 | BF17: =IF(AND(HojaMaestra!$C$41>=BA17,HojaMaestra!$C$41<=BB17),BC17,0) -> 0 | BG17: =HojaMaestra!$C$41/1000*BF17*(1+$T$8) -> 0 | BI17: 1 | BJ17: Adquisición Tradicional | BK17: 0 | BL17: 0 | BM17: 0.8 | BN17: 0 | BO17: 0 | BP17: 0.7 | BQ17: 0 | BR17: 0 | BS17: 0 | BT17: 0 | BU17: 0 | BV17: 0.6 | CE17: 10 | CF17: Remodelación | CH17: 10 | CI17: Remodelación | CJ17: SI | CK17: SoloPagosFijos | CL17: NO | CM17: 500000 | CN17: SoloNO | CO17: Comisión por Administración | CP17: Comisión por Administración | CQ17: AmbosTiposIngresos | EY17: 10 | EZ17: Remodelación | FA17: Ninguno
H18: 11 | I18: Guanajuato | J18: 0.03 | K18: 0.03 | AE18: 11 | AF18: 11 años | AG18: 11 | BI18: 2 | BJ18: Adquisición con Apoyo Infonavit | BK18: 0 | BL18: 0 | BM18: 0.8 | BN18: 0 | BO18: 0 | BP18: 0.7 | BQ18: 0 | BR18: 0 | BS18: 0 | BT18: 0 | BU18: 0 | BV18: 0.6 | CE18: 11 | CF18: Terminación de Obra | CH18: 11 | CI18: Terminación de Obra | CJ18: SI | CK18: SoloPagosFijos | CL18: NO | CM18: 500000 | CN18: SoloNO | CO18: Comisión por Administración | CP18: Comisión por Administración | CQ18: AmbosTiposIngresos | EY18: 11 | EZ18: Terminación de Obra | FA18: Ninguno
H19: 12 | I19: Guerrero | J19: 0.05 | K19: 0.03 | AE19: 12 | AF19: 12 años | AG19: 12 | BI19: 3 | BJ19: Adquisicón con Cofinavit | BK19: 0 | BL19: 0 | BM19: 0.8 | BN19: 0 | BO19: 0 | BP19: 0.7 | BQ19: 0 | BR19: 0 | BS19: 0 | BT19: 0 | BU19: 0 | BV19: 0.6 | CE19: 12 | CF19: Construcción/Remodelación por ministraciones. | CH19: 12 | CI19: Construcción/Remodelación por ministraciones. | CJ19: SI | CK19: SoloPagosFijos | CL19: SI | CM19: 500000 | CN19: SoloNO | CO19: Comisión por Administración | CP19: Comisión por Administración | CQ19: AmbosTiposIngresos | EY19: 12 | EZ19: Construcción/Remodelación por ministraciones. | FA19: Ninguno
H20: 13 | I20: San luis potosi | J20: 0.05 | K20: 0.03 | AE20: 13 | AF20: 13 años | AG20: 13 | BI20: 4 | BJ20: Mejora de Hipoteca | BK20: 0 | BL20: 0 | BM20: 0.8 | BN20: 0 | BO20: 0 | BP20: 0.7 | BQ20: 0 | BR20: 0 | BS20: 0 | BT20: 0 | BU20: 0 | BV20: 0.6 | CE20: 13 | CF20: Adq. De Terreno mas Const. Por ministraciones | CH20: 13 | CI20: Adq. De Terreno mas Const. Por ministraciones | CJ20: SI | CK20: SoloPagosFijos | CL20: SI | CM20: 500000 | CN20: SoloNO | CO20: Comisión por Administración | CP20: Comisión por Administración | CQ20: AmbosTiposIngresos | EY20: 13 | EZ20: Adq. De Terreno mas Const. Por ministraciones | FA20: Ninguno
H21: 14 | I21: Sinaloa | J21: 0.05 | K21: 0.03 | AE21: 14 | AF21: 14 años | AG21: 14 | BI21: 5 | BJ21: Hipoteca Vertical | BK21: 0 | BL21: 0 | BM21: 0.8 | BN21: 0 | BO21: 0 | BP21: 0.7 | BQ21: 0 | BR21: 0 | BS21: 0 | BT21: 0 | BU21: 0 | BV21: 0.6 | CE21: 14 | CF21: Hipoteca Uno + Uno | CH21: 14 | CI21: Hipoteca Uno + Uno | CJ21: SI | CK21: SoloPagosFijos | CL21: NO | CM21: 500000 | CN21: SoloNO | CO21: Comisión por Administración | CP21: Comisión por Administración | CQ21: AmbosTiposIngresos | EY21: 14 | EZ21: Hipoteca Uno + Uno | FA21: Ninguno
H22: 15 | I22: Sonora | J22: 0.04 | K22: 0.03 | AE22: 15 | AF22: 15 años | AG22: 15 | BI22: 6 | BJ22: Terreno_ | BK22: 0 | BL22: 0 | BM22: 0.8 | BN22: 0 | BO22: 0 | BP22: 0.7 | BQ22: 0 | BR22: 0 | BS22: 0 | BT22: 0 | BU22: 0 | BV22: 0.6 | CE22: 15 | CF22: Liquidez | CH22: 15 | CI22: Liquidez | CJ22: SI | CK22: SoloPagosFijos | CL22: NO | CM22: 500000 | CN22: SoloNO | CO22: Comisión por Administración | CP22: Comisión por Administración | CQ22: AmbosTiposIngresos | EY22: 15 | EZ22: Liquidez | FA22: Ninguno
H23: 16 | I23: Tabasco | J23: 0.05 | K23: 0.03 | AE23: 16 | AF23: 16 años | AG23: 16 | BI23: 7 | BJ23: Construcción_ | BK23: 0 | BL23: 0 | BM23: 0 | BN23: 0 | BO23: 0 | BP23: 0 | BQ23: 0 | BR23: 0 | BS23: 0 | BT23: 0 | BU23: 0 | BV23: 0 | CE23: 16 | CF23: Hipoteca_Naranja_Flex | CH23: 16 | CI23: Hipoteca_Naranja_Flex | CJ23: SI | CK23: SoloPagosCrec | CL23: NO | CM23: 500000 | CN23: SoloNO | CO23: Comisión por Administración | CP23: Comisión por Administración | CQ23: AmbosTiposIngresos | EY23: 16 | EZ23: Hipoteca_Naranja_Flex | FA23: Ninguno
H24: 17 | I24: Tamaulipas | J24: 0.05 | K24: 0.03 | AE24: 17 | AF24: 17 años | AG24: 17 | BI24: 8 | BJ24: TerrenoPlus | BK24: 0 | BL24: 0 | BM24: 0 | BN24: 0 | BO24: 0 | BP24: 0 | BQ24: 0 | BR24: 0 | BS24: 0 | BT24: 0 | BU24: 0 | BV24: 0 | CE24: 17 | CF24: Hipoteca Naranja Flex con Apoyo Infonavit | CH24: 17 | CI24: Hipoteca Naranja Flex con Apoyo Infonavit | CJ24: SI | CK24: SoloPagosCrec | CL24: NO | CM24: 500000 | CN24: SoloNO | CO24: Comisión por Administración | CP24: Comisión por Administración | CQ24: SoloAsalariado | EY24: 17 | EZ24: Hipoteca Naranja Flex con Apoyo Infonavit | FA24: Asalariado
H25: 18 | I25: Hidalgo | J25: 0.04 | K25: 0.03 | AE25: 18 | AF25: 18 años | AG25: 18 | BI25: 9 | BJ25: Construcción_Plus | BK25: 0 | BL25: 0 | BM25: 0 | BN25: 0 | BO25: 0 | BP25: 0 | BQ25: 0 | BR25: 0 | BS25: 0 | BT25: 0 | BU25: 0 | BV25: 0 | CE25: 18 | CF25: Hipoteca Naranja Flex con COFINAVIT | CH25: 18 | CI25: Hipoteca Naranja Flex con COFINAVIT | CJ25: SI | CK25: SoloPagosCrec | CL25: NO | CM25: 500000 | CN25: SoloNO | CO25: Comisión por Administración | CP25: Comisión por Administración | CQ25: SoloAsalariado | EY25: 18 | EZ25: Hipoteca Naranja Flex con COFINAVIT | FA25: Asalariado
H26: 19 | I26: Jalisco | J26: 0.05 | K26: 0.03 | AE26: 19 | AF26: 19 años | AG26: 19 | BI26: 10 | BJ26: Remodelación | BK26: 0 | BL26: 0 | BM26: 0 | BN26: 0 | BO26: 0 | BP26: 0 | BQ26: 0 | BR26: 0 | BS26: 0 | BT26: 0 | BU26: 0 | BV26: 0
H27: 20 | I27: Estado de mexico | J27: 0.07 | K27: 0.03 | AE27: 20 | AF27: 20 años | AG27: 20 | BI27: 11 | BJ27: Terminación de Obra | BK27: 0 | BL27: 0 | BM27: 0 | BN27: 0 | BO27: 0 | BP27: 0 | BQ27: 0 | BR27: 0 | BS27: 0 | BT27: 0 | BU27: 0 | BV27: 0 | CF27: OpcionSiNo
H28: 21 | I28: Michoacan de ocampo | J28: 0.03 | K28: 0.03 | BI28: 12 | BJ28: Construcción/Remodelación por ministraciones. | BK28: 0 | BL28: 0 | BM28: 0 | BN28: 0 | BO28: 0 | BP28: 0 | BQ28: 0 | BR28: 0 | BS28: 0 | BT28: 0 | BU28: 0 | BV28: 0.8 | CF28: SI
H29: 22 | I29: Morelos | J29: 0.02 | K29: 0.03 | BI29: 13 | BJ29: Adq. De Terreno mas Const. Por ministraciones | BK29: 0 | BL29: 0 | BM29: 0 | BN29: 0 | BO29: 0 | BP29: 0 | BQ29: 0 | BR29: 0 | BS29: 0 | BT29: 0 | BU29: 0 | BV29: 0.8 | CF29: NO
H30: 23 | I30: Nayarit | J30: 0.02 | K30: 0.03 | BI30: 14 | BJ30: Hipoteca Uno + Uno | BK30: 0 | BL30: 0 | BM30: 0 | BN30: 0 | BO30: 0 | BP30: 0 | BQ30: 0 | BR30: 0 | BS30: 0 | BT30: 0 | BU30: 0 | BV30: 0
H31: 24 | I31: Nuevo leon | J31: 0.05 | K31: 0.03 | BI31: 15 | BJ31: Liquidez | BK31: 0 | BL31: 0 | BM31: 0 | BN31: 0 | BO31: 0 | BP31: 0 | BQ31: 0 | BR31: 0 | BS31: 0 | BT31: 0 | BU31: 0 | BV31: 0
H32: 25 | I32: Oaxaca | J32: 0.04 | K32: 0.03 | BI32: 16 | BJ32: Hipoteca_Naranja_Flex | BK32: 0 | BL32: 0 | BM32: 0 | BN32: 0 | BO32: 0 | BP32: 0 | BQ32: 0 | BR32: 0 | BS32: 0 | BT32: 0 | BU32: 0 | BV32: 0
H33: 26 | I33: Puebla | J33: 0.04 | K33: 0.03 | BI33: 17 | BJ33: Hipoteca Naranja Flex con Apoyo Infonavit | BK33: 0 | BL33: 0 | BM33: 0 | BN33: 0 | BO33: 0 | BP33: 0 | BQ33: 0 | BR33: 0 | BS33: 0 | BT33: 0 | BU33: 0 | BV33: 0
H34: 27 | I34: Queretaro de arteaga | J34: 0.05 | K34: 0.03 | BI34: 18 | BJ34: Hipoteca Naranja Flex con COFINAVIT | BK34: 0 | BL34: 0 | BM34: 0 | BN34: 0 | BO34: 0 | BP34: 0 | BQ34: 0 | BR34: 0 | BS34: 0 | BT34: 0 | BU34: 0 | BV34: 0
H35: 28 | I35: Quintana roo | J35: 0.05 | K35: 0.03 | CE35: Cód | CF35: Localización del Terreno
H36: 29 | I36: Tlaxcala | J36: 0.05 | K36: 0.03 | CE36: 1 | CF36: Citadino
H37: 30 | I37: Veracruz llave | J37: 0.05 | K37: 0.03 | CE37: 2 | CF37: Campestre
H38: 31 | I38: Yucatan | J38: 0.03 | K38: 0.03
H39: 32 | I39: Zacatecas | J39: 0.05 | K39: 0.03 | CE39: Cód | CF39: Terreno Plus
CE40: 1 | CF40: 0.7
CE42: Cód | CF42: TipoIngreso
CE43: 1 | CF43: Asalariado
CE44: 2 | CF44: Act. Empresarial
CE46: Cód | CF46: Participantes
CE47: 1 | CF47: Titular
CE48: 2 | CF48: Mancomunado
CE49: 3 | CF49: 2 Titulares
CE51: Cód | CF51: Plazo
CE52: 20 | CF52: 20 años
CE53: 19 | CF53: 19 años
CE54: 18 | CF54: 18 años
CE55: 17 | CF55: 17 años
CE56: 16 | CF56: 16 años
CE57: 15 | CF57: 15 años
CE58: 14 | CF58: 14 años
CE59: 13 | CF59: 13 años
CE60: 12 | CF60: 12 años
CE61: 11 | CF61: 11 años
CE62: 10 | CF62: 10 años
CE63: 9 | CF63: 9 años
CE64: 8 | CF64: 8 años
CE65: 7 | CF65: 7 años
CE66: 6 | CF66: 6 años
CE67: 5 | CF67: 5 años
CE68: 4 | CF68: 4 años
CE69: 3 | CF69: 3 años
CE70: 2 | CF70: 2 años
CE71: 1 | CF71: 1 años
CE73: Cód | CF73: Comisión
CE74: 1 | CF74: =($AL$8*100)&"% por Apertura - "&($AM$8*100)&"% Penalización por Prepago" -> 1.5% por Apertura - 0% Penalización por Prepago
CE75: 2 | CF75: =($AL$9*100)&"% por Apertura - "&($AM$9*100)&"% Penalización por Prepago" -> 0% por Apertura - 1.5% Penalización por Prepago
CE77: Cód | CF77: Esquema de Pagos Fijos
CE78: 1 | CF78: Pagos Fijos
CE80: Cód | CF80: Esquema de Pagos
CE81: 1 | CF81: Pagos Fijos
CE82: 2 | CF82: Pagos Crecientes
CE84: Cód | CF84: Ubicación
CE85: 1 | CF85: AGUASCALIENTES
CE86: 2 | CF86: BAJA CALIFORNIA NORTE
CE87: 3 | CF87: BAJA CALIFORNIA SUR
CE88: 4 | CF88: CAMPECHE
CE89: 5 | CF89: COAHUILA DE ZARAGOZA
CE90: 6 | CF90: COLIMA
CE91: 7 | CF91: CHIAPAS
CE92: 8 | CF92: CHIHUAHUA
CE93: 9 | CF93: DISTRITO FEDERAL
CE94: 10 | CF94: DURANGO
CE95: 11 | CF95: GUANAJUATO
CE96: 12 | CF96: GUERRERO
CE97: 13 | CF97: SAN LUIS POTOSI
CE98: 14 | CF98: SINALOA
CE99: 15 | CF99: SONORA
CE100: 16 | CF100: TABASCO
CE101: 17 | CF101: TAMAULIPAS
CE102: 18 | CF102: HIDALGO
CE103: 19 | CF103: JALISCO
CE104: 20 | CF104: ESTADO DE MEXICO
CE105: 21 | CF105: MICHOACAN DE OCAMPO
CE106: 22 | CF106: MORELOS
CE107: 23 | CF107: NAYARIT
CE108: 24 | CF108: NUEVO LEON
CE109: 25 | CF109: OAXACA
CE110: 26 | CF110: PUEBLA
CE111: 27 | CF111: QUERETARO DE ARTEAGA
CE112: 28 | CF112: QUINTANA ROO
CE113: 29 | CF113: TLAXCALA
CE114: 30 | CF114: VERACRUZ LLAVE
CE115: 31 | CF115: YUCATAN
CE116: 32 | CF116: ZACATECAS
CF118: Esquema de Pagos Crecientes
CE119: 1 | CF119: Pagos Crecientes
CF121: Opciones de Pago
CE122: 1 | CF122: SoloPagosFijos
CE123: 2 | CF123: SoloPagosCrec
CE124: 3 | CF124: AmbosPagos
CF126: Período de Gracia
CE127: 1 | CF127: SoloSI
CE128: 2 | CF128: SoloNO
CE129: 3 | CF129: Ambos
CF131: Opciones Tipo Ingresos
CE132: 1 | CF132: SoloAsalariado
CE133: 2 | CF133: SoloActEmpresarial
CE134: 3 | CF134: AmbosTiposIngresos
CE136: Cód | CF136: Prepagos
CE137: 1 | CF137: Prepagos a Plazo
CE138: 2 | CF138: Prepagos a Mensualidad

Sheet TablAmoPagosFijos
R1: =IFERROR(IF(B10="","",IF(AND(OR(HojaMaestra!$A$2=12,HojaMaestra!$A$2=13),B11<=Param!$EQ$8+1),0,IF(B11<=HojaMaestra!$M$19+1,0,BG10))),0)
R2: Incremento Anual de pago | U2: Período de cambio | V2: Tasas | W2: Saldo Final | X2: Factor Gral Utiliza | Y2: Monto inicial | Z2: Financiar Comisión de Apertura | AA2: Comisión | AB2: Seguro desempleo
R3: =P21 -> 0 | U3: =TablaTasas!AA5 -> 37 | V3: =TablaTasas!AB5 -> 0.0974 | W3: =$O$249 ->  | X3: 1.0938 | Y3: 9242.705725 | Z3: NO | AA3: 1 | AB3: =HojaMaestra!C20 -> SI | AL3: =(12 *IF(Simulador!$F$18=1,INDEX(Plazos!$A$2:$B$21,Simulador!$L$18,2),20))+Producto!$AA$1
U4: =TablaTasas!AA6 -> 73 | V4: =TablaTasas!AB6 -> 0.1074 | AL4: =IF(K11>0,$AL$10-B10,(AL10-IF(B10=HojaMaestra!$M$19,HojaMaestra!$M$19,0))) | AZ4: =IFERROR(IF(B11="","",IF(OR(HojaMaestra!$A$2=12,HojaMaestra!$A$2=13),IF(AX11<>0,$AZ$10+SUM($G$10:G10)+SUM($I$10:I10)+SUM($M$10:M10),0),HojaMaestra!$M$16)),0)
Q5: Valor del inmueble: | U5: =TablaTasas!AA7 -> 240 | V5: =TablaTasas!AB7 -> 0.1174 | AA5: =G10+H10+(I10/(1+Param!$T$8))+Z10 -> 17501.75174
Q6: =HojaMaestra!$C$7 -> 1350000 | R6: Factor de Crecim. | AF6: =($F$10*100)*($AE$10/$AD$10) | AL6: =IF(OR(HojaMaestra!$A$4=12,HojaMaestra!$A$4=13),BO10,IF(HojaMaestra!$C$18="SI",BQ10,BM10))
B7: =TODAY() -> 2023-12-01 | E7: Pagos Fijos | N7: CAT sin IVA | O7: =IF(OR(HojaMaestra!$A$2=12,HojaMaestra!$A$2=13),(1+IRR(CC9:CC261))^12-1,(1+IRR(AA9:AA261))^12-1) -> 0.1291647527 | Q7: =HojaMaestra!$M$16 -> 1215000 | R7: 0.00133333 | U7: Participantes | V7: =HojaMaestra!C10 -> Titular | X7: Lleva Seg de daños | AA7: Calculo CAT | BE7: Resultado 1er Pago | BQ7: Max | CC7: Calculo CAT
B8: =HojaMaestra!$C$2 -> Mejora de Hipoteca | Q8: Financiamiento: | X8: =IF(OR(HojaMaestra!$A$2=6,HojaMaestra!$A$2=8,HojaMaestra!$A$2=13),"No","Si") -> Si | Y8: Para Calculo del CAT | AA8: =HojaMaestra!$G$6+HojaMaestra!$G$5/(1+Param!$T$8) -> 21870 | AB8: Comis Apert + Ava para CAT | AN8: <-Insoluto vertical | AP8: <-PagotZ Vertical | AR8: <-Periodos vertical | AT8: <-Periodos vertical | BE8: =MAX(BE10:BE249) -> 17547.47834 | BQ8: =MAX(BQ10:BQ261) -> 120 | CC8: =HojaMaestra!$G$6+HojaMaestra!$G$5/(1+Param!$T$8) -> 21870
B9: Período | C9: Fecha | D9: Insoluto | E9: EROGACIÓN | F9: Tasa Aplicada | G9: Intereses | H9: Amortización | I9: =Param!$CO$4 -> Comisión por Administración | J9: Aport. Bimestral | K9: Prepagos a Capital | L9: Comisión por prepago | M9: Seguros | N9: Pago | O9: Saldo | Q9: PrePagos | R9: % de crecimiento | S9: Dias de mes siguiente | T9: Num Mes | U9: Seguro Vida | V9: Seguro ITP | W9: Seg. Desempleo | X9: Seg. Daños | Y9: Seg Daños Sin/IVA | Z9: Seg para Calc CAT | AA9: =AA8-D10 -> -1193130 | AB9: Dato Requerido Calc CAT | AD9: PagoZ | AE9: PagotZ | AF9: Taza Única | AG9: Pago Único | AH9: Total a Pagar | AI9: Amortizacion | AK9: Insoluto Por Adelanto | AL9: Periodos | AM9: Periodos Prepagos a Mensualidad | AN9: =IF(MAX(AN10:AN275)=0,D10,MAX(AN10:AN275)) -> 1215000 | AP9: =MAX(AS10:AS275) -> 0 | AR9: =IF(MAX(AU10:AU275)=0,AL10,MAX(AU10:AU275)) -> 120 | AT9: Períodos | AV9: Dias a considerar | AX9: Meses de Ministraciones | AY9: Insoluto SIN Ministraciones | AZ9: Insoluto CON Ministraciones | BA9: Crédito repartido en 12 Meses | BC9: Seguros Sin IVA | BE9: Pago | BG9: Amortización | BI9: Pagos | BK9: Insoluto con período de gracia | BM9: Períodos normales | BO9: Total de períodos con ministraciones | BQ9: Períodos gral con período de gracia | BS9: Períodos | BU9: Primeros Pagos con Ministarciones | BW9: Seguro Vida | BX9: Seguro ITP | BY9: Seg. Desempleo | BZ9: Seg. Daños | CA9: Seg Daños Sin/IVA | CB9: Seg para Calc CAT | CC9: =CC8-D22 -> -1123183.79 | CD9: Dato Requerido Calc CAT
A10: 1 | B10: 1 | C10: =TODAY() -> 2023-12-01 | D10: =IF(OR(HojaMaestra!$A$2=12,HojaMaestra!$A$2=13),IF(AZ10<>0,AZ10,0),HojaMaestra!$M$16) -> 1215000 | E10: =IF(B10="","",IF(D10=0,0,G10+H10)) -> 16207.51052 | F10: =IF(B10="","",IF(D10=0,0,HojaMaestra!$M$14)) -> 0.102 | G10: =IFERROR(IF(B10="","",IF(D10=0,0,IF(HojaMaestra!$A$2<>15,D10*F10*AV10/360,(D10*F10*AV10/360)*(1+Param!$T$8)))),0) -> 10671.75 | H10: =IFERROR(IF(B10="","",BG10),0) -> 5535.760519 | I10: =IF(B10="","",IF(D10=0,0,VLOOKUP(HojaMaestra!$C$25,Param!$AJ$8:$AM$9,2,0))) -> 250 | J10: =IF(B10="","",IF(D10=0,0,IF(AND(HojaMaestra!$A$2=2,MOD(T10,2)=0),HojaMaestra!$C$16,0))) -> 0 | L10: =IFERROR(IF(B10="","",K10*VLOOKUP(HojaMaestra!$C$25,Param!$AJ$8:$AM$9,4,0)*(1+Param!$T$8)),"Sin Datos") -> 0 | M10: =IFERROR(IF(B10="","",IF(D10=0,0,SUM(U10:X10))),0) -> 1089.967817 | N10: =IFERROR(IF(B10="","",IF(AND(OR(HojaMaestra!$A$2=12,HojaMaestra!$A$2=13),B11<=Param!$EQ$8+1),BU10,IF(B11<=HojaMaestra!$M$19+1,0,BI10))),0) -> 17547.47834 | O10: =IFERROR(IF(B10="","",IF(D10=0,0,D10-H10)),0) -> 1209464.239 | P10: =IF(T10<>12,"",(N10-$N$10)/$N$10) ->  | S10: =IF(B10="","",DAY(DATE(YEAR(C10),MONTH(C10)+2,1)-1)) -> 31 | T10: 1 | U10: =IF(B10="","",D10*HLOOKUP($V$7,Param!$C$11:$F$14,2,0)/1000) -> 515.16 | V10: =IF(B10="","",D10*HLOOKUP($V$7,Param!$C$11:$F$14,3,0)/1000) -> 128.79 | W10: =IF(B10="","",IF($AB$3="SI",D10*HLOOKUP($V$7,Param!$C$11:$F$14,4,0)/1000,0)) -> 364.5 | X10: =IF($X$8="Si",$Q$6*Param!$D$9*Param!$D$8/1000+(($Q$6*Param!$D$9*Param!$D$8/1000)*Param!$T$8),0) -> 81.5178168 | Y10: =X10/(1+Param!$T$8) -> 70.27398 | Z10: =IF(B10="","",U10+V10+W10+Y10) -> 1078.72398 | AA10: =IFERROR(IF(D10="","",G10+H10+(I10/(1+Param!$T$8))+Z10),0) -> 17501.75174 | AD10: =(IF(B10<=HojaMaestra!$M$19,$D$10,IF($AN$9=0,$D$10,$AN$9))*($F$10*100))/1200 -> 10327.5 | AE10: =$AD$10+$U$10+$V$10+$W$10 -> 11335.95 | AF10: =($F$10*100)*($AE$10/$AD$10) -> 11.196 | AG10: =(IF($K$9="Prepagos a Capital",IF(B10<=HojaMaestra!$M$19,$D$10,IF($AN$9=0,$D$10,$AN$9)),AK10)*$AF$10/1200)/(1-(1/((1+$AF$10/1200)^IF($K$9="Prepagos a Capital",$AL$10,AM10)))) -> 16871.71052 | AH10: =X10+AG10 -> 16953.22834 | AI10: =IFERROR(IF(B10<=HojaMaestra!$M$19,0,IF(D10<(AH10-M10-(D10*(F10*100)/1200)),D10 - ( J10+K10+L10),(AH10-M10-(D10*(F10*100)/1200)))),0) -> 5535.760519 | AK10: =D10 -> 1215000 | AL10: =IF(OR(HojaMaestra!$A$4=12,HojaMaestra!$A$4=13),BO10,IF(HojaMaestra!$C$18="SI",BQ10,BM10)) -> 120 | AM10: =AL10+HojaMaestra!$M$19 -> 120 | AN10: =IF(AT9=HojaMaestra!$M$19,$D10,0) -> 0 | AP10: =IF(B9=HojaMaestra!$M$19,AD10+U10+V10+W10,0) -> 0 | AR10: =IF(B9=HojaMaestra!$M$19,AT9,0) -> 0 | AT10: 1 | AV10: =IFERROR(IF(B10="","",DAY(DATE(YEAR(C10),MONTH(C10)+1,1)-1)),0) -> 31 | AX10: =IFERROR(IF(Param!$EQ$8>=B10,B10,0),0) -> 1 | AY10: =HojaMaestra!$M$16 -> 1215000 | AZ10: =IF(AX10<>0,SUM($BA$10:BA10),IF(AX9=Param!$EQ$8,AZ9,0)) -> 67500 | BA10: =IFERROR(IF(B10="","",IF(AX10<>0,HojaMaestra!$M$16/Param!$EQ$8,0)),0) -> 67500 | BC10: =IF(B10="","",M10/(1+Param!$T$8)) -> 939.6274283 | BE10: =IFERROR(IF(B10="","",IF(N10=0,0,N10)),0) -> 17547.47834 | BG10: =IFERROR(IF(B10<=HojaMaestra!$M$19,J10+K10,IF(D10<(AI10+J10+K10+L10),D10,(AI10+J10+K10+L10))),0) -> 5535.760519 | BI10: =IFERROR(IF(B10="","",G10+H10+I10+IF(HojaMaestra!$A$2=15,BC10,M10)),0) -> 17547.47834 | BK10: =IFERROR(IF(B10="","",IF(B10<=HojaMaestra!$M$19,O10,AY10)),0) -> 1215000 | BM10: =HojaMaestra!$A$4*12 -> 120 | BO10: =IF(B10<=Param!$EQ$8,HojaMaestra!$A$4*12+Param!$EQ$8,HojaMaestra!$A$4*12) -> 138 | BQ10: =IF(A10<=HojaMaestra!$M$19,HojaMaestra!$A$4*12,HojaMaestra!$A$4*12) -> 120 | BS10: 1 | BU10: =IFERROR(IF(B10="","",IF(AX10<>0,G10+M10+I10,0)),0) -> 12011.71782 | BW10: =U10 -> 515.16 | BX10: =V10 -> 128.79 | BY10: =W10 -> 364.5 | BZ10: =X10 -> 81.5178168 | CA10: =Y10 -> 70.27398 | CB10: =Z10 -> 1078.72398 | CC10: =IF(D10="","",IF(AX10=0,G10+H10+(I10/(1+Param!$T$8))+CB10,0)) -> 0
A11: 2 | B11: =IF(O10<=0.9,"",BS11) -> 2 | C11: =IF(B11="","",DATE(YEAR(C10),MONTH(C10)+1,IF(DAY(C10)>S10,S10,DAY(C10)))) -> 2024-01-01 | D11: =IFERROR(IF(B11="","",IF(OR(HojaMaestra!$A$2=12,HojaMaestra!$A$2=13),IF(AZ11<>0,AZ11,AY11),IF(HojaMaestra!$C$18="SI",AY11,AY11))),0) -> 1209464.239 | E11: =IFERROR(IF(B11="","",G11+H11),0) -> 16210.53673 | F11: =IF(B11="","",HojaMaestra!$M$14) -> 0.102 | G11: =IFERROR(IF(B11="","",IF(D11=0,0,IF(HojaMaestra!$A$2<>15,D11*F11*AV11/360,(D11*F11*AV11/360)*(1+Param!$T$8)))),0) -> 10623.12757 | H11: =IFERROR(IF(B11="","",BG11),0) -> 5587.409165 | I11: =IF(B11="","",IF(D11=0,0,VLOOKUP(HojaMaestra!$C$25,Param!$AJ$8:$AM$9,2,0))) -> 250 | J11: =IF(B11="","",IF(D11=0,0,IF(AND(HojaMaestra!$A$2=2,MOD(T11,2)=0),HojaMaestra!$C$16,0))) -> 0 | L11: =IFERROR(IF(B11="","",K11*VLOOKUP(HojaMaestra!$C$25,Param!$AJ$8:$AM$9,4,0)*(1+Param!$T$8)),"Sin Datos") -> 0 | M11: 1085.373136 | N11: =IFERROR(IF(B11="","",IF(AND(OR(HojaMaestra!$A$2=12,HojaMaestra!$A$2=13),B12<=Param!$EQ$8+1),BU11,IF(B12<=HojaMaestra!$M$19+1,0,BI11))),0) -> 17545.90987 | O11: =IFERROR(IF(B11="","",IF(D11=0,0,D11-H11)),0) -> 1203876.83 | P11: =IF(T11<>12,"",(N11-$N$10)/$N$10) ->  | R11: =1+$R$7 -> 1.00133333 | S11: =IF(B11="","",DAY(DATE(YEAR(C11),MONTH(C11)+2,1)-1)) -> 29 | T11: =IF(T10=12,1,T10+1) -> 2 | U11: =IF(B11="","",D11*HLOOKUP($V$7,Param!$C$11:$F$14,2,0)/1000) -> 512.8128375 | V11: =IF(B11="","",D11*HLOOKUP($V$7,Param!$C$11:$F$14,3,0)/1000) -> 128.2032094 | W11: =IF(B11="","",IF($AB$3="SI",D11*HLOOKUP($V$7,Param!$C$11:$F$14,4,0)/1000,0)) -> 362.8392718 | X11: =IF($X$8="Si",$Q$6*Param!$D$9*Param!$D$8/1000+(($Q$6*Param!$D$9*Param!$D$8/1000)*Param!$T$8),0) -> 81.5178168 | Y11: =X11/(1+Param!$T$8) -> 70.27398 | Z11: =IF(B11="","",U11+V11+W11+Y11) -> 1074.129299 | AA11: =IFERROR(IF(D11="","",G11+H11+(I11/(1+Param!$T$8))+Z11),0) -> 17500.18328 | AD11: =(IF(B11<=HojaMaestra!$M$19,$D$10,IF($AN$9=0,$D$10,$AN$9))*($F$10*100))/1200 -> 10327.5 | AE11: =IF(B10<=HojaMaestra!$M$19,$AD$10+$U$10+$V$10+$W$10,IF(HojaMaestra!$M$19=0,$AD$10+$U$10+$V$10+$W$10,$AP$9)) -> 11335.95 | AF11: 11.196 | AG11: =(IF($K$9="Prepagos a Capital",IF(B11<=HojaMaestra!$M$19,$D$10,IF($AN$9=0,$D$10,$AN$9)),AK11)*$AF$10/1200)/(1-(1/((1+$AF$10/1200)^IF($K$9="Prepagos a Capital",$AL$10,AM11)))) -> 16871.71052 | AH11: =X11+AG11 -> 16953.22834 | AI11: =IFERROR(IF(B11<=HojaMaestra!$M$19,0,IF(D11<(AH11-M11-(D11*(F11*100)/1200)),D11 - ( J11+K11+L11),(AH11-M11-(D11*(F11*100)/1200)))),0) -> 5587.409165 | AK11: =IFERROR(IF(K10>0,D11,IF(B10=HojaMaestra!$M$19,D11,AK10)),0) -> 1215000 | AL11: =IF(K10>0,$AL$10-B10,(AL10-IF(B10=HojaMaestra!$M$19,HojaMaestra!$M$19,0))) -> 120 | AM11: =AL11+HojaMaestra!$M$19 -> 120 | AN11: =IF(AT10=HojaMaestra!$M$19,$D11,0) -> 0 | AP11: =IF(B10=HojaMaestra!$M$19,AD11+U11+V11+W11,0) -> 0 | AR11: =IF(B10=HojaMaestra!$M$19,AT10,0) -> 0 | AT11: 2 | AV11: =IFERROR(IF(B11="","",DAY(DATE(YEAR(C11),MONTH(C11)+1,1)-1)),0) -> 31 | AX11: =IFERROR(IF(Param!$EQ$8>=B11,B11,0),0) -> 2 | AY11: =IFERROR(IF(B11="","",IF(HojaMaestra!$M$19>=B10,$AY$10+SUM($G$10:G10)+SUM($M$10:M10)+SUM($I$10:I10),O10)),0) -> 1209464.239 | AZ11: =IF(AX11<>0,SUM($BA$10:BA11),IF(AX10=Param!$EQ$8,AZ10,0)) -> 135000 | BA11: =IFERROR(IF(B11="","",IF(AX11<>0,HojaMaestra!$M$16/Param!$EQ$8,0)),0) -> 67500 | BC11: =IF(B11="","",M11/(1+Param!$T$8)) -> 935.6664962 | BE11: =IFERROR(IF(B11="","",IF(AND(N10=0,N11>0),N11,0)),0) -> 0 | BG11: =IFERROR(IF(B11<=HojaMaestra!$M$19,J11+K11,IF(D11<(AI11+J11+K11+L11),D11,(AI11+J11+K11+L11))),0) -> 5587.409165 | BI11: =IFERROR(IF(B11="","",G11+H11+I11+IF(HojaMaestra!$A$2=15,BC11,M11)),0) -> 17545.90987 | BK11: =IFERROR(IF(B11="","",IF(B11<=HojaMaestra!$M$19,O11,AY11)),0) -> 1209464.239 | BM11: =HojaMaestra!$A$4*12 -> 120 | BO11: =IF(B11<=Param!$EQ$8,HojaMaestra!$A$4*12+Param!$EQ$8,HojaMaestra!$A$4*12) -> 138 | BQ11: =IF(A11<=HojaMaestra!$M$19,HojaMaestra!$A$4*12+HojaMaestra!$M$19,HojaMaestra!$A$4*12) -> 120 | BS11: =IFERROR(IF(OR(O10<=0,O10=""),"",A11),"") -> 2 | BU11: =IFERROR(IF(B11="","",IF(AX11<>0,G11+M11+I11,0)),0) -> 11958.50071 | BW11: =U11 -> 512.8128375 | BX11: =V11 -> 128.2032094 | BY11: =W11 -> 362.8392718 | BZ11: =X11 -> 81.5178168 | CA11: =Y11 -> 70.27398 | CB11: 1074.129299 | CC11: =IF(D11="","",IF(AX11=0,G11+H11+(I11/(1+Param!$T$8))+CB11,0)) -> 0
A12: 3 | B12: =IF(O11<=0.9,"",BS12) -> 3 | C12: =IF(B12="","",DATE(YEAR(C11),MONTH(C11)+1,IF(DAY(C11)>S11,S11,DAY(C11)))) -> 2024-02-01 | D12: =IFERROR(IF(B12="","",IF(OR(HojaMaestra!$A$2=12,HojaMaestra!$A$2=13),IF(AZ12<>0,AZ12,AY12),IF(HojaMaestra!$C$18="SI",AY12,AY12))),0) -> 1203876.83 | E12: =IFERROR(IF(B12="","",G12+H12),0) -> 15531.39431 | F12: =IF(B12="","",HojaMaestra!$M$14) -> 0.102 | G12: =IFERROR(IF(B12="","",IF(D12=0,0,IF(HojaMaestra!$A$2<>15,D12*F12*AV12/360,(D12*F12*AV12/360)*(1+Param!$T$8)))),0) -> 9891.854622 | H12: 5639.539692 | I12: =IF(B12="","",IF(D12=0,0,VLOOKUP(HojaMaestra!$C$25,Param!$AJ$8:$AM$9,2,0))) -> 250 | J12: =IF(B12="","",IF(D12=0,0,IF(AND(HojaMaestra!$A$2=2,MOD(T12,2)=0),HojaMaestra!$C$16,0))) -> 0 | L12: =IFERROR(IF(B12="","",K12*VLOOKUP(HojaMaestra!$C$25,Param!$AJ$8:$AM$9,4,0)*(1+Param!$T$8)),"Sin Datos") -> 0 | M12: 1080.735586 | N12: =IFERROR(IF(B12="","",IF(AND(OR(HojaMaestra!$A$2=12,HojaMaestra!$A$2=13),B13<=Param!$EQ$8+1),BU12,IF(B13<=HojaMaestra!$M$19+1,0,BI12))),0) -> 16862.1299 | O12: =IFERROR(IF(B12="","",IF(D12=0,0,D12-H12)),0) -> 1198237.291 | P12: =IF(T12<>12,"",(N12-$N$10)/$N$10) ->  | R12: 1.00133333 | S12: 31 | T12: 3 | U12: =IF(B12="","",D12*HLOOKUP($V$7,Param!$C$11:$F$14,2,0)/1000) -> 510.4437761 | V12: =IF(B12="","",D12*HLOOKUP($V$7,Param!$C$11:$F$14,3,0)/1000) -> 127.610944 | W12: =IF(B12="","",IF($AB$3="SI",D12*HLOOKUP($V$7,Param!$C$11:$F$14,4,0)/1000,0)) -> 361.1630491 | X12: =IF($X$8="Si",$Q$6*Param!$D$9*Param!$D$8/1000+(($Q$6*Param!$D$9*Param!$D$8/1000)*Param!$T$8),0) -> 81.5178168 | Y12: =X12/(1+Param!$T$8) -> 70.27398 | Z12: 1069.491749 | AA12: =IFERROR(IF(D12="","",G12+H12+(I12/(1+Param!$T$8))+Z12),0) -> 16816.40331 | AD12: =(IF(B12<=HojaMaestra!$M$19,$D$10,IF($AN$9=0,$D$10,$AN$9))*($F$10*100))/1200 -> 10327.5 | AE12: =IF(B11<=HojaMaestra!$M$19,$AD$10+$U$10+$V$10+$W$10,IF(HojaMaestra!$M$19=0,$AD$10+$U$10+$V$10+$W$10,$AP$9)) -> 11335.95 | AF12: 11.196 | AG12: =(IF($K$9="Prepagos a Capital",IF(B12<=HojaMaestra!$M$19,$D$10,IF($AN$9=0,$D$10,$AN$9)),AK12)*$AF$10/1200)/(1-(1/((1+$AF$10/1200)^IF($K$9="Prepagos a Capital",$AL$10,AM12)))) -> 16871.71052 | AH12: 16953.22834 | AI12: =IFERROR(IF(B12<=HojaMaestra!$M$19,0,IF(D12<(AH12-M12-(D12*(F12*100)/1200)),D12 - ( J12+K12+L12),(AH12-M12-(D12*(F12*100)/1200)))),0) -> 5639.539692 | AK12: =IFERROR(IF(K11>0,D12,IF(B11=HojaMaestra!$M$19,D12,AK11)),0) -> 1215000 | AL12: =IF(K11>0,$AL$10-B11,(AL11-IF(B11=HojaMaestra!$M$19,HojaMaestra!$M$19,0))) -> 120 | AM12: =AL12+HojaMaestra!$M$19 -> 120 | AN12: =IF(AT11=HojaMaestra!$M$19,$D12,0) -> 0 | AP12: =IF(B11=HojaMaestra!$M$19,AD12+U12+V12+W12,0) -> 0 | AR12: =IF(B11=HojaMaestra!$M$19,AT11,0) -> 0 | AT12: 3 | AV12: 29 | AX12: =IFERROR(IF(Param!$EQ$8>=B12,B12,0),0) -> 3 | AY12: =IFERROR(IF(B12="","",IF(HojaMaestra!$M$19>=B11,$AY$10+SUM($G$10:G11)+SUM($M$10:M11)+SUM($I$10:I11),O11)),0) -> 1203876.83 | AZ12: =IF(AX12<>0,SUM($BA$10:BA12),IF(AX11=Param!$EQ$8,AZ11,0)) -> 202500 | BA12: =IFERROR(IF(B12="","",IF(AX12<>0,HojaMaestra!$M$16/Param!$EQ$8,0)),0) -> 67500 | BC12: =IF(B12="","",M12/(1+Param!$T$8)) -> 931.6686086 | BE12: =IFERROR(IF(B12="","",IF(AND(N11=0,N12>0),N12,0)),0) -> 0 | BG12: =IFERROR(IF(B12<=HojaMaestra!$M$19,J12+K12,IF(D12<(AI12+J12+K12+L12),D12,(AI12+J12+K12+L12))),0) -> 5639.539692 | BI12: =IFERROR(IF(B12="","",G12+H12+I12+IF(HojaMaestra!$A$2=15,BC12,M12)),0) -> 16862.1299 | BK12: =IFERROR(IF(B12="","",IF(B12<=HojaMaestra!$M$19,O12,AY12)),0) -> 1203876.83 | BM12: =HojaMaestra!$A$4*12 -> 120 | BO12: =IF(B12<=Param!$EQ$8,HojaMaestra!$A$4*12+Param!$EQ$8,HojaMaestra!$A$4*12) -> 138 | BQ12: =IF(A12<=HojaMaestra!$M$19,HojaMaestra!$A$4*12+HojaMaestra!$M$19,HojaMaestra!$A$4*12) -> 120 | BS12: =IFERROR(IF(OR(O11<=0,O11=""),"",A12),"") -> 3 | BU12: 11222.59021 | BW12: 510.4437761 | BX12: 127.610944 | BY12: 361.1630491 | BZ12: 81.5178168 | CA12: 70.27398 | CB12: 1069.491749 | CC12: =IF(D12="","",IF(AX12=0,G12+H12+(I12/(1+Param!$T$8))+CB12,0)) -> 0
A13: 4 | B13: 4 | C13: 2024-03-01 | D13: =IFERROR(IF(B13="","",IF(OR(HojaMaestra!$A$2=12,HojaMaestra!$A$2=13),IF(AZ13<>0,AZ13,AY13),IF(HojaMaestra!$C$18="SI",AY13,AY13))),0) -> 1198237.291 | E13: 16216.67413 | F13: =IF(B13="","",HojaMaestra!$M$14) -> 0.102 | G13: =IFERROR(IF(B13="","",IF(D13=0,0,IF(HojaMaestra!$A$2<>15,D13*F13*AV13/360,(D13*F13*AV13/360)*(1+Param!$T$8)))),0) -> 10524.51754 | H13: 5692.156598 | I13: =IF(B13="","",IF(D13=0,0,VLOOKUP(HojaMaestra!$C$25,Param!$AJ$8:$AM$9,2,0))) -> 250 | J13: =IF(B13="","",IF(D13=0,0,IF(AND(HojaMaestra!$A$2=2,MOD(T13,2)=0),HojaMaestra!$C$16,0))) -> 0 | L13: =IFERROR(IF(B13="","",K13*VLOOKUP(HojaMaestra!$C$25,Param!$AJ$8:$AM$9,4,0)*(1+Param!$T$8)),"Sin Datos") -> 0 | M13: 1076.054768 | N13: =IFERROR(IF(B13="","",IF(AND(OR(HojaMaestra!$A$2=12,HojaMaestra!$A$2=13),B14<=Param!$EQ$8+1),BU13,IF(B14<=HojaMaestra!$M$19+1,0,BI13))),0) -> 17542.7289 | O13: =IFERROR(IF(B13="","",IF(D13=0,0,D13-H13)),0) -> 1192545.134 | P13: =IF(T13<>12,"",(N13-$N$10)/$N$10) ->  | R13: 1.00133333 | S13: 30 | T13: 4 | U13: =IF(B13="","",D13*HLOOKUP($V$7,Param!$C$11:$F$14,2,0)/1000) -> 508.0526112 | V13: =IF(B13="","",D13*HLOOKUP($V$7,Param!$C$11:$F$14,3,0)/1000) -> 127.0131528 | W13: =IF(B13="","",IF($AB$3="SI",D13*HLOOKUP($V$7,Param!$C$11:$F$14,4,0)/1000,0)) -> 359.4711872 | X13: =IF($X$8="Si",$Q$6*Param!$D$9*Param!$D$8/1000+(($Q$6*Param!$D$9*Param!$D$8/1000)*Param!$T$8),0) -> 81.5178168 | Y13: =X13/(1+Param!$T$8) -> 70.27398 | Z13: 1064.810931 | AA13: =IFERROR(IF(D13="","",G13+H13+(I13/(1+Param!$T$8))+Z13),0) -> 17497.00231 | AD13: =(IF(B13<=HojaMaestra!$M$19,$D$10,IF($AN$9=0,$D$10,$AN$9))*($F$10*100))/1200 -> 10327.5 | AE13: =IF(B12<=HojaMaestra!$M$19,$AD$10+$U$10+$V$10+$W$10,IF(HojaMaestra!$M$19=0,$AD$10+$U$10+$V$10+$W$10,$AP$9)) -> 11335.95 | AF13: 11.196 | AG13: =(IF($K$9="Prepagos a Capital",IF(B13<=HojaMaestra!$M$19,$D$10,IF($AN$9=0,$D$10,$AN$9)),AK13)*$AF$10/1200)/(1-(1/((1+$AF$10/1200)^IF($K$9="Prepagos a Capital",$AL$10,AM13)))) -> 16871.71052 | AH13: 16953.22834 | AI13: =IFERROR(IF(B13<=HojaMaestra!$M$19,0,IF(D13<(AH13-M13-(D13*(F13*100)/1200)),D13 - ( J13+K13+L13),(AH13-M13-(D13*(F13*100)/1200)))),0) -> 5692.156598 | AK13: =IFERROR(IF(K12>0,D13,IF(B12=HojaMaestra!$M$19,D13,AK12)),0) -> 1215000 | AL13: =IF(K12>0,$AL$10-B12,(AL12-IF(B12=HojaMaestra!$M$19,HojaMaestra!$M$19,0))) -> 120 | AM13: =AL13+HojaMaestra!$M$19 -> 120 | AN13: =IF(AT12=HojaMaestra!$M$19,$D13,0) -> 0 | AP13: =IF(B12=HojaMaestra!$M$19,AD13+U13+V13+W13,0) -> 0 | AR13: =IF(B12=HojaMaestra!$M$19,AT12,0) -> 0 | AT13: 4 | AV13: 31 | AX13: =IFERROR(IF(Param!$EQ$8>=B13,B13,0),0) -> 4 | AY13: =IFERROR(IF(B13="","",IF(HojaMaestra!$M$19>=B12,$AY$10+SUM($G$10:G12)+SUM($M$10:M12)+SUM($I$10:I12),O12)),0) -> 1198237.291 | AZ13: =IF(AX13<>0,SUM($BA$10:BA13),IF(AX12=Param!$EQ$8,AZ12,0)) -> 270000 | BA13: =IFERROR(IF(B13="","",IF(AX13<>0,HojaMaestra!$M$16/Param!$EQ$8,0)),0) -> 67500 | BC13: =IF(B13="","",M13/(1+Param!$T$8)) -> 927.6334207 | BE13: 0 | BG13: =IFERROR(IF(B13<=HojaMaestra!$M$19,J13+K13,IF(D13<(AI13+J13+K13+L13),D13,(AI13+J13+K13+L13))),0) -> 5692.156598 | BI13: =IFERROR(IF(B13="","",G13+H13+I13+IF(HojaMaestra!$A$2=15,BC13,M13)),0) -> 17542.7289 | BK13: =IFERROR(IF(B13="","",IF(B13<=HojaMaestra!$M$19,O13,AY13)),0) -> 1198237.291 | BM13: =HojaMaestra!$A$4*12 -> 120 | BO13: =IF(B13<=Param!$EQ$8,HojaMaestra!$A$4*12+Param!$EQ$8,HojaMaestra!$A$4*12) -> 138 | BQ13: =IF(A13<=HojaMaestra!$M$19,HojaMaestra!$A$4*12+HojaMaestra!$M$19,HojaMaestra!$A$4*12) -> 120 | BS13: 4 | BU13: 11850.5723 | BW13: 508.0526112 | BX13: 127.0131528 | BY13: 359.4711872 | BZ13: 81.5178168 | CA13: 70.27398 | CB13: 1064.810931 | CC13: =IF(D13="","",IF(AX13=0,G13+H13+(I13/(1+Param!$T$8))+CB13,0)) -> 0
A14: 5 | B14: 5 | C14: 2024-04-01 | D14: =IFERROR(IF(B14="","",IF(OR(HojaMaestra!$A$2=12,HojaMaestra!$A$2=13),IF(AZ14<>0,AZ14,AY14),IF(HojaMaestra!$C$18="SI",AY14,AY14))),0) -> 1192545.134 | E14: 15881.89806 | F14: =IF(B14="","",HojaMaestra!$M$14) -> 0.102 | G14: =IFERROR(IF(B14="","",IF(D14=0,0,IF(HojaMaestra!$A$2<>15,D14*F14*AV14/360,(D14*F14*AV14/360)*(1+Param!$T$8)))),0) -> 10136.63364 | H14: 5745.264419 | I14: =IF(B14="","",IF(D14=0,0,VLOOKUP(HojaMaestra!$C$25,Param!$AJ$8:$AM$9,2,0))) -> 250 | J14: =IF(B14="","",IF(D14=0,0,IF(AND(HojaMaestra!$A$2=2,MOD(T14,2)=0),HojaMaestra!$C$16,0))) -> 0 | L14: =IFERROR(IF(B14="","",K14*VLOOKUP(HojaMaestra!$C$25,Param!$AJ$8:$AM$9,4,0)*(1+Param!$T$8)),"Sin Datos") -> 0 | M14: 1071.330278 | N14: =IFERROR(IF(B14="","",IF(AND(OR(HojaMaestra!$A$2=12,HojaMaestra!$A$2=13),B15<=Param!$EQ$8+1),BU14,IF(B15<=HojaMaestra!$M$19+1,0,BI14))),0) -> 17203.22834 | O14: =IFERROR(IF(B14="","",IF(D14=0,0,D14-H14)),0) -> 1186799.87 | R14: 1.00133333 | S14: 31 | T14: 5 | U14: =IF(B14="","",D14*HLOOKUP($V$7,Param!$C$11:$F$14,2,0)/1000) -> 505.6391368 | V14: =IF(B14="","",D14*HLOOKUP($V$7,Param!$C$11:$F$14,3,0)/1000) -> 126.4097842 | W14: =IF(B14="","",IF($AB$3="SI",D14*HLOOKUP($V$7,Param!$C$11:$F$14,4,0)/1000,0)) -> 357.7635402 | X14: =IF($X$8="Si",$Q$6*Param!$D$9*Param!$D$8/1000+(($Q$6*Param!$D$9*Param!$D$8/1000)*Param!$T$8),0) -> 81.5178168 | Y14: =X14/(1+Param!$T$8) -> 70.27398 | Z14: 1060.086441 | AA14: =IFERROR(IF(D14="","",G14+H14+(I14/(1+Param!$T$8))+Z14),0) -> 17157.50174 | AD14: =(IF(B14<=HojaMaestra!$M$19,$D$10,IF($AN$9=0,$D$10,$AN$9))*($F$10*100))/1200 -> 10327.5 | AE14: =IF(B13<=HojaMaestra!$M$19,$AD$10+$U$10+$V$10+$W$10,IF(HojaMaestra!$M$19=0,$AD$10+$U$10+$V$10+$W$10,$AP$9)) -> 11335.95 | AF14: 11.196 | AG14: =(IF($K$9="Prepagos a Capital",IF(B14<=HojaMaestra!$M$19,$D$10,IF($AN$9=0,$D$10,$AN$9)),AK14)*$AF$10/1200)/(1-(1/((1+$AF$10/1200)^IF($K$9="Prepagos a Capital",$AL$10,AM14)))) -> 16871.71052 | AH14: 16953.22834 | AI14: =IFERROR(IF(B14<=HojaMaestra!$M$19,0,IF(D14<(AH14-M14-(D14*(F14*100)/1200)),D14 - ( J14+K14+L14),(AH14-M14-(D14*(F14*100)/1200)))),0) -> 5745.264419 | AK14: =IFERROR(IF(K13>0,D14,IF(B13=HojaMaestra!$M$19,D14,AK13)),0) -> 1215000 | AL14: =IF(K13>0,$AL$10-B13,(AL13-IF(B13=HojaMaestra!$M$19,HojaMaestra!$M$19,0))) -> 120 | AM14: =AL14+HojaMaestra!$M$19 -> 120 | AN14: =IF(AT13=HojaMaestra!$M$19,$D14,0) -> 0 | AP14: =IF(B13=HojaMaestra!$M$19,AD14+U14+V14+W14,0) -> 0 | AR14: =IF(B13=HojaMaestra!$M$19,AT13,0) -> 0 | AT14: 5 | AV14: 30 | AX14: =IFERROR(IF(Param!$EQ$8>=B14,B14,0),0) -> 5 | AY14: =IFERROR(IF(B14="","",IF(HojaMaestra!$M$19>=B13,$AY$10+SUM($G$10:G13)+SUM($M$10:M13)+SUM($I$10:I13),O13)),0) -> 1192545.134 | AZ14: =IF(AX14<>0,SUM($BA$10:BA14),IF(AX13=Param!$EQ$8,AZ13,0)) -> 337500 | BA14: =IFERROR(IF(B14="","",IF(AX14<>0,HojaMaestra!$M$16/Param!$EQ$8,0)),0) -> 67500 | BC14: =IF(B14="","",M14/(1+Param!$T$8)) -> 923.5605845 | BE14: 0 | BG14: =IFERROR(IF(B14<=HojaMaestra!$M$19,J14+K14,IF(D14<(AI14+J14+K14+L14),D14,(AI14+J14+K14+L14))),0) -> 5745.264419 | BI14: =IFERROR(IF(B14="","",G14+H14+I14+IF(HojaMaestra!$A$2=15,BC14,M14)),0) -> 17203.22834 | BK14: =IFERROR(IF(B14="","",IF(B14<=HojaMaestra!$M$19,O14,AY14)),0) -> 1192545.134 | BM14: =HojaMaestra!$A$4*12 -> 120 | BO14: =IF(B14<=Param!$EQ$8,HojaMaestra!$A$4*12+Param!$EQ$8,HojaMaestra!$A$4*12) -> 138 | BQ14: =IF(A14<=HojaMaestra!$M$19,HojaMaestra!$A$4*12+HojaMaestra!$M$19,HojaMaestra!$A$4*12) -> 120 | BS14: 5 | BU14: 11457.96392 | BW14: 505.6391368 | BX14: 126.4097842 | BY14: 357.7635402 | BZ14: 81.5178168 | CA14: 70.27398 | CB14: 1060.086441 | CC14: =IF(D14="","",IF(AX14=0,G14+H14+(I14/(1+Param!$T$8))+CB14,0)) -> 0
A15: 6 | B15: 6 | C15: 2024-05-01 | D15: =IFERROR(IF(B15="","",IF(OR(HojaMaestra!$A$2=12,HojaMaestra!$A$2=13),IF(AZ15<>0,AZ15,AY15),IF(HojaMaestra!$C$18="SI",AY15,AY15))),0) -> 1186799.87 | E15: 16222.92659 | F15: =IF(B15="","",HojaMaestra!$M$14) -> 0.102 | G15: =IFERROR(IF(B15="","",IF(D15=0,0,IF(HojaMaestra!$A$2<>15,D15*F15*AV15/360,(D15*F15*AV15/360)*(1+Param!$T$8)))),0) -> 10424.05885 | H15: 5798.867736 | I15: =IF(B15="","",IF(D15=0,0,VLOOKUP(HojaMaestra!$C$25,Param!$AJ$8:$AM$9,2,0))) -> 250 | J15: =IF(B15="","",IF(D15=0,0,IF(AND(HojaMaestra!$A$2=2,MOD(T15,2)=0),HojaMaestra!$C$16,0))) -> 0 | L15: =IFERROR(IF(B15="","",K15*VLOOKUP(HojaMaestra!$C$25,Param!$AJ$8:$AM$9,4,0)*(1+Param!$T$8)),"Sin Datos") -> 0 | M15: 1066.561709 | N15: =IFERROR(IF(B15="","",IF(AND(OR(HojaMaestra!$A$2=12,HojaMaestra!$A$2=13),B16<=Param!$EQ$8+1),BU15,IF(B16<=HojaMaestra!$M$19+1,0,BI15))),0) -> 17539.4883 | O15: =IFERROR(IF(B15="","",IF(D15=0,0,D15-H15)),0) -> 1181001.002 | P15: =IF(T15<>12,"",(N15-$N$10)/$N$10) ->  | R15: 1.00133333 | S15: 30 | T15: 6 | U15: =IF(B15="","",D15*HLOOKUP($V$7,Param!$C$11:$F$14,2,0)/1000) -> 503.2031447 | V15: =IF(B15="","",D15*HLOOKUP($V$7,Param!$C$11:$F$14,3,0)/1000) -> 125.8007862 | W15: =IF(B15="","",IF($AB$3="SI",D15*HLOOKUP($V$7,Param!$C$11:$F$14,4,0)/1000,0)) -> 356.0399609 | X15: =IF($X$8="Si",$Q$6*Param!$D$9*Param!$D$8/1000+(($Q$6*Param!$D$9*Param!$D$8/1000)*Param!$T$8),0) -> 81.5178168 | Y15: =X15/(1+Param!$T$8) -> 70.27398 | Z15: 1055.317872 | AA15: =IFERROR(IF(D15="","",G15+H15+(I15/(1+Param!$T$8))+Z15),0) -> 17493.7617 | AD15: =(IF(B15<=HojaMaestra!$M$19,$D$10,IF($AN$9=0,$D$10,$AN$9))*($F$10*100))/1200 -> 10327.5 | AE15: =IF(B14<=HojaMaestra!$M$19,$AD$10+$U$10+$V$10+$W$10,IF(HojaMaestra!$M$19=0,$AD$10+$U$10+$V$10+$W$10,$AP$9)) -> 11335.95 | AF15: 11.196 | AG15: =(IF($K$9="Prepagos a Capital",IF(B15<=HojaMaestra!$M$19,$D$10,IF($AN$9=0,$D$10,$AN$9)),AK15)*$AF$10/1200)/(1-(1/((1+$AF$10/1200)^IF($K$9="Prepagos a Capital",$AL$10,AM15)))) -> 16871.71052 | AH15: 16953.22834 | AI15: =IFERROR(IF(B15<=HojaMaestra!$M$19,0,IF(D15<(AH15-M15-(D15*(F15*100)/1200)),D15 - ( J15+K15+L15),(AH15-M15-(D15*(F15*100)/1200)))),0) -> 5798.867736 | AK15: =IFERROR(IF(K14>0,D15,IF(B14=HojaMaestra!$M$19,D15,AK14)),0) -> 1215000 | AL15: =IF(K14>0,$AL$10-B14,(AL14-IF(B14=HojaMaestra!$M$19,HojaMaestra!$M$19,0))) -> 120 | AM15: =AL15+HojaMaestra!$M$19 -> 120 | AN15: =IF(AT14=HojaMaestra!$M$19,$D15,0) -> 0 | AP15: =IF(B14=HojaMaestra!$M$19,AD15+U15+V15+W15,0) -> 0 | AR15: =IF(B14=HojaMaestra!$M$19,AT14,0) -> 0 | AT15: 6 | AV15: 31 | AX15: =IFERROR(IF(Param!$EQ$8>=B15,B15,0),0) -> 6 | AY15: =IFERROR(IF(B15="","",IF(HojaMaestra!$M$19>=B14,$AY$10+SUM($G$10:G14)+SUM($M$10:M14)+SUM($I$10:I14),O14)),0) -> 1186799.87 | AZ15: =IF(AX15<>0,SUM($BA$10:BA15),IF(AX14=Param!$EQ$8,AZ14,0)) -> 405000 | BA15: =IFERROR(IF(B15="","",IF(AX15<>0,HojaMaestra!$M$16/Param!$EQ$8,0)),0) -> 67500 | BC15: =IF(B15="","",M15/(1+Param!$T$8)) -> 919.4497488 | BE15: 0 | BG15: =IFERROR(IF(B15<=HojaMaestra!$M$19,J15+K15,IF(D15<(AI15+J15+K15+L15),D15,(AI15+J15+K15+L15))),0) -> 5798.867736 | BI15: =IFERROR(IF(B15="","",G15+H15+I15+IF(HojaMaestra!$A$2=15,BC15,M15)),0) -> 17539.4883 | BK15: =IFERROR(IF(B15="","",IF(B15<=HojaMaestra!$M$19,O15,AY15)),0) -> 1186799.87 | BM15: =HojaMaestra!$A$4*12 -> 120 | BO15: =IF(B15<=Param!$EQ$8,HojaMaestra!$A$4*12+Param!$EQ$8,HojaMaestra!$A$4*12) -> 138 | BQ15: =IF(A15<=HojaMaestra!$M$19,HojaMaestra!$A$4*12+HojaMaestra!$M$19,HojaMaestra!$A$4*12) -> 120 | BS15: 6 | BU15: 11740.62056 | BW15: 503.2031447 | BX15: 125.8007862 | BY15: 356.0399609 | BZ15: 81.5178168 | CA15: 70.27398 | CB15: 1055.317872 | CC15: =IF(D15="","",IF(AX15=0,G15+H15+(I15/(1+Param!$T$8))+CB15,0)) -> 0
A16: 7 | B16: 7 | C16: 2024-06-01 | D16: =IFERROR(IF(B16="","",IF(OR(HojaMaestra!$A$2=12,HojaMaestra!$A$2=13),IF(AZ16<>0,AZ16,AY16),IF(HojaMaestra!$C$18="SI",AY16,AY16))),0) -> 1181001.002 | E16: 15891.47969 | F16: =IF(B16="","",HojaMaestra!$M$14) -> 0.102 | G16: =IFERROR(IF(B16="","",IF(D16=0,0,IF(HojaMaestra!$A$2<>15,D16*F16*AV16/360,(D16*F16*AV16/360)*(1+Param!$T$8)))),0) -> 10038.50852 | H16: 5852.971172 | I16: =IF(B16="","",IF(D16=0,0,VLOOKUP(HojaMaestra!$C$25,Param!$AJ$8:$AM$9,2,0))) -> 250 | J16: =IF(B16="","",IF(D16=0,0,IF(AND(HojaMaestra!$A$2=2,MOD(T16,2)=0),HojaMaestra!$C$16,0))) -> 0 | L16: =IFERROR(IF(B16="","",K16*VLOOKUP(HojaMaestra!$C$25,Param!$AJ$8:$AM$9,4,0)*(1+Param!$T$8)),"Sin Datos") -> 0 | M16: 1061.748648 | N16: =IFERROR(IF(B16="","",IF(AND(OR(HojaMaestra!$A$2=12,HojaMaestra!$A$2=13),B17<=Param!$EQ$8+1),BU16,IF(B17<=HojaMaestra!$M$19+1,0,BI16))),0) -> 17203.22834 | O16: 1175148.031 | R16: 1.00133333 | S16: 31 | T16: 7 | U16: =IF(B16="","",D16*HLOOKUP($V$7,Param!$C$11:$F$14,2,0)/1000) -> 500.7444248 | V16: =IF(B16="","",D16*HLOOKUP($V$7,Param!$C$11:$F$14,3,0)/1000) -> 125.1861062 | W16: =IF(B16="","",IF($AB$3="SI",D16*HLOOKUP($V$7,Param!$C$11:$F$14,4,0)/1000,0)) -> 354.3003006 | X16: =IF($X$8="Si",$Q$6*Param!$D$9*Param!$D$8/1000+(($Q$6*Param!$D$9*Param!$D$8/1000)*Param!$T$8),0) -> 81.5178168 | Y16: =X16/(1+Param!$T$8) -> 70.27398 | Z16: 1050.504812 | AA16: =IFERROR(IF(D16="","",G16+H16+(I16/(1+Param!$T$8))+Z16),0) -> 17157.50174 | AD16: =(IF(B16<=HojaMaestra!$M$19,$D$10,IF($AN$9=0,$D$10,$AN$9))*($F$10*100))/1200 -> 10327.5 | AE16: =IF(B15<=HojaMaestra!$M$19,$AD$10+$U$10+$V$10+$W$10,IF(HojaMaestra!$M$19=0,$AD$10+$U$10+$V$10+$W$10,$AP$9)) -> 11335.95 | AF16: 11.196 | AG16: =(IF($K$9="Prepagos a Capital",IF(B16<=HojaMaestra!$M$19,$D$10,IF($AN$9=0,$D$10,$AN$9)),AK16)*$AF$10/1200)/(1-(1/((1+$AF$10/1200)^IF($K$9="Prepagos a Capital",$AL$10,AM16)))) -> 16871.71052 | AH16: 16953.22834 | AI16: =IFERROR(IF(B16<=HojaMaestra!$M$19,0,IF(D16<(AH16-M16-(D16*(F16*100)/1200)),D16 - ( J16+K16+L16),(AH16-M16-(D16*(F16*100)/1200)))),0) -> 5852.971172 | AK16: =IFERROR(IF(K15>0,D16,IF(B15=HojaMaestra!$M$19,D16,AK15)),0) -> 1215000 | AL16: =IF(K15>0,$AL$10-B15,(AL15-IF(B15=HojaMaestra!$M$19,HojaMaestra!$M$19,0))) -> 120 | AM16: =AL16+HojaMaestra!$M$19 -> 120 | AN16: =IF(AT15=HojaMaestra!$M$19,$D16,0) -> 0 | AP16: =IF(B15=HojaMaestra!$M$19,AD16+U16+V16+W16,0) -> 0 | AR16: =IF(B15=HojaMaestra!$M$19,AT15,0) -> 0 | AT16: 7 | AV16: 30 | AX16: =IFERROR(IF(Param!$EQ$8>=B16,B16,0),0) -> 7 | AY16: =IFERROR(IF(B16="","",IF(HojaMaestra!$M$19>=B15,$AY$10+SUM($G$10:G15)+SUM($M$10:M15)+SUM($I$10:I15),O15)),0) -> 1181001.002 | AZ16: =IF(AX16<>0,SUM($BA$10:BA16),IF(AX15=Param!$EQ$8,AZ15,0)) -> 472500 | BA16: =IFERROR(IF(B16="","",IF(AX16<>0,HojaMaestra!$M$16/Param!$EQ$8,0)),0) -> 67500 | BC16: =IF(B16="","",M16/(1+Param!$T$8)) -> 915.3005589 | BE16: 0 | BG16: =IFERROR(IF(B16<=HojaMaestra!$M$19,J16+K16,IF(D16<(AI16+J16+K16+L16),D16,(AI16+J16+K16+L16))),0) -> 5852.971172 | BI16: =IFERROR(IF(B16="","",G16+H16+I16+IF(HojaMaestra!$A$2=15,BC16,M16)),0) -> 17203.22834 | BK16: =IFERROR(IF(B16="","",IF(B16<=HojaMaestra!$M$19,O16,AY16)),0) -> 1181001.002 | BM16: =HojaMaestra!$A$4*12 -> 120 | BO16: =IF(B16<=Param!$EQ$8,HojaMaestra!$A$4*12+Param!$EQ$8,HojaMaestra!$A$4*12) -> 138 | BQ16: =IF(A16<=HojaMaestra!$M$19,HojaMaestra!$A$4*12+HojaMaestra!$M$19,HojaMaestra!$A$4*12) -> 120 | BS16: 7 | BU16: 11350.25716 | BW16: 500.7444248 | BX16: 125.1861062 | BY16: 354.3003006 | BZ16: 81.5178168 | CA16: 70.27398 | CB16: 1050.504812 | CC16: =IF(D16="","",IF(AX16=0,G16+H16+(I16/(1+Param!$T$8))+CB16,0)) -> 0
A17: 8 | B17: 8 | C17: 2024-07-01 | D17: =IFERROR(IF(B17="","",IF(OR(HojaMaestra!$A$2=12,HojaMaestra!$A$2=13),IF(AZ17<>0,AZ17,AY17),IF(HojaMaestra!$C$18="SI",AY17,AY17))),0) -> 1175148.031 | E17: 16229.29626 | F17: =IF(B17="","",HojaMaestra!$M$14) -> 0.102 | G17: =IFERROR(IF(B17="","",IF(D17=0,0,IF(HojaMaestra!$A$2<>15,D17*F17*AV17/360,(D17*F17*AV17/360)*(1+Param!$T$8)))),0) -> 10321.71687 | H17: 5907.579393 | I17: =IF(B17="","",IF(D17=0,0,VLOOKUP(HojaMaestra!$C$25,Param!$AJ$8:$AM$9,2,0))) -> 250 | J17: =IF(B17="","",IF(D17=0,0,IF(AND(HojaMaestra!$A$2=2,MOD(T17,2)=0),HojaMaestra!$C$16,0))) -> 0 | L17: =IFERROR(IF(B17="","",K17*VLOOKUP(HojaMaestra!$C$25,Param!$AJ$8:$AM$9,4,0)*(1+Param!$T$8)),"Sin Datos") -> 0 | M17: 1056.890682 | N17: =IFERROR(IF(B17="","",IF(AND(OR(HojaMaestra!$A$2=12,HojaMaestra!$A$2=13),B18<=Param!$EQ$8+1),BU17,IF(B18<=HojaMaestra!$M$19+1,0,BI17))),0) -> 17536.18694 | O17: 1169240.451 | R17: 1.00133333 | S17: 31 | T17: 8 | U17: =IF(B17="","",D17*HLOOKUP($V$7,Param!$C$11:$F$14,2,0)/1000) -> 498.262765 | V17: =IF(B17="","",D17*HLOOKUP($V$7,Param!$C$11:$F$14,3,0)/1000) -> 124.5656913 | W17: =IF(B17="","",IF($AB$3="SI",D17*HLOOKUP($V$7,Param!$C$11:$F$14,4,0)/1000,0)) -> 352.5444092 | X17: =IF($X$8="Si",$Q$6*Param!$D$9*Param!$D$8/1000+(($Q$6*Param!$D$9*Param!$D$8/1000)*Param!$T$8),0) -> 81.5178168 | Y17: =X17/(1+Param!$T$8) -> 70.27398 | Z17: 1045.646845 | AA17: =IFERROR(IF(D17="","",G17+H17+(I17/(1+Param!$T$8))+Z17),0) -> 17490.46035 | AD17: =(IF(B17<=HojaMaestra!$M$19,$D$10,IF($AN$9=0,$D$10,$AN$9))*($F$10*100))/1200 -> 10327.5 | AE17: =IF(B16<=HojaMaestra!$M$19,$AD$10+$U$10+$V$10+$W$10,IF(HojaMaestra!$M$19=0,$AD$10+$U$10+$V$10+$W$10,$AP$9)) -> 11335.95 | AF17: 11.196 | AG17: =(IF($K$9="Prepagos a Capital",IF(B17<=HojaMaestra!$M$19,$D$10,IF($AN$9=0,$D$10,$AN$9)),AK17)*$AF$10/1200)/(1-(1/((1+$AF$10/1200)^IF($K$9="Prepagos a Capital",$AL$10,AM17)))) -> 16871.71052 | AH17: 16953.22834 | AI17: =IFERROR(IF(B17<=HojaMaestra!$M$19,0,IF(D17<(AH17-M17-(D17*(F17*100)/1200)),D17 - ( J17+K17+L17),(AH17-M17-(D17*(F17*100)/1200)))),0) -> 5907.579393 | AK17: =IFERROR(IF(K16>0,D17,IF(B16=HojaMaestra!$M$19,D17,AK16)),0) -> 1215000 | AL17: =IF(K16>0,$AL$10-B16,(AL16-IF(B16=HojaMaestra!$M$19,HojaMaestra!$M$19,0))) -> 120 | AM17: =AL17+HojaMaestra!$M$19 -> 120 | AN17: =IF(AT16=HojaMaestra!$M$19,$D17,0) -> 0 | AP17: =IF(B16=HojaMaestra!$M$19,AD17+U17+V17+W17,0) -> 0 | AR17: =IF(B16=HojaMaestra!$M$19,AT16,0) -> 0 | AT17: 8 | AV17: 31 | AX17: =IFERROR(IF(Param!$EQ$8>=B17,B17,0),0) -> 8 | AY17: =IFERROR(IF(B17="","",IF(HojaMaestra!$M$19>=B16,$AY$10+SUM($G$10:G16)+SUM($M$10:M16)+SUM($I$10:I16),O16)),0) -> 1175148.031 | AZ17: =IF(AX17<>0,SUM($BA$10:BA17),IF(AX16=Param!$EQ$8,AZ16,0)) -> 540000 | BA17: =IFERROR(IF(B17="","",IF(AX17<>0,HojaMaestra!$M$16/Param!$EQ$8,0)),0) -> 67500 | BC17: =IF(B17="","",M17/(1+Param!$T$8)) -> 911.1126571 | BE17: 0 | BG17: =IFERROR(IF(B17<=HojaMaestra!$M$19,J17+K17,IF(D17<(AI17+J17+K17+L17),D17,(AI17+J17+K17+L17))),0) -> 5907.579393 | BI17: =IFERROR(IF(B17="","",G17+H17+I17+IF(HojaMaestra!$A$2=15,BC17,M17)),0) -> 17536.18694 | BK17: =IFERROR(IF(B17="","",IF(B17<=HojaMaestra!$M$19,O17,AY17)),0) -> 1175148.031 | BM17: =HojaMaestra!$A$4*12 -> 120 | BO17: =IF(B17<=Param!$EQ$8,HojaMaestra!$A$4*12+Param!$EQ$8,HojaMaestra!$A$4*12) -> 138 | BQ17: =IF(A17<=HojaMaestra!$M$19,HojaMaestra!$A$4*12+HojaMaestra!$M$19,HojaMaestra!$A$4*12) -> 120 | BS17: 8 | BU17: 11628.60755 | BW17: 498.262765 | BX17: 124.5656913 | BY17: 352.5444092 | BZ17: =X17 -> 81.5178168 | CA17: =Y17 -> 70.27398 | CB17: 1045.646845 | CC17: =IF(D17="","",IF(AX17=0,G17+H17+(I17/(1+Param!$T$8))+CB17,0)) -> 0
A18: 9 | B18: 9 | C18: 2024-08-01 | D18: =IFERROR(IF(B18="","",IF(OR(HojaMaestra!$A$2=12,HojaMaestra!$A$2=13),IF(AZ18<>0,AZ18,AY18),IF(HojaMaestra!$C$18="SI",AY18,AY18))),0) -> 1169240.451 | E18: 16232.52574 | F18: =IF(B18="","",HojaMaestra!$M$14) -> 0.102 | G18: =IFERROR(IF(B18="","",IF(D18=0,0,IF(HojaMaestra!$A$2<>15,D18*F18*AV18/360,(D18*F18*AV18/360)*(1+Param!$T$8)))),0) -> 10269.82863 | H18: 5962.697108 | I18: =IF(B18="","",IF(D18=0,0,VLOOKUP(HojaMaestra!$C$25,Param!$AJ$8:$AM$9,2,0))) -> 250 | J18: =IF(B18="","",IF(D18=0,0,IF(AND(HojaMaestra!$A$2=2,MOD(T18,2)=0),HojaMaestra!$C$16,0))) -> 0 | L18: =IFERROR(IF(B18="","",K18*VLOOKUP(HojaMaestra!$C$25,Param!$AJ$8:$AM$9,4,0)*(1+Param!$T$8)),"Sin Datos") -> 0 | M18: 1051.987391 | N18: =IFERROR(IF(B18="","",IF(AND(OR(HojaMaestra!$A$2=12,HojaMaestra!$A$2=13),B19<=Param!$EQ$8+1),BU18,IF(B19<=HojaMaestra!$M$19+1,0,BI18))),0) -> 17534.51313 | O18: 1163277.754 | R18: 1.00133333 | S18: 30 | T18: 9 | U18: =IF(B18="","",D18*HLOOKUP($V$7,Param!$C$11:$F$14,2,0)/1000) -> 495.7579514 | V18: =IF(B18="","",D18*HLOOKUP($V$7,Param!$C$11:$F$14,3,0)/1000) -> 123.9394878 | W18: =IF(B18="","",IF($AB$3="SI",D18*HLOOKUP($V$7,Param!$C$11:$F$14,4,0)/1000,0)) -> 350.7721354 | X18: =IF($X$8="Si",$Q$6*Param!$D$9*Param!$D$8/1000+(($Q$6*Param!$D$9*Param!$D$8/1000)*Param!$T$8),0) -> 81.5178168 | Y18: =X18/(1+Param!$T$8) -> 70.27398 | Z18: 1040.743555 | AA18: =IFERROR(IF(D18="","",G18+H18+(I18/(1+Param!$T$8))+Z18),0) -> 17488.78654 | AD18: =(IF(B18<=HojaMaestra!$M$19,$D$10,IF($AN$9=0,$D$10,$AN$9))*($F$10*100))/1200 -> 10327.5 | AE18: =IF(B17<=HojaMaestra!$M$19,$AD$10+$U$10+$V$10+$W$10,IF(HojaMaestra!$M$19=0,$AD$10+$U$10+$V$10+$W$10,$AP$9)) -> 11335.95 | AF18: 11.196 | AG18: =(IF($K$9="Prepagos a Capital",IF(B18<=HojaMaestra!$M$19,$D$10,IF($AN$9=0,$D$10,$AN$9)),AK18)*$AF$10/1200)/(1-(1/((1+$AF$10/1200)^IF($K$9="Prepagos a Capital",$AL$10,AM18)))) -> 16871.71052 | AH18: 16953.22834 | AI18: =IFERROR(IF(B18<=HojaMaestra!$M$19,0,IF(D18<(AH18-M18-(D18*(F18*100)/1200)),D18 - ( J18+K18+L18),(AH18-M18-(D18*(F18*100)/1200)))),0) -> 5962.697108 | AK18: =IFERROR(IF(K17>0,D18,IF(B17=HojaMaestra!$M$19,D18,AK17)),0) -> 1215000 | AL18: =IF(K17>0,$AL$10-B17,(AL17-IF(B17=HojaMaestra!$M$19,HojaMaestra!$M$19,0))) -> 120 | AM18: =AL18+HojaMaestra!$M$19 -> 120 | AN18: =IF(AT17=HojaMaestra!$M$19,$D18,0) -> 0 | AP18: =IF(B17=HojaMaestra!$M$19,AD18+U18+V18+W18,0) -> 0 | AR18: =IF(B17=HojaMaestra!$M$19,AT17,0) -> 0 | AT18: 9 | AV18: 31 | AX18: =IFERROR(IF(Param!$EQ$8>=B18,B18,0),0) -> 9 | AY18: =IFERROR(IF(B18="","",IF(HojaMaestra!$M$19>=B17,$AY$10+SUM($G$10:G17)+SUM($M$10:M17)+SUM($I$10:I17),O17)),0) -> 1169240.451 | AZ18: =IF(AX18<>0,SUM($BA$10:BA18),IF(AX17=Param!$EQ$8,AZ17,0)) -> 607500 | BA18: =IFERROR(IF(B18="","",IF(AX18<>0,HojaMaestra!$M$16/Param!$EQ$8,0)),0) -> 67500 | BC18: =IF(B18="","",M18/(1+Param!$T$8)) -> 906.8856822 | BE18: 0 | BG18: =IFERROR(IF(B18<=HojaMaestra!$M$19,J18+K18,IF(D18<(AI18+J18+K18+L18),D18,(AI18+J18+K18+L18))),0) -> 5962.697108 | BI18: =IFERROR(IF(B18="","",G18+H18+I18+IF(HojaMaestra!$A$2=15,BC18,M18)),0) -> 17534.51313 | BK18: =IFERROR(IF(B18="","",IF(B18<=HojaMaestra!$M$19,O18,AY18)),0) -> 1169240.451 | BM18: =HojaMaestra!$A$4*12 -> 120 | BO18: =IF(B18<=Param!$EQ$8,HojaMaestra!$A$4*12+Param!$EQ$8,HojaMaestra!$A$4*12) -> 138 | BQ18: =IF(A18<=HojaMaestra!$M$19,HojaMaestra!$A$4*12+HojaMaestra!$M$19,HojaMaestra!$A$4*12) -> 120 | BS18: 9 | BU18: 11571.81602 | BW18: 495.7579514 | BX18: 123.9394878 | BY18: 350.7721354 | BZ18: 81.5178168 | CA18: 70.27398 | CB18: 1040.743555 | CC18: =IF(D18="","",IF(AX18=0,G18+H18+(I18/(1+Param!$T$8))+CB18,0)) -> 0
A19: 10 | B19: 10 | C19: 2024-09-01 | D19: =IFERROR(IF(B19="","",IF(OR(HojaMaestra!$A$2=12,HojaMaestra!$A$2=13),IF(AZ19<>0,AZ19,AY19),IF(HojaMaestra!$C$18="SI",AY19,AY19))),0) -> 1163277.754 | E19: 15906.18998 | F19: =IF(B19="","",HojaMaestra!$M$14) -> 0.102 | G19: =IFERROR(IF(B19="","",IF(D19=0,0,IF(HojaMaestra!$A$2<>15,D19*F19*AV19/360,(D19*F19*AV19/360)*(1+Param!$T$8)))),0) -> 9887.860911 | H19: 6018.329072 | I19: =IF(B19="","",IF(D19=0,0,VLOOKUP(HojaMaestra!$C$25,Param!$AJ$8:$AM$9,2,0))) -> 250 | J19: =IF(B19="","",IF(D19=0,0,IF(AND(HojaMaestra!$A$2=2,MOD(T19,2)=0),HojaMaestra!$C$16,0))) -> 0 | L19: =IFERROR(IF(B19="","",K19*VLOOKUP(HojaMaestra!$C$25,Param!$AJ$8:$AM$9,4,0)*(1+Param!$T$8)),"Sin Datos") -> 0 | M19: 1047.038353 | N19: =IFERROR(IF(B19="","",IF(AND(OR(HojaMaestra!$A$2=12,HojaMaestra!$A$2=13),B20<=Param!$EQ$8+1),BU19,IF(B20<=HojaMaestra!$M$19+1,0,BI19))),0) -> 17203.22834 | O19: 1157259.425 | R19: 1.00133333 | S19: 31 | T19: 10 | U19: =IF(B19="","",D19*HLOOKUP($V$7,Param!$C$11:$F$14,2,0)/1000) -> 493.2297678 | V19: =IF(B19="","",D19*HLOOKUP($V$7,Param!$C$11:$F$14,3,0)/1000) -> 123.3074419 | W19: =IF(B19="","",IF($AB$3="SI",D19*HLOOKUP($V$7,Param!$C$11:$F$14,4,0)/1000,0)) -> 348.9833263 | X19: =IF($X$8="Si",$Q$6*Param!$D$9*Param!$D$8/1000+(($Q$6*Param!$D$9*Param!$D$8/1000)*Param!$T$8),0) -> 81.5178168 | Y19: =X19/(1+Param!$T$8) -> 70.27398 | Z19: 1035.794516 | AA19: =IFERROR(IF(D19="","",G19+H19+(I19/(1+Param!$T$8))+Z19),0) -> 17157.50174 | AD19: =(IF(B19<=HojaMaestra!$M$19,$D$10,IF($AN$9=0,$D$10,$AN$9))*($F$10*100))/1200 -> 10327.5 | AE19: =IF(B18<=HojaMaestra!$M$19,$AD$10+$U$10+$V$10+$W$10,IF(HojaMaestra!$M$19=0,$AD$10+$U$10+$V$10+$W$10,$AP$9)) -> 11335.95 | AF19: 11.196 | AG19: =(IF($K$9="Prepagos a Capital",IF(B19<=HojaMaestra!$M$19,$D$10,IF($AN$9=0,$D$10,$AN$9)),AK19)*$AF$10/1200)/(1-(1/((1+$AF$10/1200)^IF($K$9="Prepagos a Capital",$AL$10,AM19)))) -> 16871.71052 | AH19: 16953.22834 | AI19: =IFERROR(IF(B19<=HojaMaestra!$M$19,0,IF(D19<(AH19-M19-(D19*(F19*100)/1200)),D19 - ( J19+K19+L19),(AH19-M19-(D19*(F19*100)/1200)))),0) -> 6018.329072 | AK19: =IFERROR(IF(K18>0,D19,IF(B18=HojaMaestra!$M$19,D19,AK18)),0) -> 1215000 | AL19: =IF(K18>0,$AL$10-B18,(AL18-IF(B18=HojaMaestra!$M$19,HojaMaestra!$M$19,0))) -> 120 | AM19: =AL19+HojaMaestra!$M$19 -> 120 | AN19: =IF(AT18=HojaMaestra!$M$19,$D19,0) -> 0 | AP19: =IF(B18=HojaMaestra!$M$19,AD19+U19+V19+W19,0) -> 0 | AR19: =IF(B18=HojaMaestra!$M$19,AT18,0) -> 0 | AT19: 10 | AV19: 30 | AX19: =IFERROR(IF(Param!$EQ$8>=B19,B19,0),0) -> 10 | AY19: =IFERROR(IF(B19="","",IF(HojaMaestra!$M$19>=B18,$AY$10+SUM($G$10:G18)+SUM($M$10:M18)+SUM($I$10:I18),O18)),0) -> 1163277.754 | AZ19: =IF(AX19<>0,SUM($BA$10:BA19),IF(AX18=Param!$EQ$8,AZ18,0)) -> 675000 | BA19: =IFERROR(IF(B19="","",IF(AX19<>0,HojaMaestra!$M$16/Param!$EQ$8,0)),0) -> 67500 | BC19: =IF(B19="","",M19/(1+Param!$T$8)) -> 902.6192696 | BE19: 0 | BG19: =IFERROR(IF(B19<=HojaMaestra!$M$19,J19+K19,IF(D19<(AI19+J19+K19+L19),D19,(AI19+J19+K19+L19))),0) -> 6018.329072 | BI19: =IFERROR(IF(B19="","",G19+H19+I19+IF(HojaMaestra!$A$2=15,BC19,M19)),0) -> 17203.22834 | BK19: =IFERROR(IF(B19="","",IF(B19<=HojaMaestra!$M$19,O19,AY19)),0) -> 1163277.754 | BM19: =HojaMaestra!$A$4*12 -> 120 | BO19: =IF(B19<=Param!$EQ$8,HojaMaestra!$A$4*12+Param!$EQ$8,HojaMaestra!$A$4*12) -> 138 | BQ19: =IF(A19<=HojaMaestra!$M$19,HojaMaestra!$A$4*12+HojaMaestra!$M$19,HojaMaestra!$A$4*12) -> 120 | BS19: 10 | BU19: 11184.89926 | BW19: 493.2297678 | BX19: 123.3074419 | BY19: 348.9833263 | BZ19: 81.5178168 | CA19: 70.27398 | CB19: 1035.794516 | CC19: =IF(D19="","",IF(AX19=0,G19+H19+(I19/(1+Param!$T$8))+CB19,0)) -> 0
A20: 11 | B20: 11 | C20: 2024-10-01 | D20: =IFERROR(IF(B20="","",IF(OR(HojaMaestra!$A$2=12,HojaMaestra!$A$2=13),IF(AZ20<>0,AZ20,AY20),IF(HojaMaestra!$C$18="SI",AY20,AY20))),0) -> 1157259.425 | E20: 16239.07537 | F20: =IF(B20="","",HojaMaestra!$M$14) -> 0.102 | G20: =IFERROR(IF(B20="","",IF(D20=0,0,IF(HojaMaestra!$A$2<>15,D20*F20*AV20/360,(D20*F20*AV20/360)*(1+Param!$T$8)))),0) -> 10164.59528 | H20: 6074.480083 | I20: =IF(B20="","",IF(D20=0,0,VLOOKUP(HojaMaestra!$C$25,Param!$AJ$8:$AM$9,2,0))) -> 250 | J20: =IF(B20="","",IF(D20=0,0,IF(AND(HojaMaestra!$A$2=2,MOD(T20,2)=0),HojaMaestra!$C$16,0))) -> 0 | L20: =IFERROR(IF(B20="","",K20*VLOOKUP(HojaMaestra!$C$25,Param!$AJ$8:$AM$9,4,0)*(1+Param!$T$8)),"Sin Datos") -> 0 | M20: 1042.04314 | N20: =IFERROR(IF(B20="","",IF(AND(OR(HojaMaestra!$A$2=12,HojaMaestra!$A$2=13),B21<=Param!$EQ$8+1),BU20,IF(B21<=HojaMaestra!$M$19+1,0,BI20))),0) -> 17531.11851 | O20: 1151184.945 | R20: 1.00133333 | S20: 30 | T20: 11 | U20: =IF(B20="","",D20*HLOOKUP($V$7,Param!$C$11:$F$14,2,0)/1000) -> 490.6779963 | V20: =IF(B20="","",D20*HLOOKUP($V$7,Param!$C$11:$F$14,3,0)/1000) -> 122.6694991 | W20: =IF(B20="","",IF($AB$3="SI",D20*HLOOKUP($V$7,Param!$C$11:$F$14,4,0)/1000,0)) -> 347.1778275 | X20: =IF($X$8="Si",$Q$6*Param!$D$9*Param!$D$8/1000+(($Q$6*Param!$D$9*Param!$D$8/1000)*Param!$T$8),0) -> 81.5178168 | Y20: =X20/(1+Param!$T$8) -> 70.27398 | Z20: 1030.799303 | AA20: =IFERROR(IF(D20="","",G20+H20+(I20/(1+Param!$T$8))+Z20),0) -> 17485.39191 | AD20: =(IF(B20<=HojaMaestra!$M$19,$D$10,IF($AN$9=0,$D$10,$AN$9))*($F$10*100))/1200 -> 10327.5 | AE20: =IF(B19<=HojaMaestra!$M$19,$AD$10+$U$10+$V$10+$W$10,IF(HojaMaestra!$M$19=0,$AD$10+$U$10+$V$10+$W$10,$AP$9)) -> 11335.95 | AF20: 11.196 | AG20: =(IF($K$9="Prepagos a Capital",IF(B20<=HojaMaestra!$M$19,$D$10,IF($AN$9=0,$D$10,$AN$9)),AK20)*$AF$10/1200)/(1-(1/((1+$AF$10/1200)^IF($K$9="Prepagos a Capital",$AL$10,AM20)))) -> 16871.71052 | AH20: 16953.22834 | AI20: =IFERROR(IF(B20<=HojaMaestra!$M$19,0,IF(D20<(AH20-M20-(D20*(F20*100)/1200)),D20 - ( J20+K20+L20),(AH20-M20-(D20*(F20*100)/1200)))),0) -> 6074.480083 | AK20: =IFERROR(IF(K19>0,D20,IF(B19=HojaMaestra!$M$19,D20,AK19)),0) -> 1215000 | AL20: =IF(K19>0,$AL$10-B19,(AL19-IF(B19=HojaMaestra!$M$19,HojaMaestra!$M$19,0))) -> 120 | AM20: =AL20+HojaMaestra!$M$19 -> 120 | AN20: =IF(AT19=HojaMaestra!$M$19,$D20,0) -> 0 | AP20: =IF(B19=HojaMaestra!$M$19,AD20+U20+V20+W20,0) -> 0 | AR20: =IF(B19=HojaMaestra!$M$19,AT19,0) -> 0 | AT20: 11 | AV20: 31 | AX20: =IFERROR(IF(Param!$EQ$8>=B20,B20,0),0) -> 11 | AY20: =IFERROR(IF(B20="","",IF(HojaMaestra!$M$19>=B19,$AY$10+SUM($G$10:G19)+SUM($M$10:M19)+SUM($I$10:I19),O19)),0) -> 1157259.425 | AZ20: =IF(AX20<>0,SUM($BA$10:BA20),IF(AX19=Param!$EQ$8,AZ19,0)) -> 742500 | BA20: =IFERROR(IF(B20="","",IF(AX20<>0,HojaMaestra!$M$16/Param!$EQ$8,0)),0) -> 67500 | BC20: =IF(B20="","",M20/(1+Param!$T$8)) -> 898.3130514 | BE20: 0 | BG20: =IFERROR(IF(B20<=HojaMaestra!$M$19,J20+K20,IF(D20<(AI20+J20+K20+L20),D20,(AI20+J20+K20+L20))),0) -> 6074.480083 | BI20: =IFERROR(IF(B20="","",G20+H20+I20+IF(HojaMaestra!$A$2=15,BC20,M20)),0) -> 17531.11851 | BK20: =IFERROR(IF(B20="","",IF(B20<=HojaMaestra!$M$19,O20,AY20)),0) -> 1157259.425 | BM20: =HojaMaestra!$A$4*12 -> 120 | BO20: =IF(B20<=Param!$EQ$8,HojaMaestra!$A$4*12+Param!$EQ$8,HojaMaestra!$A$4*12) -> 138 | BQ20: =IF(A20<=HojaMaestra!$M$19,HojaMaestra!$A$4*12+HojaMaestra!$M$19,HojaMaestra!$A$4*12) -> 120 | BS20: 11 | BU20: 11456.63842 | BW20: 490.6779963 | BX20: 122.6694991 | BY20: 347.1778275 | BZ20: 81.5178168 | CA20: 70.27398 | CB20: 1030.799303 | CC20: =IF(D20="","",IF(AX20=0,G20+H20+(I20/(1+Param!$T$8))+CB20,0)) -> 0
A21: 12 | B21: 12 | C21: 2024-11-01 | D21: =IFERROR(IF(B21="","",IF(OR(HojaMaestra!$A$2=12,HojaMaestra!$A$2=13),IF(AZ21<>0,AZ21,AY21),IF(HojaMaestra!$C$18="SI",AY21,AY21))),0) -> 1151184.945 | E21: 15916.22701 | F21: =IF(B21="","",HojaMaestra!$M$14) -> 0.102 | G21: =IFERROR(IF(B21="","",IF(D21=0,0,IF(HojaMaestra!$A$2<>15,D21*F21*AV21/360,(D21*F21*AV21/360)*(1+Param!$T$8)))),0) -> 9785.072033 | H21: 6131.154982 | I21: =IF(B21="","",IF(D21=0,0,VLOOKUP(HojaMaestra!$C$25,Param!$AJ$8:$AM$9,2,0))) -> 250 | J21: =IF(B21="","",IF(D21=0,0,IF(AND(HojaMaestra!$A$2=2,MOD(T21,2)=0),HojaMaestra!$C$16,0))) -> 0 | L21: =IFERROR(IF(B21="","",K21*VLOOKUP(HojaMaestra!$C$25,Param!$AJ$8:$AM$9,4,0)*(1+Param!$T$8)),"Sin Datos") -> 0 | M21: 1037.001321 | N21: =IFERROR(IF(B21="","",IF(AND(OR(HojaMaestra!$A$2=12,HojaMaestra!$A$2=13),B22<=Param!$EQ$8+1),BU21,IF(B22<=HojaMaestra!$M$19+1,0,BI21))),0) -> 17203.22834 | O21: 1145053.79 | P21: =IF(T21<>12,"",(N22-$N$22)/$N$22) -> 0 | R21: 1.00133333 | S21: 31 | T21: 12 | U21: =IF(B21="","",D21*HLOOKUP($V$7,Param!$C$11:$F$14,2,0)/1000) -> 488.1024167 | V21: =IF(B21="","",D21*HLOOKUP($V$7,Param!$C$11:$F$14,3,0)/1000) -> 122.0256042 | W21: =IF(B21="","",IF($AB$3="SI",D21*HLOOKUP($V$7,Param!$C$11:$F$14,4,0)/1000,0)) -> 345.3554835 | X21: =IF($X$8="Si",$Q$6*Param!$D$9*Param!$D$8/1000+(($Q$6*Param!$D$9*Param!$D$8/1000)*Param!$T$8),0) -> 81.5178168 | Y21: =X21/(1+Param!$T$8) -> 70.27398 | Z21: 1025.757484 | AA21: =IFERROR(IF(D21="","",G21+H21+(I21/(1+Param!$T$8))+Z21),0) -> 17157.50174 | AD21: =(IF(B21<=HojaMaestra!$M$19,$D$10,IF($AN$9=0,$D$10,$AN$9))*($F$10*100))/1200 -> 10327.5 | AE21: =IF(B20<=HojaMaestra!$M$19,$AD$10+$U$10+$V$10+$W$10,IF(HojaMaestra!$M$19=0,$AD$10+$U$10+$V$10+$W$10,$AP$9)) -> 11335.95 | AF21: 11.196 | AG21: =(IF($K$9="Prepagos a Capital",IF(B21<=HojaMaestra!$M$19,$D$10,IF($AN$9=0,$D$10,$AN$9)),AK21)*$AF$10/1200)/(1-(1/((1+$AF$10/1200)^IF($K$9="Prepagos a Capital",$AL$10,AM21)))) -> 16871.71052 | AH21: 16953.22834 | AI21: =IFERROR(IF(B21<=HojaMaestra!$M$19,0,IF(D21<(AH21-M21-(D21*(F21*100)/1200)),D21 - ( J21+K21+L21),(AH21-M21-(D21*(F21*100)/1200)))),0) -> 6131.154982 | AK21: =IFERROR(IF(K20>0,D21,IF(B20=HojaMaestra!$M$19,D21,AK20)),0) -> 1215000 | AL21: =IF(K20>0,$AL$10-B20,(AL20-IF(B20=HojaMaestra!$M$19,HojaMaestra!$M$19,0))) -> 120 | AM21: =AL21+HojaMaestra!$M$19 -> 120 | AN21: =IF(AT20=HojaMaestra!$M$19,$D21,0) -> 0 | AP21: =IF(B20=HojaMaestra!$M$19,AD21+U21+V21+W21,0) -> 0 | AR21: =IF(B20=HojaMaestra!$M$19,AT20,0) -> 0 | AT21: 12 | AV21: 30 | AX21: =IFERROR(IF(Param!$EQ$8>=B21,B21,0),0) -> 12 | AY21: =IFERROR(IF(B21="","",IF(HojaMaestra!$M$19>=B20,$AY$10+SUM($G$10:G20)+SUM($M$10:M20)+SUM($I$10:I20),O20)),0) -> 1151184.945 | AZ21: =IF(AX21<>0,SUM($BA$10:BA21),IF(AX20=Param!$EQ$8,AZ20,0)) -> 810000 | BA21: =IFERROR(IF(B21="","",IF(AX21<>0,HojaMaestra!$M$16/Param!$EQ$8,0)),0) -> 67500 | BC21: =IF(B21="","",M21/(1+Param!$T$8)) -> 893.9666562 | BE21: 0 | BG21: =IFERROR(IF(B21<=HojaMaestra!$M$19,J21+K21,IF(D21<(AI21+J21+K21+L21),D21,(AI21+J21+K21+L21))),0) -> 6131.154982 | BI21: =IFERROR(IF(B21="","",G21+H21+I21+IF(HojaMaestra!$A$2=15,BC21,M21)),0) -> 17203.22834 | BK21: =IFERROR(IF(B21="","",IF(B21<=HojaMaestra!$M$19,O21,AY21)),0) -> 1151184.945 | BM21: =HojaMaestra!$A$4*12 -> 120 | BO21: =IF(B21<=Param!$EQ$8,HojaMaestra!$A$4*12+Param!$EQ$8,HojaMaestra!$A$4*12) -> 138 | BQ21: =IF(A21<=HojaMaestra!$M$19,HojaMaestra!$A$4*12+HojaMaestra!$M$19,HojaMaestra!$A$4*12) -> 120 | BS21: 12 | BU21: 11072.07335 | BW21: 488.1024167 | BX21: 122.0256042 | BY21: 345.3554835 | BZ21: 81.5178168 | CA21: 70.27398 | CB21: 1025.757484 | CC21: =IF(D21="","",IF(AX21=0,G21+H21+(I21/(1+Param!$T$8))+CB21,0)) -> 0
A22: 13 | B22: 13 | C22: 2024-12-01 | D22: =IFERROR(IF(B22="","",IF(OR(HojaMaestra!$A$2=12,HojaMaestra!$A$2=13),IF(AZ22<>0,AZ22,AY22),IF(HojaMaestra!$C$18="SI",AY22,AY22))),0) -> 1145053.79 | E22: 16245.74778 | F22: =IF(B22="","",HojaMaestra!$M$14) -> 0.102 | G22: =IFERROR(IF(B22="","",IF(D22=0,0,IF(HojaMaestra!$A$2<>15,D22*F22*AV22/360,(D22*F22*AV22/360)*(1+Param!$T$8)))),0) -> 10057.38912 | H22: 6188.358658 | I22: =IF(B22="","",IF(D22=0,0,VLOOKUP(HojaMaestra!$C$25,Param!$AJ$8:$AM$9,2,0))) -> 250 | J22: =IF(B22="","",IF(D22=0,0,IF(AND(HojaMaestra!$A$2=2,MOD(T22,2)=0),HojaMaestra!$C$16,0))) -> 0 | L22: =IFERROR(IF(B22="","",K22*VLOOKUP(HojaMaestra!$C$25,Param!$AJ$8:$AM$9,4,0)*(1+Param!$T$8)),"Sin Datos") -> 0 | M22: 1031.912463 | N22: =IFERROR(IF(B22="","",IF(AND(OR(HojaMaestra!$A$2=12,HojaMaestra!$A$2=13),B23<=Param!$EQ$8+1),BU22,IF(B23<=HojaMaestra!$M$19+1,0,BI22))),0) -> 17527.66024 | O22: 1138865.431 | P22: =IF(T22<>12,"",(N22-$N$22)/$N$22) ->  | R22: 1.00133333 | S22: 31 | T22: 1 | U22: =IF(B22="","",D22*HLOOKUP($V$7,Param!$C$11:$F$14,2,0)/1000) -> 485.502807 | V22: =IF(B22="","",D22*HLOOKUP($V$7,Param!$C$11:$F$14,3,0)/1000) -> 121.3757017 | W22: =IF(B22="","",IF($AB$3="SI",D22*HLOOKUP($V$7,Param!$C$11:$F$14,4,0)/1000,0)) -> 343.516137 | X22: =IF($X$8="Si",$Q$6*Param!$D$9*Param!$D$8/1000+(($Q$6*Param!$D$9*Param!$D$8/1000)*Param!$T$8),0) -> 81.5178168 | Y22: =X22/(1+Param!$T$8) -> 70.27398 | Z22: 1020.668626 | AA22: =IFERROR(IF(D22="","",G22+H22+(I22/(1+Param!$T$8))+Z22),0) -> 17481.93365 | AD22: =(IF(B22<=HojaMaestra!$M$19,$D$10,IF($AN$9=0,$D$10,$AN$9))*($F$10*100))/1200 -> 10327.5 | AE22: =IF(B21<=HojaMaestra!$M$19,$AD$10+$U$10+$V$10+$W$10,IF(HojaMaestra!$M$19=0,$AD$10+$U$10+$V$10+$W$10,$AP$9)) -> 11335.95 | AF22: 11.196 | AG22: =(IF($K$9="Prepagos a Capital",IF(B22<=HojaMaestra!$M$19,$D$10,IF($AN$9=0,$D$10,$AN$9)),AK22)*$AF$10/1200)/(1-(1/((1+$AF$10/1200)^IF($K$9="Prepagos a Capital",$AL$10,AM22)))) -> 16871.71052 | AH22: 16953.22834 | AI22: =IFERROR(IF(B22<=HojaMaestra!$M$19,0,IF(D22<(AH22-M22-(D22*(F22*100)/1200)),D22 - ( J22+K22+L22),(AH22-M22-(D22*(F22*100)/1200)))),0) -> 6188.358658 | AK22: =IFERROR(IF(K21>0,D22,IF(B21=HojaMaestra!$M$19,D22,AK21)),0) -> 1215000 | AL22: =IF(K21>0,$AL$10-B21,(AL21-IF(B21=HojaMaestra!$M$19,HojaMaestra!$M$19,0))) -> 120 | AM22: =AL22+HojaMaestra!$M$19 -> 120 | AN22: =IF(AT21=HojaMaestra!$M$19,$D22,0) -> 0 | AP22: =IF(B21=HojaMaestra!$M$19,AD22+U22+V22+W22,0) -> 0 | AR22: =IF(B21=HojaMaestra!$M$19,AT21,0) -> 0 | AT22: 13 | AV22: 31 | AX22: =IFERROR(IF(Param!$EQ$8>=B22,B22,0),0) -> 13 | AY22: =IFERROR(IF(B22="","",IF(HojaMaestra!$M$19>=B21,$AY$10+SUM($G$10:G21)+SUM($M$10:M21)+SUM($I$10:I21),O21)),0) -> 1145053.79 | AZ22: =IF(AX22<>0,SUM($BA$10:BA22),IF(AX21=Param!$EQ$8,AZ21,0)) -> 877500 | BA22: =IFERROR(IF(B22="","",IF(AX22<>0,HojaMaestra!$M$16/Param!$EQ$8,0)),0) -> 67500 | BC22: =IF(B22="","",M22/(1+Param!$T$8)) -> 889.5797091 | BE22: 0 | BG22: =IFERROR(IF(B22<=HojaMaestra!$M$19,J22+K22,IF(D22<(AI22+J22+K22+L22),D22,(AI22+J22+K22+L22))),0) -> 6188.358658 | BI22: =IFERROR(IF(B22="","",G22+H22+I22+IF(HojaMaestra!$A$2=15,BC22,M22)),0) -> 17527.66024 | BK22: =IFERROR(IF(B22="","",IF(B22<=HojaMaestra!$M$19,O22,AY22)),0) -> 1145053.79 | BM22: =HojaMaestra!$A$4*12 -> 120 | BO22: =IF(B22<=Param!$EQ$8,HojaMaestra!$A$4*12+Param!$EQ$8,HojaMaestra!$A$4*12) -> 138 | BQ22: =IF(A22<=HojaMaestra!$M$19,HojaMaestra!$A$4*12+HojaMaestra!$M$19,HojaMaestra!$A$4*12) -> 120 | BS22: 13 | BU22: 11339.30159 | BW22: 485.502807 | BX22: 121.3757017 | BY22: 343.516137 | BZ22: 81.5178168 | CA22: 70.27398 | CB22: 1020.668626 | CC22: =IF(D22="","",IF(AX22=0,G22+H22+(I22/(1+Param!$T$8))+CB22,0)) -> 0
A23: 14 | B23: 14 | C23: 2025-01-01 | D23: =IFERROR(IF(B23="","",IF(OR(HojaMaestra!$A$2=12,HojaMaestra!$A$2=13),IF(AZ23<>0,AZ23,AY23),IF(HojaMaestra!$C$18="SI",AY23,AY23))),0) -> 1138865.431 | E23: 16249.13075 | F23: =IF(B23="","",HojaMaestra!$M$14) -> 0.102 | G23: =IFERROR(IF(B23="","",IF(D23=0,0,IF(HojaMaestra!$A$2<>15,D23*F23*AV23/360,(D23*F23*AV23/360)*(1+Param!$T$8)))),0) -> 10003.03471 | H23: 6246.096044 | I23: =IF(B23="","",IF(D23=0,0,VLOOKUP(HojaMaestra!$C$25,Param!$AJ$8:$AM$9,2,0))) -> 250 | J23: =IF(B23="","",IF(D23=0,0,IF(AND(HojaMaestra!$A$2=2,MOD(T23,2)=0),HojaMaestra!$C$16,0))) -> 0 | L23: =IFERROR(IF(B23="","",K23*VLOOKUP(HojaMaestra!$C$25,Param!$AJ$8:$AM$9,4,0)*(1+Param!$T$8)),"Sin Datos") -> 0 | M23: 1026.776125 | N23: =IFERROR(IF(B23="","",IF(AND(OR(HojaMaestra!$A$2=12,HojaMaestra!$A$2=13),B24<=Param!$EQ$8+1),BU23,IF(B24<=HojaMaestra!$M$19+1,0,BI23))),0) -> 17525.90687 | O23: 1132619.335 | R23: 1.00133333 | S23: 28 | T23: 2 | U23: =IF(B23="","",D23*HLOOKUP($V$7,Param!$C$11:$F$14,2,0)/1000) -> 482.8789429 | V23: =IF(B23="","",D23*HLOOKUP($V$7,Param!$C$11:$F$14,3,0)/1000) -> 120.7197357 | W23: =IF(B23="","",IF($AB$3="SI",D23*HLOOKUP($V$7,Param!$C$11:$F$14,4,0)/1000,0)) -> 341.6596294 | X23: =IF($X$8="Si",$Q$6*Param!$D$9*Param!$D$8/1000+(($Q$6*Param!$D$9*Param!$D$8/1000)*Param!$T$8),0) -> 81.5178168 | Y23: =X23/(1+Param!$T$8) -> 70.27398 | Z23: 1015.532288 | AA23: =IFERROR(IF(D23="","",G23+H23+(I23/(1+Param!$T$8))+Z23),0) -> 17480.18028 | AD23: =(IF(B23<=HojaMaestra!$M$19,$D$10,IF($AN$9=0,$D$10,$AN$9))*($F$10*100))/1200 -> 10327.5 | AE23: =IF(B22<=HojaMaestra!$M$19,$AD$10+$U$10+$V$10+$W$10,IF(HojaMaestra!$M$19=0,$AD$10+$U$10+$V$10+$W$10,$AP$9)) -> 11335.95 | AF23: 11.196 | AG23: =(IF($K$9="Prepagos a Capital",IF(B23<=HojaMaestra!$M$19,$D$10,IF($AN$9=0,$D$10,$AN$9)),AK23)*$AF$10/1200)/(1-(1/((1+$AF$10/1200)^IF($K$9="Prepagos a Capital",$AL$10,AM23)))) -> 16871.71052 | AH23: 16953.22834 | AI23: =IFERROR(IF(B23<=HojaMaestra!$M$19,0,IF(D23<(AH23-M23-(D23*(F23*100)/1200)),D23 - ( J23+K23+L23),(AH23-M23-(D23*(F23*100)/1200)))),0) -> 6246.096044 | AK23: =IFERROR(IF(K22>0,D23,IF(B22=HojaMaestra!$M$19,D23,AK22)),0) -> 1215000 | AL23: =IF(K22>0,$AL$10-B22,(AL22-IF(B22=HojaMaestra!$M$19,HojaMaestra!$M$19,0))) -> 120 | AM23: =AL23+HojaMaestra!$M$19 -> 120 | AN23: =IF(AT22=HojaMaestra!$M$19,$D23,0) -> 0 | AP23: =IF(B22=HojaMaestra!$M$19,AD23+U23+V23+W23,0) -> 0 | AR23: =IF(B22=HojaMaestra!$M$19,AT22,0) -> 0 | AT23: 14 | AV23: 31 | AX23: =IFERROR(IF(Param!$EQ$8>=B23,B23,0),0) -> 14 | AY23: =IFERROR(IF(B23="","",IF(HojaMaestra!$M$19>=B22,$AY$10+SUM($G$10:G22)+SUM($M$10:M22)+SUM($I$10:I22),O22)),0) -> 1138865.431 | AZ23: =IF(AX23<>0,SUM($BA$10:BA23),IF(AX22=Param!$EQ$8,AZ22,0)) -> 945000 | BA23: =IFERROR(IF(B23="","",IF(AX23<>0,HojaMaestra!$M$16/Param!$EQ$8,0)),0) -> 67500 | BC23: =IF(B23="","",M23/(1+Param!$T$8)) -> 885.1518318 | BE23: 0 | BG23: =IFERROR(IF(B23<=HojaMaestra!$M$19,J23+K23,IF(D23<(AI23+J23+K23+L23),D23,(AI23+J23+K23+L23))),0) -> 6246.096044 | BI23: =IFERROR(IF(B23="","",G23+H23+I23+IF(HojaMaestra!$A$2=15,BC23,M23)),0) -> 17525.90687 | BK23: =IFERROR(IF(B23="","",IF(B23<=HojaMaestra!$M$19,O23,AY23)),0) -> 1138865.431 | BM23: =HojaMaestra!$A$4*12 -> 120 | BO23: =IF(B23<=Param!$EQ$8,HojaMaestra!$A$4*12+Param!$EQ$8,HojaMaestra!$A$4*12) -> 138 | BQ23: =IF(A23<=HojaMaestra!$M$19,HojaMaestra!$A$4*12+HojaMaestra!$M$19,HojaMaestra!$A$4*12) -> 120 | BS23: 14 | BU23: 11279.81083 | BW23: 482.8789429 | BX23: 120.7197357 | BY23: 341.6596294 | BZ23: =X23 -> 81.5178168 | CA23: =Y23 -> 70.27398 | CB23: 1015.532288 | CC23: =IF(D23="","",IF(AX23=0,G23+H23+(I23/(1+Param!$T$8))+CB23,0)) -> 0
A24: 15 | B24: 15 | C24: 2025-02-01 | D24: =IFERROR(IF(B24="","",IF(OR(HojaMaestra!$A$2=12,HojaMaestra!$A$2=13),IF(AZ24<>0,AZ24,AY24),IF(HojaMaestra!$C$18="SI",AY24,AY24))),0) -> 1132619.335 | E24: 15289.81885 | F24: =IF(B24="","",HojaMaestra!$M$14) -> 0.102 | G24: =IFERROR(IF(B24="","",IF(D24=0,0,IF(HojaMaestra!$A$2<>15,D24*F24*AV24/360,(D24*F24*AV24/360)*(1+Param!$T$8)))),0) -> 8985.446727 | H24: 6304.37212 | I24: =IF(B24="","",IF(D24=0,0,VLOOKUP(HojaMaestra!$C$25,Param!$AJ$8:$AM$9,2,0))) -> 250 | J24: =IF(B24="","",IF(D24=0,0,IF(AND(HojaMaestra!$A$2=2,MOD(T24,2)=0),HojaMaestra!$C$16,0))) -> 0 | L24: =IFERROR(IF(B24="","",K24*VLOOKUP(HojaMaestra!$C$25,Param!$AJ$8:$AM$9,4,0)*(1+Param!$T$8)),"Sin Datos") -> 0 | M24: 1021.591865 | N24: =IFERROR(IF(B24="","",IF(AND(OR(HojaMaestra!$A$2=12,HojaMaestra!$A$2=13),B25<=Param!$EQ$8+1),BU24,IF(B25<=HojaMaestra!$M$19+1,0,BI24))),0) -> 16561.41071 | O24: 1126314.963 | R24: 1.00133333 | S24: 31 | T24: 3 | U24: =IF(B24="","",D24*HLOOKUP($V$7,Param!$C$11:$F$14,2,0)/1000) -> 480.2305982 | V24: =IF(B24="","",D24*HLOOKUP($V$7,Param!$C$11:$F$14,3,0)/1000) -> 120.0576495 | W24: =IF(B24="","",IF($AB$3="SI",D24*HLOOKUP($V$7,Param!$C$11:$F$14,4,0)/1000,0)) -> 339.7858006 | X24: =IF($X$8="Si",$Q$6*Param!$D$9*Param!$D$8/1000+(($Q$6*Param!$D$9*Param!$D$8/1000)*Param!$T$8),0) -> 81.5178168 | Y24: =X24/(1+Param!$T$8) -> 70.27398 | Z24: 1010.348028 | AA24: =IFERROR(IF(D24="","",G24+H24+(I24/(1+Param!$T$8))+Z24),0) -> 16515.68412 | AD24: =(IF(B24<=HojaMaestra!$M$19,$D$10,IF($AN$9=0,$D$10,$AN$9))*($F$10*100))/1200 -> 10327.5 | AE24: =IF(B23<=HojaMaestra!$M$19,$AD$10+$U$10+$V$10+$W$10,IF(HojaMaestra!$M$19=0,$AD$10+$U$10+$V$10+$W$10,$AP$9)) -> 11335.95 | AF24: 11.196 | AG24: =(IF($K$9="Prepagos a Capital",IF(B24<=HojaMaestra!$M$19,$D$10,IF($AN$9=0,$D$10,$AN$9)),AK24)*$AF$10/1200)/(1-(1/((1+$AF$10/1200)^IF($K$9="Prepagos a Capital",$AL$10,AM24)))) -> 16871.71052 | AH24: 16953.22834 | AI24: =IFERROR(IF(B24<=HojaMaestra!$M$19,0,IF(D24<(AH24-M24-(D24*(F24*100)/1200)),D24 - ( J24+K24+L24),(AH24-M24-(D24*(F24*100)/1200)))),0) -> 6304.37212 | AK24: =IFERROR(IF(K23>0,D24,IF(B23=HojaMaestra!$M$19,D24,AK23)),0) -> 1215000 | AL24: =IF(K23>0,$AL$10-B23,(AL23-IF(B23=HojaMaestra!$M$19,HojaMaestra!$M$19,0))) -> 120 | AM24: =AL24+HojaMaestra!$M$19 -> 120 | AN24: =IF(AT23=HojaMaestra!$M$19,$D24,0) -> 0 | AP24: =IF(B23=HojaMaestra!$M$19,AD24+U24+V24+W24,0) -> 0 | AR24: =IF(B23=HojaMaestra!$M$19,AT23,0) -> 0 | AT24: 15 | AV24: 28 | AX24: =IFERROR(IF(Param!$EQ$8>=B24,B24,0),0) -> 15 | AY24: =IFERROR(IF(B24="","",IF(HojaMaestra!$M$19>=B23,$AY$10+SUM($G$10:G23)+SUM($M$10:M23)+SUM($I$10:I23),O23)),0) -> 1132619.335 | AZ24: =IF(AX24<>0,SUM($BA$10:BA24),IF(AX23=Param!$EQ$8,AZ23,0)) -> 1012500 | BA24: =IFERROR(IF(B24="","",IF(AX24<>0,HojaMaestra!$M$16/Param!$EQ$8,0)),0) -> 67500 | BC24: =IF(B24="","",M24/(1+Param!$T$8)) -> 880.6826424 | BE24: 0 | BG24: =IFERROR(IF(B24<=HojaMaestra!$M$19,J24+K24,IF(D24<(AI24+J24+K24+L24),D24,(AI24+J24+K24+L24))),0) -> 6304.37212 | BI24: =IFERROR(IF(B24="","",G24+H24+I24+IF(HojaMaestra!$A$2=15,BC24,M24)),0) -> 16561.41071 | BK24: =IFERROR(IF(B24="","",IF(B24<=HojaMaestra!$M$19,O24,AY24)),0) -> 1132619.335 | BM24: =HojaMaestra!$A$4*12 -> 120 | BO24: =IF(B24<=Param!$EQ$8,HojaMaestra!$A$4*12+Param!$EQ$8,HojaMaestra!$A$4*12) -> 138 | BQ24: =IF(A24<=HojaMaestra!$M$19,HojaMaestra!$A$4*12+HojaMaestra!$M$19,HojaMaestra!$A$4*12) -> 120 | BS24: 15 | BU24: 10257.03859 | BW24: 480.2305982 | BX24: 120.0576495 | BY24: 339.7858006 | BZ24: 81.5178168 | CA24: 70.27398 | CB24: 1010.348028 | CC24: =IF(D24="","",IF(AX24=0,G24+H24+(I24/(1+Param!$T$8))+CB24,0)) -> 0
A25: 16 | B25: 16 | C25: 2025-03-01 | D25: =IFERROR(IF(B25="","",IF(OR(HojaMaestra!$A$2=12,HojaMaestra!$A$2=13),IF(AZ25<>0,AZ25,AY25),IF(HojaMaestra!$C$18="SI",AY25,AY25))),0) -> 1126314.963 | E25: 16255.99167 | F25: =IF(B25="","",HojaMaestra!$M$14) -> 0.102 | G25: =IFERROR(IF(B25="","",IF(D25=0,0,IF(HojaMaestra!$A$2<>15,D25*F25*AV25/360,(D25*F25*AV25/360)*(1+Param!$T$8)))),0) -> 9892.79976 | H25: 6363.191912 | I25: =IF(B25="","",IF(D25=0,0,VLOOKUP(HojaMaestra!$C$25,Param!$AJ$8:$AM$9,2,0))) -> 250 | J25: =IF(B25="","",IF(D25=0,0,IF(AND(HojaMaestra!$A$2=2,MOD(T25,2)=0),HojaMaestra!$C$16,0))) -> 0 | L25: =IFERROR(IF(B25="","",K25*VLOOKUP(HojaMaestra!$C$25,Param!$AJ$8:$AM$9,4,0)*(1+Param!$T$8)),"Sin Datos") -> 0 | M25: 1016.359236 | N25: =IFERROR(IF(B25="","",IF(AND(OR(HojaMaestra!$A$2=12,HojaMaestra!$A$2=13),B26<=Param!$EQ$8+1),BU25,IF(B26<=HojaMaestra!$M$19+1,0,BI25))),0) -> 17522.35091 | O25: 1119951.771 | R25: 1.00133333 | S25: 30 | T25: 4 | U25: =IF(B25="","",D25*HLOOKUP($V$7,Param!$C$11:$F$14,2,0)/1000) -> 477.5575444 | V25: =IF(B25="","",D25*HLOOKUP($V$7,Param!$C$11:$F$14,3,0)/1000) -> 119.3893861 | W25: =IF(B25="","",IF($AB$3="SI",D25*HLOOKUP($V$7,Param!$C$11:$F$14,4,0)/1000,0)) -> 337.894489 | X25: =IF($X$8="Si",$Q$6*Param!$D$9*Param!$D$8/1000+(($Q$6*Param!$D$9*Param!$D$8/1000)*Param!$T$8),0) -> 81.5178168 | Y25: =X25/(1+Param!$T$8) -> 70.27398 | Z25: 1005.115399 | AA25: =IFERROR(IF(D25="","",G25+H25+(I25/(1+Param!$T$8))+Z25),0) -> 17476.62431 | AD25: =(IF(B25<=HojaMaestra!$M$19,$D$10,IF($AN$9=0,$D$10,$AN$9))*($F$10*100))/1200 -> 10327.5 | AE25: =IF(B24<=HojaMaestra!$M$19,$AD$10+$U$10+$V$10+$W$10,IF(HojaMaestra!$M$19=0,$AD$10+$U$10+$V$10+$W$10,$AP$9)) -> 11335.95 | AF25: 11.196 | AG25: =(IF($K$9="Prepagos a Capital",IF(B25<=HojaMaestra!$M$19,$D$10,IF($AN$9=0,$D$10,$AN$9)),AK25)*$AF$10/1200)/(1-(1/((1+$AF$10/1200)^IF($K$9="Prepagos a Capital",$AL$10,AM25)))) -> 16871.71052 | AH25: 16953.22834 | AI25: =IFERROR(IF(B25<=HojaMaestra!$M$19,0,IF(D25<(AH25-M25-(D25*(F25*100)/1200)),D25 - ( J25+K25+L25),(AH25-M25-(D25*(F25*100)/1200)))),0) -> 6363.191912 | AK25: =IFERROR(IF(K24>0,D25,IF(B24=HojaMaestra!$M$19,D25,AK24)),0) -> 1215000 | AL25: =IF(K24>0,$AL$10-B24,(AL24-IF(B24=HojaMaestra!$M$19,HojaMaestra!$M$19,0))) -> 120 | AM25: =AL25+HojaMaestra!$M$19 -> 120 | AN25: =IF(AT24=HojaMaestra!$M$19,$D25,0) -> 0 | AP25: =IF(B24=HojaMaestra!$M$19,AD25+U25+V25+W25,0) -> 0 | AR25: =IF(B24=HojaMaestra!$M$19,AT24,0) -> 0 | AT25: 16 | AV25: 31 | AX25: =IFERROR(IF(Param!$EQ$8>=B25,B25,0),0) -> 16 | AY25: =IFERROR(IF(B25="","",IF(HojaMaestra!$M$19>=B24,$AY$10+SUM($G$10:G24)+SUM($M$10:M24)+SUM($I$10:I24),O24)),0) -> 1126314.963 | AZ25: =IF(AX25<>0,SUM($BA$10:BA25),IF(AX24=Param!$EQ$8,AZ24,0)) -> 1080000 | BA25: =IFERROR(IF(B25="","",IF(AX25<>0,HojaMaestra!$M$16/Param!$EQ$8,0)),0) -> 67500 | BC25: =IF(B25="","",M25/(1+Param!$T$8)) -> 876.1717554 | BE25: 0 | BG25: =IFERROR(IF(B25<=HojaMaestra!$M$19,J25+K25,IF(D25<(AI25+J25+K25+L25),D25,(AI25+J25+K25+L25))),0) -> 6363.191912 | BI25: =IFERROR(IF(B25="","",G25+H25+I25+IF(HojaMaestra!$A$2=15,BC25,M25)),0) -> 17522.35091 | BK25: =IFERROR(IF(B25="","",IF(B25<=HojaMaestra!$M$19,O25,AY25)),0) -> 1126314.963 | BM25: =HojaMaestra!$A$4*12 -> 120 | BO25: =IF(B25<=Param!$EQ$8,HojaMaestra!$A$4*12+Param!$EQ$8,HojaMaestra!$A$4*12) -> 138 | BQ25: =IF(A25<=HojaMaestra!$M$19,HojaMaestra!$A$4*12+HojaMaestra!$M$19,HojaMaestra!$A$4*12) -> 120 | BS25: 16 | BU25: 11159.159 | BW25: 477.5575444 | BX25: 119.3893861 | BY25: 337.894489 | BZ25: 81.5178168 | CA25: 70.27398 | CB25: 1005.115399 | CC25: =IF(D25="","",IF(AX25=0,G25+H25+(I25/(1+Param!$T$8))+CB25,0)) -> 0
A26: 17 | B26: 17 | C26: 2025-04-01 | D26: =IFERROR(IF(B26="","",IF(OR(HojaMaestra!$A$2=12,HojaMaestra!$A$2=13),IF(AZ26<>0,AZ26,AY26),IF(HojaMaestra!$C$18="SI",AY26,AY26))),0) -> 1119951.771 | E26: 15942.15055 | F26: =IF(B26="","",HojaMaestra!$M$14) -> 0.102 | G26: =IFERROR(IF(B26="","",IF(D26=0,0,IF(HojaMaestra!$A$2<>15,D26*F26*AV26/360,(D26*F26*AV26/360)*(1+Param!$T$8)))),0) -> 9519.590056 | H26: 6422.560493 | I26: =IF(B26="","",IF(D26=0,0,VLOOKUP(HojaMaestra!$C$25,Param!$AJ$8:$AM$9,2,0))) -> 250 | J26: =IF(B26="","",IF(D26=0,0,IF(AND(HojaMaestra!$A$2=2,MOD(T26,2)=0),HojaMaestra!$C$16,0))) -> 0 | L26: =IFERROR(IF(B26="","",K26*VLOOKUP(HojaMaestra!$C$25,Param!$AJ$8:$AM$9,4,0)*(1+Param!$T$8)),"Sin Datos") -> 0 | M26: 1011.077787 | N26: =IFERROR(IF(B26="","",IF(AND(OR(HojaMaestra!$A$2=12,HojaMaestra!$A$2=13),B27<=Param!$EQ$8+1),BU26,IF(B27<=HojaMaestra!$M$19+1,0,BI26))),0) -> 17203.22834 | O26: 1113529.211 | R26: 1.00133333 | S26: 31 | T26: 5 | U26: =IF(B26="","",D26*HLOOKUP($V$7,Param!$C$11:$F$14,2,0)/1000) -> 474.859551 | V26: =IF(B26="","",D26*HLOOKUP($V$7,Param!$C$11:$F$14,3,0)/1000) -> 118.7148878 | W26: =IF(B26="","",IF($AB$3="SI",D26*HLOOKUP($V$7,Param!$C$11:$F$14,4,0)/1000,0)) -> 335.9855314 | X26: =IF($X$8="Si",$Q$6*Param!$D$9*Param!$D$8/1000+(($Q$6*Param!$D$9*Param!$D$8/1000)*Param!$T$8),0) -> 81.5178168 | Y26: =X26/(1+Param!$T$8) -> 70.27398 | Z26: 999.8339502 | AA26: =IFERROR(IF(D26="","",G26+H26+(I26/(1+Param!$T$8))+Z26),0) -> 17157.50174 | AD26: =(IF(B26<=HojaMaestra!$M$19,$D$10,IF($AN$9=0,$D$10,$AN$9))*($F$10*100))/1200 -> 10327.5 | AE26: =IF(B25<=HojaMaestra!$M$19,$AD$10+$U$10+$V$10+$W$10,IF(HojaMaestra!$M$19=0,$AD$10+$U$10+$V$10+$W$10,$AP$9)) -> 11335.95 | AF26: 11.196 | AG26: =(IF($K$9="Prepagos a Capital",IF(B26<=HojaMaestra!$M$19,$D$10,IF($AN$9=0,$D$10,$AN$9)),AK26)*$AF$10/1200)/(1-(1/((1+$AF$10/1200)^IF($K$9="Prepagos a Capital",$AL$10,AM26)))) -> 16871.71052 | AH26: 16953.22834 | AI26: =IFERROR(IF(B26<=HojaMaestra!$M$19,0,IF(D26<(AH26-M26-(D26*(F26*100)/1200)),D26 - ( J26+K26+L26),(AH26-M26-(D26*(F26*100)/1200)))),0) -> 6422.560493 | AK26: =IFERROR(IF(K25>0,D26,IF(B25=HojaMaestra!$M$19,D26,AK25)),0) -> 1215000 | AL26: =IF(K25>0,$AL$10-B25,(AL25-IF(B25=HojaMaestra!$M$19,HojaMaestra!$M$19,0))) -> 120 | AM26: =AL26+HojaMaestra!$M$19 -> 120 | AN26: =IF(AT25=HojaMaestra!$M$19,$D26,0) -> 0 | AP26: =IF(B25=HojaMaestra!$M$19,AD26+U26+V26+W26,0) -> 0 | AR26: =IF(B25=HojaMaestra!$M$19,AT25,0) -> 0 | AT26: 17 | AV26: 30 | AX26: =IFERROR(IF(Param!$EQ$8>=B26,B26,0),0) -> 17 | AY26: =IFERROR(IF(B26="","",IF(HojaMaestra!$M$19>=B25,$AY$10+SUM($G$10:G25)+SUM($M$10:M25)+SUM($I$10:I25),O25)),0) -> 1119951.771 | AZ26: =IF(AX26<>0,SUM($BA$10:BA26),IF(AX25=Param!$EQ$8,AZ25,0)) -> 1147500 | BA26: =IFERROR(IF(B26="","",IF(AX26<>0,HojaMaestra!$M$16/Param!$EQ$8,0)),0) -> 67500 | BC26: =IF(B26="","",M26/(1+Param!$T$8)) -> 871.6187819 | BE26: 0 | BG26: =IFERROR(IF(B26<=HojaMaestra!$M$19,J26+K26,IF(D26<(AI26+J26+K26+L26),D26,(AI26+J26+K26+L26))),0) -> 6422.560493 | BI26: =IFERROR(IF(B26="","",G26+H26+I26+IF(HojaMaestra!$A$2=15,BC26,M26)),0) -> 17203.22834 | BK26: =IFERROR(IF(B26="","",IF(B26<=HojaMaestra!$M$19,O26,AY26)),0) -> 1119951.771 | BM26: =HojaMaestra!$A$4*12 -> 120 | BO26: =IF(B26<=Param!$EQ$8,HojaMaestra!$A$4*12+Param!$EQ$8,HojaMaestra!$A$4*12) -> 138 | BQ26: =IF(A26<=HojaMaestra!$M$19,HojaMaestra!$A$4*12+HojaMaestra!$M$19,HojaMaestra!$A$4*12) -> 120 | BS26: 17 | BU26: 10780.66784 | BW26: 474.859551 | BX26: 118.7148878 | BY26: 335.9855314 | BZ26: 81.5178168 | CA26: 70.27398 | CB26: 999.8339502 | CC26: =IF(D26="","",IF(AX26=0,G26+H26+(I26/(1+Param!$T$8))+CB26,0)) -> 0
A27: 18 | B27: 18 | C27: 2025-05-01 | D27: =IFERROR(IF(B27="","",IF(OR(HojaMaestra!$A$2=12,HojaMaestra!$A$2=13),IF(AZ27<>0,AZ27,AY27),IF(HojaMaestra!$C$18="SI",AY27,AY27))),0) -> 1113529.211 | E27: 16262.98122 | F27: =IF(B27="","",HojaMaestra!$M$14) -> 0.102 | G27: =IFERROR(IF(B27="","",IF(D27=0,0,IF(HojaMaestra!$A$2<>15,D27*F27*AV27/360,(D27*F27*AV27/360)*(1+Param!$T$8)))),0) -> 9780.498235 | H27: 6482.482982 | I27: =IF(B27="","",IF(D27=0,0,VLOOKUP(HojaMaestra!$C$25,Param!$AJ$8:$AM$9,2,0))) -> 250 | J27: =IF(B27="","",IF(D27=0,0,IF(AND(HojaMaestra!$A$2=2,MOD(T27,2)=0),HojaMaestra!$C$16,0))) -> 0 | L27: =IFERROR(IF(B27="","",K27*VLOOKUP(HojaMaestra!$C$25,Param!$AJ$8:$AM$9,4,0)*(1+Param!$T$8)),"Sin Datos") -> 0 | M27: 1005.747062 | N27: =IFERROR(IF(B27="","",IF(AND(OR(HojaMaestra!$A$2=12,HojaMaestra!$A$2=13),B28<=Param!$EQ$8+1),BU27,IF(B28<=HojaMaestra!$M$19+1,0,BI27))),0) -> 17518.72828 | O27: 1107046.728 | R27: 1.00133333 | S27: 30 | T27: 6 | U27: =IF(B27="","",D27*HLOOKUP($V$7,Param!$C$11:$F$14,2,0)/1000) -> 472.1363854 | V27: =IF(B27="","",D27*HLOOKUP($V$7,Param!$C$11:$F$14,3,0)/1000) -> 118.0340963 | W27: =IF(B27="","",IF($AB$3="SI",D27*HLOOKUP($V$7,Param!$C$11:$F$14,4,0)/1000,0)) -> 334.0587633 | X27: =IF($X$8="Si",$Q$6*Param!$D$9*Param!$D$8/1000+(($Q$6*Param!$D$9*Param!$D$8/1000)*Param!$T$8),0) -> 81.5178168 | Y27: =X27/(1+Param!$T$8) -> 70.27398 | Z27: 994.503225 | AA27: =IFERROR(IF(D27="","",G27+H27+(I27/(1+Param!$T$8))+Z27),0) -> 17473.00168 | AD27: =(IF(B27<=HojaMaestra!$M$19,$D$10,IF($AN$9=0,$D$10,$AN$9))*($F$10*100))/1200 -> 10327.5 | AE27: =IF(B26<=HojaMaestra!$M$19,$AD$10+$U$10+$V$10+$W$10,IF(HojaMaestra!$M$19=0,$AD$10+$U$10+$V$10+$W$10,$AP$9)) -> 11335.95 | AF27: 11.196 | AG27: =(IF($K$9="Prepagos a Capital",IF(B27<=HojaMaestra!$M$19,$D$10,IF($AN$9=0,$D$10,$AN$9)),AK27)*$AF$10/1200)/(1-(1/((1+$AF$10/1200)^IF($K$9="Prepagos a Capital",$AL$10,AM27)))) -> 16871.71052 | AH27: 16953.22834 | AI27: =IFERROR(IF(B27<=HojaMaestra!$M$19,0,IF(D27<(AH27-M27-(D27*(F27*100)/1200)),D27 - ( J27+K27+L27),(AH27-M27-(D27*(F27*100)/1200)))),0) -> 6482.482982 | AK27: =IFERROR(IF(K26>0,D27,IF(B26=HojaMaestra!$M$19,D27,AK26)),0) -> 1215000 | AL27: =IF(K26>0,$AL$10-B26,(AL26-IF(B26=HojaMaestra!$M$19,HojaMaestra!$M$19,0))) -> 120 | AM27: =AL27+HojaMaestra!$M$19 -> 120 | AN27: =IF(AT26=HojaMaestra!$M$19,$D27,0) -> 0 | AP27: =IF(B26=HojaMaestra!$M$19,AD27+U27+V27+W27,0) -> 0 | AR27: =IF(B26=HojaMaestra!$M$19,AT26,0) -> 0 | AT27: 18 | AV27: 31 | AX27: =IFERROR(IF(Param!$EQ$8>=B27,B27,0),0) -> 18 | AY27: =IFERROR(IF(B27="","",IF(HojaMaestra!$M$19>=B26,$AY$10+SUM($G$10:G26)+SUM($M$10:M26)+SUM($I$10:I26),O26)),0) -> 1113529.211 | AZ27: =IF(AX27<>0,SUM($BA$10:BA27),IF(AX26=Param!$EQ$8,AZ26,0)) -> 1215000 | BA27: =IFERROR(IF(B27="","",IF(AX27<>0,HojaMaestra!$M$16/Param!$EQ$8,0)),0) -> 67500 | BC27: =IF(B27="","",M27/(1+Param!$T$8)) -> 867.0233291 | BE27: 0 | BG27: =IFERROR(IF(B27<=HojaMaestra!$M$19,J27+K27,IF(D27<(AI27+J27+K27+L27),D27,(AI27+J27+K27+L27))),0) -> 6482.482982 | BI27: =IFERROR(IF(B27="","",G27+H27+I27+IF(HojaMaestra!$A$2=15,BC27,M27)),0) -> 17518.72828 | BK27: =IFERROR(IF(B27="","",IF(B27<=HojaMaestra!$M$19,O27,AY27)),0) -> 1113529.211 | BM27: =HojaMaestra!$A$4*12 -> 120 | BO27: =IF(B27<=Param!$EQ$8,HojaMaestra!$A$4*12+Param!$EQ$8,HojaMaestra!$A$4*12) -> 138 | BQ27: =IF(A27<=HojaMaestra!$M$19,HojaMaestra!$A$4*12+HojaMaestra!$M$19,HojaMaestra!$A$4*12) -> 120 | BS27: 18 | BU27: 11036.2453 | BW27: 472.1363854 | BX27: 118.0340963 | BY27: 334.0587633 | BZ27: 81.5178168 | CA27: 70.27398 | CB27: 994.503225 | CC27: =IF(D27="","",IF(AX27=0,G27+H27+(I27/(1+Param!$T$8))+CB27,0)) -> 0
A28: 19 | B28: 19 | C28: 2025-06-01 | D28: =IFERROR(IF(B28="","",IF(OR(HojaMaestra!$A$2=12,HojaMaestra!$A$2=13),IF(AZ28<>0,AZ28,AY28),IF(HojaMaestra!$C$18="SI",AY28,AY28))),0) -> 1107046.728 | E28: 15952.86173 | F28: =IF(B28="","",HojaMaestra!$M$14) -> 0.102 | G28: =IFERROR(IF(B28="","",IF(D28=0,0,IF(HojaMaestra!$A$2<>15,D28*F28*AV28/360,(D28*F28*AV28/360)*(1+Param!$T$8)))),0) -> 9409.897187 | H28: 6542.964548 | I28: =IF(B28="","",IF(D28=0,0,VLOOKUP(HojaMaestra!$C$25,Param!$AJ$8:$AM$9,2,0))) -> 250 | J28: =IF(B28="","",IF(D28=0,0,IF(AND(HojaMaestra!$A$2=2,MOD(T28,2)=0),HojaMaestra!$C$16,0))) -> 0 | L28: =IFERROR(IF(B28="","",K28*VLOOKUP(HojaMaestra!$C$25,Param!$AJ$8:$AM$9,4,0)*(1+Param!$T$8)),"Sin Datos") -> 0 | M28: 1000.366601 | N28: =IFERROR(IF(B28="","",IF(AND(OR(HojaMaestra!$A$2=12,HojaMaestra!$A$2=13),B29<=Param!$EQ$8+1),BU28,IF(B29<=HojaMaestra!$M$19+1,0,BI28))),0) -> 17203.22834 | O28: 1100503.763 | R28: 1.00133333 | S28: 31 | T28: 7 | U28: =IF(B28="","",D28*HLOOKUP($V$7,Param!$C$11:$F$14,2,0)/1000) -> 469.3878126 | V28: =IF(B28="","",D28*HLOOKUP($V$7,Param!$C$11:$F$14,3,0)/1000) -> 117.3469532 | W28: =IF(B28="","",IF($AB$3="SI",D28*HLOOKUP($V$7,Param!$C$11:$F$14,4,0)/1000,0)) -> 332.1140184 | X28: =IF($X$8="Si",$Q$6*Param!$D$9*Param!$D$8/1000+(($Q$6*Param!$D$9*Param!$D$8/1000)*Param!$T$8),0) -> 81.5178168 | Y28: =X28/(1+Param!$T$8) -> 70.27398 | Z28: 989.1227641 | AA28: =IFERROR(IF(D28="","",G28+H28+(I28/(1+Param!$T$8))+Z28),0) -> 17157.50174 | AD28: =(IF(B28<=HojaMaestra!$M$19,$D$10,IF($AN$9=0,$D$10,$AN$9))*($F$10*100))/1200 -> 10327.5 | AE28: =IF(B27<=HojaMaestra!$M$19,$AD$10+$U$10+$V$10+$W$10,IF(HojaMaestra!$M$19=0,$AD$10+$U$10+$V$10+$W$10,$AP$9)) -> 11335.95 | AF28: 11.196 | AG28: =(IF($K$9="Prepagos a Capital",IF(B28<=HojaMaestra!$M$19,$D$10,IF($AN$9=0,$D$10,$AN$9)),AK28)*$AF$10/1200)/(1-(1/((1+$AF$10/1200)^IF($K$9="Prepagos a Capital",$AL$10,AM28)))) -> 16871.71052 | AH28: 16953.22834 | AI28: =IFERROR(IF(B28<=HojaMaestra!$M$19,0,IF(D28<(AH28-M28-(D28*(F28*100)/1200)),D28 - ( J28+K28+L28),(AH28-M28-(D28*(F28*100)/1200)))),0) -> 6542.964548 | AK28: =IFERROR(IF(K27>0,D28,IF(B27=HojaMaestra!$M$19,D28,AK27)),0) -> 1215000 | AL28: =IF(K27>0,$AL$10-B27,(AL27-IF(B27=HojaMaestra!$M$19,HojaMaestra!$M$19,0))) -> 120 | AM28: =AL28+HojaMaestra!$M$19 -> 120 | AN28: =IF(AT27=HojaMaestra!$M$19,$D28,0) -> 0 | AP28: =IF(B27=HojaMaestra!$M$19,AD28+U28+V28+W28,0) -> 0 | AR28: =IF(B27=HojaMaestra!$M$19,AT27,0) -> 0 | AT28: 19 | AV28: 30 | AX28: =IFERROR(IF(Param!$EQ$8>=B28,B28,0),0) -> 0 | AY28: =IFERROR(IF(B28="","",IF(HojaMaestra!$M$19>=B27,$AY$10+SUM($G$10:G27)+SUM($M$10:M27)+SUM($I$10:I27),O27)),0) -> 1107046.728 | AZ28: =IF(AX28<>0,SUM($BA$10:BA28),IF(AX27=Param!$EQ$8,AZ27,0)) -> 1215000 | BA28: =IFERROR(IF(B28="","",IF(AX28<>0,HojaMaestra!$M$16/Param!$EQ$8,0)),0) -> 0 | BC28: =IF(B28="","",M28/(1+Param!$T$8)) -> 862.3850008 | BE28: 0 | BG28: =IFERROR(IF(B28<=HojaMaestra!$M$19,J28+K28,IF(D28<(AI28+J28+K28+L28),D28,(AI28+J28+K28+L28))),0) -> 6542.964548 | BI28: =IFERROR(IF(B28="","",G28+H28+I28+IF(HojaMaestra!$A$2=15,BC28,M28)),0) -> 17203.22834 | BK28: =IFERROR(IF(B28="","",IF(B28<=HojaMaestra!$M$19,O28,AY28)),0) -> 1107046.728 | BM28: =HojaMaestra!$A$4*12 -> 120 | BO28: =IF(B28<=Param!$EQ$8,HojaMaestra!$A$4*12+Param!$EQ$8,HojaMaestra!$A$4*12) -> 120 | BQ28: =IF(A28<=HojaMaestra!$M$19,HojaMaestra!$A$4*12+HojaMaestra!$M$19,HojaMaestra!$A$4*12) -> 120 | BS28: 19 | BU28: 0 | BW28: 469.3878126 | BX28: 117.3469532 | BY28: 332.1140184 | BZ28: 81.5178168 | CA28: 70.27398 | CB28: 989.1227641 | CC28: =IF(D28="","",IF(AX28=0,G28+H28+(I28/(1+Param!$T$8))+CB28,0)) -> 17157.50174
A29: 20 | B29: 20 | C29: 2025-07-01 | D29: =IFERROR(IF(B29="","",IF(OR(HojaMaestra!$A$2=12,HojaMaestra!$A$2=13),IF(AZ29<>0,AZ29,AY29),IF(HojaMaestra!$C$18="SI",AY29,AY29))),0) -> 1100503.763 | E29: 16270.1018 | F29: =IF(B29="","",HojaMaestra!$M$14) -> 0.102 | G29: =IFERROR(IF(B29="","",IF(D29=0,0,IF(HojaMaestra!$A$2<>15,D29*F29*AV29/360,(D29*F29*AV29/360)*(1+Param!$T$8)))),0) -> 9666.091388 | H29: 6604.010407 | I29: =IF(B29="","",IF(D29=0,0,VLOOKUP(HojaMaestra!$C$25,Param!$AJ$8:$AM$9,2,0))) -> 250 | J29: =IF(B29="","",IF(D29=0,0,IF(AND(HojaMaestra!$A$2=2,MOD(T29,2)=0),HojaMaestra!$C$16,0))) -> 0 | L29: =IFERROR(IF(B29="","",K29*VLOOKUP(HojaMaestra!$C$25,Param!$AJ$8:$AM$9,4,0)*(1+Param!$T$8)),"Sin Datos") -> 0 | M29: 994.9359403 | N29: =IFERROR(IF(B29="","",IF(AND(OR(HojaMaestra!$A$2=12,HojaMaestra!$A$2=13),B30<=Param!$EQ$8+1),BU29,IF(B30<=HojaMaestra!$M$19+1,0,BI29))),0) -> 17515.03774 | O29: 1093899.753 | R29: 1.00133333 | S29: 31 | T29: 8 | U29: =IF(B29="","",D29*HLOOKUP($V$7,Param!$C$11:$F$14,2,0)/1000) -> 466.6135956 | V29: =IF(B29="","",D29*HLOOKUP($V$7,Param!$C$11:$F$14,3,0)/1000) -> 116.6533989 | W29: =IF(B29="","",IF($AB$3="SI",D29*HLOOKUP($V$7,Param!$C$11:$F$14,4,0)/1000,0)) -> 330.151129 | X29: =IF($X$8="Si",$Q$6*Param!$D$9*Param!$D$8/1000+(($Q$6*Param!$D$9*Param!$D$8/1000)*Param!$T$8),0) -> 81.5178168 | Y29: =X29/(1+Param!$T$8) -> 70.27398 | Z29: 983.6921035 | AA29: =IFERROR(IF(D29="","",G29+H29+(I29/(1+Param!$T$8))+Z29),0) -> 17469.31114 | AD29: =(IF(B29<=HojaMaestra!$M$19,$D$10,IF($AN$9=0,$D$10,$AN$9))*($F$10*100))/1200 -> 10327.5 | AE29: =IF(B28<=HojaMaestra!$M$19,$AD$10+$U$10+$V$10+$W$10,IF(HojaMaestra!$M$19=0,$AD$10+$U$10+$V$10+$W$10,$AP$9)) -> 11335.95 | AF29: 11.196 | AG29: =(IF($K$9="Prepagos a Capital",IF(B29<=HojaMaestra!$M$19,$D$10,IF($AN$9=0,$D$10,$AN$9)),AK29)*$AF$10/1200)/(1-(1/((1+$AF$10/1200)^IF($K$9="Prepagos a Capital",$AL$10,AM29)))) -> 16871.71052 | AH29: 16953.22834 | AI29: =IFERROR(IF(B29<=HojaMaestra!$M$19,0,IF(D29<(AH29-M29-(D29*(F29*100)/1200)),D29 - ( J29+K29+L29),(AH29-M29-(D29*(F29*100)/1200)))),0) -> 6604.010407 | AK29: =IFERROR(IF(K28>0,D29,IF(B28=HojaMaestra!$M$19,D29,AK28)),0) -> 1215000 | AL29: =IF(K28>0,$AL$10-B28,(AL28-IF(B28=HojaMaestra!$M$19,HojaMaestra!$M$19,0))) -> 120 | AM29: =AL29+HojaMaestra!$M$19 -> 120 | AN29: =IF(AT28=HojaMaestra!$M$19,$D29,0) -> 0 | AP29: =IF(B28=HojaMaestra!$M$19,AD29+U29+V29+W29,0) -> 0 | AR29: =IF(B28=HojaMaestra!$M$19,AT28,0) -> 0 | AT29: 20 | AV29: 31 | AX29: =IFERROR(IF(Param!$EQ$8>=B29,B29,0),0) -> 0 | AY29: =IFERROR(IF(B29="","",IF(HojaMaestra!$M$19>=B28,$AY$10+SUM($G$10:G28)+SUM($M$10:M28)+SUM($I$10:I28),O28)),0) -> 1100503.763 | AZ29: =IF(AX29<>0,SUM($BA$10:BA29),IF(AX28=Param!$EQ$8,AZ28,0)) -> 0 | BA29: =IFERROR(IF(B29="","",IF(AX29<>0,HojaMaestra!$M$16/Param!$EQ$8,0)),0) -> 0 | BC29: =IF(B29="","",M29/(1+Param!$T$8)) -> 857.7033968 | BE29: 0 | BG29: =IFERROR(IF(B29<=HojaMaestra!$M$19,J29+K29,IF(D29<(AI29+J29+K29+L29),D29,(AI29+J29+K29+L29))),0) -> 6604.010407 | BI29: =IFERROR(IF(B29="","",G29+H29+I29+IF(HojaMaestra!$A$2=15,BC29,M29)),0) -> 17515.03774 | BK29: =IFERROR(IF(B29="","",IF(B29<=HojaMaestra!$M$19,O29,AY29)),0) -> 1100503.763 | BM29: =HojaMaestra!$A$4*12 -> 120 | BO29: =IF(B29<=Param!$EQ$8,HojaMaestra!$A$4*12+Param!$EQ$8,HojaMaestra!$A$4*12) -> 120 | BQ29: =IF(A29<=HojaMaestra!$M$19,HojaMaestra!$A$4*12+HojaMaestra!$M$19,HojaMaestra!$A$4*12) -> 120 | BS29: 20 | BU29: 0 | BW29: 466.6135956 | BX29: 116.6533989 | BY29: 330.151129 | BZ29: 81.5178168 | CA29: 70.27398 | CB29: 983.6921035 | CC29: =IF(D29="","",IF(AX29=0,G29+H29+(I29/(1+Param!$T$8))+CB29,0)) -> 17469.31114
A30: 21 | B30: 21 | C30: 2025-08-01 | D30: =IFERROR(IF(B30="","",IF(OR(HojaMaestra!$A$2=12,HojaMaestra!$A$2=13),IF(AZ30<>0,AZ30,AY30),IF(HojaMaestra!$C$18="SI",AY30,AY30))),0) -> 1093899.753 | E30: 16273.71199 | F30: =IF(B30="","",HojaMaestra!$M$14) -> 0.102 | G30: =IFERROR(IF(B30="","",IF(D30=0,0,IF(HojaMaestra!$A$2<>15,D30*F30*AV30/360,(D30*F30*AV30/360)*(1+Param!$T$8)))),0) -> 9608.086163 | H30: 6665.625825 | I30: =IF(B30="","",IF(D30=0,0,VLOOKUP(HojaMaestra!$C$25,Param!$AJ$8:$AM$9,2,0))) -> 250 | J30: =IF(B30="","",IF(D30=0,0,IF(AND(HojaMaestra!$A$2=2,MOD(T30,2)=0),HojaMaestra!$C$16,0))) -> 0 | L30: =IFERROR(IF(B30="","",K30*VLOOKUP(HojaMaestra!$C$25,Param!$AJ$8:$AM$9,4,0)*(1+Param!$T$8)),"Sin Datos") -> 0 | M30: 989.4546117 | N30: =IFERROR(IF(B30="","",IF(AND(OR(HojaMaestra!$A$2=12,HojaMaestra!$A$2=13),B31<=Param!$EQ$8+1),BU30,IF(B31<=HojaMaestra!$M$19+1,0,BI30))),0) -> 17513.1666 | O30: 1087234.127 | R30: 1.00133333 | S30: 30 | T30: 9 | U30: =IF(B30="","",D30*HLOOKUP($V$7,Param!$C$11:$F$14,2,0)/1000) -> 463.8134952 | V30: =IF(B30="","",D30*HLOOKUP($V$7,Param!$C$11:$F$14,3,0)/1000) -> 115.9533738 | W30: =IF(B30="","",IF($AB$3="SI",D30*HLOOKUP($V$7,Param!$C$11:$F$14,4,0)/1000,0)) -> 328.1699259 | X30: =IF($X$8="Si",$Q$6*Param!$D$9*Param!$D$8/1000+(($Q$6*Param!$D$9*Param!$D$8/1000)*Param!$T$8),0) -> 81.5178168 | Y30: =X30/(1+Param!$T$8) -> 70.27398 | Z30: 978.2107749 | AA30: =IFERROR(IF(D30="","",G30+H30+(I30/(1+Param!$T$8))+Z30),0) -> 17467.44 | AD30: =(IF(B30<=HojaMaestra!$M$19,$D$10,IF($AN$9=0,$D$10,$AN$9))*($F$10*100))/1200 -> 10327.5 | AE30: =IF(B29<=HojaMaestra!$M$19,$AD$10+$U$10+$V$10+$W$10,IF(HojaMaestra!$M$19=0,$AD$10+$U$10+$V$10+$W$10,$AP$9)) -> 11335.95 | AF30: 11.196 | AG30: =(IF($K$9="Prepagos a Capital",IF(B30<=HojaMaestra!$M$19,$D$10,IF($AN$9=0,$D$10,$AN$9)),AK30)*$AF$10/1200)/(1-(1/((1+$AF$10/1200)^IF($K$9="Prepagos a Capital",$AL$10,AM30)))) -> 16871.71052 | AH30: 16953.22834 | AI30: =IFERROR(IF(B30<=HojaMaestra!$M$19,0,IF(D30<(AH30-M30-(D30*(F30*100)/1200)),D30 - ( J30+K30+L30),(AH30-M30-(D30*(F30*100)/1200)))),0) -> 6665.625825 | AK30: =IFERROR(IF(K29>0,D30,IF(B29=HojaMaestra!$M$19,D30,AK29)),0) -> 1215000 | AL30: =IF(K29>0,$AL$10-B29,(AL29-IF(B29=HojaMaestra!$M$19,HojaMaestra!$M$19,0))) -> 120 | AM30: =AL30+HojaMaestra!$M$19 -> 120 | AN30: =IF(AT29=HojaMaestra!$M$19,$D30,0) -> 0 | AP30: =IF(B29=HojaMaestra!$M$19,AD30+U30+V30+W30,0) -> 0 | AR30: =IF(B29=HojaMaestra!$M$19,AT29,0) -> 0 | AT30: 21 | AV30: 31 | AX30: =IFERROR(IF(Param!$EQ$8>=B30,B30,0),0) -> 0 | AY30: =IFERROR(IF(B30="","",IF(HojaMaestra!$M$19>=B29,$AY$10+SUM($G$10:G29)+SUM($M$10:M29)+SUM($I$10:I29),O29)),0) -> 1093899.753 | AZ30: =IF(AX30<>0,SUM($BA$10:BA30),IF(AX29=Param!$EQ$8,AZ29,0)) -> 0 | BA30: =IFERROR(IF(B30="","",IF(AX30<>0,HojaMaestra!$M$16/Param!$EQ$8,0)),0) -> 0 | BC30: =IF(B30="","",M30/(1+Param!$T$8)) -> 852.9781135 | BE30: 0 | BG30: =IFERROR(IF(B30<=HojaMaestra!$M$19,J30+K30,IF(D30<(AI30+J30+K30+L30),D30,(AI30+J30+K30+L30))),0) -> 6665.625825 | BI30: =IFERROR(IF(B30="","",G30+H30+I30+IF(HojaMaestra!$A$2=15,BC30,M30)),0) -> 17513.1666 | BK30: =IFERROR(IF(B30="","",IF(B30<=HojaMaestra!$M$19,O30,AY30)),0) -> 1093899.753 | BM30: =HojaMaestra!$A$4*12 -> 120 | BO30: =IF(B30<=Param!$EQ$8,HojaMaestra!$A$4*12+Param!$EQ$8,HojaMaestra!$A$4*12) -> 120 | BQ30: =IF(A30<=HojaMaestra!$M$19,HojaMaestra!$A$4*12+HojaMaestra!$M$19,HojaMaestra!$A$4*12) -> 120 | BS30: 21 | BU30: 0 | BW30: 463.8134952 | BX30: 115.9533738 | BY30: 328.1699259 | BZ30: 81.5178168 | CA30: 70.27398 | CB30: 978.2107749 | CC30: =IF(D30="","",IF(AX30=0,G30+H30+(I30/(1+Param!$T$8))+CB30,0)) -> 17467.44
A31: 22 | B31: 22 | C31: 2025-09-01 | D31: =IFERROR(IF(B31="","",IF(OR(HojaMaestra!$A$2=12,HojaMaestra!$A$2=13),IF(AZ31<>0,AZ31,AY31),IF(HojaMaestra!$C$18="SI",AY31,AY31))),0) -> 1087234.127 | E31: 15969.30619 | F31: =IF(B31="","",HojaMaestra!$M$14) -> 0.102 | G31: =IFERROR(IF(B31="","",IF(D31=0,0,IF(HojaMaestra!$A$2<>15,D31*F31*AV31/360,(D31*F31*AV31/360)*(1+Param!$T$8)))),0) -> 9241.49008 | H31: 6727.816114 | I31: =IF(B31="","",IF(D31=0,0,VLOOKUP(HojaMaestra!$C$25,Param!$AJ$8:$AM$9,2,0))) -> 250 | J31: =IF(B31="","",IF(D31=0,0,IF(AND(HojaMaestra!$A$2=2,MOD(T31,2)=0),HojaMaestra!$C$16,0))) -> 0 | L31: =IFERROR(IF(B31="","",K31*VLOOKUP(HojaMaestra!$C$25,Param!$AJ$8:$AM$9,4,0)*(1+Param!$T$8)),"Sin Datos") -> 0 | M31: 983.9221423 | N31: =IFERROR(IF(B31="","",IF(AND(OR(HojaMaestra!$A$2=12,HojaMaestra!$A$2=13),B32<=Param!$EQ$8+1),BU31,IF(B32<=HojaMaestra!$M$19+1,0,BI31))),0) -> 17203.22834 | O31: 1080506.311 | R31: 1.00133333 | S31: 31 | T31: 10 | U31: =IF(B31="","",D31*HLOOKUP($V$7,Param!$C$11:$F$14,2,0)/1000) -> 460.9872699 | V31: =IF(B31="","",D31*HLOOKUP($V$7,Param!$C$11:$F$14,3,0)/1000) -> 115.2468175 | W31: =IF(B31="","",IF($AB$3="SI",D31*HLOOKUP($V$7,Param!$C$11:$F$14,4,0)/1000,0)) -> 326.1702381 | X31: =IF($X$8="Si",$Q$6*Param!$D$9*Param!$D$8/1000+(($Q$6*Param!$D$9*Param!$D$8/1000)*Param!$T$8),0) -> 81.5178168 | Y31: =X31/(1+Param!$T$8) -> 70.27398 | Z31: 972.6783055 | AA31: =IFERROR(IF(D31="","",G31+H31+(I31/(1+Param!$T$8))+Z31),0) -> 17157.50174 | AD31: =(IF(B31<=HojaMaestra!$M$19,$D$10,IF($AN$9=0,$D$10,$AN$9))*($F$10*100))/1200 -> 10327.5 | AE31: =IF(B30<=HojaMaestra!$M$19,$AD$10+$U$10+$V$10+$W$10,IF(HojaMaestra!$M$19=0,$AD$10+$U$10+$V$10+$W$10,$AP$9)) -> 11335.95 | AF31: 11.196 | AG31: =(IF($K$9="Prepagos a Capital",IF(B31<=HojaMaestra!$M$19,$D$10,IF($AN$9=0,$D$10,$AN$9)),AK31)*$AF$10/1200)/(1-(1/((1+$AF$10/1200)^IF($K$9="Prepagos a Capital",$AL$10,AM31)))) -> 16871.71052 | AH31: 16953.22834 | AI31: =IFERROR(IF(B31<=HojaMaestra!$M$19,0,IF(D31<(AH31-M31-(D31*(F31*100)/1200)),D31 - ( J31+K31+L31),(AH31-M31-(D31*(F31*100)/1200)))),0) -> 6727.816114 | AK31: =IFERROR(IF(K30>0,D31,IF(B30=HojaMaestra!$M$19,D31,AK30)),0) -> 1215000 | AL31: =IF(K30>0,$AL$10-B30,(AL30-IF(B30=HojaMaestra!$M$19,HojaMaestra!$M$19,0))) -> 120 | AM31: =AL31+HojaMaestra!$M$19 -> 120 | AN31: =IF(AT30=HojaMaestra!$M$19,$D31,0) -> 0 | AP31: =IF(B30=HojaMaestra!$M$19,AD31+U31+V31+W31,0) -> 0 | AR31: =IF(B30=HojaMaestra!$M$19,AT30,0) -> 0 | AT31: 22 | AV31: 30 | AX31: =IFERROR(IF(Param!$EQ$8>=B31,B31,0),0) -> 0 | AY31: =IFERROR(IF(B31="","",IF(HojaMaestra!$M$19>=B30,$AY$10+SUM($G$10:G30)+SUM($M$10:M30)+SUM($I$10:I30),O30)),0) -> 1087234.127 | AZ31: =IF(AX31<>0,SUM($BA$10:BA31),IF(AX30=Param!$EQ$8,AZ30,0)) -> 0 | BA31: =IFERROR(IF(B31="","",IF(AX31<>0,HojaMaestra!$M$16/Param!$EQ$8,0)),0) -> 0 | BC31: =IF(B31="","",M31/(1+Param!$T$8)) -> 848.2087433 | BE31: 0 | BG31: =IFERROR(IF(B31<=HojaMaestra!$M$19,J31+K31,IF(D31<(AI31+J31+K31+L31),D31,(AI31+J31+K31+L31))),0) -> 6727.816114 | BI31: =IFERROR(IF(B31="","",G31+H31+I31+IF(HojaMaestra!$A$2=15,BC31,M31)),0) -> 17203.22834 | BK31: =IFERROR(IF(B31="","",IF(B31<=HojaMaestra!$M$19,O31,AY31)),0) -> 1087234.127 | BM31: =HojaMaestra!$A$4*12 -> 120 | BO31: =IF(B31<=Param!$EQ$8,HojaMaestra!$A$4*12+Param!$EQ$8,HojaMaestra!$A$4*12) -> 120 | BQ31: =IF(A31<=HojaMaestra!$M$19,HojaMaestra!$A$4*12+HojaMaestra!$M$19,HojaMaestra!$A$4*12) -> 120 | BS31: 22 | BU31: 0 | BW31: 460.9872699 | BX31: 115.2468175 | BY31: 326.1702381 | BZ31: 81.5178168 | CA31: 70.27398 | CB31: 972.6783055 | CC31: =IF(D31="","",IF(AX31=0,G31+H31+(I31/(1+Param!$T$8))+CB31,0)) -> 17157.50174
A32: 23 | B32: 23 | C32: 2025-10-01 | D32: =IFERROR(IF(B32="","",IF(OR(HojaMaestra!$A$2=12,HojaMaestra!$A$2=13),IF(AZ32<>0,AZ32,AY32),IF(HojaMaestra!$C$18="SI",AY32,AY32))),0) -> 1080506.311 | E32: 16281.03374 | F32: =IF(B32="","",HojaMaestra!$M$14) -> 0.102 | G32: =IFERROR(IF(B32="","",IF(D32=0,0,IF(HojaMaestra!$A$2<>15,D32*F32*AV32/360,(D32*F32*AV32/360)*(1+Param!$T$8)))),0) -> 9490.447098 | H32: 6790.586638 | I32: =IF(B32="","",IF(D32=0,0,VLOOKUP(HojaMaestra!$C$25,Param!$AJ$8:$AM$9,2,0))) -> 250 | J32: =IF(B32="","",IF(D32=0,0,IF(AND(HojaMaestra!$A$2=2,MOD(T32,2)=0),HojaMaestra!$C$16,0))) -> 0 | L32: =IFERROR(IF(B32="","",K32*VLOOKUP(HojaMaestra!$C$25,Param!$AJ$8:$AM$9,4,0)*(1+Param!$T$8)),"Sin Datos") -> 0 | M32: 978.3380549 | N32: =IFERROR(IF(B32="","",IF(AND(OR(HojaMaestra!$A$2=12,HojaMaestra!$A$2=13),B33<=Param!$EQ$8+1),BU32,IF(B33<=HojaMaestra!$M$19+1,0,BI32))),0) -> 17509.37179 | O32: 1073715.724 | R32: 1.00133333 | S32: 30 | T32: 11 | U32: =IF(B32="","",D32*HLOOKUP($V$7,Param!$C$11:$F$14,2,0)/1000) -> 458.1346758 | V32: =IF(B32="","",D32*HLOOKUP($V$7,Param!$C$11:$F$14,3,0)/1000) -> 114.533669 | W32: =IF(B32="","",IF($AB$3="SI",D32*HLOOKUP($V$7,Param!$C$11:$F$14,4,0)/1000,0)) -> 324.1518933 | X32: =IF($X$8="Si",$Q$6*Param!$D$9*Param!$D$8/1000+(($Q$6*Param!$D$9*Param!$D$8/1000)*Param!$T$8),0) -> 81.5178168 | Y32: =X32/(1+Param!$T$8) -> 70.27398 | Z32: 967.0942181 | AA32: =IFERROR(IF(D32="","",G32+H32+(I32/(1+Param!$T$8))+Z32),0) -> 17463.6452 | AD32: =(IF(B32<=HojaMaestra!$M$19,$D$10,IF($AN$9=0,$D$10,$AN$9))*($F$10*100))/1200 -> 10327.5 | AE32: =IF(B31<=HojaMaestra!$M$19,$AD$10+$U$10+$V$10+$W$10,IF(HojaMaestra!$M$19=0,$AD$10+$U$10+$V$10+$W$10,$AP$9)) -> 11335.95 | AF32: 11.196 | AG32: =(IF($K$9="Prepagos a Capital",IF(B32<=HojaMaestra!$M$19,$D$10,IF($AN$9=0,$D$10,$AN$9)),AK32)*$AF$10/1200)/(1-(1/((1+$AF$10/1200)^IF($K$9="Prepagos a Capital",$AL$10,AM32)))) -> 16871.71052 | AH32: 16953.22834 | AI32: =IFERROR(IF(B32<=HojaMaestra!$M$19,0,IF(D32<(AH32-M32-(D32*(F32*100)/1200)),D32 - ( J32+K32+L32),(AH32-M32-(D32*(F32*100)/1200)))),0) -> 6790.586638 | AK32: =IFERROR(IF(K31>0,D32,IF(B31=HojaMaestra!$M$19,D32,AK31)),0) -> 1215000 | AL32: =IF(K31>0,$AL$10-B31,(AL31-IF(B31=HojaMaestra!$M$19,HojaMaestra!$M$19,0))) -> 120 | AM32: =AL32+HojaMaestra!$M$19 -> 120 | AN32: =IF(AT31=HojaMaestra!$M$19,$D32,0) -> 0 | AP32: =IF(B31=HojaMaestra!$M$19,AD32+U32+V32+W32,0) -> 0 | AR32: =IF(B31=HojaMaestra!$M$19,AT31,0) -> 0 | AT32: 23 | AV32: 31 | AX32: =IFERROR(IF(Param!$EQ$8>=B32,B32,0),0) -> 0 | AY32: =IFERROR(IF(B32="","",IF(HojaMaestra!$M$19>=B31,$AY$10+SUM($G$10:G31)+SUM($M$10:M31)+SUM($I$10:I31),O31)),0) -> 1080506.311 | AZ32: =IF(AX32<>0,SUM($BA$10:BA32),IF(AX31=Param!$EQ$8,AZ31,0)) -> 0 | BA32: =IFERROR(IF(B32="","",IF(AX32<>0,HojaMaestra!$M$16/Param!$EQ$8,0)),0) -> 0 | BC32: =IF(B32="","",M32/(1+Param!$T$8)) -> 843.3948749 | BE32: 0 | BG32: =IFERROR(IF(B32<=HojaMaestra!$M$19,J32+K32,IF(D32<(AI32+J32+K32+L32),D32,(AI32+J32+K32+L32))),0) -> 6790.586638 | BI32: =IFERROR(IF(B32="","",G32+H32+I32+IF(HojaMaestra!$A$2=15,BC32,M32)),0) -> 17509.37179 | BK32: =IFERROR(IF(B32="","",IF(B32<=HojaMaestra!$M$19,O32,AY32)),0) -> 1080506.311 | BM32: =HojaMaestra!$A$4*12 -> 120 | BO32: =IF(B32<=Param!$EQ$8,HojaMaestra!$A$4*12+Param!$EQ$8,HojaMaestra!$A$4*12) -> 120 | BQ32: =IF(A32<=HojaMaestra!$M$19,HojaMaestra!$A$4*12+HojaMaestra!$M$19,HojaMaestra!$A$4*12) -> 120 | BS32: 23 | BU32: 0 | BW32: 458.1346758 | BX32: 114.533669 | BY32: 324.1518933 | BZ32: 81.5178168 | CA32: 70.27398 | CB32: 967.0942181 | CC32: =IF(D32="","",IF(AX32=0,G32+H32+(I32/(1+Param!$T$8))+CB32,0)) -> 17463.6452
A33: 24 | B33: 24 | C33: 2025-11-01 | D33: =IFERROR(IF(B33="","",IF(OR(HojaMaestra!$A$2=12,HojaMaestra!$A$2=13),IF(AZ33<>0,AZ33,AY33),IF(HojaMaestra!$C$18="SI",AY33,AY33))),0) -> 1073715.724 | E33: 15980.52647 | F33: =IF(B33="","",HojaMaestra!$M$14) -> 0.102 | G33: =IFERROR(IF(B33="","",IF(D33=0,0,IF(HojaMaestra!$A$2<>15,D33*F33*AV33/360,(D33*F33*AV33/360)*(1+Param!$T$8)))),0) -> 9126.583657 | H33: 6853.942811 | I33: =IF(B33="","",IF(D33=0,0,VLOOKUP(HojaMaestra!$C$25,Param!$AJ$8:$AM$9,2,0))) -> 250 | J33: =IF(B33="","",IF(D33=0,0,IF(AND(HojaMaestra!$A$2=2,MOD(T33,2)=0),HojaMaestra!$C$16,0))) -> 0 | L33: =IFERROR(IF(B33="","",K33*VLOOKUP(HojaMaestra!$C$25,Param!$AJ$8:$AM$9,4,0)*(1+Param!$T$8)),"Sin Datos") -> 0 | M33: 972.701868 | N33: =IFERROR(IF(B33="","",IF(AND(OR(HojaMaestra!$A$2=12,HojaMaestra!$A$2=13),B34<=Param!$EQ$8+1),BU33,IF(B34<=HojaMaestra!$M$19+1,0,BI33))),0) -> 17203.22834 | O33: 1066861.782 | P33: -0.01850970995 | R33: 1.00133333 | S33: 31 | T33: 12 | U33: =IF(B33="","",D33*HLOOKUP($V$7,Param!$C$11:$F$14,2,0)/1000) -> 455.2554671 | V33: =IF(B33="","",D33*HLOOKUP($V$7,Param!$C$11:$F$14,3,0)/1000) -> 113.8138668 | W33: =IF(B33="","",IF($AB$3="SI",D33*HLOOKUP($V$7,Param!$C$11:$F$14,4,0)/1000,0)) -> 322.1147173 | X33: =IF($X$8="Si",$Q$6*Param!$D$9*Param!$D$8/1000+(($Q$6*Param!$D$9*Param!$D$8/1000)*Param!$T$8),0) -> 81.5178168 | Y33: =X33/(1+Param!$T$8) -> 70.27398 | Z33: 961.4580312 | AA33: =IFERROR(IF(D33="","",G33+H33+(I33/(1+Param!$T$8))+Z33),0) -> 17157.50174 | AD33: =(IF(B33<=HojaMaestra!$M$19,$D$10,IF($AN$9=0,$D$10,$AN$9))*($F$10*100))/1200 -> 10327.5 | AE33: =IF(B32<=HojaMaestra!$M$19,$AD$10+$U$10+$V$10+$W$10,IF(HojaMaestra!$M$19=0,$AD$10+$U$10+$V$10+$W$10,$AP$9)) -> 11335.95 | AF33: 11.196 | AG33: =(IF($K$9="Prepagos a Capital",IF(B33<=HojaMaestra!$M$19,$D$10,IF($AN$9=0,$D$10,$AN$9)),AK33)*$AF$10/1200)/(1-(1/((1+$AF$10/1200)^IF($K$9="Prepagos a Capital",$AL$10,AM33)))) -> 16871.71052 | AH33: 16953.22834 | AI33: =IFERROR(IF(B33<=HojaMaestra!$M$19,0,IF(D33<(AH33-M33-(D33*(F33*100)/1200)),D33 - ( J33+K33+L33),(AH33-M33-(D33*(F33*100)/1200)))),0) -> 6853.942811 | AK33: =IFERROR(IF(K32>0,D33,IF(B32=HojaMaestra!$M$19,D33,AK32)),0) -> 1215000 | AL33: =IF(K32>0,$AL$10-B32,(AL32-IF(B32=HojaMaestra!$M$19,HojaMaestra!$M$19,0))) -> 120 | AM33: =AL33+HojaMaestra!$M$19 -> 120 | AN33: =IF(AT32=HojaMaestra!$M$19,$D33,0) -> 0 | AP33: =IF(B32=HojaMaestra!$M$19,AD33+U33+V33+W33,0) -> 0 | AR33: =IF(B32=HojaMaestra!$M$19,AT32,0) -> 0 | AT33: 24 | AV33: 30 | AX33: =IFERROR(IF(Param!$EQ$8>=B33,B33,0),0) -> 0 | AY33: =IFERROR(IF(B33="","",IF(HojaMaestra!$M$19>=B32,$AY$10+SUM($G$10:G32)+SUM($M$10:M32)+SUM($I$10:I32),O32)),0) -> 1073715.724 | AZ33: =IF(AX33<>0,SUM($BA$10:BA33),IF(AX32=Param!$EQ$8,AZ32,0)) -> 0 | BA33: =IFERROR(IF(B33="","",IF(AX33<>0,HojaMaestra!$M$16/Param!$EQ$8,0)),0) -> 0 | BC33: =IF(B33="","",M33/(1+Param!$T$8)) -> 838.5360931 | BE33: 0 | BG33: =IFERROR(IF(B33<=HojaMaestra!$M$19,J33+K33,IF(D33<(AI33+J33+K33+L33),D33,(AI33+J33+K33+L33))),0) -> 6853.942811 | BI33: =IFERROR(IF(B33="","",G33+H33+I33+IF(HojaMaestra!$A$2=15,BC33,M33)),0) -> 17203.22834 | BK33: =IFERROR(IF(B33="","",IF(B33<=HojaMaestra!$M$19,O33,AY33)),0) -> 1073715.724 | BM33: =HojaMaestra!$A$4*12 -> 120 | BO33: =IF(B33<=Param!$EQ$8,HojaMaestra!$A$4*12+Param!$EQ$8,HojaMaestra!$A$4*12) -> 120 | BQ33: =IF(A33<=HojaMaestra!$M$19,HojaMaestra!$A$4*12+HojaMaestra!$M$19,HojaMaestra!$A$4*12) -> 120 | BS33: 24 | BU33: 0 | BW33: 455.2554671 | BX33: 113.8138668 | BY33: 322.1147173 | BZ33: 81.5178168 | CA33: 70.27398 | CB33: 961.4580312 | CC33: =IF(D33="","",IF(AX33=0,G33+H33+(I33/(1+Param!$T$8))+CB33,0)) -> 17157.50174
A34: 25 | B34: 25 | C34: 2025-12-01 | D34: =IFERROR(IF(B34="","",IF(OR(HojaMaestra!$A$2=12,HojaMaestra!$A$2=13),IF(AZ34<>0,AZ34,AY34),IF(HojaMaestra!$C$18="SI",AY34,AY34))),0) -> 1066861.782 | E34: 16288.49275 | F34: =IF(B34="","",HojaMaestra!$M$14) -> 0.102 | G34: =IFERROR(IF(B34="","",IF(D34=0,0,IF(HojaMaestra!$A$2<>15,D34*F34*AV34/360,(D34*F34*AV34/360)*(1+Param!$T$8)))),0) -> 9370.602648 | H34: 6917.890098 | I34: =IF(B34="","",IF(D34=0,0,VLOOKUP(HojaMaestra!$C$25,Param!$AJ$8:$AM$9,2,0))) -> 250 | J34: =IF(B34="","",IF(D34=0,0,IF(AND(HojaMaestra!$A$2=2,MOD(T34,2)=0),HojaMaestra!$C$16,0))) -> 0 | L34: =IFERROR(IF(B34="","",K34*VLOOKUP(HojaMaestra!$C$25,Param!$AJ$8:$AM$9,4,0)*(1+Param!$T$8)),"Sin Datos") -> 0 | M34: 967.0130955 | N34: =IFERROR(IF(B34="","",IF(AND(OR(HojaMaestra!$A$2=12,HojaMaestra!$A$2=13),B35<=Param!$EQ$8+1),BU34,IF(B35<=HojaMaestra!$M$19+1,0,BI34))),0) -> 17505.50584 | O34: 1059943.891 | R34: 1.00133333 | S34: 31 | T34: 1 | U34: =IF(B34="","",D34*HLOOKUP($V$7,Param!$C$11:$F$14,2,0)/1000) -> 452.3493954 | V34: =IF(B34="","",D34*HLOOKUP($V$7,Param!$C$11:$F$14,3,0)/1000) -> 113.0873488 | W34: =IF(B34="","",IF($AB$3="SI",D34*HLOOKUP($V$7,Param!$C$11:$F$14,4,0)/1000,0)) -> 320.0585345 | X34: =IF($X$8="Si",$Q$6*Param!$D$9*Param!$D$8/1000+(($Q$6*Param!$D$9*Param!$D$8/1000)*Param!$T$8),0) -> 81.5178168 | Y34: =X34/(1+Param!$T$8) -> 70.27398 | Z34: 955.7692587 | AA34: =IFERROR(IF(D34="","",G34+H34+(I34/(1+Param!$T$8))+Z34),0) -> 17459.77925 | AD34: =(IF(B34<=HojaMaestra!$M$19,$D$10,IF($AN$9=0,$D$10,$AN$9))*($F$10*100))/1200 -> 10327.5 | AE34: =IF(B33<=HojaMaestra!$M$19,$AD$10+$U$10+$V$10+$W$10,IF(HojaMaestra!$M$19=0,$AD$10+$U$10+$V$10+$W$10,$AP$9)) -> 11335.95 | AF34: 11.196 | AG34: =(IF($K$9="Prepagos a Capital",IF(B34<=HojaMaestra!$M$19,$D$10,IF($AN$9=0,$D$10,$AN$9)),AK34)*$AF$10/1200)/(1-(1/((1+$AF$10/1200)^IF($K$9="Prepagos a Capital",$AL$10,AM34)))) -> 16871.71052 | AH34: 16953.22834 | AI34: =IFERROR(IF(B34<=HojaMaestra!$M$19,0,IF(D34<(AH34-M34-(D34*(F34*100)/1200)),D34 - ( J34+K34+L34),(AH34-M34-(D34*(F34*100)/1200)))),0) -> 6917.890098 | AK34: =IFERROR(IF(K33>0,D34,IF(B33=HojaMaestra!$M$19,D34,AK33)),0) -> 1215000 | AL34: =IF(K33>0,$AL$10-B33,(AL33-IF(B33=HojaMaestra!$M$19,HojaMaestra!$M$19,0))) -> 120 | AM34: =AL34+HojaMaestra!$M$19 -> 120 | AN34: =IF(AT33=HojaMaestra!$M$19,$D34,0) -> 0 | AP34: =IF(B33=HojaMaestra!$M$19,AD34+U34+V34+W34,0) -> 0 | AR34: =IF(B33=HojaMaestra!$M$19,AT33,0) -> 0 | AT34: 25 | AV34: 31 | AX34: =IFERROR(IF(Param!$EQ$8>=B34,B34,0),0) -> 0 | AY34: =IFERROR(IF(B34="","",IF(HojaMaestra!$M$19>=B33,$AY$10+SUM($G$10:G33)+SUM($M$10:M33)+SUM($I$10:I33),O33)),0) -> 1066861.782 | AZ34: =IF(AX34<>0,SUM($BA$10:BA34),IF(AX33=Param!$EQ$8,AZ33,0)) -> 0 | BA34: =IFERROR(IF(B34="","",IF(AX34<>0,HojaMaestra!$M$16/Param!$EQ$8,0)),0) -> 0 | BC34: =IF(B34="","",M34/(1+Param!$T$8)) -> 833.6319788 | BE34: 0 | BG34: =IFERROR(IF(B34<=HojaMaestra!$M$19,J34+K34,IF(D34<(AI34+J34+K34+L34),D34,(AI34+J34+K34+L34))),0) -> 6917.890098 | BI34: =IFERROR(IF(B34="","",G34+H34+I34+IF(HojaMaestra!$A$2=15,BC34,M34)),0) -> 17505.50584 | BK34: =IFERROR(IF(B34="","",IF(B34<=HojaMaestra!$M$19,O34,AY34)),0) -> 1066861.782 | BM34: =HojaMaestra!$A$4*12 -> 120 | BO34: =IF(B34<=Param!$EQ$8,HojaMaestra!$A$4*12+Param!$EQ$8,HojaMaestra!$A$4*12) -> 120 | BQ34: =IF(A34<=HojaMaestra!$M$19,HojaMaestra!$A$4*12+HojaMaestra!$M$19,HojaMaestra!$A$4*12) -> 120 | BS34: 25 | BU34: 0 | BW34: 452.3493954 | BX34: 113.0873488 | BY34: 320.0585345 | BZ34: 81.5178168 | CA34: 70.27398 | CB34: 955.7692587 | CC34: =IF(D34="","",IF(AX34=0,G34+H34+(I34/(1+Param!$T$8))+CB34,0)) -> 17459.77925
A35: 26 | B35: 26 | C35: 2026-01-01 | D35: =IFERROR(IF(B35="","",IF(OR(HojaMaestra!$A$2=12,HojaMaestra!$A$2=13),IF(AZ35<>0,AZ35,AY35),IF(HojaMaestra!$C$18="SI",AY35,AY35))),0) -> 1059943.891 | E35: 16292.27453 | F35: =IF(B35="","",HojaMaestra!$M$14) -> 0.102 | G35: =IFERROR(IF(B35="","",IF(D35=0,0,IF(HojaMaestra!$A$2<>15,D35*F35*AV35/360,(D35*F35*AV35/360)*(1+Param!$T$8)))),0) -> 9309.840513 | H35: 6982.434012 | I35: =IF(B35="","",IF(D35=0,0,VLOOKUP(HojaMaestra!$C$25,Param!$AJ$8:$AM$9,2,0))) -> 250 | J35: =IF(B35="","",IF(D35=0,0,IF(AND(HojaMaestra!$A$2=2,MOD(T35,2)=0),HojaMaestra!$C$16,0))) -> 0 | L35: =IFERROR(IF(B35="","",K35*VLOOKUP(HojaMaestra!$C$25,Param!$AJ$8:$AM$9,4,0)*(1+Param!$T$8)),"Sin Datos") -> 0 | M35: 961.2712467 | N35: =IFERROR(IF(B35="","",IF(AND(OR(HojaMaestra!$A$2=12,HojaMaestra!$A$2=13),B36<=Param!$EQ$8+1),BU35,IF(B36<=HojaMaestra!$M$19+1,0,BI35))),0) -> 17503.54577 | O35: 1052961.457 | R35: 1.00133333 | S35: 28 | T35: 2 | U35: =IF(B35="","",D35*HLOOKUP($V$7,Param!$C$11:$F$14,2,0)/1000) -> 449.41621 | V35: =IF(B35="","",D35*HLOOKUP($V$7,Param!$C$11:$F$14,3,0)/1000) -> 112.3540525 | W35: =IF(B35="","",IF($AB$3="SI",D35*HLOOKUP($V$7,Param!$C$11:$F$14,4,0)/1000,0)) -> 317.9831674 | X35: =IF($X$8="Si",$Q$6*Param!$D$9*Param!$D$8/1000+(($Q$6*Param!$D$9*Param!$D$8/1000)*Param!$T$8),0) -> 81.5178168 | Y35: =X35/(1+Param!$T$8) -> 70.27398 | Z35: 950.0274099 | AA35: =IFERROR(IF(D35="","",G35+H35+(I35/(1+Param!$T$8))+Z35),0) -> 17457.81918 | AD35: =(IF(B35<=HojaMaestra!$M$19,$D$10,IF($AN$9=0,$D$10,$AN$9))*($F$10*100))/1200 -> 10327.5 | AE35: =IF(B34<=HojaMaestra!$M$19,$AD$10+$U$10+$V$10+$W$10,IF(HojaMaestra!$M$19=0,$AD$10+$U$10+$V$10+$W$10,$AP$9)) -> 11335.95 | AF35: 11.196 | AG35: =(IF($K$9="Prepagos a Capital",IF(B35<=HojaMaestra!$M$19,$D$10,IF($AN$9=0,$D$10,$AN$9)),AK35)*$AF$10/1200)/(1-(1/((1+$AF$10/1200)^IF($K$9="Prepagos a Capital",$AL$10,AM35)))) -> 16871.71052 | AH35: 16953.22834 | AI35: =IFERROR(IF(B35<=HojaMaestra!$M$19,0,IF(D35<(AH35-M35-(D35*(F35*100)/1200)),D35 - ( J35+K35+L35),(AH35-M35-(D35*(F35*100)/1200)))),0) -> 6982.434012 | AK35: =IFERROR(IF(K34>0,D35,IF(B34=HojaMaestra!$M$19,D35,AK34)),0) -> 1215000 | AL35: =IF(K34>0,$AL$10-B34,(AL34-IF(B34=HojaMaestra!$M$19,HojaMaestra!$M$19,0))) -> 120 | AM35: =AL35+HojaMaestra!$M$19 -> 120 | AN35: =IF(AT34=HojaMaestra!$M$19,$D35,0) -> 0 | AP35: =IF(B34=HojaMaestra!$M$19,AD35+U35+V35+W35,0) -> 0 | AR35: =IF(B34=HojaMaestra!$M$19,AT34,0) -> 0 | AT35: 26 | AV35: 31 | AX35: =IFERROR(IF(Param!$EQ$8>=B35,B35,0),0) -> 0 | AY35: =IFERROR(IF(B35="","",IF(HojaMaestra!$M$19>=B34,$AY$10+SUM($G$10:G34)+SUM($M$10:M34)+SUM($I$10:I34),O34)),0) -> 1059943.891 | AZ35: =IF(AX35<>0,SUM($BA$10:BA35),IF(AX34=Param!$EQ$8,AZ34,0)) -> 0 | BA35: =IFERROR(IF(B35="","",IF(AX35<>0,HojaMaestra!$M$16/Param!$EQ$8,0)),0) -> 0 | BC35: =IF(B35="","",M35/(1+Param!$T$8)) -> 828.6821092 | BE35: 0 | BG35: =IFERROR(IF(B35<=HojaMaestra!$M$19,J35+K35,IF(D35<(AI35+J35+K35+L35),D35,(AI35+J35+K35+L35))),0) -> 6982.434012 | BI35: =IFERROR(IF(B35="","",G35+H35+I35+IF(HojaMaestra!$A$2=15,BC35,M35)),0) -> 17503.54577 | BK35: =IFERROR(IF(B35="","",IF(B35<=HojaMaestra!$M$19,O35,AY35)),0) -> 1059943.891 | BM35: =HojaMaestra!$A$4*12 -> 120 | BO35: =IF(B35<=Param!$EQ$8,HojaMaestra!$A$4*12+Param!$EQ$8,HojaMaestra!$A$4*12) -> 120 | BQ35: =IF(A35<=HojaMaestra!$M$19,HojaMaestra!$A$4*12+HojaMaestra!$M$19,HojaMaestra!$A$4*12) -> 120 | BS35: 26 | BU35: 0 | BW35: 449.41621 | BX35: 112.3540525 | BY35: 317.9831674 | BZ35: 81.5178168 | CA35: 70.27398 | CB35: 950.0274099 | CC35: =IF(D35="","",IF(AX35=0,G35+H35+(I35/(1+Param!$T$8))+CB35,0)) -> 17457.81918
A36: 27 | B36: 27 | C36: 2026-02-01 | D36: =IFERROR(IF(B36="","",IF(OR(HojaMaestra!$A$2=12,HojaMaestra!$A$2=13),IF(AZ36<>0,AZ36,AY36),IF(HojaMaestra!$C$18="SI",AY36,AY36))),0) -> 1052961.457 | E36: 15401.07435 | F36: =IF(B36="","",HojaMaestra!$M$14) -> 0.102 | G36: =IFERROR(IF(B36="","",IF(D36=0,0,IF(HojaMaestra!$A$2<>15,D36*F36*AV36/360,(D36*F36*AV36/360)*(1+Param!$T$8)))),0) -> 8353.494229 | H36: 7047.580122 | I36: =IF(B36="","",IF(D36=0,0,VLOOKUP(HojaMaestra!$C$25,Param!$AJ$8:$AM$9,2,0))) -> 250 | J36: =IF(B36="","",IF(D36=0,0,IF(AND(HojaMaestra!$A$2=2,MOD(T36,2)=0),HojaMaestra!$C$16,0))) -> 0 | L36: =IFERROR(IF(B36="","",K36*VLOOKUP(HojaMaestra!$C$25,Param!$AJ$8:$AM$9,4,0)*(1+Param!$T$8)),"Sin Datos") -> 0 | M36: 955.4758264 | N36: =IFERROR(IF(B36="","",IF(AND(OR(HojaMaestra!$A$2=12,HojaMaestra!$A$2=13),B37<=Param!$EQ$8+1),BU36,IF(B37<=HojaMaestra!$M$19+1,0,BI36))),0) -> 16606.55018 | O36: 1045913.877 | R36: 1.00133333 | S36: 31 | T36: 3 | U36: =IF(B36="","",D36*HLOOKUP($V$7,Param!$C$11:$F$14,2,0)/1000) -> 446.4556579 | V36: =IF(B36="","",D36*HLOOKUP($V$7,Param!$C$11:$F$14,3,0)/1000) -> 111.6139145 | W36: =IF(B36="","",IF($AB$3="SI",D36*HLOOKUP($V$7,Param!$C$11:$F$14,4,0)/1000,0)) -> 315.8884372 | X36: =IF($X$8="Si",$Q$6*Param!$D$9*Param!$D$8/1000+(($Q$6*Param!$D$9*Param!$D$8/1000)*Param!$T$8),0) -> 81.5178168 | Y36: =X36/(1+Param!$T$8) -> 70.27398 | Z36: 944.2319896 | AA36: =IFERROR(IF(D36="","",G36+H36+(I36/(1+Param!$T$8))+Z36),0) -> 16560.82358 | AD36: =(IF(B36<=HojaMaestra!$M$19,$D$10,IF($AN$9=0,$D$10,$AN$9))*($F$10*100))/1200 -> 10327.5 | AE36: =IF(B35<=HojaMaestra!$M$19,$AD$10+$U$10+$V$10+$W$10,IF(HojaMaestra!$M$19=0,$AD$10+$U$10+$V$10+$W$10,$AP$9)) -> 11335.95 | AF36: 11.196 | AG36: =(IF($K$9="Prepagos a Capital",IF(B36<=HojaMaestra!$M$19,$D$10,IF($AN$9=0,$D$10,$AN$9)),AK36)*$AF$10/1200)/(1-(1/((1+$AF$10/1200)^IF($K$9="Prepagos a Capital",$AL$10,AM36)))) -> 16871.71052 | AH36: 16953.22834 | AI36: =IFERROR(IF(B36<=HojaMaestra!$M$19,0,IF(D36<(AH36-M36-(D36*(F36*100)/1200)),D36 - ( J36+K36+L36),(AH36-M36-(D36*(F36*100)/1200)))),0) -> 7047.580122 | AK36: =IFERROR(IF(K35>0,D36,IF(B35=HojaMaestra!$M$19,D36,AK35)),0) -> 1215000 | AL36: =IF(K35>0,$AL$10-B35,(AL35-IF(B35=HojaMaestra!$M$19,HojaMaestra!$M$19,0))) -> 120 | AM36: =AL36+HojaMaestra!$M$19 -> 120 | AN36: =IF(AT35=HojaMaestra!$M$19,$D36,0) -> 0 | AP36: =IF(B35=HojaMaestra!$M$19,AD36+U36+V36+W36,0) -> 0 | AR36: =IF(B35=HojaMaestra!$M$19,AT35,0) -> 0 | AT36: 27 | AV36: 28 | AX36: =IFERROR(IF(Param!$EQ$8>=B36,B36,0),0) -> 0 | AY36: =IFERROR(IF(B36="","",IF(HojaMaestra!$M$19>=B35,$AY$10+SUM($G$10:G35)+SUM($M$10:M35)+SUM($I$10:I35),O35)),0) -> 1052961.457 | AZ36: =IF(AX36<>0,SUM($BA$10:BA36),IF(AX35=Param!$EQ$8,AZ35,0)) -> 0 | BA36: =IFERROR(IF(B36="","",IF(AX36<>0,HojaMaestra!$M$16/Param!$EQ$8,0)),0) -> 0 | BC36: =IF(B36="","",M36/(1+Param!$T$8)) -> 823.6860573 | BE36: 0 | BG36: =IFERROR(IF(B36<=HojaMaestra!$M$19,J36+K36,IF(D36<(AI36+J36+K36+L36),D36,(AI36+J36+K36+L36))),0) -> 7047.580122 | BI36: =IFERROR(IF(B36="","",G36+H36+I36+IF(HojaMaestra!$A$2=15,BC36,M36)),0) -> 16606.55018 | BK36: =IFERROR(IF(B36="","",IF(B36<=HojaMaestra!$M$19,O36,AY36)),0) -> 1052961.457 | BM36: =HojaMaestra!$A$4*12 -> 120 | BO36: =IF(B36<=Param!$EQ$8,HojaMaestra!$A$4*12+Param!$EQ$8,HojaMaestra!$A$4*12) -> 120 | BQ36: =IF(A36<=HojaMaestra!$M$19,HojaMaestra!$A$4*12+HojaMaestra!$M$19,HojaMaestra!$A$4*12) -> 120 | BS36: 27 | BU36: 0 | BW36: 446.4556579 | BX36: 111.6139145 | BY36: 315.8884372 | BZ36: 81.5178168 | CA36: 70.27398 | CB36: 944.2319896 | CC36: =IF(D36="","",IF(AX36=0,G36+H36+(I36/(1+Param!$T$8))+CB36,0)) -> 16560.82358
A37: 28 | B37: 28 | C37: 2026-03-01 | D37: =IFERROR(IF(B37="","",IF(OR(HojaMaestra!$A$2=12,HojaMaestra!$A$2=13),IF(AZ37<>0,AZ37,AY37),IF(HojaMaestra!$C$18="SI",AY37,AY37))),0) -> 1045913.877 | E37: 16299.94427 | F37: =IF(B37="","",HojaMaestra!$M$14) -> 0.102 | G37: =IFERROR(IF(B37="","",IF(D37=0,0,IF(HojaMaestra!$A$2<>15,D37*F37*AV37/360,(D37*F37*AV37/360)*(1+Param!$T$8)))),0) -> 9186.610222 | H37: 7113.334044 | I37: =IF(B37="","",IF(D37=0,0,VLOOKUP(HojaMaestra!$C$25,Param!$AJ$8:$AM$9,2,0))) -> 250 | J37: =IF(B37="","",IF(D37=0,0,IF(AND(HojaMaestra!$A$2=2,MOD(T37,2)=0),HojaMaestra!$C$16,0))) -> 0 | L37: =IFERROR(IF(B37="","",K37*VLOOKUP(HojaMaestra!$C$25,Param!$AJ$8:$AM$9,4,0)*(1+Param!$T$8)),"Sin Datos") -> 0 | M37: 949.6263349 | N37: =IFERROR(IF(B37="","",IF(AND(OR(HojaMaestra!$A$2=12,HojaMaestra!$A$2=13),B38<=Param!$EQ$8+1),BU37,IF(B38<=HojaMaestra!$M$19+1,0,BI37))),0) -> 17499.5706 | O37: 1038800.543 | R37: 1.00133333 | S37: 30 | T37: 4 | U37: =IF(B37="","",D37*HLOOKUP($V$7,Param!$C$11:$F$14,2,0)/1000) -> 443.467484 | V37: =IF(B37="","",D37*HLOOKUP($V$7,Param!$C$11:$F$14,3,0)/1000) -> 110.866871 | W37: =IF(B37="","",IF($AB$3="SI",D37*HLOOKUP($V$7,Param!$C$11:$F$14,4,0)/1000,0)) -> 313.7741632 | X37: =IF($X$8="Si",$Q$6*Param!$D$9*Param!$D$8/1000+(($Q$6*Param!$D$9*Param!$D$8/1000)*Param!$T$8),0) -> 81.5178168 | Y37: =X37/(1+Param!$T$8) -> 70.27398 | Z37: 938.3824981 | AA37: =IFERROR(IF(D37="","",G37+H37+(I37/(1+Param!$T$8))+Z37),0) -> 17453.84401 | AD37: =(IF(B37<=HojaMaestra!$M$19,$D$10,IF($AN$9=0,$D$10,$AN$9))*($F$10*100))/1200 -> 10327.5 | AE37: =IF(B36<=HojaMaestra!$M$19,$AD$10+$U$10+$V$10+$W$10,IF(HojaMaestra!$M$19=0,$AD$10+$U$10+$V$10+$W$10,$AP$9)) -> 11335.95 | AF37: 11.196 | AG37: =(IF($K$9="Prepagos a Capital",IF(B37<=HojaMaestra!$M$19,$D$10,IF($AN$9=0,$D$10,$AN$9)),AK37)*$AF$10/1200)/(1-(1/((1+$AF$10/1200)^IF($K$9="Prepagos a Capital",$AL$10,AM37)))) -> 16871.71052 | AH37: 16953.22834 | AI37: =IFERROR(IF(B37<=HojaMaestra!$M$19,0,IF(D37<(AH37-M37-(D37*(F37*100)/1200)),D37 - ( J37+K37+L37),(AH37-M37-(D37*(F37*100)/1200)))),0) -> 7113.334044 | AK37: =IFERROR(IF(K36>0,D37,IF(B36=HojaMaestra!$M$19,D37,AK36)),0) -> 1215000 | AL37: =IF(K36>0,$AL$10-B36,(AL36-IF(B36=HojaMaestra!$M$19,HojaMaestra!$M$19,0))) -> 120 | AM37: =AL37+HojaMaestra!$M$19 -> 120 | AN37: =IF(AT36=HojaMaestra!$M$19,$D37,0) -> 0 | AP37: =IF(B36=HojaMaestra!$M$19,AD37+U37+V37+W37,0) -> 0 | AR37: =IF(B36=HojaMaestra!$M$19,AT36,0) -> 0 | AT37: 28 | AV37: 31 | AX37: =IFERROR(IF(Param!$EQ$8>=B37,B37,0),0) -> 0 | AY37: =IFERROR(IF(B37="","",IF(HojaMaestra!$M$19>=B36,$AY$10+SUM($G$10:G36)+SUM($M$10:M36)+SUM($I$10:I36),O36)),0) -> 1045913.877 | AZ37: =IF(AX37<>0,SUM($BA$10:BA37),IF(AX36=Param!$EQ$8,AZ36,0)) -> 0 | BA37: =IFERROR(IF(B37="","",IF(AX37<>0,HojaMaestra!$M$16/Param!$EQ$8,0)),0) -> 0 | BC37: =IF(B37="","",M37/(1+Param!$T$8)) -> 818.6433922 | BE37: 0 | BG37: =IFERROR(IF(B37<=HojaMaestra!$M$19,J37+K37,IF(D37<(AI37+J37+K37+L37),D37,(AI37+J37+K37+L37))),0) -> 7113.334044 | BI37: =IFERROR(IF(B37="","",G37+H37+I37+IF(HojaMaestra!$A$2=15,BC37,M37)),0) -> 17499.5706 | BK37: =IFERROR(IF(B37="","",IF(B37<=HojaMaestra!$M$19,O37,AY37)),0) -> 1045913.877 | BM37: =HojaMaestra!$A$4*12 -> 120 | BO37: =IF(B37<=Param!$EQ$8,HojaMaestra!$A$4*12+Param!$EQ$8,HojaMaestra!$A$4*12) -> 120 | BQ37: =IF(A37<=HojaMaestra!$M$19,HojaMaestra!$A$4*12+HojaMaestra!$M$19,HojaMaestra!$A$4*12) -> 120 | BS37: 28 | BU37: 0 | BW37: 443.467484 | BX37: 110.866871 | BY37: 313.7741632 | BZ37: 81.5178168 | CA37: 70.27398 | CB37: 938.3824981 | CC37: =IF(D37="","",IF(AX37=0,G37+H37+(I37/(1+Param!$T$8))+CB37,0)) -> 17453.84401
A38: 29 | B38: 29 | C38: 2026-04-01 | D38: =IFERROR(IF(B38="","",IF(OR(HojaMaestra!$A$2=12,HojaMaestra!$A$2=13),IF(AZ38<>0,AZ38,AY38),IF(HojaMaestra!$C$18="SI",AY38,AY38))),0) -> 1038800.543 | E38: 16009.50607 | F38: =IF(B38="","",HojaMaestra!$M$14) -> 0.102 | G38: =IFERROR(IF(B38="","",IF(D38=0,0,IF(HojaMaestra!$A$2<>15,D38*F38*AV38/360,(D38*F38*AV38/360)*(1+Param!$T$8)))),0) -> 8829.804617 | H38: 7179.701451 | I38: =IF(B38="","",IF(D38=0,0,VLOOKUP(HojaMaestra!$C$25,Param!$AJ$8:$AM$9,2,0))) -> 250 | J38: =IF(B38="","",IF(D38=0,0,IF(AND(HojaMaestra!$A$2=2,MOD(T38,2)=0),HojaMaestra!$C$16,0))) -> 0 | L38: =IFERROR(IF(B38="","",K38*VLOOKUP(HojaMaestra!$C$25,Param!$AJ$8:$AM$9,4,0)*(1+Param!$T$8)),"Sin Datos") -> 0 | M38: 943.7222677 | N38: =IFERROR(IF(B38="","",IF(AND(OR(HojaMaestra!$A$2=12,HojaMaestra!$A$2=13),B39<=Param!$EQ$8+1),BU38,IF(B39<=HojaMaestra!$M$19+1,0,BI38))),0) -> 17203.22834 | O38: 1031620.842 | R38: 1.00133333 | S38: 31 | T38: 5 | U38: =IF(B38="","",D38*HLOOKUP($V$7,Param!$C$11:$F$14,2,0)/1000) -> 440.4514303 | V38: =IF(B38="","",D38*HLOOKUP($V$7,Param!$C$11:$F$14,3,0)/1000) -> 110.1128576 | W38: =IF(B38="","",IF($AB$3="SI",D38*HLOOKUP($V$7,Param!$C$11:$F$14,4,0)/1000,0)) -> 311.640163 | X38: =IF($X$8="Si",$Q$6*Param!$D$9*Param!$D$8/1000+(($Q$6*Param!$D$9*Param!$D$8/1000)*Param!$T$8),0) -> 81.5178168 | Y38: =X38/(1+Param!$T$8) -> 70.27398 | Z38: 932.4784309 | AA38: =IFERROR(IF(D38="","",G38+H38+(I38/(1+Param!$T$8))+Z38),0) -> 17157.50174 | AD38: =(IF(B38<=HojaMaestra!$M$19,$D$10,IF($AN$9=0,$D$10,$AN$9))*($F$10*100))/1200 -> 10327.5 | AE38: =IF(B37<=HojaMaestra!$M$19,$AD$10+$U$10+$V$10+$W$10,IF(HojaMaestra!$M$19=0,$AD$10+$U$10+$V$10+$W$10,$AP$9)) -> 11335.95 | AF38: 11.196 | AG38: =(IF($K$9="Prepagos a Capital",IF(B38<=HojaMaestra!$M$19,$D$10,IF($AN$9=0,$D$10,$AN$9)),AK38)*$AF$10/1200)/(1-(1/((1+$AF$10/1200)^IF($K$9="Prepagos a Capital",$AL$10,AM38)))) -> 16871.71052 | AH38: 16953.22834 | AI38: =IFERROR(IF(B38<=HojaMaestra!$M$19,0,IF(D38<(AH38-M38-(D38*(F38*100)/1200)),D38 - ( J38+K38+L38),(AH38-M38-(D38*(F38*100)/1200)))),0) -> 7179.701451 | AK38: =IFERROR(IF(K37>0,D38,IF(B37=HojaMaestra!$M$19,D38,AK37)),0) -> 1215000 | AL38: =IF(K37>0,$AL$10-B37,(AL37-IF(B37=HojaMaestra!$M$19,HojaMaestra!$M$19,0))) -> 120 | AM38: =AL38+HojaMaestra!$M$19 -> 120 | AN38: =IF(AT37=HojaMaestra!$M$19,$D38,0) -> 0 | AP38: =IF(B37=HojaMaestra!$M$19,AD38+U38+V38+W38,0) -> 0 | AR38: =IF(B37=HojaMaestra!$M$19,AT37,0) -> 0 | AT38: 29 | AV38: 30 | AX38: =IFERROR(IF(Param!$EQ$8>=B38,B38,0),0) -> 0 | AY38: =IFERROR(IF(B38="","",IF(HojaMaestra!$M$19>=B37,$AY$10+SUM($G$10:G37)+SUM($M$10:M37)+SUM($I$10:I37),O37)),0) -> 1038800.543 | AZ38: =IF(AX38<>0,SUM($BA$10:BA38),IF(AX37=Param!$EQ$8,AZ37,0)) -> 0 | BA38: =IFERROR(IF(B38="","",IF(AX38<>0,HojaMaestra!$M$16/Param!$EQ$8,0)),0) -> 0 | BC38: =IF(B38="","",M38/(1+Param!$T$8)) -> 813.553679 | BE38: 0 | BG38: =IFERROR(IF(B38<=HojaMaestra!$M$19,J38+K38,IF(D38<(AI38+J38+K38+L38),D38,(AI38+J38+K38+L38))),0) -> 7179.701451 | BI38: =IFERROR(IF(B38="","",G38+H38+I38+IF(HojaMaestra!$A$2=15,BC38,M38)),0) -> 17203.22834 | BK38: =IFERROR(IF(B38="","",IF(B38<=HojaMaestra!$M$19,O38,AY38)),0) -> 1038800.543 | BM38: =HojaMaestra!$A$4*12 -> 120 | BO38: =IF(B38<=Param!$EQ$8,HojaMaestra!$A$4*12+Param!$EQ$8,HojaMaestra!$A$4*12) -> 120 | BQ38: =IF(A38<=HojaMaestra!$M$19,HojaMaestra!$A$4*12+HojaMaestra!$M$19,HojaMaestra!$A$4*12) -> 120 | BS38: 29 | BU38: 0 | BW38: 440.4514303 | BX38: 110.1128576 | BY38: 311.640163 | BZ38: 81.5178168 | CA38: 70.27398 | CB38: 932.4784309 | CC38: =IF(D38="","",IF(AX38=0,G38+H38+(I38/(1+Param!$T$8))+CB38,0)) -> 17157.50174
A39: 30 | B39: 30 | C39: 2026-05-01 | D39: =IFERROR(IF(B39="","",IF(OR(HojaMaestra!$A$2=12,HojaMaestra!$A$2=13),IF(AZ39<>0,AZ39,AY39),IF(HojaMaestra!$C$18="SI",AY39,AY39))),0) -> 1031620.842 | E39: 16307.75779 | F39: =IF(B39="","",HojaMaestra!$M$14) -> 0.102 | G39: =IFERROR(IF(B39="","",IF(D39=0,0,IF(HojaMaestra!$A$2<>15,D39*F39*AV39/360,(D39*F39*AV39/360)*(1+Param!$T$8)))),0) -> 9061.069727 | H39: 7246.688065 | I39: =IF(B39="","",IF(D39=0,0,VLOOKUP(HojaMaestra!$C$25,Param!$AJ$8:$AM$9,2,0))) -> 250 | J39: =IF(B39="","",IF(D39=0,0,IF(AND(HojaMaestra!$A$2=2,MOD(T39,2)=0),HojaMaestra!$C$16,0))) -> 0 | L39: =IFERROR(IF(B39="","",K39*VLOOKUP(HojaMaestra!$C$25,Param!$AJ$8:$AM$9,4,0)*(1+Param!$T$8)),"Sin Datos") -> 0 | M39: 937.7631155 | N39: =IFERROR(IF(B39="","",IF(AND(OR(HojaMaestra!$A$2=12,HojaMaestra!$A$2=13),B40<=Param!$EQ$8+1),BU39,IF(B40<=HojaMaestra!$M$19+1,0,BI39))),0) -> 17495.52091 | O39: 1024374.154 | R39: 1.00133333 | S39: 30 | T39: 6 | U39: =IF(B39="","",D39*HLOOKUP($V$7,Param!$C$11:$F$14,2,0)/1000) -> 437.4072369 | V39: =IF(B39="","",D39*HLOOKUP($V$7,Param!$C$11:$F$14,3,0)/1000) -> 109.3518092 | W39: =IF(B39="","",IF($AB$3="SI",D39*HLOOKUP($V$7,Param!$C$11:$F$14,4,0)/1000,0)) -> 309.4862525 | X39: =IF($X$8="Si",$Q$6*Param!$D$9*Param!$D$8/1000+(($Q$6*Param!$D$9*Param!$D$8/1000)*Param!$T$8),0) -> 81.5178168 | Y39: =X39/(1+Param!$T$8) -> 70.27398 | Z39: 926.5192787 | AA39: =IFERROR(IF(D39="","",G39+H39+(I39/(1+Param!$T$8))+Z39),0) -> 17449.79431 | AD39: =(IF(B39<=HojaMaestra!$M$19,$D$10,IF($AN$9=0,$D$10,$AN$9))*($F$10*100))/1200 -> 10327.5 | AE39: =IF(B38<=HojaMaestra!$M$19,$AD$10+$U$10+$V$10+$W$10,IF(HojaMaestra!$M$19=0,$AD$10+$U$10+$V$10+$W$10,$AP$9)) -> 11335.95 | AF39: 11.196 | AG39: =(IF($K$9="Prepagos a Capital",IF(B39<=HojaMaestra!$M$19,$D$10,IF($AN$9=0,$D$10,$AN$9)),AK39)*$AF$10/1200)/(1-(1/((1+$AF$10/1200)^IF($K$9="Prepagos a Capital",$AL$10,AM39)))) -> 16871.71052 | AH39: 16953.22834 | AI39: =IFERROR(IF(B39<=HojaMaestra!$M$19,0,IF(D39<(AH39-M39-(D39*(F39*100)/1200)),D39 - ( J39+K39+L39),(AH39-M39-(D39*(F39*100)/1200)))),0) -> 7246.688065 | AK39: =IFERROR(IF(K38>0,D39,IF(B38=HojaMaestra!$M$19,D39,AK38)),0) -> 1215000 | AL39: =IF(K38>0,$AL$10-B38,(AL38-IF(B38=HojaMaestra!$M$19,HojaMaestra!$M$19,0))) -> 120 | AM39: =AL39+HojaMaestra!$M$19 -> 120 | AN39: =IF(AT38=HojaMaestra!$M$19,$D39,0) -> 0 | AP39: =IF(B38=HojaMaestra!$M$19,AD39+U39+V39+W39,0) -> 0 | AR39: =IF(B38=HojaMaestra!$M$19,AT38,0) -> 0 | AT39: 30 | AV39: 31 | AX39: =IFERROR(IF(Param!$EQ$8>=B39,B39,0),0) -> 0 | AY39: =IFERROR(IF(B39="","",IF(HojaMaestra!$M$19>=B38,$AY$10+SUM($G$10:G38)+SUM($M$10:M38)+SUM($I$10:I38),O38)),0) -> 1031620.842 | AZ39: =IF(AX39<>0,SUM($BA$10:BA39),IF(AX38=Param!$EQ$8,AZ38,0)) -> 0 | BA39: =IFERROR(IF(B39="","",IF(AX39<>0,HojaMaestra!$M$16/Param!$EQ$8,0)),0) -> 0 | BC39: =IF(B39="","",M39/(1+Param!$T$8)) -> 808.4164789 | BE39: 0 | BG39: =IFERROR(IF(B39<=HojaMaestra!$M$19,J39+K39,IF(D39<(AI39+J39+K39+L39),D39,(AI39+J39+K39+L39))),0) -> 7246.688065 | BI39: =IFERROR(IF(B39="","",G39+H39+I39+IF(HojaMaestra!$A$2=15,BC39,M39)),0) -> 17495.52091 | BK39: =IFERROR(IF(B39="","",IF(B39<=HojaMaestra!$M$19,O39,AY39)),0) -> 1031620.842 | BM39: =HojaMaestra!$A$4*12 -> 120 | BO39: =IF(B39<=Param!$EQ$8,HojaMaestra!$A$4*12+Param!$EQ$8,HojaMaestra!$A$4*12) -> 120 | BQ39: =IF(A39<=HojaMaestra!$M$19,HojaMaestra!$A$4*12+HojaMaestra!$M$19,HojaMaestra!$A$4*12) -> 120 | BS39: 30 | BU39: 0 | BW39: 437.4072369 | BX39: 109.3518092 | BY39: 309.4862525 | BZ39: 81.5178168 | CA39: 70.27398 | CB39: 926.5192787 | CC39: =IF(D39="","",IF(AX39=0,G39+H39+(I39/(1+Param!$T$8))+CB39,0)) -> 17449.79431
A40: 31 | B40: 31 | C40: 2026-06-01 | D40: =IFERROR(IF(B40="","",IF(OR(HojaMaestra!$A$2=12,HojaMaestra!$A$2=13),IF(AZ40<>0,AZ40,AY40),IF(HojaMaestra!$C$18="SI",AY40,AY40))),0) -> 1024374.154 | E40: 16021.47997 | F40: =IF(B40="","",HojaMaestra!$M$14) -> 0.102 | G40: =IFERROR(IF(B40="","",IF(D40=0,0,IF(HojaMaestra!$A$2<>15,D40*F40*AV40/360,(D40*F40*AV40/360)*(1+Param!$T$8)))),0) -> 8707.180307 | H40: 7314.299665 | I40: =IF(B40="","",IF(D40=0,0,VLOOKUP(HojaMaestra!$C$25,Param!$AJ$8:$AM$9,2,0))) -> 250 | J40: =IF(B40="","",IF(D40=0,0,IF(AND(HojaMaestra!$A$2=2,MOD(T40,2)=0),HojaMaestra!$C$16,0))) -> 0 | L40: =IFERROR(IF(B40="","",K40*VLOOKUP(HojaMaestra!$C$25,Param!$AJ$8:$AM$9,4,0)*(1+Param!$T$8)),"Sin Datos") -> 0 | M40: 931.7483644 | N40: =IFERROR(IF(B40="","",IF(AND(OR(HojaMaestra!$A$2=12,HojaMaestra!$A$2=13),B41<=Param!$EQ$8+1),BU40,IF(B41<=HojaMaestra!$M$19+1,0,BI40))),0) -> 17203.22834 | O40: 1017059.854 | R40: 1.00133333 | S40: 31 | T40: 7 | U40: =IF(B40="","",D40*HLOOKUP($V$7,Param!$C$11:$F$14,2,0)/1000) -> 434.3346412 | V40: =IF(B40="","",D40*HLOOKUP($V$7,Param!$C$11:$F$14,3,0)/1000) -> 108.5836603 | W40: =IF(B40="","",IF($AB$3="SI",D40*HLOOKUP($V$7,Param!$C$11:$F$14,4,0)/1000,0)) -> 307.3122461 | X40: =IF($X$8="Si",$Q$6*Param!$D$9*Param!$D$8/1000+(($Q$6*Param!$D$9*Param!$D$8/1000)*Param!$T$8),0) -> 81.5178168 | Y40: =X40/(1+Param!$T$8) -> 70.27398 | Z40: 920.5045276 | AA40: =IFERROR(IF(D40="","",G40+H40+(I40/(1+Param!$T$8))+Z40),0) -> 17157.50174 | AD40: =(IF(B40<=HojaMaestra!$M$19,$D$10,IF($AN$9=0,$D$10,$AN$9))*($F$10*100))/1200 -> 10327.5 | AE40: =IF(B39<=HojaMaestra!$M$19,$AD$10+$U$10+$V$10+$W$10,IF(HojaMaestra!$M$19=0,$AD$10+$U$10+$V$10+$W$10,$AP$9)) -> 11335.95 | AF40: 11.196 | AG40: =(IF($K$9="Prepagos a Capital",IF(B40<=HojaMaestra!$M$19,$D$10,IF($AN$9=0,$D$10,$AN$9)),AK40)*$AF$10/1200)/(1-(1/((1+$AF$10/1200)^IF($K$9="Prepagos a Capital",$AL$10,AM40)))) -> 16871.71052 | AH40: 16953.22834 | AI40: =IFERROR(IF(B40<=HojaMaestra!$M$19,0,IF(D40<(AH40-M40-(D40*(F40*100)/1200)),D40 - ( J40+K40+L40),(AH40-M40-(D40*(F40*100)/1200)))),0) -> 7314.299665 | AK40: =IFERROR(IF(K39>0,D40,IF(B39=HojaMaestra!$M$19,D40,AK39)),0) -> 1215000 | AL40: =IF(K39>0,$AL$10-B39,(AL39-IF(B39=HojaMaestra!$M$19,HojaMaestra!$M$19,0))) -> 120 | AM40: =AL40+HojaMaestra!$M$19 -> 120 | AN40: =IF(AT39=HojaMaestra!$M$19,$D40,0) -> 0 | AP40: =IF(B39=HojaMaestra!$M$19,AD40+U40+V40+W40,0) -> 0 | AR40: =IF(B39=HojaMaestra!$M$19,AT39,0) -> 0 | AT40: 31 | AV40: 30 | AX40: =IFERROR(IF(Param!$EQ$8>=B40,B40,0),0) -> 0 | AY40: =IFERROR(IF(B40="","",IF(HojaMaestra!$M$19>=B39,$AY$10+SUM($G$10:G39)+SUM($M$10:M39)+SUM($I$10:I39),O39)),0) -> 1024374.154 | AZ40: =IF(AX40<>0,SUM($BA$10:BA40),IF(AX39=Param!$EQ$8,AZ39,0)) -> 0 | BA40: =IFERROR(IF(B40="","",IF(AX40<>0,HojaMaestra!$M$16/Param!$EQ$8,0)),0) -> 0 | BC40: =IF(B40="","",M40/(1+Param!$T$8)) -> 803.2313486 | BE40: 0 | BG40: =IFERROR(IF(B40<=HojaMaestra!$M$19,J40+K40,IF(D40<(AI40+J40+K40+L40),D40,(AI40+J40+K40+L40))),0) -> 7314.299665 | BI40: =IFERROR(IF(B40="","",G40+H40+I40+IF(HojaMaestra!$A$2=15,BC40,M40)),0) -> 17203.22834 | BK40: =IFERROR(IF(B40="","",IF(B40<=HojaMaestra!$M$19,O40,AY40)),0) -> 1024374.154 | BM40: =HojaMaestra!$A$4*12 -> 120 | BO40: =IF(B40<=Param!$EQ$8,HojaMaestra!$A$4*12+Param!$EQ$8,HojaMaestra!$A$4*12) -> 120 | BQ40: =IF(A40<=HojaMaestra!$M$19,HojaMaestra!$A$4*12+HojaMaestra!$M$19,HojaMaestra!$A$4*12) -> 120 | BS40: 31 | BU40: 0 | BW40: 434.3346412 | BX40: 108.5836603 | BY40: 307.3122461 | BZ40: 81.5178168 | CA40: 70.27398 | CB40: 920.5045276 | CC40: =IF(D40="","",IF(AX40=0,G40+H40+(I40/(1+Param!$T$8))+CB40,0)) -> 17157.50174
A41: 32 | B41: 32 | C41: 2026-07-01 | D41: =IFERROR(IF(B41="","",IF(OR(HojaMaestra!$A$2=12,HojaMaestra!$A$2=13),IF(AZ41<>0,AZ41,AY41),IF(HojaMaestra!$C$18="SI",AY41,AY41))),0) -> 1017059.854 | E41: 16315.7178 | F41: =IF(B41="","",HojaMaestra!$M$14) -> 0.102 | G41: =IFERROR(IF(B41="","",IF(D41=0,0,IF(HojaMaestra!$A$2<>15,D41*F41*AV41/360,(D41*F41*AV41/360)*(1+Param!$T$8)))),0) -> 8933.175718 | H41: 7382.542081 | I41: =IF(B41="","",IF(D41=0,0,VLOOKUP(HojaMaestra!$C$25,Param!$AJ$8:$AM$9,2,0))) -> 250 | J41: =IF(B41="","",IF(D41=0,0,IF(AND(HojaMaestra!$A$2=2,MOD(T41,2)=0),HojaMaestra!$C$16,0))) -> 0 | L41: =IFERROR(IF(B41="","",K41*VLOOKUP(HojaMaestra!$C$25,Param!$AJ$8:$AM$9,4,0)*(1+Param!$T$8)),"Sin Datos") -> 0 | M41: 925.6774957 | N41: =IFERROR(IF(B41="","",IF(AND(OR(HojaMaestra!$A$2=12,HojaMaestra!$A$2=13),B42<=Param!$EQ$8+1),BU41,IF(B42<=HojaMaestra!$M$19+1,0,BI41))),0) -> 17491.39529 | O41: 1009677.312 | R41: 1.00133333 | S41: 31 | T41: 8 | U41: =IF(B41="","",D41*HLOOKUP($V$7,Param!$C$11:$F$14,2,0)/1000) -> 431.2333781 | V41: =IF(B41="","",D41*HLOOKUP($V$7,Param!$C$11:$F$14,3,0)/1000) -> 107.8083445 | W41: =IF(B41="","",IF($AB$3="SI",D41*HLOOKUP($V$7,Param!$C$11:$F$14,4,0)/1000,0)) -> 305.1179562 | X41: =IF($X$8="Si",$Q$6*Param!$D$9*Param!$D$8/1000+(($Q$6*Param!$D$9*Param!$D$8/1000)*Param!$T$8),0) -> 81.5178168 | Y41: =X41/(1+Param!$T$8) -> 70.27398 | Z41: 914.4336589 | AA41: =IFERROR(IF(D41="","",G41+H41+(I41/(1+Param!$T$8))+Z41),0) -> 17445.6687 | AD41: =(IF(B41<=HojaMaestra!$M$19,$D$10,IF($AN$9=0,$D$10,$AN$9))*($F$10*100))/1200 -> 10327.5 | AE41: =IF(B40<=HojaMaestra!$M$19,$AD$10+$U$10+$V$10+$W$10,IF(HojaMaestra!$M$19=0,$AD$10+$U$10+$V$10+$W$10,$AP$9)) -> 11335.95 | AF41: 11.196 | AG41: =(IF($K$9="Prepagos a Capital",IF(B41<=HojaMaestra!$M$19,$D$10,IF($AN$9=0,$D$10,$AN$9)),AK41)*$AF$10/1200)/(1-(1/((1+$AF$10/1200)^IF($K$9="Prepagos a Capital",$AL$10,AM41)))) -> 16871.71052 | AH41: 16953.22834 | AI41: =IFERROR(IF(B41<=HojaMaestra!$M$19,0,IF(D41<(AH41-M41-(D41*(F41*100)/1200)),D41 - ( J41+K41+L41),(AH41-M41-(D41*(F41*100)/1200)))),0) -> 7382.542081 | AK41: =IFERROR(IF(K40>0,D41,IF(B40=HojaMaestra!$M$19,D41,AK40)),0) -> 1215000 | AL41: =IF(K40>0,$AL$10-B40,(AL40-IF(B40=HojaMaestra!$M$19,HojaMaestra!$M$19,0))) -> 120 | AM41: =AL41+HojaMaestra!$M$19 -> 120 | AN41: =IF(AT40=HojaMaestra!$M$19,$D41,0) -> 0 | AP41: =IF(B40=HojaMaestra!$M$19,AD41+U41+V41+W41,0) -> 0 | AR41: =IF(B40=HojaMaestra!$M$19,AT40,0) -> 0 | AT41: 32 | AV41: 31 | AX41: =IFERROR(IF(Param!$EQ$8>=B41,B41,0),0) -> 0 | AY41: =IFERROR(IF(B41="","",IF(HojaMaestra!$M$19>=B40,$AY$10+SUM($G$10:G40)+SUM($M$10:M40)+SUM($I$10:I40),O40)),0) -> 1017059.854 | AZ41: =IF(AX41<>0,SUM($BA$10:BA41),IF(AX40=Param!$EQ$8,AZ40,0)) -> 0 | BA41: =IFERROR(IF(B41="","",IF(AX41<>0,HojaMaestra!$M$16/Param!$EQ$8,0)),0) -> 0 | BC41: =IF(B41="","",M41/(1+Param!$T$8)) -> 797.9978411 | BE41: 0 | BG41: =IFERROR(IF(B41<=HojaMaestra!$M$19,J41+K41,IF(D41<(AI41+J41+K41+L41),D41,(AI41+J41+K41+L41))),0) -> 7382.542081 | BI41: =IFERROR(IF(B41="","",G41+H41+I41+IF(HojaMaestra!$A$2=15,BC41,M41)),0) -> 17491.39529 | BK41: =IFERROR(IF(B41="","",IF(B41<=HojaMaestra!$M$19,O41,AY41)),0) -> 1017059.854 | BM41: =HojaMaestra!$A$4*12 -> 120 | BO41: =IF(B41<=Param!$EQ$8,HojaMaestra!$A$4*12+Param!$EQ$8,HojaMaestra!$A$4*12) -> 120 | BQ41: =IF(A41<=HojaMaestra!$M$19,HojaMaestra!$A$4*12+HojaMaestra!$M$19,HojaMaestra!$A$4*12) -> 120 | BS41: 32 | BU41: 0 | BW41: 431.2333781 | BX41: 107.8083445 | BY41: 305.1179562 | BZ41: 81.5178168 | CA41: 70.27398 | CB41: 914.4336589 | CC41: =IF(D41="","",IF(AX41=0,G41+H41+(I41/(1+Param!$T$8))+CB41,0)) -> 17445.6687
A42: 33 | B42: 33 | C42: 2026-08-01 | D42: =IFERROR(IF(B42="","",IF(OR(HojaMaestra!$A$2=12,HojaMaestra!$A$2=13),IF(AZ42<>0,AZ42,AY42),IF(HojaMaestra!$C$18="SI",AY42,AY42))),0) -> 1009677.312 | E42: 16319.75359 | F42: =IF(B42="","",HojaMaestra!$M$14) -> 0.102 | G42: =IFERROR(IF(B42="","",IF(D42=0,0,IF(HojaMaestra!$A$2<>15,D42*F42*AV42/360,(D42*F42*AV42/360)*(1+Param!$T$8)))),0) -> 8868.33239 | H42: 7451.421198 | I42: =IF(B42="","",IF(D42=0,0,VLOOKUP(HojaMaestra!$C$25,Param!$AJ$8:$AM$9,2,0))) -> 250 | J42: =IF(B42="","",IF(D42=0,0,IF(AND(HojaMaestra!$A$2=2,MOD(T42,2)=0),HojaMaestra!$C$16,0))) -> 0 | L42: =IFERROR(IF(B42="","",K42*VLOOKUP(HojaMaestra!$C$25,Param!$AJ$8:$AM$9,4,0)*(1+Param!$T$8)),"Sin Datos") -> 0 | M42: 919.5499857 | N42: =IFERROR(IF(B42="","",IF(AND(OR(HojaMaestra!$A$2=12,HojaMaestra!$A$2=13),B43<=Param!$EQ$8+1),BU42,IF(B43<=HojaMaestra!$M$19+1,0,BI42))),0) -> 17489.30357 | O42: 1002225.891 | R42: 1.00133333 | S42: 30 | T42: 9 | U42: =IF(B42="","",D42*HLOOKUP($V$7,Param!$C$11:$F$14,2,0)/1000) -> 428.1031803 | V42: =IF(B42="","",D42*HLOOKUP($V$7,Param!$C$11:$F$14,3,0)/1000) -> 107.0257951 | W42: =IF(B42="","",IF($AB$3="SI",D42*HLOOKUP($V$7,Param!$C$11:$F$14,4,0)/1000,0)) -> 302.9031936 | X42: =IF($X$8="Si",$Q$6*Param!$D$9*Param!$D$8/1000+(($Q$6*Param!$D$9*Param!$D$8/1000)*Param!$T$8),0) -> 81.5178168 | Y42: =X42/(1+Param!$T$8) -> 70.27398 | Z42: 908.3061489 | AA42: =IFERROR(IF(D42="","",G42+H42+(I42/(1+Param!$T$8))+Z42),0) -> 17443.57698 | AD42: =(IF(B42<=HojaMaestra!$M$19,$D$10,IF($AN$9=0,$D$10,$AN$9))*($F$10*100))/1200 -> 10327.5 | AE42: =IF(B41<=HojaMaestra!$M$19,$AD$10+$U$10+$V$10+$W$10,IF(HojaMaestra!$M$19=0,$AD$10+$U$10+$V$10+$W$10,$AP$9)) -> 11335.95 | AF42: 11.196 | AG42: =(IF($K$9="Prepagos a Capital",IF(B42<=HojaMaestra!$M$19,$D$10,IF($AN$9=0,$D$10,$AN$9)),AK42)*$AF$10/1200)/(1-(1/((1+$AF$10/1200)^IF($K$9="Prepagos a Capital",$AL$10,AM42)))) -> 16871.71052 | AH42: 16953.22834 | AI42: =IFERROR(IF(B42<=HojaMaestra!$M$19,0,IF(D42<(AH42-M42-(D42*(F42*100)/1200)),D42 - ( J42+K42+L42),(AH42-M42-(D42*(F42*100)/1200)))),0) -> 7451.421198 | AK42: =IFERROR(IF(K41>0,D42,IF(B41=HojaMaestra!$M$19,D42,AK41)),0) -> 1215000 | AL42: =IF(K41>0,$AL$10-B41,(AL41-IF(B41=HojaMaestra!$M$19,HojaMaestra!$M$19,0))) -> 120 | AM42: =AL42+HojaMaestra!$M$19 -> 120 | AN42: =IF(AT41=HojaMaestra!$M$19,$D42,0) -> 0 | AP42: =IF(B41=HojaMaestra!$M$19,AD42+U42+V42+W42,0) -> 0 | AR42: =IF(B41=HojaMaestra!$M$19,AT41,0) -> 0 | AT42: 33 | AV42: 31 | AX42: =IFERROR(IF(Param!$EQ$8>=B42,B42,0),0) -> 0 | AY42: =IFERROR(IF(B42="","",IF(HojaMaestra!$M$19>=B41,$AY$10+SUM($G$10:G41)+SUM($M$10:M41)+SUM($I$10:I41),O41)),0) -> 1009677.312 | AZ42: =IF(AX42<>0,SUM($BA$10:BA42),IF(AX41=Param!$EQ$8,AZ41,0)) -> 0 | BA42: =IFERROR(IF(B42="","",IF(AX42<>0,HojaMaestra!$M$16/Param!$EQ$8,0)),0) -> 0 | BC42: =IF(B42="","",M42/(1+Param!$T$8)) -> 792.7155049 | BE42: 0 | BG42: =IFERROR(IF(B42<=HojaMaestra!$M$19,J42+K42,IF(D42<(AI42+J42+K42+L42),D42,(AI42+J42+K42+L42))),0) -> 7451.421198 | BI42: =IFERROR(IF(B42="","",G42+H42+I42+IF(HojaMaestra!$A$2=15,BC42,M42)),0) -> 17489.30357 | BK42: =IFERROR(IF(B42="","",IF(B42<=HojaMaestra!$M$19,O42,AY42)),0) -> 1009677.312 | BM42: =HojaMaestra!$A$4*12 -> 120 | BO42: =IF(B42<=Param!$EQ$8,HojaMaestra!$A$4*12+Param!$EQ$8,HojaMaestra!$A$4*12) -> 120 | BQ42: =IF(A42<=HojaMaestra!$M$19,HojaMaestra!$A$4*12+HojaMaestra!$M$19,HojaMaestra!$A$4*12) -> 120 | BS42: 33 | BU42: 0 | BW42: 428.1031803 | BX42: 107.0257951 | BY42: 302.9031936 | BZ42: 81.5178168 | CA42: 70.27398 | CB42: 908.3061489 | CC42: =IF(D42="","",IF(AX42=0,G42+H42+(I42/(1+Param!$T$8))+CB42,0)) -> 17443.57698
A43: 34 | B43: 34 | C43: 2026-09-01 | D43: =IFERROR(IF(B43="","",IF(OR(HojaMaestra!$A$2=12,HojaMaestra!$A$2=13),IF(AZ43<>0,AZ43,AY43),IF(HojaMaestra!$C$18="SI",AY43,AY43))),0) -> 1002225.891 | E43: 16039.86303 | F43: =IF(B43="","",HojaMaestra!$M$14) -> 0.102 | G43: =IFERROR(IF(B43="","",IF(D43=0,0,IF(HojaMaestra!$A$2<>15,D43*F43*AV43/360,(D43*F43*AV43/360)*(1+Param!$T$8)))),0) -> 8518.920072 | H43: 7520.942958 | I43: =IF(B43="","",IF(D43=0,0,VLOOKUP(HojaMaestra!$C$25,Param!$AJ$8:$AM$9,2,0))) -> 250 | J43: =IF(B43="","",IF(D43=0,0,IF(AND(HojaMaestra!$A$2=2,MOD(T43,2)=0),HojaMaestra!$C$16,0))) -> 0 | L43: =IFERROR(IF(B43="","",K43*VLOOKUP(HojaMaestra!$C$25,Param!$AJ$8:$AM$9,4,0)*(1+Param!$T$8)),"Sin Datos") -> 0 | M43: 913.3653061 | N43: =IFERROR(IF(B43="","",IF(AND(OR(HojaMaestra!$A$2=12,HojaMaestra!$A$2=13),B44<=Param!$EQ$8+1),BU43,IF(B44<=HojaMaestra!$M$19+1,0,BI43))),0) -> 17203.22834 | O43: 994704.9478 | R43: 1.00133333 | S43: 31 | T43: 10 | U43: =IF(B43="","",D43*HLOOKUP($V$7,Param!$C$11:$F$14,2,0)/1000) -> 424.9437777 | V43: =IF(B43="","",D43*HLOOKUP($V$7,Param!$C$11:$F$14,3,0)/1000) -> 106.2359444 | W43: =IF(B43="","",IF($AB$3="SI",D43*HLOOKUP($V$7,Param!$C$11:$F$14,4,0)/1000,0)) -> 300.6677672 | X43: =IF($X$8="Si",$Q$6*Param!$D$9*Param!$D$8/1000+(($Q$6*Param!$D$9*Param!$D$8/1000)*Param!$T$8),0) -> 81.5178168 | Y43: =X43/(1+Param!$T$8) -> 70.27398 | Z43: 902.1214693 | AA43: =IFERROR(IF(D43="","",G43+H43+(I43/(1+Param!$T$8))+Z43),0) -> 17157.50174 | AD43: =(IF(B43<=HojaMaestra!$M$19,$D$10,IF($AN$9=0,$D$10,$AN$9))*($F$10*100))/1200 -> 10327.5 | AE43: =IF(B42<=HojaMaestra!$M$19,$AD$10+$U$10+$V$10+$W$10,IF(HojaMaestra!$M$19=0,$AD$10+$U$10+$V$10+$W$10,$AP$9)) -> 11335.95 | AF43: 11.196 | AG43: =(IF($K$9="Prepagos a Capital",IF(B43<=HojaMaestra!$M$19,$D$10,IF($AN$9=0,$D$10,$AN$9)),AK43)*$AF$10/1200)/(1-(1/((1+$AF$10/1200)^IF($K$9="Prepagos a Capital",$AL$10,AM43)))) -> 16871.71052 | AH43: 16953.22834 | AI43: =IFERROR(IF(B43<=HojaMaestra!$M$19,0,IF(D43<(AH43-M43-(D43*(F43*100)/1200)),D43 - ( J43+K43+L43),(AH43-M43-(D43*(F43*100)/1200)))),0) -> 7520.942958 | AK43: =IFERROR(IF(K42>0,D43,IF(B42=HojaMaestra!$M$19,D43,AK42)),0) -> 1215000 | AL43: =IF(K42>0,$AL$10-B42,(AL42-IF(B42=HojaMaestra!$M$19,HojaMaestra!$M$19,0))) -> 120 | AM43: =AL43+HojaMaestra!$M$19 -> 120 | AN43: =IF(AT42=HojaMaestra!$M$19,$D43,0) -> 0 | AP43: =IF(B42=HojaMaestra!$M$19,AD43+U43+V43+W43,0) -> 0 | AR43: =IF(B42=HojaMaestra!$M$19,AT42,0) -> 0 | AT43: 34 | AV43: 30 | AX43: =IFERROR(IF(Param!$EQ$8>=B43,B43,0),0) -> 0 | AY43: =IFERROR(IF(B43="","",IF(HojaMaestra!$M$19>=B42,$AY$10+SUM($G$10:G42)+SUM($M$10:M42)+SUM($I$10:I42),O42)),0) -> 1002225.891 | AZ43: =IF(AX43<>0,SUM($BA$10:BA43),IF(AX42=Param!$EQ$8,AZ42,0)) -> 0 | BA43: =IFERROR(IF(B43="","",IF(AX43<>0,HojaMaestra!$M$16/Param!$EQ$8,0)),0) -> 0 | BC43: =IF(B43="","",M43/(1+Param!$T$8)) -> 787.3838846 | BE43: 0 | BG43: =IFERROR(IF(B43<=HojaMaestra!$M$19,J43+K43,IF(D43<(AI43+J43+K43+L43),D43,(AI43+J43+K43+L43))),0) -> 7520.942958 | BI43: =IFERROR(IF(B43="","",G43+H43+I43+IF(HojaMaestra!$A$2=15,BC43,M43)),0) -> 17203.22834 | BK43: =IFERROR(IF(B43="","",IF(B43<=HojaMaestra!$M$19,O43,AY43)),0) -> 1002225.891 | BM43: =HojaMaestra!$A$4*12 -> 120 | BO43: =IF(B43<=Param!$EQ$8,HojaMaestra!$A$4*12+Param!$EQ$8,HojaMaestra!$A$4*12) -> 120 | BQ43: =IF(A43<=HojaMaestra!$M$19,HojaMaestra!$A$4*12+HojaMaestra!$M$19,HojaMaestra!$A$4*12) -> 120 | BS43: 34 | BU43: 0 | BW43: 424.9437777 | BX43: 106.2359444 | BY43: 300.6677672 | BZ43: 81.5178168 | CA43: 70.27398 | CB43: 902.1214693 | CC43: =IF(D43="","",IF(AX43=0,G43+H43+(I43/(1+Param!$T$8))+CB43,0)) -> 17157.50174
A44: 35 | B44: 35 | C44: 2026-10-01 | D44: =IFERROR(IF(B44="","",IF(OR(HojaMaestra!$A$2=12,HojaMaestra!$A$2=13),IF(AZ44<>0,AZ44,AY44),IF(HojaMaestra!$C$18="SI",AY44,AY44))),0) -> 994704.9478 | E44: 16327.93848 | F44: =IF(B44="","",HojaMaestra!$M$14) -> 0.102 | G44: =IFERROR(IF(B44="","",IF(D44=0,0,IF(HojaMaestra!$A$2<>15,D44*F44*AV44/360,(D44*F44*AV44/360)*(1+Param!$T$8)))),0) -> 8736.825125 | H44: 7591.113356 | I44: =IF(B44="","",IF(D44=0,0,VLOOKUP(HojaMaestra!$C$25,Param!$AJ$8:$AM$9,2,0))) -> 250 | J44: =IF(B44="","",IF(D44=0,0,IF(AND(HojaMaestra!$A$2=2,MOD(T44,2)=0),HojaMaestra!$C$16,0))) -> 0 | L44: =IFERROR(IF(B44="","",K44*VLOOKUP(HojaMaestra!$C$25,Param!$AJ$8:$AM$9,4,0)*(1+Param!$T$8)),"Sin Datos") -> 0 | M44: 907.1229235 | N44: =IFERROR(IF(B44="","",IF(AND(OR(HojaMaestra!$A$2=12,HojaMaestra!$A$2=13),B45<=Param!$EQ$8+1),BU44,IF(B45<=HojaMaestra!$M$19+1,0,BI44))),0) -> 17485.0614 | O44: 987113.8345 | R44: 1.00133333 | S44: 30 | T44: 11 | U44: =IF(B44="","",D44*HLOOKUP($V$7,Param!$C$11:$F$14,2,0)/1000) -> 421.7548979 | V44: =IF(B44="","",D44*HLOOKUP($V$7,Param!$C$11:$F$14,3,0)/1000) -> 105.4387245 | W44: =IF(B44="","",IF($AB$3="SI",D44*HLOOKUP($V$7,Param!$C$11:$F$14,4,0)/1000,0)) -> 298.4114843 | X44: =IF($X$8="Si",$Q$6*Param!$D$9*Param!$D$8/1000+(($Q$6*Param!$D$9*Param!$D$8/1000)*Param!$T$8),0) -> 81.5178168 | Y44: =X44/(1+Param!$T$8) -> 70.27398 | Z44: 895.8790867 | AA44: =IFERROR(IF(D44="","",G44+H44+(I44/(1+Param!$T$8))+Z44),0) -> 17439.33481 | AD44: =(IF(B44<=HojaMaestra!$M$19,$D$10,IF($AN$9=0,$D$10,$AN$9))*($F$10*100))/1200 -> 10327.5 | AE44: =IF(B43<=HojaMaestra!$M$19,$AD$10+$U$10+$V$10+$W$10,IF(HojaMaestra!$M$19=0,$AD$10+$U$10+$V$10+$W$10,$AP$9)) -> 11335.95 | AF44: 11.196 | AG44: =(IF($K$9="Prepagos a Capital",IF(B44<=HojaMaestra!$M$19,$D$10,IF($AN$9=0,$D$10,$AN$9)),AK44)*$AF$10/1200)/(1-(1/((1+$AF$10/1200)^IF($K$9="Prepagos a Capital",$AL$10,AM44)))) -> 16871.71052 | AH44: 16953.22834 | AI44: =IFERROR(IF(B44<=HojaMaestra!$M$19,0,IF(D44<(AH44-M44-(D44*(F44*100)/1200)),D44 - ( J44+K44+L44),(AH44-M44-(D44*(F44*100)/1200)))),0) -> 7591.113356 | AK44: =IFERROR(IF(K43>0,D44,IF(B43=HojaMaestra!$M$19,D44,AK43)),0) -> 1215000 | AL44: =IF(K43>0,$AL$10-B43,(AL43-IF(B43=HojaMaestra!$M$19,HojaMaestra!$M$19,0))) -> 120 | AM44: =AL44+HojaMaestra!$M$19 -> 120 | AN44: =IF(AT43=HojaMaestra!$M$19,$D44,0) -> 0 | AP44: =IF(B43=HojaMaestra!$M$19,AD44+U44+V44+W44,0) -> 0 | AR44: =IF(B43=HojaMaestra!$M$19,AT43,0) -> 0 | AT44: 35 | AV44: 31 | AX44: =IFERROR(IF(Param!$EQ$8>=B44,B44,0),0) -> 0 | AY44: =IFERROR(IF(B44="","",IF(HojaMaestra!$M$19>=B43,$AY$10+SUM($G$10:G43)+SUM($M$10:M43)+SUM($I$10:I43),O43)),0) -> 994704.9478 | AZ44: =IF(AX44<>0,SUM($BA$10:BA44),IF(AX43=Param!$EQ$8,AZ43,0)) -> 0 | BA44: =IFERROR(IF(B44="","",IF(AX44<>0,HojaMaestra!$M$16/Param!$EQ$8,0)),0) -> 0 | BC44: =IF(B44="","",M44/(1+Param!$T$8)) -> 782.0025202 | BE44: 0 | BG44: =IFERROR(IF(B44<=HojaMaestra!$M$19,J44+K44,IF(D44<(AI44+J44+K44+L44),D44,(AI44+J44+K44+L44))),0) -> 7591.113356 | BI44: =IFERROR(IF(B44="","",G44+H44+I44+IF(HojaMaestra!$A$2=15,BC44,M44)),0) -> 17485.0614 | BK44: =IFERROR(IF(B44="","",IF(B44<=HojaMaestra!$M$19,O44,AY44)),0) -> 994704.9478 | BM44: =HojaMaestra!$A$4*12 -> 120 | BO44: =IF(B44<=Param!$EQ$8,HojaMaestra!$A$4*12+Param!$EQ$8,HojaMaestra!$A$4*12) -> 120 | BQ44: =IF(A44<=HojaMaestra!$M$19,HojaMaestra!$A$4*12+HojaMaestra!$M$19,HojaMaestra!$A$4*12) -> 120 | BS44: 35 | BU44: 0 | BW44: 421.7548979 | BX44: 105.4387245 | BY44: 298.4114843 | BZ44: 81.5178168 | CA44: 70.27398 | CB44: 895.8790867 | CC44: =IF(D44="","",IF(AX44=0,G44+H44+(I44/(1+Param!$T$8))+CB44,0)) -> 17439.33481
A45: 36 | B45: 36 | C45: 2026-11-01 | D45: =IFERROR(IF(B45="","",IF(OR(HojaMaestra!$A$2=12,HojaMaestra!$A$2=13),IF(AZ45<>0,AZ45,AY45),IF(HojaMaestra!$C$18="SI",AY45,AY45))),0) -> 987113.8345 | E45: 16052.40604 | F45: =IF(B45="","",HojaMaestra!$M$14) -> 0.102 | G45: =IFERROR(IF(B45="","",IF(D45=0,0,IF(HojaMaestra!$A$2<>15,D45*F45*AV45/360,(D45*F45*AV45/360)*(1+Param!$T$8)))),0) -> 8390.467593 | H45: 7661.938444 | I45: =IF(B45="","",IF(D45=0,0,VLOOKUP(HojaMaestra!$C$25,Param!$AJ$8:$AM$9,2,0))) -> 250 | J45: =IF(B45="","",IF(D45=0,0,IF(AND(HojaMaestra!$A$2=2,MOD(T45,2)=0),HojaMaestra!$C$16,0))) -> 0 | L45: =IFERROR(IF(B45="","",K45*VLOOKUP(HojaMaestra!$C$25,Param!$AJ$8:$AM$9,4,0)*(1+Param!$T$8)),"Sin Datos") -> 0 | M45: 900.8222994 | N45: =IFERROR(IF(B45="","",IF(AND(OR(HojaMaestra!$A$2=12,HojaMaestra!$A$2=13),B46<=Param!$EQ$8+1),BU45,IF(B46<=HojaMaestra!$M$19+1,0,BI45))),0) -> 17203.22834 | O45: 979451.896 | P45: -0.01850970995 | R45: 1.00133333 | S45: 31 | T45: 12 | U45: =IF(B45="","",D45*HLOOKUP($V$7,Param!$C$11:$F$14,2,0)/1000) -> 418.5362658 | V45: =IF(B45="","",D45*HLOOKUP($V$7,Param!$C$11:$F$14,3,0)/1000) -> 104.6340665 | W45: =IF(B45="","",IF($AB$3="SI",D45*HLOOKUP($V$7,Param!$C$11:$F$14,4,0)/1000,0)) -> 296.1341503 | X45: =IF($X$8="Si",$Q$6*Param!$D$9*Param!$D$8/1000+(($Q$6*Param!$D$9*Param!$D$8/1000)*Param!$T$8),0) -> 81.5178168 | Y45: =X45/(1+Param!$T$8) -> 70.27398 | Z45: 889.5784626 | AA45: =IFERROR(IF(D45="","",G45+H45+(I45/(1+Param!$T$8))+Z45),0) -> 17157.50174 | AD45: =(IF(B45<=HojaMaestra!$M$19,$D$10,IF($AN$9=0,$D$10,$AN$9))*($F$10*100))/1200 -> 10327.5 | AE45: =IF(B44<=HojaMaestra!$M$19,$AD$10+$U$10+$V$10+$W$10,IF(HojaMaestra!$M$19=0,$AD$10+$U$10+$V$10+$W$10,$AP$9)) -> 11335.95 | AF45: 11.196 | AG45: =(IF($K$9="Prepagos a Capital",IF(B45<=HojaMaestra!$M$19,$D$10,IF($AN$9=0,$D$10,$AN$9)),AK45)*$AF$10/1200)/(1-(1/((1+$AF$10/1200)^IF($K$9="Prepagos a Capital",$AL$10,AM45)))) -> 16871.71052 | AH45: 16953.22834 | AI45: =IFERROR(IF(B45<=HojaMaestra!$M$19,0,IF(D45<(AH45-M45-(D45*(F45*100)/1200)),D45 - ( J45+K45+L45),(AH45-M45-(D45*(F45*100)/1200)))),0) -> 7661.938444 | AK45: =IFERROR(IF(K44>0,D45,IF(B44=HojaMaestra!$M$19,D45,AK44)),0) -> 1215000 | AL45: =IF(K44>0,$AL$10-B44,(AL44-IF(B44=HojaMaestra!$M$19,HojaMaestra!$M$19,0))) -> 120 | AM45: =AL45+HojaMaestra!$M$19 -> 120 | AN45: =IF(AT44=HojaMaestra!$M$19,$D45,0) -> 0 | AP45: =IF(B44=HojaMaestra!$M$19,AD45+U45+V45+W45,0) -> 0 | AR45: =IF(B44=HojaMaestra!$M$19,AT44,0) -> 0 | AT45: 36 | AV45: 30 | AX45: =IFERROR(IF(Param!$EQ$8>=B45,B45,0),0) -> 0 | AY45: =IFERROR(IF(B45="","",IF(HojaMaestra!$M$19>=B44,$AY$10+SUM($G$10:G44)+SUM($M$10:M44)+SUM($I$10:I44),O44)),0) -> 987113.8345 | AZ45: =IF(AX45<>0,SUM($BA$10:BA45),IF(AX44=Param!$EQ$8,AZ44,0)) -> 0 | BA45: =IFERROR(IF(B45="","",IF(AX45<>0,HojaMaestra!$M$16/Param!$EQ$8,0)),0) -> 0 | BC45: =IF(B45="","",M45/(1+Param!$T$8)) -> 776.5709478 | BE45: 0 | BG45: =IFERROR(IF(B45<=HojaMaestra!$M$19,J45+K45,IF(D45<(AI45+J45+K45+L45),D45,(AI45+J45+K45+L45))),0) -> 7661.938444 | BI45: =IFERROR(IF(B45="","",G45+H45+I45+IF(HojaMaestra!$A$2=15,BC45,M45)),0) -> 17203.22834 | BK45: =IFERROR(IF(B45="","",IF(B45<=HojaMaestra!$M$19,O45,AY45)),0) -> 987113.8345 | BM45: =HojaMaestra!$A$4*12 -> 120 | BO45: =IF(B45<=Param!$EQ$8,HojaMaestra!$A$4*12+Param!$EQ$8,HojaMaestra!$A$4*12) -> 120 | BQ45: =IF(A45<=HojaMaestra!$M$19,HojaMaestra!$A$4*12+HojaMaestra!$M$19,HojaMaestra!$A$4*12) -> 120 | BS45: 36 | BU45: 0 | BW45: 418.5362658 | BX45: 104.6340665 | BY45: 296.1341503 | BZ45: 81.5178168 | CA45: 70.27398 | CB45: 889.5784626 | CC45: =IF(D45="","",IF(AX45=0,G45+H45+(I45/(1+Param!$T$8))+CB45,0)) -> 17157.50174
A46: 37 | B46: 37 | C46: 2026-12-01 | D46: =IFERROR(IF(B46="","",IF(OR(HojaMaestra!$A$2=12,HojaMaestra!$A$2=13),IF(AZ46<>0,AZ46,AY46),IF(HojaMaestra!$C$18="SI",AY46,AY46))),0) -> 979451.896 | E46: 16336.27682 | F46: =IF(B46="","",HojaMaestra!$M$14) -> 0.102 | G46: =IFERROR(IF(B46="","",IF(D46=0,0,IF(HojaMaestra!$A$2<>15,D46*F46*AV46/360,(D46*F46*AV46/360)*(1+Param!$T$8)))),0) -> 8602.852487 | H46: 7733.424329 | I46: =IF(B46="","",IF(D46=0,0,VLOOKUP(HojaMaestra!$C$25,Param!$AJ$8:$AM$9,2,0))) -> 250 | J46: =IF(B46="","",IF(D46=0,0,IF(AND(HojaMaestra!$A$2=2,MOD(T46,2)=0),HojaMaestra!$C$16,0))) -> 0 | L46: =IFERROR(IF(B46="","",K46*VLOOKUP(HojaMaestra!$C$25,Param!$AJ$8:$AM$9,4,0)*(1+Param!$T$8)),"Sin Datos") -> 0 | M46: 894.4628905 | N46: =IFERROR(IF(B46="","",IF(AND(OR(HojaMaestra!$A$2=12,HojaMaestra!$A$2=13),B47<=Param!$EQ$8+1),BU46,IF(B47<=HojaMaestra!$M$19+1,0,BI46))),0) -> 17480.73971 | O46: 971718.4717 | R46: 1.00133333 | S46: 31 | T46: 1 | U46: =IF(B46="","",D46*HLOOKUP($V$7,Param!$C$11:$F$14,2,0)/1000) -> 415.2876039 | V46: =IF(B46="","",D46*HLOOKUP($V$7,Param!$C$11:$F$14,3,0)/1000) -> 103.821901 | W46: =IF(B46="","",IF($AB$3="SI",D46*HLOOKUP($V$7,Param!$C$11:$F$14,4,0)/1000,0)) -> 293.8355688 | X46: =IF($X$8="Si",$Q$6*Param!$D$9*Param!$D$8/1000+(($Q$6*Param!$D$9*Param!$D$8/1000)*Param!$T$8),0) -> 81.5178168 | Y46: =X46/(1+Param!$T$8) -> 70.27398 | Z46: 883.2190537 | AA46: =IFERROR(IF(D46="","",G46+H46+(I46/(1+Param!$T$8))+Z46),0) -> 17435.01311 | AD46: =(IF(B46<=HojaMaestra!$M$19,$D$10,IF($AN$9=0,$D$10,$AN$9))*($F$10*100))/1200 -> 10327.5 | AE46: =IF(B45<=HojaMaestra!$M$19,$AD$10+$U$10+$V$10+$W$10,IF(HojaMaestra!$M$19=0,$AD$10+$U$10+$V$10+$W$10,$AP$9)) -> 11335.95 | AF46: 11.196 | AG46: =(IF($K$9="Prepagos a Capital",IF(B46<=HojaMaestra!$M$19,$D$10,IF($AN$9=0,$D$10,$AN$9)),AK46)*$AF$10/1200)/(1-(1/((1+$AF$10/1200)^IF($K$9="Prepagos a Capital",$AL$10,AM46)))) -> 16871.71052 | AH46: 16953.22834 | AI46: =IFERROR(IF(B46<=HojaMaestra!$M$19,0,IF(D46<(AH46-M46-(D46*(F46*100)/1200)),D46 - ( J46+K46+L46),(AH46-M46-(D46*(F46*100)/1200)))),0) -> 7733.424329 | AK46: =IFERROR(IF(K45>0,D46,IF(B45=HojaMaestra!$M$19,D46,AK45)),0) -> 1215000 | AL46: =IF(K45>0,$AL$10-B45,(AL45-IF(B45=HojaMaestra!$M$19,HojaMaestra!$M$19,0))) -> 120 | AM46: =AL46+HojaMaestra!$M$19 -> 120 | AN46: =IF(AT45=HojaMaestra!$M$19,$D46,0) -> 0 | AP46: =IF(B45=HojaMaestra!$M$19,AD46+U46+V46+W46,0) -> 0 | AR46: =IF(B45=HojaMaestra!$M$19,AT45,0) -> 0 | AT46: 37 | AV46: 31 | AX46: =IFERROR(IF(Param!$EQ$8>=B46,B46,0),0) -> 0 | AY46: =IFERROR(IF(B46="","",IF(HojaMaestra!$M$19>=B45,$AY$10+SUM($G$10:G45)+SUM($M$10:M45)+SUM($I$10:I45),O45)),0) -> 979451.896 | AZ46: =IF(AX46<>0,SUM($BA$10:BA46),IF(AX45=Param!$EQ$8,AZ45,0)) -> 0 | BA46: =IFERROR(IF(B46="","",IF(AX46<>0,HojaMaestra!$M$16/Param!$EQ$8,0)),0) -> 0 | BC46: =IF(B46="","",M46/(1+Param!$T$8)) -> 771.0886987 | BE46: 0 | BG46: =IFERROR(IF(B46<=HojaMaestra!$M$19,J46+K46,IF(D46<(AI46+J46+K46+L46),D46,(AI46+J46+K46+L46))),0) -> 7733.424329 | BI46: =IFERROR(IF(B46="","",G46+H46+I46+IF(HojaMaestra!$A$2=15,BC46,M46)),0) -> 17480.73971 | BK46: =IFERROR(IF(B46="","",IF(B46<=HojaMaestra!$M$19,O46,AY46)),0) -> 979451.896 | BM46: =HojaMaestra!$A$4*12 -> 120 | BO46: =IF(B46<=Param!$EQ$8,HojaMaestra!$A$4*12+Param!$EQ$8,HojaMaestra!$A$4*12) -> 120 | BQ46: =IF(A46<=HojaMaestra!$M$19,HojaMaestra!$A$4*12+HojaMaestra!$M$19,HojaMaestra!$A$4*12) -> 120 | BS46: 37 | BU46: 0 | BW46: 415.2876039 | BX46: 103.821901 | BY46: 293.8355688 | BZ46: 81.5178168 | CA46: 70.27398 | CB46: 883.2190537 | CC46: =IF(D46="","",IF(AX46=0,G46+H46+(I46/(1+Param!$T$8))+CB46,0)) -> 17435.01311
A47: 38 | B47: 38 | C47: 2027-01-01 | D47: =IFERROR(IF(B47="","",IF(OR(HojaMaestra!$A$2=12,HojaMaestra!$A$2=13),IF(AZ47<>0,AZ47,AY47),IF(HojaMaestra!$C$18="SI",AY47,AY47))),0) -> 971718.4717 | E47: 16340.50442 | F47: =IF(B47="","",HojaMaestra!$M$14) -> 0.102 | G47: =IFERROR(IF(B47="","",IF(D47=0,0,IF(HojaMaestra!$A$2<>15,D47*F47*AV47/360,(D47*F47*AV47/360)*(1+Param!$T$8)))),0) -> 8534.927243 | H47: 7805.577178 | I47: =IF(B47="","",IF(D47=0,0,VLOOKUP(HojaMaestra!$C$25,Param!$AJ$8:$AM$9,2,0))) -> 250 | J47: =IF(B47="","",IF(D47=0,0,IF(AND(HojaMaestra!$A$2=2,MOD(T47,2)=0),HojaMaestra!$C$16,0))) -> 0 | L47: =IFERROR(IF(B47="","",K47*VLOOKUP(HojaMaestra!$C$25,Param!$AJ$8:$AM$9,4,0)*(1+Param!$T$8)),"Sin Datos") -> 0 | M47: 888.0441483 | N47: =IFERROR(IF(B47="","",IF(AND(OR(HojaMaestra!$A$2=12,HojaMaestra!$A$2=13),B48<=Param!$EQ$8+1),BU47,IF(B48<=HojaMaestra!$M$19+1,0,BI47))),0) -> 17478.54857 | O47: 963912.8945 | R47: 1.00133333 | S47: 28 | T47: 2 | U47: =IF(B47="","",D47*HLOOKUP($V$7,Param!$C$11:$F$14,2,0)/1000) -> 412.008632 | V47: =IF(B47="","",D47*HLOOKUP($V$7,Param!$C$11:$F$14,3,0)/1000) -> 103.002158 | W47: =IF(B47="","",IF($AB$3="SI",D47*HLOOKUP($V$7,Param!$C$11:$F$14,4,0)/1000,0)) -> 291.5155415 | X47: =IF($X$8="Si",$Q$6*Param!$D$9*Param!$D$8/1000+(($Q$6*Param!$D$9*Param!$D$8/1000)*Param!$T$8),0) -> 81.5178168 | Y47: =X47/(1+Param!$T$8) -> 70.27398 | Z47: 876.8003115 | AA47: =IFERROR(IF(D47="","",G47+H47+(I47/(1+Param!$T$8))+Z47),0) -> 17432.82197 | AD47: =(IF(B47<=HojaMaestra!$M$19,$D$10,IF($AN$9=0,$D$10,$AN$9))*($F$10*100))/1200 -> 10327.5 | AE47: =IF(B46<=HojaMaestra!$M$19,$AD$10+$U$10+$V$10+$W$10,IF(HojaMaestra!$M$19=0,$AD$10+$U$10+$V$10+$W$10,$AP$9)) -> 11335.95 | AF47: 11.196 | AG47: =(IF($K$9="Prepagos a Capital",IF(B47<=HojaMaestra!$M$19,$D$10,IF($AN$9=0,$D$10,$AN$9)),AK47)*$AF$10/1200)/(1-(1/((1+$AF$10/1200)^IF($K$9="Prepagos a Capital",$AL$10,AM47)))) -> 16871.71052 | AH47: 16953.22834 | AI47: =IFERROR(IF(B47<=HojaMaestra!$M$19,0,IF(D47<(AH47-M47-(D47*(F47*100)/1200)),D47 - ( J47+K47+L47),(AH47-M47-(D47*(F47*100)/1200)))),0) -> 7805.577178 | AK47: =IFERROR(IF(K46>0,D47,IF(B46=HojaMaestra!$M$19,D47,AK46)),0) -> 1215000 | AL47: =IF(K46>0,$AL$10-B46,(AL46-IF(B46=HojaMaestra!$M$19,HojaMaestra!$M$19,0))) -> 120 | AM47: =AL47+HojaMaestra!$M$19 -> 120 | AN47: =IF(AT46=HojaMaestra!$M$19,$D47,0) -> 0 | AP47: =IF(B46=HojaMaestra!$M$19,AD47+U47+V47+W47,0) -> 0 | AR47: =IF(B46=HojaMaestra!$M$19,AT46,0) -> 0 | AT47: 38 | AV47: 31 | AX47: =IFERROR(IF(Param!$EQ$8>=B47,B47,0),0) -> 0 | AY47: =IFERROR(IF(B47="","",IF(HojaMaestra!$M$19>=B46,$AY$10+SUM($G$10:G46)+SUM($M$10:M46)+SUM($I$10:I46),O46)),0) -> 971718.4717 | AZ47: =IF(AX47<>0,SUM($BA$10:BA47),IF(AX46=Param!$EQ$8,AZ46,0)) -> 0 | BA47: =IFERROR(IF(B47="","",IF(AX47<>0,HojaMaestra!$M$16/Param!$EQ$8,0)),0) -> 0 | BC47: =IF(B47="","",M47/(1+Param!$T$8)) -> 765.5553003 | BE47: 0 | BG47: =IFERROR(IF(B47<=HojaMaestra!$M$19,J47+K47,IF(D47<(AI47+J47+K47+L47),D47,(AI47+J47+K47+L47))),0) -> 7805.577178 | BI47: =IFERROR(IF(B47="","",G47+H47+I47+IF(HojaMaestra!$A$2=15,BC47,M47)),0) -> 17478.54857 | BK47: =IFERROR(IF(B47="","",IF(B47<=HojaMaestra!$M$19,O47,AY47)),0) -> 971718.4717 | BM47: =HojaMaestra!$A$4*12 -> 120 | BO47: =IF(B47<=Param!$EQ$8,HojaMaestra!$A$4*12+Param!$EQ$8,HojaMaestra!$A$4*12) -> 120 | BQ47: =IF(A47<=HojaMaestra!$M$19,HojaMaestra!$A$4*12+HojaMaestra!$M$19,HojaMaestra!$A$4*12) -> 120 | BS47: 38 | BU47: 0 | BW47: 412.008632 | BX47: 103.002158 | BY47: 291.5155415 | BZ47: 81.5178168 | CA47: 70.27398 | CB47: 876.8003115 | CC47: =IF(D47="","",IF(AX47=0,G47+H47+(I47/(1+Param!$T$8))+CB47,0)) -> 17432.82197
A48: 39 | B48: 39 | C48: 2027-02-01 | D48: =IFERROR(IF(B48="","",IF(OR(HojaMaestra!$A$2=12,HojaMaestra!$A$2=13),IF(AZ48<>0,AZ48,AY48),IF(HojaMaestra!$C$18="SI",AY48,AY48))),0) -> 963912.8945 | E48: 15525.44551 | F48: =IF(B48="","",HojaMaestra!$M$14) -> 0.102 | G48: =IFERROR(IF(B48="","",IF(D48=0,0,IF(HojaMaestra!$A$2<>15,D48*F48*AV48/360,(D48*F48*AV48/360)*(1+Param!$T$8)))),0) -> 7647.042296 | H48: 7878.403213 | I48: =IF(B48="","",IF(D48=0,0,VLOOKUP(HojaMaestra!$C$25,Param!$AJ$8:$AM$9,2,0))) -> 250 | J48: =IF(B48="","",IF(D48=0,0,IF(AND(HojaMaestra!$A$2=2,MOD(T48,2)=0),HojaMaestra!$C$16,0))) -> 0 | L48: =IFERROR(IF(B48="","",K48*VLOOKUP(HojaMaestra!$C$25,Param!$AJ$8:$AM$9,4,0)*(1+Param!$T$8)),"Sin Datos") -> 0 | M48: 881.5655192 | N48: =IFERROR(IF(B48="","",IF(AND(OR(HojaMaestra!$A$2=12,HojaMaestra!$A$2=13),B49<=Param!$EQ$8+1),BU48,IF(B49<=HojaMaestra!$M$19+1,0,BI48))),0) -> 16657.01103 | O48: 956034.4913 | R48: 1.00133333 | S48: 31 | T48: 3 | U48: =IF(B48="","",D48*HLOOKUP($V$7,Param!$C$11:$F$14,2,0)/1000) -> 408.6990673 | V48: =IF(B48="","",D48*HLOOKUP($V$7,Param!$C$11:$F$14,3,0)/1000) -> 102.1747668 | W48: =IF(B48="","",IF($AB$3="SI",D48*HLOOKUP($V$7,Param!$C$11:$F$14,4,0)/1000,0)) -> 289.1738684 | X48: =IF($X$8="Si",$Q$6*Param!$D$9*Param!$D$8/1000+(($Q$6*Param!$D$9*Param!$D$8/1000)*Param!$T$8),0) -> 81.5178168 | Y48: =X48/(1+Param!$T$8) -> 70.27398 | Z48: 870.3216824 | AA48: =IFERROR(IF(D48="","",G48+H48+(I48/(1+Param!$T$8))+Z48),0) -> 16611.28443 | AD48: =(IF(B48<=HojaMaestra!$M$19,$D$10,IF($AN$9=0,$D$10,$AN$9))*($F$10*100))/1200 -> 10327.5 | AE48: =IF(B47<=HojaMaestra!$M$19,$AD$10+$U$10+$V$10+$W$10,IF(HojaMaestra!$M$19=0,$AD$10+$U$10+$V$10+$W$10,$AP$9)) -> 11335.95 | AF48: 11.196 | AG48: =(IF($K$9="Prepagos a Capital",IF(B48<=HojaMaestra!$M$19,$D$10,IF($AN$9=0,$D$10,$AN$9)),AK48)*$AF$10/1200)/(1-(1/((1+$AF$10/1200)^IF($K$9="Prepagos a Capital",$AL$10,AM48)))) -> 16871.71052 | AH48: 16953.22834 | AI48: =IFERROR(IF(B48<=HojaMaestra!$M$19,0,IF(D48<(AH48-M48-(D48*(F48*100)/1200)),D48 - ( J48+K48+L48),(AH48-M48-(D48*(F48*100)/1200)))),0) -> 7878.403213 | AK48: =IFERROR(IF(K47>0,D48,IF(B47=HojaMaestra!$M$19,D48,AK47)),0) -> 1215000 | AL48: =IF(K47>0,$AL$10-B47,(AL47-IF(B47=HojaMaestra!$M$19,HojaMaestra!$M$19,0))) -> 120 | AM48: =AL48+HojaMaestra!$M$19 -> 120 | AN48: =IF(AT47=HojaMaestra!$M$19,$D48,0) -> 0 | AP48: =IF(B47=HojaMaestra!$M$19,AD48+U48+V48+W48,0) -> 0 | AR48: =IF(B47=HojaMaestra!$M$19,AT47,0) -> 0 | AT48: 39 | AV48: 28 | AX48: =IFERROR(IF(Param!$EQ$8>=B48,B48,0),0) -> 0 | AY48: =IFERROR(IF(B48="","",IF(HojaMaestra!$M$19>=B47,$AY$10+SUM($G$10:G47)+SUM($M$10:M47)+SUM($I$10:I47),O47)),0) -> 963912.8945 | AZ48: =IF(AX48<>0,SUM($BA$10:BA48),IF(AX47=Param!$EQ$8,AZ47,0)) -> 0 | BA48: =IFERROR(IF(B48="","",IF(AX48<>0,HojaMaestra!$M$16/Param!$EQ$8,0)),0) -> 0 | BC48: =IF(B48="","",M48/(1+Param!$T$8)) -> 759.9702752 | BE48: 0 | BG48: =IFERROR(IF(B48<=HojaMaestra!$M$19,J48+K48,IF(D48<(AI48+J48+K48+L48),D48,(AI48+J48+K48+L48))),0) -> 7878.403213 | BI48: =IFERROR(IF(B48="","",G48+H48+I48+IF(HojaMaestra!$A$2=15,BC48,M48)),0) -> 16657.01103 | BK48: =IFERROR(IF(B48="","",IF(B48<=HojaMaestra!$M$19,O48,AY48)),0) -> 963912.8945 | BM48: =HojaMaestra!$A$4*12 -> 120 | BO48: =IF(B48<=Param!$EQ$8,HojaMaestra!$A$4*12+Param!$EQ$8,HojaMaestra!$A$4*12) -> 120 | BQ48: =IF(A48<=HojaMaestra!$M$19,HojaMaestra!$A$4*12+HojaMaestra!$M$19,HojaMaestra!$A$4*12) -> 120 | BS48: 39 | BU48: 0 | BW48: 408.6990673 | BX48: 102.1747668 | BY48: 289.1738684 | BZ48: 81.5178168 | CA48: 70.27398 | CB48: 870.3216824 | CC48: =IF(D48="","",IF(AX48=0,G48+H48+(I48/(1+Param!$T$8))+CB48,0)) -> 16611.28443
A49: 40 | B49: 40 | C49: 2027-03-01 | D49: =IFERROR(IF(B49="","",IF(OR(HojaMaestra!$A$2=12,HojaMaestra!$A$2=13),IF(AZ49<>0,AZ49,AY49),IF(HojaMaestra!$C$18="SI",AY49,AY49))),0) -> 956034.4913 | E49: 16349.07833 | F49: =IF(B49="","",HojaMaestra!$M$14) -> 0.102 | G49: =IFERROR(IF(B49="","",IF(D49=0,0,IF(HojaMaestra!$A$2<>15,D49*F49*AV49/360,(D49*F49*AV49/360)*(1+Param!$T$8)))),0) -> 8397.169615 | H49: 7951.908715 | I49: =IF(B49="","",IF(D49=0,0,VLOOKUP(HojaMaestra!$C$25,Param!$AJ$8:$AM$9,2,0))) -> 250 | J49: =IF(B49="","",IF(D49=0,0,IF(AND(HojaMaestra!$A$2=2,MOD(T49,2)=0),HojaMaestra!$C$16,0))) -> 0 | L49: =IFERROR(IF(B49="","",K49*VLOOKUP(HojaMaestra!$C$25,Param!$AJ$8:$AM$9,4,0)*(1+Param!$T$8)),"Sin Datos") -> 0 | M49: 875.0264446 | N49: =IFERROR(IF(B49="","",IF(AND(OR(HojaMaestra!$A$2=12,HojaMaestra!$A$2=13),B50<=Param!$EQ$8+1),BU49,IF(B50<=HojaMaestra!$M$19+1,0,BI49))),0) -> 17474.10478 | O49: 948082.5826 | R49: 1.00133333 | S49: 30 | T49: 4 | U49: =IF(B49="","",D49*HLOOKUP($V$7,Param!$C$11:$F$14,2,0)/1000) -> 405.3586243 | V49: =IF(B49="","",D49*HLOOKUP($V$7,Param!$C$11:$F$14,3,0)/1000) -> 101.3396561 | W49: =IF(B49="","",IF($AB$3="SI",D49*HLOOKUP($V$7,Param!$C$11:$F$14,4,0)/1000,0)) -> 286.8103474 | X49: =IF($X$8="Si",$Q$6*Param!$D$9*Param!$D$8/1000+(($Q$6*Param!$D$9*Param!$D$8/1000)*Param!$T$8),0) -> 81.5178168 | Y49: =X49/(1+Param!$T$8) -> 70.27398 | Z49: 863.7826078 | AA49: =IFERROR(IF(D49="","",G49+H49+(I49/(1+Param!$T$8))+Z49),0) -> 17428.37818 | AD49: =(IF(B49<=HojaMaestra!$M$19,$D$10,IF($AN$9=0,$D$10,$AN$9))*($F$10*100))/1200 -> 10327.5 | AE49: =IF(B48<=HojaMaestra!$M$19,$AD$10+$U$10+$V$10+$W$10,IF(HojaMaestra!$M$19=0,$AD$10+$U$10+$V$10+$W$10,$AP$9)) -> 11335.95 | AF49: 11.196 | AG49: =(IF($K$9="Prepagos a Capital",IF(B49<=HojaMaestra!$M$19,$D$10,IF($AN$9=0,$D$10,$AN$9)),AK49)*$AF$10/1200)/(1-(1/((1+$AF$10/1200)^IF($K$9="Prepagos a Capital",$AL$10,AM49)))) -> 16871.71052 | AH49: 16953.22834 | AI49: =IFERROR(IF(B49<=HojaMaestra!$M$19,0,IF(D49<(AH49-M49-(D49*(F49*100)/1200)),D49 - ( J49+K49+L49),(AH49-M49-(D49*(F49*100)/1200)))),0) -> 7951.908715 | AK49: =IFERROR(IF(K48>0,D49,IF(B48=HojaMaestra!$M$19,D49,AK48)),0) -> 1215000 | AL49: =IF(K48>0,$AL$10-B48,(AL48-IF(B48=HojaMaestra!$M$19,HojaMaestra!$M$19,0))) -> 120 | AM49: =AL49+HojaMaestra!$M$19 -> 120 | AN49: =IF(AT48=HojaMaestra!$M$19,$D49,0) -> 0 | AP49: =IF(B48=HojaMaestra!$M$19,AD49+U49+V49+W49,0) -> 0 | AR49: =IF(B48=HojaMaestra!$M$19,AT48,0) -> 0 | AT49: 40 | AV49: 31 | AX49: =IFERROR(IF(Param!$EQ$8>=B49,B49,0),0) -> 0 | AY49: =IFERROR(IF(B49="","",IF(HojaMaestra!$M$19>=B48,$AY$10+SUM($G$10:G48)+SUM($M$10:M48)+SUM($I$10:I48),O48)),0) -> 956034.4913 | AZ49: =IF(AX49<>0,SUM($BA$10:BA49),IF(AX48=Param!$EQ$8,AZ48,0)) -> 0 | BA49: =IFERROR(IF(B49="","",IF(AX49<>0,HojaMaestra!$M$16/Param!$EQ$8,0)),0) -> 0 | BC49: =IF(B49="","",M49/(1+Param!$T$8)) -> 754.3331419 | BE49: 0 | BG49: =IFERROR(IF(B49<=HojaMaestra!$M$19,J49+K49,IF(D49<(AI49+J49+K49+L49),D49,(AI49+J49+K49+L49))),0) -> 7951.908715 | BI49: =IFERROR(IF(B49="","",G49+H49+I49+IF(HojaMaestra!$A$2=15,BC49,M49)),0) -> 17474.10478 | BK49: =IFERROR(IF(B49="","",IF(B49<=HojaMaestra!$M$19,O49,AY49)),0) -> 956034.4913 | BM49: =HojaMaestra!$A$4*12 -> 120 | BO49: =IF(B49<=Param!$EQ$8,HojaMaestra!$A$4*12+Param!$EQ$8,HojaMaestra!$A$4*12) -> 120 | BQ49: =IF(A49<=HojaMaestra!$M$19,HojaMaestra!$A$4*12+HojaMaestra!$M$19,HojaMaestra!$A$4*12) -> 120 | BS49: 40 | BU49: 0 | BW49: 405.3586243 | BX49: 101.3396561 | BY49: 286.8103474 | BZ49: 81.5178168 | CA49: 70.27398 | CB49: 863.7826078 | CC49: =IF(D49="","",IF(AX49=0,G49+H49+(I49/(1+Param!$T$8))+CB49,0)) -> 17428.37818
A50: 41 | B50: 41 | C50: 2027-04-01 | D50: =IFERROR(IF(B50="","",IF(OR(HojaMaestra!$A$2=12,HojaMaestra!$A$2=13),IF(AZ50<>0,AZ50,AY50),IF(HojaMaestra!$C$18="SI",AY50,AY50))),0) -> 948082.5826 | E50: 16084.80198 | F50: =IF(B50="","",HojaMaestra!$M$14) -> 0.102 | G50: =IFERROR(IF(B50="","",IF(D50=0,0,IF(HojaMaestra!$A$2<>15,D50*F50*AV50/360,(D50*F50*AV50/360)*(1+Param!$T$8)))),0) -> 8058.701952 | H50: 8026.100024 | I50: =IF(B50="","",IF(D50=0,0,VLOOKUP(HojaMaestra!$C$25,Param!$AJ$8:$AM$9,2,0))) -> 250 | J50: =IF(B50="","",IF(D50=0,0,IF(AND(HojaMaestra!$A$2=2,MOD(T50,2)=0),HojaMaestra!$C$16,0))) -> 0 | L50: =IFERROR(IF(B50="","",K50*VLOOKUP(HojaMaestra!$C$25,Param!$AJ$8:$AM$9,4,0)*(1+Param!$T$8)),"Sin Datos") -> 0 | M50: 868.4263603 | N50: =IFERROR(IF(B50="","",IF(AND(OR(HojaMaestra!$A$2=12,HojaMaestra!$A$2=13),B51<=Param!$EQ$8+1),BU50,IF(B51<=HojaMaestra!$M$19+1,0,BI50))),0) -> 17203.22834 | O50: 940056.4826 | R50: 1.00133333 | S50: 31 | T50: 5 | U50: =IF(B50="","",D50*HLOOKUP($V$7,Param!$C$11:$F$14,2,0)/1000) -> 401.987015 | V50: =IF(B50="","",D50*HLOOKUP($V$7,Param!$C$11:$F$14,3,0)/1000) -> 100.4967538 | W50: =IF(B50="","",IF($AB$3="SI",D50*HLOOKUP($V$7,Param!$C$11:$F$14,4,0)/1000,0)) -> 284.4247748 | X50: =IF($X$8="Si",$Q$6*Param!$D$9*Param!$D$8/1000+(($Q$6*Param!$D$9*Param!$D$8/1000)*Param!$T$8),0) -> 81.5178168 | Y50: =X50/(1+Param!$T$8) -> 70.27398 | Z50: 857.1825235 | AA50: =IFERROR(IF(D50="","",G50+H50+(I50/(1+Param!$T$8))+Z50),0) -> 17157.50174 | AD50: =(IF(B50<=HojaMaestra!$M$19,$D$10,IF($AN$9=0,$D$10,$AN$9))*($F$10*100))/1200 -> 10327.5 | AE50: =IF(B49<=HojaMaestra!$M$19,$AD$10+$U$10+$V$10+$W$10,IF(HojaMaestra!$M$19=0,$AD$10+$U$10+$V$10+$W$10,$AP$9)) -> 11335.95 | AF50: 11.196 | AG50: =(IF($K$9="Prepagos a Capital",IF(B50<=HojaMaestra!$M$19,$D$10,IF($AN$9=0,$D$10,$AN$9)),AK50)*$AF$10/1200)/(1-(1/((1+$AF$10/1200)^IF($K$9="Prepagos a Capital",$AL$10,AM50)))) -> 16871.71052 | AH50: 16953.22834 | AI50: =IFERROR(IF(B50<=HojaMaestra!$M$19,0,IF(D50<(AH50-M50-(D50*(F50*100)/1200)),D50 - ( J50+K50+L50),(AH50-M50-(D50*(F50*100)/1200)))),0) -> 8026.100024 | AK50: =IFERROR(IF(K49>0,D50,IF(B49=HojaMaestra!$M$19,D50,AK49)),0) -> 1215000 | AL50: =IF(K49>0,$AL$10-B49,(AL49-IF(B49=HojaMaestra!$M$19,HojaMaestra!$M$19,0))) -> 120 | AM50: =AL50+HojaMaestra!$M$19 -> 120 | AN50: =IF(AT49=HojaMaestra!$M$19,$D50,0) -> 0 | AP50: =IF(B49=HojaMaestra!$M$19,AD50+U50+V50+W50,0) -> 0 | AR50: =IF(B49=HojaMaestra!$M$19,AT49,0) -> 0 | AT50: 41 | AV50: 30 | AX50: =IFERROR(IF(Param!$EQ$8>=B50,B50,0),0) -> 0 | AY50: =IFERROR(IF(B50="","",IF(HojaMaestra!$M$19>=B49,$AY$10+SUM($G$10:G49)+SUM($M$10:M49)+SUM($I$10:I49),O49)),0) -> 948082.5826 | AZ50: =IF(AX50<>0,SUM($BA$10:BA50),IF(AX49=Param!$EQ$8,AZ49,0)) -> 0 | BA50: =IFERROR(IF(B50="","",IF(AX50<>0,HojaMaestra!$M$16/Param!$EQ$8,0)),0) -> 0 | BC50: =IF(B50="","",M50/(1+Param!$T$8)) -> 748.6434141 | BE50: 0 | BG50: =IFERROR(IF(B50<=HojaMaestra!$M$19,J50+K50,IF(D50<(AI50+J50+K50+L50),D50,(AI50+J50+K50+L50))),0) -> 8026.100024 | BI50: =IFERROR(IF(B50="","",G50+H50+I50+IF(HojaMaestra!$A$2=15,BC50,M50)),0) -> 17203.22834 | BK50: =IFERROR(IF(B50="","",IF(B50<=HojaMaestra!$M$19,O50,AY50)),0) -> 948082.5826 | BM50: =HojaMaestra!$A$4*12 -> 120 | BO50: =IF(B50<=Param!$EQ$8,HojaMaestra!$A$4*12+Param!$EQ$8,HojaMaestra!$A$4*12) -> 120 | BQ50: =IF(A50<=HojaMaestra!$M$19,HojaMaestra!$A$4*12+HojaMaestra!$M$19,HojaMaestra!$A$4*12) -> 120 | BS50: 41 | BU50: 0 | BW50: 401.987015 | BX50: 100.4967538 | BY50: 284.4247748 | BZ50: 81.5178168 | CA50: 70.27398 | CB50: 857.1825235 | CC50: =IF(D50="","",IF(AX50=0,G50+H50+(I50/(1+Param!$T$8))+CB50,0)) -> 17157.50174
A51: 42 | B51: 42 | C51: 2027-05-01 | D51: =IFERROR(IF(B51="","",IF(OR(HojaMaestra!$A$2=12,HojaMaestra!$A$2=13),IF(AZ51<>0,AZ51,AY51),IF(HojaMaestra!$C$18="SI",AY51,AY51))),0) -> 940056.4826 | E51: 16357.81298 | F51: =IF(B51="","",HojaMaestra!$M$14) -> 0.102 | G51: =IFERROR(IF(B51="","",IF(D51=0,0,IF(HojaMaestra!$A$2<>15,D51*F51*AV51/360,(D51*F51*AV51/360)*(1+Param!$T$8)))),0) -> 8256.829438 | H51: 8100.983537 | I51: =IF(B51="","",IF(D51=0,0,VLOOKUP(HojaMaestra!$C$25,Param!$AJ$8:$AM$9,2,0))) -> 250 | J51: =IF(B51="","",IF(D51=0,0,IF(AND(HojaMaestra!$A$2=2,MOD(T51,2)=0),HojaMaestra!$C$16,0))) -> 0 | L51: =IFERROR(IF(B51="","",K51*VLOOKUP(HojaMaestra!$C$25,Param!$AJ$8:$AM$9,4,0)*(1+Param!$T$8)),"Sin Datos") -> 0 | M51: 861.7646973 | N51: =IFERROR(IF(B51="","",IF(AND(OR(HojaMaestra!$A$2=12,HojaMaestra!$A$2=13),B52<=Param!$EQ$8+1),BU51,IF(B52<=HojaMaestra!$M$19+1,0,BI51))),0) -> 17469.57767 | O51: 931955.499 | R51: 1.00133333 | S51: 30 | T51: 6 | U51: =IF(B51="","",D51*HLOOKUP($V$7,Param!$C$11:$F$14,2,0)/1000) -> 398.5839486 | V51: =IF(B51="","",D51*HLOOKUP($V$7,Param!$C$11:$F$14,3,0)/1000) -> 99.64598715 | W51: =IF(B51="","",IF($AB$3="SI",D51*HLOOKUP($V$7,Param!$C$11:$F$14,4,0)/1000,0)) -> 282.0169448 | X51: =IF($X$8="Si",$Q$6*Param!$D$9*Param!$D$8/1000+(($Q$6*Param!$D$9*Param!$D$8/1000)*Param!$T$8),0) -> 81.5178168 | Y51: =X51/(1+Param!$T$8) -> 70.27398 | Z51: 850.5208605 | AA51: =IFERROR(IF(D51="","",G51+H51+(I51/(1+Param!$T$8))+Z51),0) -> 17423.85108 | AD51: =(IF(B51<=HojaMaestra!$M$19,$D$10,IF($AN$9=0,$D$10,$AN$9))*($F$10*100))/1200 -> 10327.5 | AE51: =IF(B50<=HojaMaestra!$M$19,$AD$10+$U$10+$V$10+$W$10,IF(HojaMaestra!$M$19=0,$AD$10+$U$10+$V$10+$W$10,$AP$9)) -> 11335.95 | AF51: 11.196 | AG51: =(IF($K$9="Prepagos a Capital",IF(B51<=HojaMaestra!$M$19,$D$10,IF($AN$9=0,$D$10,$AN$9)),AK51)*$AF$10/1200)/(1-(1/((1+$AF$10/1200)^IF($K$9="Prepagos a Capital",$AL$10,AM51)))) -> 16871.71052 | AH51: 16953.22834 | AI51: =IFERROR(IF(B51<=HojaMaestra!$M$19,0,IF(D51<(AH51-M51-(D51*(F51*100)/1200)),D51 - ( J51+K51+L51),(AH51-M51-(D51*(F51*100)/1200)))),0) -> 8100.983537 | AK51: =IFERROR(IF(K50>0,D51,IF(B50=HojaMaestra!$M$19,D51,AK50)),0) -> 1215000 | AL51: =IF(K50>0,$AL$10-B50,(AL50-IF(B50=HojaMaestra!$M$19,HojaMaestra!$M$19,0))) -> 120 | AM51: =AL51+HojaMaestra!$M$19 -> 120 | AN51: =IF(AT50=HojaMaestra!$M$19,$D51,0) -> 0 | AP51: =IF(B50=HojaMaestra!$M$19,AD51+U51+V51+W51,0) -> 0 | AR51: =IF(B50=HojaMaestra!$M$19,AT50,0) -> 0 | AT51: 42 | AV51: 31 | AX51: =IFERROR(IF(Param!$EQ$8>=B51,B51,0),0) -> 0 | AY51: =IFERROR(IF(B51="","",IF(HojaMaestra!$M$19>=B50,$AY$10+SUM($G$10:G50)+SUM($M$10:M50)+SUM($I$10:I50),O50)),0) -> 940056.4826 | AZ51: =IF(AX51<>0,SUM($BA$10:BA51),IF(AX50=Param!$EQ$8,AZ50,0)) -> 0 | BA51: =IFERROR(IF(B51="","",IF(AX51<>0,HojaMaestra!$M$16/Param!$EQ$8,0)),0) -> 0 | BC51: =IF(B51="","",M51/(1+Param!$T$8)) -> 742.9006011 | BE51: 0 | BG51: =IFERROR(IF(B51<=HojaMaestra!$M$19,J51+K51,IF(D51<(AI51+J51+K51+L51),D51,(AI51+J51+K51+L51))),0) -> 8100.983537 | BI51: =IFERROR(IF(B51="","",G51+H51+I51+IF(HojaMaestra!$A$2=15,BC51,M51)),0) -> 17469.57767 | BK51: =IFERROR(IF(B51="","",IF(B51<=HojaMaestra!$M$19,O51,AY51)),0) -> 940056.4826 | BM51: =HojaMaestra!$A$4*12 -> 120 | BO51: =IF(B51<=Param!$EQ$8,HojaMaestra!$A$4*12+Param!$EQ$8,HojaMaestra!$A$4*12) -> 120 | BQ51: =IF(A51<=HojaMaestra!$M$19,HojaMaestra!$A$4*12+HojaMaestra!$M$19,HojaMaestra!$A$4*12) -> 120 | BS51: 42 | BU51: 0 | BW51: 398.5839486 | BX51: 99.64598715 | BY51: 282.0169448 | BZ51: 81.5178168 | CA51: 70.27398 | CB51: 850.5208605 | CC51: =IF(D51="","",IF(AX51=0,G51+H51+(I51/(1+Param!$T$8))+CB51,0)) -> 17423.85108
A52: 43 | B52: 43 | C52: 2027-06-01 | D52: =IFERROR(IF(B52="","",IF(OR(HojaMaestra!$A$2=12,HojaMaestra!$A$2=13),IF(AZ52<>0,AZ52,AY52),IF(HojaMaestra!$C$18="SI",AY52,AY52))),0) -> 931955.499 | E52: 16098.18745 | F52: =IF(B52="","",HojaMaestra!$M$14) -> 0.102 | G52: =IFERROR(IF(B52="","",IF(D52=0,0,IF(HojaMaestra!$A$2<>15,D52*F52*AV52/360,(D52*F52*AV52/360)*(1+Param!$T$8)))),0) -> 7921.621742 | H52: 8176.565713 | I52: =IF(B52="","",IF(D52=0,0,VLOOKUP(HojaMaestra!$C$25,Param!$AJ$8:$AM$9,2,0))) -> 250 | J52: =IF(B52="","",IF(D52=0,0,IF(AND(HojaMaestra!$A$2=2,MOD(T52,2)=0),HojaMaestra!$C$16,0))) -> 0 | L52: =IFERROR(IF(B52="","",K52*VLOOKUP(HojaMaestra!$C$25,Param!$AJ$8:$AM$9,4,0)*(1+Param!$T$8)),"Sin Datos") -> 0 | M52: 855.040881 | N52: =IFERROR(IF(B52="","",IF(AND(OR(HojaMaestra!$A$2=12,HojaMaestra!$A$2=13),B53<=Param!$EQ$8+1),BU52,IF(B53<=HojaMaestra!$M$19+1,0,BI52))),0) -> 17203.22834 | O52: 923778.9333 | R52: 1.00133333 | S52: 31 | T52: 7 | U52: =IF(B52="","",D52*HLOOKUP($V$7,Param!$C$11:$F$14,2,0)/1000) -> 395.1491316 | V52: =IF(B52="","",D52*HLOOKUP($V$7,Param!$C$11:$F$14,3,0)/1000) -> 98.7872829 | W52: =IF(B52="","",IF($AB$3="SI",D52*HLOOKUP($V$7,Param!$C$11:$F$14,4,0)/1000,0)) -> 279.5866497 | X52: =IF($X$8="Si",$Q$6*Param!$D$9*Param!$D$8/1000+(($Q$6*Param!$D$9*Param!$D$8/1000)*Param!$T$8),0) -> 81.5178168 | Y52: =X52/(1+Param!$T$8) -> 70.27398 | Z52: 843.7970442 | AA52: =IFERROR(IF(D52="","",G52+H52+(I52/(1+Param!$T$8))+Z52),0) -> 17157.50174 | AD52: =(IF(B52<=HojaMaestra!$M$19,$D$10,IF($AN$9=0,$D$10,$AN$9))*($F$10*100))/1200 -> 10327.5 | AE52: =IF(B51<=HojaMaestra!$M$19,$AD$10+$U$10+$V$10+$W$10,IF(HojaMaestra!$M$19=0,$AD$10+$U$10+$V$10+$W$10,$AP$9)) -> 11335.95 | AF52: 11.196 | AG52: =(IF($K$9="Prepagos a Capital",IF(B52<=HojaMaestra!$M$19,$D$10,IF($AN$9=0,$D$10,$AN$9)),AK52)*$AF$10/1200)/(1-(1/((1+$AF$10/1200)^IF($K$9="Prepagos a Capital",$AL$10,AM52)))) -> 16871.71052 | AH52: 16953.22834 | AI52: =IFERROR(IF(B52<=HojaMaestra!$M$19,0,IF(D52<(AH52-M52-(D52*(F52*100)/1200)),D52 - ( J52+K52+L52),(AH52-M52-(D52*(F52*100)/1200)))),0) -> 8176.565713 | AK52: =IFERROR(IF(K51>0,D52,IF(B51=HojaMaestra!$M$19,D52,AK51)),0) -> 1215000 | AL52: =IF(K51>0,$AL$10-B51,(AL51-IF(B51=HojaMaestra!$M$19,HojaMaestra!$M$19,0))) -> 120 | AM52: =AL52+HojaMaestra!$M$19 -> 120 | AN52: =IF(AT51=HojaMaestra!$M$19,$D52,0) -> 0 | AP52: =IF(B51=HojaMaestra!$M$19,AD52+U52+V52+W52,0) -> 0 | AR52: =IF(B51=HojaMaestra!$M$19,AT51,0) -> 0 | AT52: 43 | AV52: 30 | AX52: =IFERROR(IF(Param!$EQ$8>=B52,B52,0),0) -> 0 | AY52: =IFERROR(IF(B52="","",IF(HojaMaestra!$M$19>=B51,$AY$10+SUM($G$10:G51)+SUM($M$10:M51)+SUM($I$10:I51),O51)),0) -> 931955.499 | AZ52: =IF(AX52<>0,SUM($BA$10:BA52),IF(AX51=Param!$EQ$8,AZ51,0)) -> 0 | BA52: =IFERROR(IF(B52="","",IF(AX52<>0,HojaMaestra!$M$16/Param!$EQ$8,0)),0) -> 0 | BC52: =IF(B52="","",M52/(1+Param!$T$8)) -> 737.1042077 | BE52: 0 | BG52: =IFERROR(IF(B52<=HojaMaestra!$M$19,J52+K52,IF(D52<(AI52+J52+K52+L52),D52,(AI52+J52+K52+L52))),0) -> 8176.565713 | BI52: =IFERROR(IF(B52="","",G52+H52+I52+IF(HojaMaestra!$A$2=15,BC52,M52)),0) -> 17203.22834 | BK52: =IFERROR(IF(B52="","",IF(B52<=HojaMaestra!$M$19,O52,AY52)),0) -> 931955.499 | BM52: =HojaMaestra!$A$4*12 -> 120 | BO52: =IF(B52<=Param!$EQ$8,HojaMaestra!$A$4*12+Param!$EQ$8,HojaMaestra!$A$4*12) -> 120 | BQ52: =IF(A52<=HojaMaestra!$M$19,HojaMaestra!$A$4*12+HojaMaestra!$M$19,HojaMaestra!$A$4*12) -> 120 | BS52: 43 | BU52: 0 | BW52: 395.1491316 | BX52: 98.7872829 | BY52: 279.5866497 | BZ52: 81.5178168 | CA52: 70.27398 | CB52: 843.7970442 | CC52: =IF(D52="","",IF(AX52=0,G52+H52+(I52/(1+Param!$T$8))+CB52,0)) -> 17157.50174
A53: 44 | B53: 44 | C53: 2027-07-01 | D53: =IFERROR(IF(B53="","",IF(OR(HojaMaestra!$A$2=12,HojaMaestra!$A$2=13),IF(AZ53<>0,AZ53,AY53),IF(HojaMaestra!$C$18="SI",AY53,AY53))),0) -> 923778.9333 | E53: 16366.71137 | F53: =IF(B53="","",HojaMaestra!$M$14) -> 0.102 | G53: =IFERROR(IF(B53="","",IF(D53=0,0,IF(HojaMaestra!$A$2<>15,D53*F53*AV53/360,(D53*F53*AV53/360)*(1+Param!$T$8)))),0) -> 8113.858298 | H53: 8252.853071 | I53: =IF(B53="","",IF(D53=0,0,VLOOKUP(HojaMaestra!$C$25,Param!$AJ$8:$AM$9,2,0))) -> 250 | J53: =IF(B53="","",IF(D53=0,0,IF(AND(HojaMaestra!$A$2=2,MOD(T53,2)=0),HojaMaestra!$C$16,0))) -> 0 | L53: =IFERROR(IF(B53="","",K53*VLOOKUP(HojaMaestra!$C$25,Param!$AJ$8:$AM$9,4,0)*(1+Param!$T$8)),"Sin Datos") -> 0 | M53: 848.2543314 | N53: =IFERROR(IF(B53="","",IF(AND(OR(HojaMaestra!$A$2=12,HojaMaestra!$A$2=13),B54<=Param!$EQ$8+1),BU53,IF(B54<=HojaMaestra!$M$19+1,0,BI53))),0) -> 17464.9657 | O53: 915526.0802 | R53: 1.00133333 | S53: 31 | T53: 8 | U53: =IF(B53="","",D53*HLOOKUP($V$7,Param!$C$11:$F$14,2,0)/1000) -> 391.6822677 | V53: =IF(B53="","",D53*HLOOKUP($V$7,Param!$C$11:$F$14,3,0)/1000) -> 97.92056693 | W53: =IF(B53="","",IF($AB$3="SI",D53*HLOOKUP($V$7,Param!$C$11:$F$14,4,0)/1000,0)) -> 277.13368 | X53: =IF($X$8="Si",$Q$6*Param!$D$9*Param!$D$8/1000+(($Q$6*Param!$D$9*Param!$D$8/1000)*Param!$T$8),0) -> 81.5178168 | Y53: =X53/(1+Param!$T$8) -> 70.27398 | Z53: 837.0104946 | AA53: =IFERROR(IF(D53="","",G53+H53+(I53/(1+Param!$T$8))+Z53),0) -> 17419.2391 | AD53: =(IF(B53<=HojaMaestra!$M$19,$D$10,IF($AN$9=0,$D$10,$AN$9))*($F$10*100))/1200 -> 10327.5 | AE53: =IF(B52<=HojaMaestra!$M$19,$AD$10+$U$10+$V$10+$W$10,IF(HojaMaestra!$M$19=0,$AD$10+$U$10+$V$10+$W$10,$AP$9)) -> 11335.95 | AF53: 11.196 | AG53: =(IF($K$9="Prepagos a Capital",IF(B53<=HojaMaestra!$M$19,$D$10,IF($AN$9=0,$D$10,$AN$9)),AK53)*$AF$10/1200)/(1-(1/((1+$AF$10/1200)^IF($K$9="Prepagos a Capital",$AL$10,AM53)))) -> 16871.71052 | AH53: 16953.22834 | AI53: =IFERROR(IF(B53<=HojaMaestra!$M$19,0,IF(D53<(AH53-M53-(D53*(F53*100)/1200)),D53 - ( J53+K53+L53),(AH53-M53-(D53*(F53*100)/1200)))),0) -> 8252.853071 | AK53: =IFERROR(IF(K52>0,D53,IF(B52=HojaMaestra!$M$19,D53,AK52)),0) -> 1215000 | AL53: =IF(K52>0,$AL$10-B52,(AL52-IF(B52=HojaMaestra!$M$19,HojaMaestra!$M$19,0))) -> 120 | AM53: =AL53+HojaMaestra!$M$19 -> 120 | AN53: =IF(AT52=HojaMaestra!$M$19,$D53,0) -> 0 | AP53: =IF(B52=HojaMaestra!$M$19,AD53+U53+V53+W53,0) -> 0 | AR53: =IF(B52=HojaMaestra!$M$19,AT52,0) -> 0 | AT53: 44 | AV53: 31 | AX53: =IFERROR(IF(Param!$EQ$8>=B53,B53,0),0) -> 0 | AY53: =IFERROR(IF(B53="","",IF(HojaMaestra!$M$19>=B52,$AY$10+SUM($G$10:G52)+SUM($M$10:M52)+SUM($I$10:I52),O52)),0) -> 923778.9333 | AZ53: =IF(AX53<>0,SUM($BA$10:BA53),IF(AX52=Param!$EQ$8,AZ52,0)) -> 0 | BA53: =IFERROR(IF(B53="","",IF(AX53<>0,HojaMaestra!$M$16/Param!$EQ$8,0)),0) -> 0 | BC53: =IF(B53="","",M53/(1+Param!$T$8)) -> 731.253734 | BE53: 0 | BG53: =IFERROR(IF(B53<=HojaMaestra!$M$19,J53+K53,IF(D53<(AI53+J53+K53+L53),D53,(AI53+J53+K53+L53))),0) -> 8252.853071 | BI53: =IFERROR(IF(B53="","",G53+H53+I53+IF(HojaMaestra!$A$2=15,BC53,M53)),0) -> 17464.9657 | BK53: =IFERROR(IF(B53="","",IF(B53<=HojaMaestra!$M$19,O53,AY53)),0) -> 923778.9333 | BM53: =HojaMaestra!$A$4*12 -> 120 | BO53: =IF(B53<=Param!$EQ$8,HojaMaestra!$A$4*12+Param!$EQ$8,HojaMaestra!$A$4*12) -> 120 | BQ53: =IF(A53<=HojaMaestra!$M$19,HojaMaestra!$A$4*12+HojaMaestra!$M$19,HojaMaestra!$A$4*12) -> 120 | BS53: 44 | BU53: 0 | BW53: 391.6822677 | BX53: 97.92056693 | BY53: 277.13368 | BZ53: 81.5178168 | CA53: 70.27398 | CB53: 837.0104946 | CC53: =IF(D53="","",IF(AX53=0,G53+H53+(I53/(1+Param!$T$8))+CB53,0)) -> 17419.2391
A54: 45 | B54: 45 | C54: 2027-08-01 | D54: =IFERROR(IF(B54="","",IF(OR(HojaMaestra!$A$2=12,HojaMaestra!$A$2=13),IF(AZ54<>0,AZ54,AY54),IF(HojaMaestra!$C$18="SI",AY54,AY54))),0) -> 915526.0802 | E54: 16371.22293 | F54: =IF(B54="","",HojaMaestra!$M$14) -> 0.102 | G54: =IFERROR(IF(B54="","",IF(D54=0,0,IF(HojaMaestra!$A$2<>15,D54*F54*AV54/360,(D54*F54*AV54/360)*(1+Param!$T$8)))),0) -> 8041.370738 | H54: 8329.852191 | I54: =IF(B54="","",IF(D54=0,0,VLOOKUP(HojaMaestra!$C$25,Param!$AJ$8:$AM$9,2,0))) -> 250 | J54: =IF(B54="","",IF(D54=0,0,IF(AND(HojaMaestra!$A$2=2,MOD(T54,2)=0),HojaMaestra!$C$16,0))) -> 0 | L54: =IFERROR(IF(B54="","",K54*VLOOKUP(HojaMaestra!$C$25,Param!$AJ$8:$AM$9,4,0)*(1+Param!$T$8)),"Sin Datos") -> 0 | M54: 841.4044634 | N54: =IFERROR(IF(B54="","",IF(AND(OR(HojaMaestra!$A$2=12,HojaMaestra!$A$2=13),B55<=Param!$EQ$8+1),BU54,IF(B55<=HojaMaestra!$M$19+1,0,BI54))),0) -> 17462.62739 | O54: 907196.228 | R54: 1.00133333 | S54: 30 | T54: 9 | U54: =IF(B54="","",D54*HLOOKUP($V$7,Param!$C$11:$F$14,2,0)/1000) -> 388.183058 | V54: =IF(B54="","",D54*HLOOKUP($V$7,Param!$C$11:$F$14,3,0)/1000) -> 97.04576451 | W54: =IF(B54="","",IF($AB$3="SI",D54*HLOOKUP($V$7,Param!$C$11:$F$14,4,0)/1000,0)) -> 274.6578241 | X54: =IF($X$8="Si",$Q$6*Param!$D$9*Param!$D$8/1000+(($Q$6*Param!$D$9*Param!$D$8/1000)*Param!$T$8),0) -> 81.5178168 | Y54: =X54/(1+Param!$T$8) -> 70.27398 | Z54: 830.1606266 | AA54: =IFERROR(IF(D54="","",G54+H54+(I54/(1+Param!$T$8))+Z54),0) -> 17416.9008 | AD54: =(IF(B54<=HojaMaestra!$M$19,$D$10,IF($AN$9=0,$D$10,$AN$9))*($F$10*100))/1200 -> 10327.5 | AE54: =IF(B53<=HojaMaestra!$M$19,$AD$10+$U$10+$V$10+$W$10,IF(HojaMaestra!$M$19=0,$AD$10+$U$10+$V$10+$W$10,$AP$9)) -> 11335.95 | AF54: 11.196 | AG54: =(IF($K$9="Prepagos a Capital",IF(B54<=HojaMaestra!$M$19,$D$10,IF($AN$9=0,$D$10,$AN$9)),AK54)*$AF$10/1200)/(1-(1/((1+$AF$10/1200)^IF($K$9="Prepagos a Capital",$AL$10,AM54)))) -> 16871.71052 | AH54: 16953.22834 | AI54: =IFERROR(IF(B54<=HojaMaestra!$M$19,0,IF(D54<(AH54-M54-(D54*(F54*100)/1200)),D54 - ( J54+K54+L54),(AH54-M54-(D54*(F54*100)/1200)))),0) -> 8329.852191 | AK54: =IFERROR(IF(K53>0,D54,IF(B53=HojaMaestra!$M$19,D54,AK53)),0) -> 1215000 | AL54: =IF(K53>0,$AL$10-B53,(AL53-IF(B53=HojaMaestra!$M$19,HojaMaestra!$M$19,0))) -> 120 | AM54: =AL54+HojaMaestra!$M$19 -> 120 | AN54: =IF(AT53=HojaMaestra!$M$19,$D54,0) -> 0 | AP54: =IF(B53=HojaMaestra!$M$19,AD54+U54+V54+W54,0) -> 0 | AR54: =IF(B53=HojaMaestra!$M$19,AT53,0) -> 0 | AT54: 45 | AV54: 31 | AX54: =IFERROR(IF(Param!$EQ$8>=B54,B54,0),0) -> 0 | AY54: =IFERROR(IF(B54="","",IF(HojaMaestra!$M$19>=B53,$AY$10+SUM($G$10:G53)+SUM($M$10:M53)+SUM($I$10:I53),O53)),0) -> 915526.0802 | AZ54: =IF(AX54<>0,SUM($BA$10:BA54),IF(AX53=Param!$EQ$8,AZ53,0)) -> 0 | BA54: =IFERROR(IF(B54="","",IF(AX54<>0,HojaMaestra!$M$16/Param!$EQ$8,0)),0) -> 0 | BC54: =IF(B54="","",M54/(1+Param!$T$8)) -> 725.3486753 | BE54: 0 | BG54: =IFERROR(IF(B54<=HojaMaestra!$M$19,J54+K54,IF(D54<(AI54+J54+K54+L54),D54,(AI54+J54+K54+L54))),0) -> 8329.852191 | BI54: =IFERROR(IF(B54="","",G54+H54+I54+IF(HojaMaestra!$A$2=15,BC54,M54)),0) -> 17462.62739 | BK54: =IFERROR(IF(B54="","",IF(B54<=HojaMaestra!$M$19,O54,AY54)),0) -> 915526.0802 | BM54: =HojaMaestra!$A$4*12 -> 120 | BO54: =IF(B54<=Param!$EQ$8,HojaMaestra!$A$4*12+Param!$EQ$8,HojaMaestra!$A$4*12) -> 120 | BQ54: =IF(A54<=HojaMaestra!$M$19,HojaMaestra!$A$4*12+HojaMaestra!$M$19,HojaMaestra!$A$4*12) -> 120 | BS54: 45 | BU54: 0 | BW54: 388.183058 | BX54: 97.04576451 | BY54: 274.6578241 | BZ54: 81.5178168 | CA54: 70.27398 | CB54: 830.1606266 | CC54: =IF(D54="","",IF(AX54=0,G54+H54+(I54/(1+Param!$T$8))+CB54,0)) -> 17416.9008
A55: 46 | B55: 46 | C55: 2027-09-01 | D55: =IFERROR(IF(B55="","",IF(OR(HojaMaestra!$A$2=12,HojaMaestra!$A$2=13),IF(AZ55<>0,AZ55,AY55),IF(HojaMaestra!$C$18="SI",AY55,AY55))),0) -> 907196.228 | E55: 16118.73765 | F55: =IF(B55="","",HojaMaestra!$M$14) -> 0.102 | G55: =IFERROR(IF(B55="","",IF(D55=0,0,IF(HojaMaestra!$A$2<>15,D55*F55*AV55/360,(D55*F55*AV55/360)*(1+Param!$T$8)))),0) -> 7711.167938 | H55: 8407.569711 | I55: =IF(B55="","",IF(D55=0,0,VLOOKUP(HojaMaestra!$C$25,Param!$AJ$8:$AM$9,2,0))) -> 250 | J55: =IF(B55="","",IF(D55=0,0,IF(AND(HojaMaestra!$A$2=2,MOD(T55,2)=0),HojaMaestra!$C$16,0))) -> 0 | L55: =IFERROR(IF(B55="","",K55*VLOOKUP(HojaMaestra!$C$25,Param!$AJ$8:$AM$9,4,0)*(1+Param!$T$8)),"Sin Datos") -> 0 | M55: 834.4906861 | N55: =IFERROR(IF(B55="","",IF(AND(OR(HojaMaestra!$A$2=12,HojaMaestra!$A$2=13),B56<=Param!$EQ$8+1),BU55,IF(B56<=HojaMaestra!$M$19+1,0,BI55))),0) -> 17203.22834 | O55: 898788.6583 | R55: 1.00133333 | S55: 31 | T55: 10 | U55: =IF(B55="","",D55*HLOOKUP($V$7,Param!$C$11:$F$14,2,0)/1000) -> 384.6512007 | V55: =IF(B55="","",D55*HLOOKUP($V$7,Param!$C$11:$F$14,3,0)/1000) -> 96.16280017 | W55: =IF(B55="","",IF($AB$3="SI",D55*HLOOKUP($V$7,Param!$C$11:$F$14,4,0)/1000,0)) -> 272.1588684 | X55: =IF($X$8="Si",$Q$6*Param!$D$9*Param!$D$8/1000+(($Q$6*Param!$D$9*Param!$D$8/1000)*Param!$T$8),0) -> 81.5178168 | Y55: =X55/(1+Param!$T$8) -> 70.27398 | Z55: 823.2468493 | AA55: =IFERROR(IF(D55="","",G55+H55+(I55/(1+Param!$T$8))+Z55),0) -> 17157.50174 | AD55: =(IF(B55<=HojaMaestra!$M$19,$D$10,IF($AN$9=0,$D$10,$AN$9))*($F$10*100))/1200 -> 10327.5 | AE55: =IF(B54<=HojaMaestra!$M$19,$AD$10+$U$10+$V$10+$W$10,IF(HojaMaestra!$M$19=0,$AD$10+$U$10+$V$10+$W$10,$AP$9)) -> 11335.95 | AF55: 11.196 | AG55: =(IF($K$9="Prepagos a Capital",IF(B55<=HojaMaestra!$M$19,$D$10,IF($AN$9=0,$D$10,$AN$9)),AK55)*$AF$10/1200)/(1-(1/((1+$AF$10/1200)^IF($K$9="Prepagos a Capital",$AL$10,AM55)))) -> 16871.71052 | AH55: 16953.22834 | AI55: =IFERROR(IF(B55<=HojaMaestra!$M$19,0,IF(D55<(AH55-M55-(D55*(F55*100)/1200)),D55 - ( J55+K55+L55),(AH55-M55-(D55*(F55*100)/1200)))),0) -> 8407.569711 | AK55: =IFERROR(IF(K54>0,D55,IF(B54=HojaMaestra!$M$19,D55,AK54)),0) -> 1215000 | AL55: =IF(K54>0,$AL$10-B54,(AL54-IF(B54=HojaMaestra!$M$19,HojaMaestra!$M$19,0))) -> 120 | AM55: =AL55+HojaMaestra!$M$19 -> 120 | AN55: =IF(AT54=HojaMaestra!$M$19,$D55,0) -> 0 | AP55: =IF(B54=HojaMaestra!$M$19,AD55+U55+V55+W55,0) -> 0 | AR55: =IF(B54=HojaMaestra!$M$19,AT54,0) -> 0 | AT55: 46 | AV55: 30 | AX55: =IFERROR(IF(Param!$EQ$8>=B55,B55,0),0) -> 0 | AY55: =IFERROR(IF(B55="","",IF(HojaMaestra!$M$19>=B54,$AY$10+SUM($G$10:G54)+SUM($M$10:M54)+SUM($I$10:I54),O54)),0) -> 907196.228 | AZ55: =IF(AX55<>0,SUM($BA$10:BA55),IF(AX54=Param!$EQ$8,AZ54,0)) -> 0 | BA55: =IFERROR(IF(B55="","",IF(AX55<>0,HojaMaestra!$M$16/Param!$EQ$8,0)),0) -> 0 | BC55: =IF(B55="","",M55/(1+Param!$T$8)) -> 719.3885225 | BE55: 0 | BG55: =IFERROR(IF(B55<=HojaMaestra!$M$19,J55+K55,IF(D55<(AI55+J55+K55+L55),D55,(AI55+J55+K55+L55))),0) -> 8407.569711 | BI55: =IFERROR(IF(B55="","",G55+H55+I55+IF(HojaMaestra!$A$2=15,BC55,M55)),0) -> 17203.22834 | BK55: =IFERROR(IF(B55="","",IF(B55<=HojaMaestra!$M$19,O55,AY55)),0) -> 907196.228 | BM55: =HojaMaestra!$A$4*12 -> 120 | BO55: =IF(B55<=Param!$EQ$8,HojaMaestra!$A$4*12+Param!$EQ$8,HojaMaestra!$A$4*12) -> 120 | BQ55: =IF(A55<=HojaMaestra!$M$19,HojaMaestra!$A$4*12+HojaMaestra!$M$19,HojaMaestra!$A$4*12) -> 120 | BS55: 46 | BU55: 0 | BW55: 384.6512007 | BX55: 96.16280017 | BY55: 272.1588684 | BZ55: 81.5178168 | CA55: 70.27398 | CB55: 823.2468493 | CC55: =IF(D55="","",IF(AX55=0,G55+H55+(I55/(1+Param!$T$8))+CB55,0)) -> 17157.50174
A56: 47 | B56: 47 | C56: 2027-10-01 | D56: =IFERROR(IF(B56="","",IF(OR(HojaMaestra!$A$2=12,HojaMaestra!$A$2=13),IF(AZ56<>0,AZ56,AY56),IF(HojaMaestra!$C$18="SI",AY56,AY56))),0) -> 898788.6583 | E56: 16380.37272 | F56: =IF(B56="","",HojaMaestra!$M$14) -> 0.102 | G56: =IFERROR(IF(B56="","",IF(D56=0,0,IF(HojaMaestra!$A$2<>15,D56*F56*AV56/360,(D56*F56*AV56/360)*(1+Param!$T$8)))),0) -> 7894.360382 | H56: 8486.012337 | I56: =IF(B56="","",IF(D56=0,0,VLOOKUP(HojaMaestra!$C$25,Param!$AJ$8:$AM$9,2,0))) -> 250 | J56: =IF(B56="","",IF(D56=0,0,IF(AND(HojaMaestra!$A$2=2,MOD(T56,2)=0),HojaMaestra!$C$16,0))) -> 0 | L56: =IFERROR(IF(B56="","",K56*VLOOKUP(HojaMaestra!$C$25,Param!$AJ$8:$AM$9,4,0)*(1+Param!$T$8)),"Sin Datos") -> 0 | M56: 827.5124032 | N56: =IFERROR(IF(B56="","",IF(AND(OR(HojaMaestra!$A$2=12,HojaMaestra!$A$2=13),B57<=Param!$EQ$8+1),BU56,IF(B57<=HojaMaestra!$M$19+1,0,BI56))),0) -> 17457.88512 | O56: 890302.646 | R56: 1.00133333 | S56: 30 | T56: 11 | U56: =IF(B56="","",D56*HLOOKUP($V$7,Param!$C$11:$F$14,2,0)/1000) -> 381.0863911 | V56: =IF(B56="","",D56*HLOOKUP($V$7,Param!$C$11:$F$14,3,0)/1000) -> 95.27159778 | W56: =IF(B56="","",IF($AB$3="SI",D56*HLOOKUP($V$7,Param!$C$11:$F$14,4,0)/1000,0)) -> 269.6365975 | X56: =IF($X$8="Si",$Q$6*Param!$D$9*Param!$D$8/1000+(($Q$6*Param!$D$9*Param!$D$8/1000)*Param!$T$8),0) -> 81.5178168 | Y56: =X56/(1+Param!$T$8) -> 70.27398 | Z56: 816.2685664 | AA56: =IFERROR(IF(D56="","",G56+H56+(I56/(1+Param!$T$8))+Z56),0) -> 17412.15853 | AD56: =(IF(B56<=HojaMaestra!$M$19,$D$10,IF($AN$9=0,$D$10,$AN$9))*($F$10*100))/1200 -> 10327.5 | AE56: =IF(B55<=HojaMaestra!$M$19,$AD$10+$U$10+$V$10+$W$10,IF(HojaMaestra!$M$19=0,$AD$10+$U$10+$V$10+$W$10,$AP$9)) -> 11335.95 | AF56: 11.196 | AG56: =(IF($K$9="Prepagos a Capital",IF(B56<=HojaMaestra!$M$19,$D$10,IF($AN$9=0,$D$10,$AN$9)),AK56)*$AF$10/1200)/(1-(1/((1+$AF$10/1200)^IF($K$9="Prepagos a Capital",$AL$10,AM56)))) -> 16871.71052 | AH56: 16953.22834 | AI56: =IFERROR(IF(B56<=HojaMaestra!$M$19,0,IF(D56<(AH56-M56-(D56*(F56*100)/1200)),D56 - ( J56+K56+L56),(AH56-M56-(D56*(F56*100)/1200)))),0) -> 8486.012337 | AK56: =IFERROR(IF(K55>0,D56,IF(B55=HojaMaestra!$M$19,D56,AK55)),0) -> 1215000 | AL56: =IF(K55>0,$AL$10-B55,(AL55-IF(B55=HojaMaestra!$M$19,HojaMaestra!$M$19,0))) -> 120 | AM56: =AL56+HojaMaestra!$M$19 -> 120 | AN56: =IF(AT55=HojaMaestra!$M$19,$D56,0) -> 0 | AP56: =IF(B55=HojaMaestra!$M$19,AD56+U56+V56+W56,0) -> 0 | AR56: =IF(B55=HojaMaestra!$M$19,AT55,0) -> 0 | AT56: 47 | AV56: 31 | AX56: =IFERROR(IF(Param!$EQ$8>=B56,B56,0),0) -> 0 | AY56: =IFERROR(IF(B56="","",IF(HojaMaestra!$M$19>=B55,$AY$10+SUM($G$10:G55)+SUM($M$10:M55)+SUM($I$10:I55),O55)),0) -> 898788.6583 | AZ56: =IF(AX56<>0,SUM($BA$10:BA56),IF(AX55=Param!$EQ$8,AZ55,0)) -> 0 | BA56: =IFERROR(IF(B56="","",IF(AX56<>0,HojaMaestra!$M$16/Param!$EQ$8,0)),0) -> 0 | BC56: =IF(B56="","",M56/(1+Param!$T$8)) -> 713.3727614 | BE56: 0 | BG56: =IFERROR(IF(B56<=HojaMaestra!$M$19,J56+K56,IF(D56<(AI56+J56+K56+L56),D56,(AI56+J56+K56+L56))),0) -> 8486.012337 | BI56: =IFERROR(IF(B56="","",G56+H56+I56+IF(HojaMaestra!$A$2=15,BC56,M56)),0) -> 17457.88512 | BK56: =IFERROR(IF(B56="","",IF(B56<=HojaMaestra!$M$19,O56,AY56)),0) -> 898788.6583 | BM56: =HojaMaestra!$A$4*12 -> 120 | BO56: =IF(B56<=Param!$EQ$8,HojaMaestra!$A$4*12+Param!$EQ$8,HojaMaestra!$A$4*12) -> 120 | BQ56: =IF(A56<=HojaMaestra!$M$19,HojaMaestra!$A$4*12+HojaMaestra!$M$19,HojaMaestra!$A$4*12) -> 120 | BS56: 47 | BU56: 0 | BW56: 381.0863911 | BX56: 95.27159778 | BY56: 269.6365975 | BZ56: 81.5178168 | CA56: 70.27398 | CB56: 816.2685664 | CC56: =IF(D56="","",IF(AX56=0,G56+H56+(I56/(1+Param!$T$8))+CB56,0)) -> 17412.15853
A57: 48 | B57: 48 | C57: 2027-11-01 | D57: =IFERROR(IF(B57="","",IF(OR(HojaMaestra!$A$2=12,HojaMaestra!$A$2=13),IF(AZ57<>0,AZ57,AY57),IF(HojaMaestra!$C$18="SI",AY57,AY57))),0) -> 890302.646 | E57: 16132.75932 | F57: =IF(B57="","",HojaMaestra!$M$14) -> 0.102 | G57: =IFERROR(IF(B57="","",IF(D57=0,0,IF(HojaMaestra!$A$2<>15,D57*F57*AV57/360,(D57*F57*AV57/360)*(1+Param!$T$8)))),0) -> 7567.572491 | H57: 8565.186832 | I57: =IF(B57="","",IF(D57=0,0,VLOOKUP(HojaMaestra!$C$25,Param!$AJ$8:$AM$9,2,0))) -> 250 | J57: =IF(B57="","",IF(D57=0,0,IF(AND(HojaMaestra!$A$2=2,MOD(T57,2)=0),HojaMaestra!$C$16,0))) -> 0 | L57: =IFERROR(IF(B57="","",K57*VLOOKUP(HojaMaestra!$C$25,Param!$AJ$8:$AM$9,4,0)*(1+Param!$T$8)),"Sin Datos") -> 0 | M57: 820.469013 | N57: =IFERROR(IF(B57="","",IF(AND(OR(HojaMaestra!$A$2=12,HojaMaestra!$A$2=13),B58<=Param!$EQ$8+1),BU57,IF(B58<=HojaMaestra!$M$19+1,0,BI57))),0) -> 17203.22834 | O57: 881737.4592 | P57: -0.01850970995 | R57: 1.00133333 | S57: 31 | T57: 12 | U57: =IF(B57="","",D57*HLOOKUP($V$7,Param!$C$11:$F$14,2,0)/1000) -> 377.4883219 | V57: =IF(B57="","",D57*HLOOKUP($V$7,Param!$C$11:$F$14,3,0)/1000) -> 94.37208048 | W57: =IF(B57="","",IF($AB$3="SI",D57*HLOOKUP($V$7,Param!$C$11:$F$14,4,0)/1000,0)) -> 267.0907938 | X57: =IF($X$8="Si",$Q$6*Param!$D$9*Param!$D$8/1000+(($Q$6*Param!$D$9*Param!$D$8/1000)*Param!$T$8),0) -> 81.5178168 | Y57: =X57/(1+Param!$T$8) -> 70.27398 | Z57: 809.2251762 | AA57: =IFERROR(IF(D57="","",G57+H57+(I57/(1+Param!$T$8))+Z57),0) -> 17157.50174 | AD57: =(IF(B57<=HojaMaestra!$M$19,$D$10,IF($AN$9=0,$D$10,$AN$9))*($F$10*100))/1200 -> 10327.5 | AE57: =IF(B56<=HojaMaestra!$M$19,$AD$10+$U$10+$V$10+$W$10,IF(HojaMaestra!$M$19=0,$AD$10+$U$10+$V$10+$W$10,$AP$9)) -> 11335.95 | AF57: 11.196 | AG57: =(IF($K$9="Prepagos a Capital",IF(B57<=HojaMaestra!$M$19,$D$10,IF($AN$9=0,$D$10,$AN$9)),AK57)*$AF$10/1200)/(1-(1/((1+$AF$10/1200)^IF($K$9="Prepagos a Capital",$AL$10,AM57)))) -> 16871.71052 | AH57: 16953.22834 | AI57: =IFERROR(IF(B57<=HojaMaestra!$M$19,0,IF(D57<(AH57-M57-(D57*(F57*100)/1200)),D57 - ( J57+K57+L57),(AH57-M57-(D57*(F57*100)/1200)))),0) -> 8565.186832 | AK57: =IFERROR(IF(K56>0,D57,IF(B56=HojaMaestra!$M$19,D57,AK56)),0) -> 1215000 | AL57: =IF(K56>0,$AL$10-B56,(AL56-IF(B56=HojaMaestra!$M$19,HojaMaestra!$M$19,0))) -> 120 | AM57: =AL57+HojaMaestra!$M$19 -> 120 | AN57: =IF(AT56=HojaMaestra!$M$19,$D57,0) -> 0 | AP57: =IF(B56=HojaMaestra!$M$19,AD57+U57+V57+W57,0) -> 0 | AR57: =IF(B56=HojaMaestra!$M$19,AT56,0) -> 0 | AT57: 48 | AV57: 30 | AX57: =IFERROR(IF(Param!$EQ$8>=B57,B57,0),0) -> 0 | AY57: =IFERROR(IF(B57="","",IF(HojaMaestra!$M$19>=B56,$AY$10+SUM($G$10:G56)+SUM($M$10:M56)+SUM($I$10:I56),O56)),0) -> 890302.646 | AZ57: =IF(AX57<>0,SUM($BA$10:BA57),IF(AX56=Param!$EQ$8,AZ56,0)) -> 0 | BA57: =IFERROR(IF(B57="","",IF(AX57<>0,HojaMaestra!$M$16/Param!$EQ$8,0)),0) -> 0 | BC57: =IF(B57="","",M57/(1+Param!$T$8)) -> 707.3008733 | BE57: 0 | BG57: =IFERROR(IF(B57<=HojaMaestra!$M$19,J57+K57,IF(D57<(AI57+J57+K57+L57),D57,(AI57+J57+K57+L57))),0) -> 8565.186832 | BI57: =IFERROR(IF(B57="","",G57+H57+I57+IF(HojaMaestra!$A$2=15,BC57,M57)),0) -> 17203.22834 | BK57: =IFERROR(IF(B57="","",IF(B57<=HojaMaestra!$M$19,O57,AY57)),0) -> 890302.646 | BM57: =HojaMaestra!$A$4*12 -> 120 | BO57: =IF(B57<=Param!$EQ$8,HojaMaestra!$A$4*12+Param!$EQ$8,HojaMaestra!$A$4*12) -> 120 | BQ57: =IF(A57<=HojaMaestra!$M$19,HojaMaestra!$A$4*12+HojaMaestra!$M$19,HojaMaestra!$A$4*12) -> 120 | BS57: 48 | BU57: 0 | BW57: 377.4883219 | BX57: 94.37208048 | BY57: 267.0907938 | BZ57: 81.5178168 | CA57: 70.27398 | CB57: 809.2251762 | CC57: =IF(D57="","",IF(AX57=0,G57+H57+(I57/(1+Param!$T$8))+CB57,0)) -> 17157.50174
A58: 49 | B58: 49 | C58: 2027-12-01 | D58: =IFERROR(IF(B58="","",IF(OR(HojaMaestra!$A$2=12,HojaMaestra!$A$2=13),IF(AZ58<>0,AZ58,AY58),IF(HojaMaestra!$C$18="SI",AY58,AY58))),0) -> 881737.4592 | E58: 16389.69404 | F58: =IF(B58="","",HojaMaestra!$M$14) -> 0.102 | G58: =IFERROR(IF(B58="","",IF(D58=0,0,IF(HojaMaestra!$A$2<>15,D58*F58*AV58/360,(D58*F58*AV58/360)*(1+Param!$T$8)))),0) -> 7744.594016 | H58: 8645.100025 | I58: =IF(B58="","",IF(D58=0,0,VLOOKUP(HojaMaestra!$C$25,Param!$AJ$8:$AM$9,2,0))) -> 250 | J58: =IF(B58="","",IF(D58=0,0,IF(AND(HojaMaestra!$A$2=2,MOD(T58,2)=0),HojaMaestra!$C$16,0))) -> 0 | L58: =IFERROR(IF(B58="","",K58*VLOOKUP(HojaMaestra!$C$25,Param!$AJ$8:$AM$9,4,0)*(1+Param!$T$8)),"Sin Datos") -> 0 | M58: 813.3599079 | N58: =IFERROR(IF(B58="","",IF(AND(OR(HojaMaestra!$A$2=12,HojaMaestra!$A$2=13),B59<=Param!$EQ$8+1),BU58,IF(B59<=HojaMaestra!$M$19+1,0,BI58))),0) -> 17453.05395 | O58: 873092.3591 | R58: 1.00133333 | S58: 31 | T58: 1 | U58: =IF(B58="","",D58*HLOOKUP($V$7,Param!$C$11:$F$14,2,0)/1000) -> 373.8566827 | V58: =IF(B58="","",D58*HLOOKUP($V$7,Param!$C$11:$F$14,3,0)/1000) -> 93.46417067 | W58: =IF(B58="","",IF($AB$3="SI",D58*HLOOKUP($V$7,Param!$C$11:$F$14,4,0)/1000,0)) -> 264.5212377 | X58: =IF($X$8="Si",$Q$6*Param!$D$9*Param!$D$8/1000+(($Q$6*Param!$D$9*Param!$D$8/1000)*Param!$T$8),0) -> 81.5178168 | Y58: =X58/(1+Param!$T$8) -> 70.27398 | Z58: 802.1160711 | AA58: =IFERROR(IF(D58="","",G58+H58+(I58/(1+Param!$T$8))+Z58),0) -> 17407.32735 | AD58: =(IF(B58<=HojaMaestra!$M$19,$D$10,IF($AN$9=0,$D$10,$AN$9))*($F$10*100))/1200 -> 10327.5 | AE58: =IF(B57<=HojaMaestra!$M$19,$AD$10+$U$10+$V$10+$W$10,IF(HojaMaestra!$M$19=0,$AD$10+$U$10+$V$10+$W$10,$AP$9)) -> 11335.95 | AF58: 11.196 | AG58: =(IF($K$9="Prepagos a Capital",IF(B58<=HojaMaestra!$M$19,$D$10,IF($AN$9=0,$D$10,$AN$9)),AK58)*$AF$10/1200)/(1-(1/((1+$AF$10/1200)^IF($K$9="Prepagos a Capital",$AL$10,AM58)))) -> 16871.71052 | AH58: 16953.22834 | AI58: =IFERROR(IF(B58<=HojaMaestra!$M$19,0,IF(D58<(AH58-M58-(D58*(F58*100)/1200)),D58 - ( J58+K58+L58),(AH58-M58-(D58*(F58*100)/1200)))),0) -> 8645.100025 | AK58: =IFERROR(IF(K57>0,D58,IF(B57=HojaMaestra!$M$19,D58,AK57)),0) -> 1215000 | AL58: =IF(K57>0,$AL$10-B57,(AL57-IF(B57=HojaMaestra!$M$19,HojaMaestra!$M$19,0))) -> 120 | AM58: =AL58+HojaMaestra!$M$19 -> 120 | AN58: =IF(AT57=HojaMaestra!$M$19,$D58,0) -> 0 | AP58: =IF(B57=HojaMaestra!$M$19,AD58+U58+V58+W58,0) -> 0 | AR58: =IF(B57=HojaMaestra!$M$19,AT57,0) -> 0 | AT58: 49 | AV58: 31 | AX58: =IFERROR(IF(Param!$EQ$8>=B58,B58,0),0) -> 0 | AY58: =IFERROR(IF(B58="","",IF(HojaMaestra!$M$19>=B57,$AY$10+SUM($G$10:G57)+SUM($M$10:M57)+SUM($I$10:I57),O57)),0) -> 881737.4592 | AZ58: =IF(AX58<>0,SUM($BA$10:BA58),IF(AX57=Param!$EQ$8,AZ57,0)) -> 0 | BA58: =IFERROR(IF(B58="","",IF(AX58<>0,HojaMaestra!$M$16/Param!$EQ$8,0)),0) -> 0 | BC58: =IF(B58="","",M58/(1+Param!$T$8)) -> 701.1723344 | BE58: 0 | BG58: =IFERROR(IF(B58<=HojaMaestra!$M$19,J58+K58,IF(D58<(AI58+J58+K58+L58),D58,(AI58+J58+K58+L58))),0) -> 8645.100025 | BI58: =IFERROR(IF(B58="","",G58+H58+I58+IF(HojaMaestra!$A$2=15,BC58,M58)),0) -> 17453.05395 | BK58: =IFERROR(IF(B58="","",IF(B58<=HojaMaestra!$M$19,O58,AY58)),0) -> 881737.4592 | BM58: =HojaMaestra!$A$4*12 -> 120 | BO58: =IF(B58<=Param!$EQ$8,HojaMaestra!$A$4*12+Param!$EQ$8,HojaMaestra!$A$4*12) -> 120 | BQ58: =IF(A58<=HojaMaestra!$M$19,HojaMaestra!$A$4*12+HojaMaestra!$M$19,HojaMaestra!$A$4*12) -> 120 | BS58: 49 | BU58: 0 | BW58: 373.8566827 | BX58: 93.46417067 | BY58: 264.5212377 | BZ58: 81.5178168 | CA58: 70.27398 | CB58: 802.1160711 | CC58: =IF(D58="","",IF(AX58=0,G58+H58+(I58/(1+Param!$T$8))+CB58,0)) -> 17407.32735
A59: 50 | B59: 50 | C59: 2028-01-01 | D59: =IFERROR(IF(B59="","",IF(OR(HojaMaestra!$A$2=12,HojaMaestra!$A$2=13),IF(AZ59<>0,AZ59,AY59),IF(HojaMaestra!$C$18="SI",AY59,AY59))),0) -> 873092.3591 | E59: 16394.42003 | F59: =IF(B59="","",HojaMaestra!$M$14) -> 0.102 | G59: =IFERROR(IF(B59="","",IF(D59=0,0,IF(HojaMaestra!$A$2<>15,D59*F59*AV59/360,(D59*F59*AV59/360)*(1+Param!$T$8)))),0) -> 7668.661221 | H59: 8725.758808 | I59: =IF(B59="","",IF(D59=0,0,VLOOKUP(HojaMaestra!$C$25,Param!$AJ$8:$AM$9,2,0))) -> 250 | J59: =IF(B59="","",IF(D59=0,0,IF(AND(HojaMaestra!$A$2=2,MOD(T59,2)=0),HojaMaestra!$C$16,0))) -> 0 | L59: =IFERROR(IF(B59="","",K59*VLOOKUP(HojaMaestra!$C$25,Param!$AJ$8:$AM$9,4,0)*(1+Param!$T$8)),"Sin Datos") -> 0 | M59: 806.1844749 | N59: =IFERROR(IF(B59="","",IF(AND(OR(HojaMaestra!$A$2=12,HojaMaestra!$A$2=13),B60<=Param!$EQ$8+1),BU59,IF(B60<=HojaMaestra!$M$19+1,0,BI59))),0) -> 17450.6045 | O59: 864366.6003 | R59: 1.00133333 | S59: 29 | T59: 2 | U59: =IF(B59="","",D59*HLOOKUP($V$7,Param!$C$11:$F$14,2,0)/1000) -> 370.1911603 | V59: =IF(B59="","",D59*HLOOKUP($V$7,Param!$C$11:$F$14,3,0)/1000) -> 92.54779007 | W59: =IF(B59="","",IF($AB$3="SI",D59*HLOOKUP($V$7,Param!$C$11:$F$14,4,0)/1000,0)) -> 261.9277077 | X59: =IF($X$8="Si",$Q$6*Param!$D$9*Param!$D$8/1000+(($Q$6*Param!$D$9*Param!$D$8/1000)*Param!$T$8),0) -> 81.5178168 | Y59: =X59/(1+Param!$T$8) -> 70.27398 | Z59: 794.9406381 | AA59: =IFERROR(IF(D59="","",G59+H59+(I59/(1+Param!$T$8))+Z59),0) -> 17404.87791 | AD59: =(IF(B59<=HojaMaestra!$M$19,$D$10,IF($AN$9=0,$D$10,$AN$9))*($F$10*100))/1200 -> 10327.5 | AE59: =IF(B58<=HojaMaestra!$M$19,$AD$10+$U$10+$V$10+$W$10,IF(HojaMaestra!$M$19=0,$AD$10+$U$10+$V$10+$W$10,$AP$9)) -> 11335.95 | AF59: 11.196 | AG59: =(IF($K$9="Prepagos a Capital",IF(B59<=HojaMaestra!$M$19,$D$10,IF($AN$9=0,$D$10,$AN$9)),AK59)*$AF$10/1200)/(1-(1/((1+$AF$10/1200)^IF($K$9="Prepagos a Capital",$AL$10,AM59)))) -> 16871.71052 | AH59: 16953.22834 | AI59: =IFERROR(IF(B59<=HojaMaestra!$M$19,0,IF(D59<(AH59-M59-(D59*(F59*100)/1200)),D59 - ( J59+K59+L59),(AH59-M59-(D59*(F59*100)/1200)))),0) -> 8725.758808 | AK59: =IFERROR(IF(K58>0,D59,IF(B58=HojaMaestra!$M$19,D59,AK58)),0) -> 1215000 | AL59: =IF(K58>0,$AL$10-B58,(AL58-IF(B58=HojaMaestra!$M$19,HojaMaestra!$M$19,0))) -> 120 | AM59: =AL59+HojaMaestra!$M$19 -> 120 | AN59: =IF(AT58=HojaMaestra!$M$19,$D59,0) -> 0 | AP59: =IF(B58=HojaMaestra!$M$19,AD59+U59+V59+W59,0) -> 0 | AR59: =IF(B58=HojaMaestra!$M$19,AT58,0) -> 0 | AT59: 50 | AV59: 31 | AX59: =IFERROR(IF(Param!$EQ$8>=B59,B59,0),0) -> 0 | AY59: =IFERROR(IF(B59="","",IF(HojaMaestra!$M$19>=B58,$AY$10+SUM($G$10:G58)+SUM($M$10:M58)+SUM($I$10:I58),O58)),0) -> 873092.3591 | AZ59: =IF(AX59<>0,SUM($BA$10:BA59),IF(AX58=Param!$EQ$8,AZ58,0)) -> 0 | BA59: =IFERROR(IF(B59="","",IF(AX59<>0,HojaMaestra!$M$16/Param!$EQ$8,0)),0) -> 0 | BC59: =IF(B59="","",M59/(1+Param!$T$8)) -> 694.9866163 | BE59: 0 | BG59: =IFERROR(IF(B59<=HojaMaestra!$M$19,J59+K59,IF(D59<(AI59+J59+K59+L59),D59,(AI59+J59+K59+L59))),0) -> 8725.758808 | BI59: =IFERROR(IF(B59="","",G59+H59+I59+IF(HojaMaestra!$A$2=15,BC59,M59)),0) -> 17450.6045 | BK59: =IFERROR(IF(B59="","",IF(B59<=HojaMaestra!$M$19,O59,AY59)),0) -> 873092.3591 | BM59: =HojaMaestra!$A$4*12 -> 120 | BO59: =IF(B59<=Param!$EQ$8,HojaMaestra!$A$4*12+Param!$EQ$8,HojaMaestra!$A$4*12) -> 120 | BQ59: =IF(A59<=HojaMaestra!$M$19,HojaMaestra!$A$4*12+HojaMaestra!$M$19,HojaMaestra!$A$4*12) -> 120 | BS59: 50 | BU59: 0 | BW59: 370.1911603 | BX59: 92.54779007 | BY59: 261.9277077 | BZ59: 81.5178168 | CA59: 70.27398 | CB59: 794.9406381 | CC59: =IF(D59="","",IF(AX59=0,G59+H59+(I59/(1+Param!$T$8))+CB59,0)) -> 17404.87791
A60: 51 | B60: 51 | C60: 2028-02-01 | D60: =IFERROR(IF(B60="","",IF(OR(HojaMaestra!$A$2=12,HojaMaestra!$A$2=13),IF(AZ60<>0,AZ60,AY60),IF(HojaMaestra!$C$18="SI",AY60,AY60))),0) -> 864366.6003 | E60: 15909.38237 | F60: =IF(B60="","",HojaMaestra!$M$14) -> 0.102 | G60: =IFERROR(IF(B60="","",IF(D60=0,0,IF(HojaMaestra!$A$2<>15,D60*F60*AV60/360,(D60*F60*AV60/360)*(1+Param!$T$8)))),0) -> 7102.212233 | H60: 8807.170138 | I60: =IF(B60="","",IF(D60=0,0,VLOOKUP(HojaMaestra!$C$25,Param!$AJ$8:$AM$9,2,0))) -> 250 | J60: =IF(B60="","",IF(D60=0,0,IF(AND(HojaMaestra!$A$2=2,MOD(T60,2)=0),HojaMaestra!$C$16,0))) -> 0 | L60: =IFERROR(IF(B60="","",K60*VLOOKUP(HojaMaestra!$C$25,Param!$AJ$8:$AM$9,4,0)*(1+Param!$T$8)),"Sin Datos") -> 0 | M60: 798.9420951 | N60: =IFERROR(IF(B60="","",IF(AND(OR(HojaMaestra!$A$2=12,HojaMaestra!$A$2=13),B61<=Param!$EQ$8+1),BU60,IF(B61<=HojaMaestra!$M$19+1,0,BI60))),0) -> 16958.32447 | O60: 855559.4302 | R60: 1.00133333 | S60: 31 | T60: 3 | U60: =IF(B60="","",D60*HLOOKUP($V$7,Param!$C$11:$F$14,2,0)/1000) -> 366.4914385 | V60: =IF(B60="","",D60*HLOOKUP($V$7,Param!$C$11:$F$14,3,0)/1000) -> 91.62285964 | W60: =IF(B60="","",IF($AB$3="SI",D60*HLOOKUP($V$7,Param!$C$11:$F$14,4,0)/1000,0)) -> 259.3099801 | X60: =IF($X$8="Si",$Q$6*Param!$D$9*Param!$D$8/1000+(($Q$6*Param!$D$9*Param!$D$8/1000)*Param!$T$8),0) -> 81.5178168 | Y60: =X60/(1+Param!$T$8) -> 70.27398 | Z60: 787.6982583 | AA60: =IFERROR(IF(D60="","",G60+H60+(I60/(1+Param!$T$8))+Z60),0) -> 16912.59787 | AD60: =(IF(B60<=HojaMaestra!$M$19,$D$10,IF($AN$9=0,$D$10,$AN$9))*($F$10*100))/1200 -> 10327.5 | AE60: =IF(B59<=HojaMaestra!$M$19,$AD$10+$U$10+$V$10+$W$10,IF(HojaMaestra!$M$19=0,$AD$10+$U$10+$V$10+$W$10,$AP$9)) -> 11335.95 | AF60: 11.196 | AG60: =(IF($K$9="Prepagos a Capital",IF(B60<=HojaMaestra!$M$19,$D$10,IF($AN$9=0,$D$10,$AN$9)),AK60)*$AF$10/1200)/(1-(1/((1+$AF$10/1200)^IF($K$9="Prepagos a Capital",$AL$10,AM60)))) -> 16871.71052 | AH60: 16953.22834 | AI60: =IFERROR(IF(B60<=HojaMaestra!$M$19,0,IF(D60<(AH60-M60-(D60*(F60*100)/1200)),D60 - ( J60+K60+L60),(AH60-M60-(D60*(F60*100)/1200)))),0) -> 8807.170138 | AK60: =IFERROR(IF(K59>0,D60,IF(B59=HojaMaestra!$M$19,D60,AK59)),0) -> 1215000 | AL60: =IF(K59>0,$AL$10-B59,(AL59-IF(B59=HojaMaestra!$M$19,HojaMaestra!$M$19,0))) -> 120 | AM60: =AL60+HojaMaestra!$M$19 -> 120 | AN60: =IF(AT59=HojaMaestra!$M$19,$D60,0) -> 0 | AP60: =IF(B59=HojaMaestra!$M$19,AD60+U60+V60+W60,0) -> 0 | AR60: =IF(B59=HojaMaestra!$M$19,AT59,0) -> 0 | AT60: 51 | AV60: 29 | AX60: =IFERROR(IF(Param!$EQ$8>=B60,B60,0),0) -> 0 | AY60: =IFERROR(IF(B60="","",IF(HojaMaestra!$M$19>=B59,$AY$10+SUM($G$10:G59)+SUM($M$10:M59)+SUM($I$10:I59),O59)),0) -> 864366.6003 | AZ60: =IF(AX60<>0,SUM($BA$10:BA60),IF(AX59=Param!$EQ$8,AZ59,0)) -> 0 | BA60: =IFERROR(IF(B60="","",IF(AX60<>0,HojaMaestra!$M$16/Param!$EQ$8,0)),0) -> 0 | BC60: =IF(B60="","",M60/(1+Param!$T$8)) -> 688.7431854 | BE60: 0 | BG60: =IFERROR(IF(B60<=HojaMaestra!$M$19,J60+K60,IF(D60<(AI60+J60+K60+L60),D60,(AI60+J60+K60+L60))),0) -> 8807.170138 | BI60: =IFERROR(IF(B60="","",G60+H60+I60+IF(HojaMaestra!$A$2=15,BC60,M60)),0) -> 16958.32447 | BK60: =IFERROR(IF(B60="","",IF(B60<=HojaMaestra!$M$19,O60,AY60)),0) -> 864366.6003 | BM60: =HojaMaestra!$A$4*12 -> 120 | BO60: =IF(B60<=Param!$EQ$8,HojaMaestra!$A$4*12+Param!$EQ$8,HojaMaestra!$A$4*12) -> 120 | BQ60: =IF(A60<=HojaMaestra!$M$19,HojaMaestra!$A$4*12+HojaMaestra!$M$19,HojaMaestra!$A$4*12) -> 120 | BS60: 51 | BU60: 0 | BW60: 366.4914385 | BX60: 91.62285964 | BY60: 259.3099801 | BZ60: 81.5178168 | CA60: 70.27398 | CB60: 787.6982583 | CC60: =IF(D60="","",IF(AX60=0,G60+H60+(I60/(1+Param!$T$8))+CB60,0)) -> 16912.59787
A61: 52 | B61: 52 | C61: 2028-03-01 | D61: =IFERROR(IF(B61="","",IF(OR(HojaMaestra!$A$2=12,HojaMaestra!$A$2=13),IF(AZ61<>0,AZ61,AY61),IF(HojaMaestra!$C$18="SI",AY61,AY61))),0) -> 855559.4302 | E61: 16404.0047 | F61: =IF(B61="","",HojaMaestra!$M$14) -> 0.102 | G61: =IFERROR(IF(B61="","",IF(D61=0,0,IF(HojaMaestra!$A$2<>15,D61*F61*AV61/360,(D61*F61*AV61/360)*(1+Param!$T$8)))),0) -> 7514.663662 | H61: 8889.341035 | I61: =IF(B61="","",IF(D61=0,0,VLOOKUP(HojaMaestra!$C$25,Param!$AJ$8:$AM$9,2,0))) -> 250 | J61: =IF(B61="","",IF(D61=0,0,IF(AND(HojaMaestra!$A$2=2,MOD(T61,2)=0),HojaMaestra!$C$16,0))) -> 0 | L61: =IFERROR(IF(B61="","",K61*VLOOKUP(HojaMaestra!$C$25,Param!$AJ$8:$AM$9,4,0)*(1+Param!$T$8)),"Sin Datos") -> 0 | M61: 791.6321439 | N61: =IFERROR(IF(B61="","",IF(AND(OR(HojaMaestra!$A$2=12,HojaMaestra!$A$2=13),B62<=Param!$EQ$8+1),BU61,IF(B62<=HojaMaestra!$M$19+1,0,BI61))),0) -> 17445.63684 | O61: 846670.0892 | R61: 1.00133333 | S61: 30 | T61: 4 | U61: =IF(B61="","",D61*HLOOKUP($V$7,Param!$C$11:$F$14,2,0)/1000) -> 362.7571984 | V61: =IF(B61="","",D61*HLOOKUP($V$7,Param!$C$11:$F$14,3,0)/1000) -> 90.6892996 | W61: =IF(B61="","",IF($AB$3="SI",D61*HLOOKUP($V$7,Param!$C$11:$F$14,4,0)/1000,0)) -> 256.6678291 | X61: =IF($X$8="Si",$Q$6*Param!$D$9*Param!$D$8/1000+(($Q$6*Param!$D$9*Param!$D$8/1000)*Param!$T$8),0) -> 81.5178168 | Y61: =X61/(1+Param!$T$8) -> 70.27398 | Z61: 780.3883071 | AA61: =IFERROR(IF(D61="","",G61+H61+(I61/(1+Param!$T$8))+Z61),0) -> 17399.91025 | AD61: =(IF(B61<=HojaMaestra!$M$19,$D$10,IF($AN$9=0,$D$10,$AN$9))*($F$10*100))/1200 -> 10327.5 | AE61: =IF(B60<=HojaMaestra!$M$19,$AD$10+$U$10+$V$10+$W$10,IF(HojaMaestra!$M$19=0,$AD$10+$U$10+$V$10+$W$10,$AP$9)) -> 11335.95 | AF61: 11.196 | AG61: =(IF($K$9="Prepagos a Capital",IF(B61<=HojaMaestra!$M$19,$D$10,IF($AN$9=0,$D$10,$AN$9)),AK61)*$AF$10/1200)/(1-(1/((1+$AF$10/1200)^IF($K$9="Prepagos a Capital",$AL$10,AM61)))) -> 16871.71052 | AH61: 16953.22834 | AI61: =IFERROR(IF(B61<=HojaMaestra!$M$19,0,IF(D61<(AH61-M61-(D61*(F61*100)/1200)),D61 - ( J61+K61+L61),(AH61-M61-(D61*(F61*100)/1200)))),0) -> 8889.341035 | AK61: =IFERROR(IF(K60>0,D61,IF(B60=HojaMaestra!$M$19,D61,AK60)),0) -> 1215000 | AL61: =IF(K60>0,$AL$10-B60,(AL60-IF(B60=HojaMaestra!$M$19,HojaMaestra!$M$19,0))) -> 120 | AM61: =AL61+HojaMaestra!$M$19 -> 120 | AN61: =IF(AT60=HojaMaestra!$M$19,$D61,0) -> 0 | AP61: =IF(B60=HojaMaestra!$M$19,AD61+U61+V61+W61,0) -> 0 | AR61: =IF(B60=HojaMaestra!$M$19,AT60,0) -> 0 | AT61: 52 | AV61: 31 | AX61: =IFERROR(IF(Param!$EQ$8>=B61,B61,0),0) -> 0 | AY61: =IFERROR(IF(B61="","",IF(HojaMaestra!$M$19>=B60,$AY$10+SUM($G$10:G60)+SUM($M$10:M60)+SUM($I$10:I60),O60)),0) -> 855559.4302 | AZ61: =IF(AX61<>0,SUM($BA$10:BA61),IF(AX60=Param!$EQ$8,AZ60,0)) -> 0 | BA61: =IFERROR(IF(B61="","",IF(AX61<>0,HojaMaestra!$M$16/Param!$EQ$8,0)),0) -> 0 | BC61: =IF(B61="","",M61/(1+Param!$T$8)) -> 682.4415033 | BE61: 0 | BG61: =IFERROR(IF(B61<=HojaMaestra!$M$19,J61+K61,IF(D61<(AI61+J61+K61+L61),D61,(AI61+J61+K61+L61))),0) -> 8889.341035 | BI61: =IFERROR(IF(B61="","",G61+H61+I61+IF(HojaMaestra!$A$2=15,BC61,M61)),0) -> 17445.63684 | BK61: =IFERROR(IF(B61="","",IF(B61<=HojaMaestra!$M$19,O61,AY61)),0) -> 855559.4302 | BM61: =HojaMaestra!$A$4*12 -> 120 | BO61: =IF(B61<=Param!$EQ$8,HojaMaestra!$A$4*12+Param!$EQ$8,HojaMaestra!$A$4*12) -> 120 | BQ61: =IF(A61<=HojaMaestra!$M$19,HojaMaestra!$A$4*12+HojaMaestra!$M$19,HojaMaestra!$A$4*12) -> 120 | BS61: 52 | BU61: 0 | BW61: 362.7571984 | BX61: 90.6892996 | BY61: 256.6678291 | BZ61: 81.5178168 | CA61: 70.27398 | CB61: 780.3883071 | CC61: =IF(D61="","",IF(AX61=0,G61+H61+(I61/(1+Param!$T$8))+CB61,0)) -> 17399.91025
A62: 53 | B62: 53 | C62: 2028-04-01 | D62: =IFERROR(IF(B62="","",IF(OR(HojaMaestra!$A$2=12,HojaMaestra!$A$2=13),IF(AZ62<>0,AZ62,AY62),IF(HojaMaestra!$C$18="SI",AY62,AY62))),0) -> 846670.0892 | E62: 16168.97435 | F62: =IF(B62="","",HojaMaestra!$M$14) -> 0.102 | G62: =IFERROR(IF(B62="","",IF(D62=0,0,IF(HojaMaestra!$A$2<>15,D62*F62*AV62/360,(D62*F62*AV62/360)*(1+Param!$T$8)))),0) -> 7196.695758 | H62: 8972.278587 | I62: =IF(B62="","",IF(D62=0,0,VLOOKUP(HojaMaestra!$C$25,Param!$AJ$8:$AM$9,2,0))) -> 250 | J62: =IF(B62="","",IF(D62=0,0,IF(AND(HojaMaestra!$A$2=2,MOD(T62,2)=0),HojaMaestra!$C$16,0))) -> 0 | L62: =IFERROR(IF(B62="","",K62*VLOOKUP(HojaMaestra!$C$25,Param!$AJ$8:$AM$9,4,0)*(1+Param!$T$8)),"Sin Datos") -> 0 | M62: 784.2539908 | N62: =IFERROR(IF(B62="","",IF(AND(OR(HojaMaestra!$A$2=12,HojaMaestra!$A$2=13),B63<=Param!$EQ$8+1),BU62,IF(B63<=HojaMaestra!$M$19+1,0,BI62))),0) -> 17203.22834 | O62: 837697.8106 | R62: 1.00133333 | S62: 31 | T62: 5 | U62: =IF(B62="","",D62*HLOOKUP($V$7,Param!$C$11:$F$14,2,0)/1000) -> 358.9881178 | V62: =IF(B62="","",D62*HLOOKUP($V$7,Param!$C$11:$F$14,3,0)/1000) -> 89.74702945 | W62: =IF(B62="","",IF($AB$3="SI",D62*HLOOKUP($V$7,Param!$C$11:$F$14,4,0)/1000,0)) -> 254.0010267 | X62: =IF($X$8="Si",$Q$6*Param!$D$9*Param!$D$8/1000+(($Q$6*Param!$D$9*Param!$D$8/1000)*Param!$T$8),0) -> 81.5178168 | Y62: =X62/(1+Param!$T$8) -> 70.27398 | Z62: 773.010154 | AA62: =IFERROR(IF(D62="","",G62+H62+(I62/(1+Param!$T$8))+Z62),0) -> 17157.50174 | AD62: =(IF(B62<=HojaMaestra!$M$19,$D$10,IF($AN$9=0,$D$10,$AN$9))*($F$10*100))/1200 -> 10327.5 | AE62: =IF(B61<=HojaMaestra!$M$19,$AD$10+$U$10+$V$10+$W$10,IF(HojaMaestra!$M$19=0,$AD$10+$U$10+$V$10+$W$10,$AP$9)) -> 11335.95 | AF62: 11.196 | AG62: =(IF($K$9="Prepagos a Capital",IF(B62<=HojaMaestra!$M$19,$D$10,IF($AN$9=0,$D$10,$AN$9)),AK62)*$AF$10/1200)/(1-(1/((1+$AF$10/1200)^IF($K$9="Prepagos a Capital",$AL$10,AM62)))) -> 16871.71052 | AH62: 16953.22834 | AI62: =IFERROR(IF(B62<=HojaMaestra!$M$19,0,IF(D62<(AH62-M62-(D62*(F62*100)/1200)),D62 - ( J62+K62+L62),(AH62-M62-(D62*(F62*100)/1200)))),0) -> 8972.278587 | AK62: =IFERROR(IF(K61>0,D62,IF(B61=HojaMaestra!$M$19,D62,AK61)),0) -> 1215000 | AL62: =IF(K61>0,$AL$10-B61,(AL61-IF(B61=HojaMaestra!$M$19,HojaMaestra!$M$19,0))) -> 120 | AM62: =AL62+HojaMaestra!$M$19 -> 120 | AN62: =IF(AT61=HojaMaestra!$M$19,$D62,0) -> 0 | AP62: =IF(B61=HojaMaestra!$M$19,AD62+U62+V62+W62,0) -> 0 | AR62: =IF(B61=HojaMaestra!$M$19,AT61,0) -> 0 | AT62: 53 | AV62: 30 | AX62: =IFERROR(IF(Param!$EQ$8>=B62,B62,0),0) -> 0 | AY62: =IFERROR(IF(B62="","",IF(HojaMaestra!$M$19>=B61,$AY$10+SUM($G$10:G61)+SUM($M$10:M61)+SUM($I$10:I61),O61)),0) -> 846670.0892 | AZ62: =IF(AX62<>0,SUM($BA$10:BA62),IF(AX61=Param!$EQ$8,AZ61,0)) -> 0 | BA62: =IFERROR(IF(B62="","",IF(AX62<>0,HojaMaestra!$M$16/Param!$EQ$8,0)),0) -> 0 | BC62: =IF(B62="","",M62/(1+Param!$T$8)) -> 676.0810266 | BE62: 0 | BG62: =IFERROR(IF(B62<=HojaMaestra!$M$19,J62+K62,IF(D62<(AI62+J62+K62+L62),D62,(AI62+J62+K62+L62))),0) -> 8972.278587 | BI62: =IFERROR(IF(B62="","",G62+H62+I62+IF(HojaMaestra!$A$2=15,BC62,M62)),0) -> 17203.22834 | BK62: =IFERROR(IF(B62="","",IF(B62<=HojaMaestra!$M$19,O62,AY62)),0) -> 846670.0892 | BM62: =HojaMaestra!$A$4*12 -> 120 | BO62: =IF(B62<=Param!$EQ$8,HojaMaestra!$A$4*12+Param!$EQ$8,HojaMaestra!$A$4*12) -> 120 | BQ62: =IF(A62<=HojaMaestra!$M$19,HojaMaestra!$A$4*12+HojaMaestra!$M$19,HojaMaestra!$A$4*12) -> 120 | BS62: 53 | BU62: 0 | BW62: 358.9881178 | BX62: 89.74702945 | BY62: 254.0010267 | BZ62: 81.5178168 | CA62: 70.27398 | CB62: 773.010154 | CC62: =IF(D62="","",IF(AX62=0,G62+H62+(I62/(1+Param!$T$8))+CB62,0)) -> 17157.50174
A63: 54 | B63: 54 | C63: 2028-05-01 | D63: =IFERROR(IF(B63="","",IF(OR(HojaMaestra!$A$2=12,HojaMaestra!$A$2=13),IF(AZ63<>0,AZ63,AY63),IF(HojaMaestra!$C$18="SI",AY63,AY63))),0) -> 837697.8106 | E63: 16413.76905 | F63: =IF(B63="","",HojaMaestra!$M$14) -> 0.102 | G63: =IFERROR(IF(B63="","",IF(D63=0,0,IF(HojaMaestra!$A$2<>15,D63*F63*AV63/360,(D63*F63*AV63/360)*(1+Param!$T$8)))),0) -> 7357.779103 | H63: 9055.989946 | I63: =IF(B63="","",IF(D63=0,0,VLOOKUP(HojaMaestra!$C$25,Param!$AJ$8:$AM$9,2,0))) -> 250 | J63: =IF(B63="","",IF(D63=0,0,IF(AND(HojaMaestra!$A$2=2,MOD(T63,2)=0),HojaMaestra!$C$16,0))) -> 0 | L63: =IFERROR(IF(B63="","",K63*VLOOKUP(HojaMaestra!$C$25,Param!$AJ$8:$AM$9,4,0)*(1+Param!$T$8)),"Sin Datos") -> 0 | M63: 776.8069996 | N63: =IFERROR(IF(B63="","",IF(AND(OR(HojaMaestra!$A$2=12,HojaMaestra!$A$2=13),B64<=Param!$EQ$8+1),BU63,IF(B64<=HojaMaestra!$M$19+1,0,BI63))),0) -> 17440.57605 | O63: 828641.8206 | R63: 1.00133333 | S63: 30 | T63: 6 | U63: =IF(B63="","",D63*HLOOKUP($V$7,Param!$C$11:$F$14,2,0)/1000) -> 355.1838717 | V63: =IF(B63="","",D63*HLOOKUP($V$7,Param!$C$11:$F$14,3,0)/1000) -> 88.79596792 | W63: =IF(B63="","",IF($AB$3="SI",D63*HLOOKUP($V$7,Param!$C$11:$F$14,4,0)/1000,0)) -> 251.3093432 | X63: =IF($X$8="Si",$Q$6*Param!$D$9*Param!$D$8/1000+(($Q$6*Param!$D$9*Param!$D$8/1000)*Param!$T$8),0) -> 81.5178168 | Y63: =X63/(1+Param!$T$8) -> 70.27398 | Z63: 765.5631628 | AA63: =IFERROR(IF(D63="","",G63+H63+(I63/(1+Param!$T$8))+Z63),0) -> 17394.84945 | AD63: =(IF(B63<=HojaMaestra!$M$19,$D$10,IF($AN$9=0,$D$10,$AN$9))*($F$10*100))/1200 -> 10327.5 | AE63: =IF(B62<=HojaMaestra!$M$19,$AD$10+$U$10+$V$10+$W$10,IF(HojaMaestra!$M$19=0,$AD$10+$U$10+$V$10+$W$10,$AP$9)) -> 11335.95 | AF63: 11.196 | AG63: =(IF($K$9="Prepagos a Capital",IF(B63<=HojaMaestra!$M$19,$D$10,IF($AN$9=0,$D$10,$AN$9)),AK63)*$AF$10/1200)/(1-(1/((1+$AF$10/1200)^IF($K$9="Prepagos a Capital",$AL$10,AM63)))) -> 16871.71052 | AH63: 16953.22834 | AI63: =IFERROR(IF(B63<=HojaMaestra!$M$19,0,IF(D63<(AH63-M63-(D63*(F63*100)/1200)),D63 - ( J63+K63+L63),(AH63-M63-(D63*(F63*100)/1200)))),0) -> 9055.989946 | AK63: =IFERROR(IF(K62>0,D63,IF(B62=HojaMaestra!$M$19,D63,AK62)),0) -> 1215000 | AL63: =IF(K62>0,$AL$10-B62,(AL62-IF(B62=HojaMaestra!$M$19,HojaMaestra!$M$19,0))) -> 120 | AM63: =AL63+HojaMaestra!$M$19 -> 120 | AN63: =IF(AT62=HojaMaestra!$M$19,$D63,0) -> 0 | AP63: =IF(B62=HojaMaestra!$M$19,AD63+U63+V63+W63,0) -> 0 | AR63: =IF(B62=HojaMaestra!$M$19,AT62,0) -> 0 | AT63: 54 | AV63: 31 | AX63: =IFERROR(IF(Param!$EQ$8>=B63,B63,0),0) -> 0 | AY63: =IFERROR(IF(B63="","",IF(HojaMaestra!$M$19>=B62,$AY$10+SUM($G$10:G62)+SUM($M$10:M62)+SUM($I$10:I62),O62)),0) -> 837697.8106 | AZ63: =IF(AX63<>0,SUM($BA$10:BA63),IF(AX62=Param!$EQ$8,AZ62,0)) -> 0 | BA63: =IFERROR(IF(B63="","",IF(AX63<>0,HojaMaestra!$M$16/Param!$EQ$8,0)),0) -> 0 | BC63: =IF(B63="","",M63/(1+Param!$T$8)) -> 669.6612065 | BE63: 0 | BG63: =IFERROR(IF(B63<=HojaMaestra!$M$19,J63+K63,IF(D63<(AI63+J63+K63+L63),D63,(AI63+J63+K63+L63))),0) -> 9055.989946 | BI63: =IFERROR(IF(B63="","",G63+H63+I63+IF(HojaMaestra!$A$2=15,BC63,M63)),0) -> 17440.57605 | BK63: =IFERROR(IF(B63="","",IF(B63<=HojaMaestra!$M$19,O63,AY63)),0) -> 837697.8106 | BM63: =HojaMaestra!$A$4*12 -> 120 | BO63: =IF(B63<=Param!$EQ$8,HojaMaestra!$A$4*12+Param!$EQ$8,HojaMaestra!$A$4*12) -> 120 | BQ63: =IF(A63<=HojaMaestra!$M$19,HojaMaestra!$A$4*12+HojaMaestra!$M$19,HojaMaestra!$A$4*12) -> 120 | BS63: 54 | BU63: 0 | BW63: 355.1838717 | BX63: 88.79596792 | BY63: 251.3093432 | BZ63: 81.5178168 | CA63: 70.27398 | CB63: 765.5631628 | CC63: =IF(D63="","",IF(AX63=0,G63+H63+(I63/(1+Param!$T$8))+CB63,0)) -> 17394.84945
A64: 55 | B64: 55 | C64: 2028-06-01 | D64: =IFERROR(IF(B64="","",IF(OR(HojaMaestra!$A$2=12,HojaMaestra!$A$2=13),IF(AZ64<>0,AZ64,AY64),IF(HojaMaestra!$C$18="SI",AY64,AY64))),0) -> 828641.8206 | E64: 16183.93781 | F64: =IF(B64="","",HojaMaestra!$M$14) -> 0.102 | G64: =IFERROR(IF(B64="","",IF(D64=0,0,IF(HojaMaestra!$A$2<>15,D64*F64*AV64/360,(D64*F64*AV64/360)*(1+Param!$T$8)))),0) -> 7043.455475 | H64: 9140.482333 | I64: =IF(B64="","",IF(D64=0,0,VLOOKUP(HojaMaestra!$C$25,Param!$AJ$8:$AM$9,2,0))) -> 250 | J64: =IF(B64="","",IF(D64=0,0,IF(AND(HojaMaestra!$A$2=2,MOD(T64,2)=0),HojaMaestra!$C$16,0))) -> 0 | L64: =IFERROR(IF(B64="","",K64*VLOOKUP(HojaMaestra!$C$25,Param!$AJ$8:$AM$9,4,0)*(1+Param!$T$8)),"Sin Datos") -> 0 | M64: 769.2905279 | N64: =IFERROR(IF(B64="","",IF(AND(OR(HojaMaestra!$A$2=12,HojaMaestra!$A$2=13),B65<=Param!$EQ$8+1),BU64,IF(B65<=HojaMaestra!$M$19+1,0,BI64))),0) -> 17203.22834 | O64: 819501.3383 | R64: 1.00133333 | S64: 31 | T64: 7 | U64: =IF(B64="","",D64*HLOOKUP($V$7,Param!$C$11:$F$14,2,0)/1000) -> 351.3441319 | V64: =IF(B64="","",D64*HLOOKUP($V$7,Param!$C$11:$F$14,3,0)/1000) -> 87.83603299 | W64: =IF(B64="","",IF($AB$3="SI",D64*HLOOKUP($V$7,Param!$C$11:$F$14,4,0)/1000,0)) -> 248.5925462 | X64: =IF($X$8="Si",$Q$6*Param!$D$9*Param!$D$8/1000+(($Q$6*Param!$D$9*Param!$D$8/1000)*Param!$T$8),0) -> 81.5178168 | Y64: =X64/(1+Param!$T$8) -> 70.27398 | Z64: 758.0466911 | AA64: =IFERROR(IF(D64="","",G64+H64+(I64/(1+Param!$T$8))+Z64),0) -> 17157.50174 | AD64: =(IF(B64<=HojaMaestra!$M$19,$D$10,IF($AN$9=0,$D$10,$AN$9))*($F$10*100))/1200 -> 10327.5 | AE64: =IF(B63<=HojaMaestra!$M$19,$AD$10+$U$10+$V$10+$W$10,IF(HojaMaestra!$M$19=0,$AD$10+$U$10+$V$10+$W$10,$AP$9)) -> 11335.95 | AF64: 11.196 | AG64: =(IF($K$9="Prepagos a Capital",IF(B64<=HojaMaestra!$M$19,$D$10,IF($AN$9=0,$D$10,$AN$9)),AK64)*$AF$10/1200)/(1-(1/((1+$AF$10/1200)^IF($K$9="Prepagos a Capital",$AL$10,AM64)))) -> 16871.71052 | AH64: 16953.22834 | AI64: =IFERROR(IF(B64<=HojaMaestra!$M$19,0,IF(D64<(AH64-M64-(D64*(F64*100)/1200)),D64 - ( J64+K64+L64),(AH64-M64-(D64*(F64*100)/1200)))),0) -> 9140.482333 | AK64: =IFERROR(IF(K63>0,D64,IF(B63=HojaMaestra!$M$19,D64,AK63)),0) -> 1215000 | AL64: =IF(K63>0,$AL$10-B63,(AL63-IF(B63=HojaMaestra!$M$19,HojaMaestra!$M$19,0))) -> 120 | AM64: =AL64+HojaMaestra!$M$19 -> 120 | AN64: =IF(AT63=HojaMaestra!$M$19,$D64,0) -> 0 | AP64: =IF(B63=HojaMaestra!$M$19,AD64+U64+V64+W64,0) -> 0 | AR64: =IF(B63=HojaMaestra!$M$19,AT63,0) -> 0 | AT64: 55 | AV64: 30 | AX64: =IFERROR(IF(Param!$EQ$8>=B64,B64,0),0) -> 0 | AY64: =IFERROR(IF(B64="","",IF(HojaMaestra!$M$19>=B63,$AY$10+SUM($G$10:G63)+SUM($M$10:M63)+SUM($I$10:I63),O63)),0) -> 828641.8206 | AZ64: =IF(AX64<>0,SUM($BA$10:BA64),IF(AX63=Param!$EQ$8,AZ63,0)) -> 0 | BA64: =IFERROR(IF(B64="","",IF(AX64<>0,HojaMaestra!$M$16/Param!$EQ$8,0)),0) -> 0 | BC64: =IF(B64="","",M64/(1+Param!$T$8)) -> 663.1814896 | BE64: 0 | BG64: =IFERROR(IF(B64<=HojaMaestra!$M$19,J64+K64,IF(D64<(AI64+J64+K64+L64),D64,(AI64+J64+K64+L64))),0) -> 9140.482333 | BI64: =IFERROR(IF(B64="","",G64+H64+I64+IF(HojaMaestra!$A$2=15,BC64,M64)),0) -> 17203.22834 | BK64: =IFERROR(IF(B64="","",IF(B64<=HojaMaestra!$M$19,O64,AY64)),0) -> 828641.8206 | BM64: =HojaMaestra!$A$4*12 -> 120 | BO64: =IF(B64<=Param!$EQ$8,HojaMaestra!$A$4*12+Param!$EQ$8,HojaMaestra!$A$4*12) -> 120 | BQ64: =IF(A64<=HojaMaestra!$M$19,HojaMaestra!$A$4*12+HojaMaestra!$M$19,HojaMaestra!$A$4*12) -> 120 | BS64: 55 | BU64: 0 | BW64: 351.3441319 | BX64: 87.83603299 | BY64: 248.5925462 | BZ64: 81.5178168 | CA64: 70.27398 | CB64: 758.0466911 | CC64: =IF(D64="","",IF(AX64=0,G64+H64+(I64/(1+Param!$T$8))+CB64,0)) -> 17157.50174
A65: 56 | B65: 56 | C65: 2028-07-01 | D65: =IFERROR(IF(B65="","",IF(OR(HojaMaestra!$A$2=12,HojaMaestra!$A$2=13),IF(AZ65<>0,AZ65,AY65),IF(HojaMaestra!$C$18="SI",AY65,AY65))),0) -> 819501.3383 | E65: 16423.71645 | F65: =IF(B65="","",HojaMaestra!$M$14) -> 0.102 | G65: =IFERROR(IF(B65="","",IF(D65=0,0,IF(HojaMaestra!$A$2<>15,D65*F65*AV65/360,(D65*F65*AV65/360)*(1+Param!$T$8)))),0) -> 7197.953421 | H65: 9225.763033 | I65: =IF(B65="","",IF(D65=0,0,VLOOKUP(HojaMaestra!$C$25,Param!$AJ$8:$AM$9,2,0))) -> 250 | J65: =IF(B65="","",IF(D65=0,0,IF(AND(HojaMaestra!$A$2=2,MOD(T65,2)=0),HojaMaestra!$C$16,0))) -> 0 | L65: =IFERROR(IF(B65="","",K65*VLOOKUP(HojaMaestra!$C$25,Param!$AJ$8:$AM$9,4,0)*(1+Param!$T$8)),"Sin Datos") -> 0 | M65: 761.7039276 | N65: =IFERROR(IF(B65="","",IF(AND(OR(HojaMaestra!$A$2=12,HojaMaestra!$A$2=13),B66<=Param!$EQ$8+1),BU65,IF(B66<=HojaMaestra!$M$19+1,0,BI65))),0) -> 17435.42038 | O65: 810275.5753 | R65: 1.00133333 | S65: 31 | T65: 8 | U65: =IF(B65="","",D65*HLOOKUP($V$7,Param!$C$11:$F$14,2,0)/1000) -> 347.4685674 | V65: =IF(B65="","",D65*HLOOKUP($V$7,Param!$C$11:$F$14,3,0)/1000) -> 86.86714186 | W65: =IF(B65="","",IF($AB$3="SI",D65*HLOOKUP($V$7,Param!$C$11:$F$14,4,0)/1000,0)) -> 245.8504015 | X65: =IF($X$8="Si",$Q$6*Param!$D$9*Param!$D$8/1000+(($Q$6*Param!$D$9*Param!$D$8/1000)*Param!$T$8),0) -> 81.5178168 | Y65: =X65/(1+Param!$T$8) -> 70.27398 | Z65: 750.4600908 | AA65: =IFERROR(IF(D65="","",G65+H65+(I65/(1+Param!$T$8))+Z65),0) -> 17389.69379 | AD65: =(IF(B65<=HojaMaestra!$M$19,$D$10,IF($AN$9=0,$D$10,$AN$9))*($F$10*100))/1200 -> 10327.5 | AE65: =IF(B64<=HojaMaestra!$M$19,$AD$10+$U$10+$V$10+$W$10,IF(HojaMaestra!$M$19=0,$AD$10+$U$10+$V$10+$W$10,$AP$9)) -> 11335.95 | AF65: 11.196 | AG65: =(IF($K$9="Prepagos a Capital",IF(B65<=HojaMaestra!$M$19,$D$10,IF($AN$9=0,$D$10,$AN$9)),AK65)*$AF$10/1200)/(1-(1/((1+$AF$10/1200)^IF($K$9="Prepagos a Capital",$AL$10,AM65)))) -> 16871.71052 | AH65: 16953.22834 | AI65: =IFERROR(IF(B65<=HojaMaestra!$M$19,0,IF(D65<(AH65-M65-(D65*(F65*100)/1200)),D65 - ( J65+K65+L65),(AH65-M65-(D65*(F65*100)/1200)))),0) -> 9225.763033 | AK65: =IFERROR(IF(K64>0,D65,IF(B64=HojaMaestra!$M$19,D65,AK64)),0) -> 1215000 | AL65: =IF(K64>0,$AL$10-B64,(AL64-IF(B64=HojaMaestra!$M$19,HojaMaestra!$M$19,0))) -> 120 | AM65: =AL65+HojaMaestra!$M$19 -> 120 | AN65: =IF(AT64=HojaMaestra!$M$19,$D65,0) -> 0 | AP65: =IF(B64=HojaMaestra!$M$19,AD65+U65+V65+W65,0) -> 0 | AR65: =IF(B64=HojaMaestra!$M$19,AT64,0) -> 0 | AT65: 56 | AV65: 31 | AX65: =IFERROR(IF(Param!$EQ$8>=B65,B65,0),0) -> 0 | AY65: =IFERROR(IF(B65="","",IF(HojaMaestra!$M$19>=B64,$AY$10+SUM($G$10:G64)+SUM($M$10:M64)+SUM($I$10:I64),O64)),0) -> 819501.3383 | AZ65: =IF(AX65<>0,SUM($BA$10:BA65),IF(AX64=Param!$EQ$8,AZ64,0)) -> 0 | BA65: =IFERROR(IF(B65="","",IF(AX65<>0,HojaMaestra!$M$16/Param!$EQ$8,0)),0) -> 0 | BC65: =IF(B65="","",M65/(1+Param!$T$8)) -> 656.6413169 | BE65: 0 | BG65: =IFERROR(IF(B65<=HojaMaestra!$M$19,J65+K65,IF(D65<(AI65+J65+K65+L65),D65,(AI65+J65+K65+L65))),0) -> 9225.763033 | BI65: =IFERROR(IF(B65="","",G65+H65+I65+IF(HojaMaestra!$A$2=15,BC65,M65)),0) -> 17435.42038 | BK65: =IFERROR(IF(B65="","",IF(B65<=HojaMaestra!$M$19,O65,AY65)),0) -> 819501.3383 | BM65: =HojaMaestra!$A$4*12 -> 120 | BO65: =IF(B65<=Param!$EQ$8,HojaMaestra!$A$4*12+Param!$EQ$8,HojaMaestra!$A$4*12) -> 120 | BQ65: =IF(A65<=HojaMaestra!$M$19,HojaMaestra!$A$4*12+HojaMaestra!$M$19,HojaMaestra!$A$4*12) -> 120 | BS65: 56 | BU65: 0 | BW65: 347.4685674 | BX65: 86.86714186 | BY65: 245.8504015 | BZ65: 81.5178168 | CA65: 70.27398 | CB65: 750.4600908 | CC65: =IF(D65="","",IF(AX65=0,G65+H65+(I65/(1+Param!$T$8))+CB65,0)) -> 17389.69379
A66: 57 | B66: 57 | C66: 2028-08-01 | D66: =IFERROR(IF(B66="","",IF(OR(HojaMaestra!$A$2=12,HojaMaestra!$A$2=13),IF(AZ66<>0,AZ66,AY66),IF(HojaMaestra!$C$18="SI",AY66,AY66))),0) -> 810275.5753 | E66: 16428.75987 | F66: =IF(B66="","",HojaMaestra!$M$14) -> 0.102 | G66: =IFERROR(IF(B66="","",IF(D66=0,0,IF(HojaMaestra!$A$2<>15,D66*F66*AV66/360,(D66*F66*AV66/360)*(1+Param!$T$8)))),0) -> 7116.920469 | H66: 9311.839402 | I66: =IF(B66="","",IF(D66=0,0,VLOOKUP(HojaMaestra!$C$25,Param!$AJ$8:$AM$9,2,0))) -> 250 | J66: =IF(B66="","",IF(D66=0,0,IF(AND(HojaMaestra!$A$2=2,MOD(T66,2)=0),HojaMaestra!$C$16,0))) -> 0 | L66: =IFERROR(IF(B66="","",K66*VLOOKUP(HojaMaestra!$C$25,Param!$AJ$8:$AM$9,4,0)*(1+Param!$T$8)),"Sin Datos") -> 0 | M66: 754.0465443 | N66: =IFERROR(IF(B66="","",IF(AND(OR(HojaMaestra!$A$2=12,HojaMaestra!$A$2=13),B67<=Param!$EQ$8+1),BU66,IF(B67<=HojaMaestra!$M$19+1,0,BI66))),0) -> 17432.80642 | O66: 800963.7359 | R66: 1.00133333 | S66: 30 | T66: 9 | U66: =IF(B66="","",D66*HLOOKUP($V$7,Param!$C$11:$F$14,2,0)/1000) -> 343.5568439 | V66: =IF(B66="","",D66*HLOOKUP($V$7,Param!$C$11:$F$14,3,0)/1000) -> 85.88921098 | W66: =IF(B66="","",IF($AB$3="SI",D66*HLOOKUP($V$7,Param!$C$11:$F$14,4,0)/1000,0)) -> 243.0826726 | X66: =IF($X$8="Si",$Q$6*Param!$D$9*Param!$D$8/1000+(($Q$6*Param!$D$9*Param!$D$8/1000)*Param!$T$8),0) -> 81.5178168 | Y66: =X66/(1+Param!$T$8) -> 70.27398 | Z66: 742.8027075 | AA66: =IFERROR(IF(D66="","",G66+H66+(I66/(1+Param!$T$8))+Z66),0) -> 17387.07982 | AD66: =(IF(B66<=HojaMaestra!$M$19,$D$10,IF($AN$9=0,$D$10,$AN$9))*($F$10*100))/1200 -> 10327.5 | AE66: =IF(B65<=HojaMaestra!$M$19,$AD$10+$U$10+$V$10+$W$10,IF(HojaMaestra!$M$19=0,$AD$10+$U$10+$V$10+$W$10,$AP$9)) -> 11335.95 | AF66: 11.196 | AG66: =(IF($K$9="Prepagos a Capital",IF(B66<=HojaMaestra!$M$19,$D$10,IF($AN$9=0,$D$10,$AN$9)),AK66)*$AF$10/1200)/(1-(1/((1+$AF$10/1200)^IF($K$9="Prepagos a Capital",$AL$10,AM66)))) -> 16871.71052 | AH66: 16953.22834 | AI66: =IFERROR(IF(B66<=HojaMaestra!$M$19,0,IF(D66<(AH66-M66-(D66*(F66*100)/1200)),D66 - ( J66+K66+L66),(AH66-M66-(D66*(F66*100)/1200)))),0) -> 9311.839402 | AK66: =IFERROR(IF(K65>0,D66,IF(B65=HojaMaestra!$M$19,D66,AK65)),0) -> 1215000 | AL66: =IF(K65>0,$AL$10-B65,(AL65-IF(B65=HojaMaestra!$M$19,HojaMaestra!$M$19,0))) -> 120 | AM66: =AL66+HojaMaestra!$M$19 -> 120 | AN66: =IF(AT65=HojaMaestra!$M$19,$D66,0) -> 0 | AP66: =IF(B65=HojaMaestra!$M$19,AD66+U66+V66+W66,0) -> 0 | AR66: =IF(B65=HojaMaestra!$M$19,AT65,0) -> 0 | AT66: 57 | AV66: 31 | AX66: =IFERROR(IF(Param!$EQ$8>=B66,B66,0),0) -> 0 | AY66: =IFERROR(IF(B66="","",IF(HojaMaestra!$M$19>=B65,$AY$10+SUM($G$10:G65)+SUM($M$10:M65)+SUM($I$10:I65),O65)),0) -> 810275.5753 | AZ66: =IF(AX66<>0,SUM($BA$10:BA66),IF(AX65=Param!$EQ$8,AZ65,0)) -> 0 | BA66: =IFERROR(IF(B66="","",IF(AX66<>0,HojaMaestra!$M$16/Param!$EQ$8,0)),0) -> 0 | BC66: =IF(B66="","",M66/(1+Param!$T$8)) -> 650.0401244 | BE66: 0 | BG66: =IFERROR(IF(B66<=HojaMaestra!$M$19,J66+K66,IF(D66<(AI66+J66+K66+L66),D66,(AI66+J66+K66+L66))),0) -> 9311.839402 | BI66: =IFERROR(IF(B66="","",G66+H66+I66+IF(HojaMaestra!$A$2=15,BC66,M66)),0) -> 17432.80642 | BK66: =IFERROR(IF(B66="","",IF(B66<=HojaMaestra!$M$19,O66,AY66)),0) -> 810275.5753 | BM66: =HojaMaestra!$A$4*12 -> 120 | BO66: =IF(B66<=Param!$EQ$8,HojaMaestra!$A$4*12+Param!$EQ$8,HojaMaestra!$A$4*12) -> 120 | BQ66: =IF(A66<=HojaMaestra!$M$19,HojaMaestra!$A$4*12+HojaMaestra!$M$19,HojaMaestra!$A$4*12) -> 120 | BS66: 57 | BU66: 0 | BW66: 343.5568439 | BX66: 85.88921098 | BY66: 243.0826726 | BZ66: 81.5178168 | CA66: 70.27398 | CB66: 742.8027075 | CC66: =IF(D66="","",IF(AX66=0,G66+H66+(I66/(1+Param!$T$8))+CB66,0)) -> 17387.07982
A67: 58 | B67: 58 | C67: 2028-09-01 | D67: =IFERROR(IF(B67="","",IF(OR(HojaMaestra!$A$2=12,HojaMaestra!$A$2=13),IF(AZ67<>0,AZ67,AY67),IF(HojaMaestra!$C$18="SI",AY67,AY67))),0) -> 800963.7359 | E67: 16206.91062 | F67: =IF(B67="","",HojaMaestra!$M$14) -> 0.102 | G67: =IFERROR(IF(B67="","",IF(D67=0,0,IF(HojaMaestra!$A$2<>15,D67*F67*AV67/360,(D67*F67*AV67/360)*(1+Param!$T$8)))),0) -> 6808.191755 | H67: 9398.718864 | I67: =IF(B67="","",IF(D67=0,0,VLOOKUP(HojaMaestra!$C$25,Param!$AJ$8:$AM$9,2,0))) -> 250 | J67: =IF(B67="","",IF(D67=0,0,IF(AND(HojaMaestra!$A$2=2,MOD(T67,2)=0),HojaMaestra!$C$16,0))) -> 0 | L67: =IFERROR(IF(B67="","",K67*VLOOKUP(HojaMaestra!$C$25,Param!$AJ$8:$AM$9,4,0)*(1+Param!$T$8)),"Sin Datos") -> 0 | M67: 746.3177176 | N67: =IFERROR(IF(B67="","",IF(AND(OR(HojaMaestra!$A$2=12,HojaMaestra!$A$2=13),B68<=Param!$EQ$8+1),BU67,IF(B68<=HojaMaestra!$M$19+1,0,BI67))),0) -> 17203.22834 | O67: 791565.017 | R67: 1.00133333 | S67: 31 | T67: 10 | U67: =IF(B67="","",D67*HLOOKUP($V$7,Param!$C$11:$F$14,2,0)/1000) -> 339.608624 | V67: =IF(B67="","",D67*HLOOKUP($V$7,Param!$C$11:$F$14,3,0)/1000) -> 84.902156 | W67: =IF(B67="","",IF($AB$3="SI",D67*HLOOKUP($V$7,Param!$C$11:$F$14,4,0)/1000,0)) -> 240.2891208 | X67: =IF($X$8="Si",$Q$6*Param!$D$9*Param!$D$8/1000+(($Q$6*Param!$D$9*Param!$D$8/1000)*Param!$T$8),0) -> 81.5178168 | Y67: =X67/(1+Param!$T$8) -> 70.27398 | Z67: 735.0738808 | AA67: =IFERROR(IF(D67="","",G67+H67+(I67/(1+Param!$T$8))+Z67),0) -> 17157.50174 | AD67: =(IF(B67<=HojaMaestra!$M$19,$D$10,IF($AN$9=0,$D$10,$AN$9))*($F$10*100))/1200 -> 10327.5 | AE67: =IF(B66<=HojaMaestra!$M$19,$AD$10+$U$10+$V$10+$W$10,IF(HojaMaestra!$M$19=0,$AD$10+$U$10+$V$10+$W$10,$AP$9)) -> 11335.95 | AF67: 11.196 | AG67: =(IF($K$9="Prepagos a Capital",IF(B67<=HojaMaestra!$M$19,$D$10,IF($AN$9=0,$D$10,$AN$9)),AK67)*$AF$10/1200)/(1-(1/((1+$AF$10/1200)^IF($K$9="Prepagos a Capital",$AL$10,AM67)))) -> 16871.71052 | AH67: 16953.22834 | AI67: =IFERROR(IF(B67<=HojaMaestra!$M$19,0,IF(D67<(AH67-M67-(D67*(F67*100)/1200)),D67 - ( J67+K67+L67),(AH67-M67-(D67*(F67*100)/1200)))),0) -> 9398.718864 | AK67: =IFERROR(IF(K66>0,D67,IF(B66=HojaMaestra!$M$19,D67,AK66)),0) -> 1215000 | AL67: =IF(K66>0,$AL$10-B66,(AL66-IF(B66=HojaMaestra!$M$19,HojaMaestra!$M$19,0))) -> 120 | AM67: =AL67+HojaMaestra!$M$19 -> 120 | AN67: =IF(AT66=HojaMaestra!$M$19,$D67,0) -> 0 | AP67: =IF(B66=HojaMaestra!$M$19,AD67+U67+V67+W67,0) -> 0 | AR67: =IF(B66=HojaMaestra!$M$19,AT66,0) -> 0 | AT67: 58 | AV67: 30 | AX67: =IFERROR(IF(Param!$EQ$8>=B67,B67,0),0) -> 0 | AY67: =IFERROR(IF(B67="","",IF(HojaMaestra!$M$19>=B66,$AY$10+SUM($G$10:G66)+SUM($M$10:M66)+SUM($I$10:I66),O66)),0) -> 800963.7359 | AZ67: =IF(AX67<>0,SUM($BA$10:BA67),IF(AX66=Param!$EQ$8,AZ66,0)) -> 0 | BA67: =IFERROR(IF(B67="","",IF(AX67<>0,HojaMaestra!$M$16/Param!$EQ$8,0)),0) -> 0 | BC67: =IF(B67="","",M67/(1+Param!$T$8)) -> 643.3773427 | BE67: 0 | BG67: =IFERROR(IF(B67<=HojaMaestra!$M$19,J67+K67,IF(D67<(AI67+J67+K67+L67),D67,(AI67+J67+K67+L67))),0) -> 9398.718864 | BI67: =IFERROR(IF(B67="","",G67+H67+I67+IF(HojaMaestra!$A$2=15,BC67,M67)),0) -> 17203.22834 | BK67: =IFERROR(IF(B67="","",IF(B67<=HojaMaestra!$M$19,O67,AY67)),0) -> 800963.7359 | BM67: =HojaMaestra!$A$4*12 -> 120 | BO67: =IF(B67<=Param!$EQ$8,HojaMaestra!$A$4*12+Param!$EQ$8,HojaMaestra!$A$4*12) -> 120 | BQ67: =IF(A67<=HojaMaestra!$M$19,HojaMaestra!$A$4*12+HojaMaestra!$M$19,HojaMaestra!$A$4*12) -> 120 | BS67: 58 | BU67: 0 | BW67: 339.608624 | BX67: 84.902156 | BY67: 240.2891208 | BZ67: 81.5178168 | CA67: 70.27398 | CB67: 735.0738808 | CC67: =IF(D67="","",IF(AX67=0,G67+H67+(I67/(1+Param!$T$8))+CB67,0)) -> 17157.50174
A68: 59 | B68: 59 | C68: 2028-10-01 | D68: =IFERROR(IF(B68="","",IF(OR(HojaMaestra!$A$2=12,HojaMaestra!$A$2=13),IF(AZ68<>0,AZ68,AY68),IF(HojaMaestra!$C$18="SI",AY68,AY68))),0) -> 791565.017 | E68: 16438.98831 | F68: =IF(B68="","",HojaMaestra!$M$14) -> 0.102 | G68: =IFERROR(IF(B68="","",IF(D68=0,0,IF(HojaMaestra!$A$2<>15,D68*F68*AV68/360,(D68*F68*AV68/360)*(1+Param!$T$8)))),0) -> 6952.579399 | H68: 9486.408911 | I68: =IF(B68="","",IF(D68=0,0,VLOOKUP(HojaMaestra!$C$25,Param!$AJ$8:$AM$9,2,0))) -> 250 | J68: =IF(B68="","",IF(D68=0,0,IF(AND(HojaMaestra!$A$2=2,MOD(T68,2)=0),HojaMaestra!$C$16,0))) -> 0 | L68: =IFERROR(IF(B68="","",K68*VLOOKUP(HojaMaestra!$C$25,Param!$AJ$8:$AM$9,4,0)*(1+Param!$T$8)),"Sin Datos") -> 0 | M68: 738.5167809 | N68: =IFERROR(IF(B68="","",IF(AND(OR(HojaMaestra!$A$2=12,HojaMaestra!$A$2=13),B69<=Param!$EQ$8+1),BU68,IF(B69<=HojaMaestra!$M$19+1,0,BI68))),0) -> 17427.50509 | O68: 782078.6081 | R68: 1.00133333 | S68: 30 | T68: 11 | U68: =IF(B68="","",D68*HLOOKUP($V$7,Param!$C$11:$F$14,2,0)/1000) -> 335.6235672 | V68: =IF(B68="","",D68*HLOOKUP($V$7,Param!$C$11:$F$14,3,0)/1000) -> 83.9058918 | W68: =IF(B68="","",IF($AB$3="SI",D68*HLOOKUP($V$7,Param!$C$11:$F$14,4,0)/1000,0)) -> 237.4695051 | X68: =IF($X$8="Si",$Q$6*Param!$D$9*Param!$D$8/1000+(($Q$6*Param!$D$9*Param!$D$8/1000)*Param!$T$8),0) -> 81.5178168 | Y68: =X68/(1+Param!$T$8) -> 70.27398 | Z68: 727.2729441 | AA68: =IFERROR(IF(D68="","",G68+H68+(I68/(1+Param!$T$8))+Z68),0) -> 17381.7785 | AD68: =(IF(B68<=HojaMaestra!$M$19,$D$10,IF($AN$9=0,$D$10,$AN$9))*($F$10*100))/1200 -> 10327.5 | AE68: =IF(B67<=HojaMaestra!$M$19,$AD$10+$U$10+$V$10+$W$10,IF(HojaMaestra!$M$19=0,$AD$10+$U$10+$V$10+$W$10,$AP$9)) -> 11335.95 | AF68: 11.196 | AG68: =(IF($K$9="Prepagos a Capital",IF(B68<=HojaMaestra!$M$19,$D$10,IF($AN$9=0,$D$10,$AN$9)),AK68)*$AF$10/1200)/(1-(1/((1+$AF$10/1200)^IF($K$9="Prepagos a Capital",$AL$10,AM68)))) -> 16871.71052 | AH68: 16953.22834 | AI68: =IFERROR(IF(B68<=HojaMaestra!$M$19,0,IF(D68<(AH68-M68-(D68*(F68*100)/1200)),D68 - ( J68+K68+L68),(AH68-M68-(D68*(F68*100)/1200)))),0) -> 9486.408911 | AK68: =IFERROR(IF(K67>0,D68,IF(B67=HojaMaestra!$M$19,D68,AK67)),0) -> 1215000 | AL68: =IF(K67>0,$AL$10-B67,(AL67-IF(B67=HojaMaestra!$M$19,HojaMaestra!$M$19,0))) -> 120 | AM68: =AL68+HojaMaestra!$M$19 -> 120 | AN68: =IF(AT67=HojaMaestra!$M$19,$D68,0) -> 0 | AP68: =IF(B67=HojaMaestra!$M$19,AD68+U68+V68+W68,0) -> 0 | AR68: =IF(B67=HojaMaestra!$M$19,AT67,0) -> 0 | AT68: 59 | AV68: 31 | AX68: =IFERROR(IF(Param!$EQ$8>=B68,B68,0),0) -> 0 | AY68: =IFERROR(IF(B68="","",IF(HojaMaestra!$M$19>=B67,$AY$10+SUM($G$10:G67)+SUM($M$10:M67)+SUM($I$10:I67),O67)),0) -> 791565.017 | AZ68: =IF(AX68<>0,SUM($BA$10:BA68),IF(AX67=Param!$EQ$8,AZ67,0)) -> 0 | BA68: =IFERROR(IF(B68="","",IF(AX68<>0,HojaMaestra!$M$16/Param!$EQ$8,0)),0) -> 0 | BC68: =IF(B68="","",M68/(1+Param!$T$8)) -> 636.6523973 | BE68: 0 | BG68: =IFERROR(IF(B68<=HojaMaestra!$M$19,J68+K68,IF(D68<(AI68+J68+K68+L68),D68,(AI68+J68+K68+L68))),0) -> 9486.408911 | BI68: =IFERROR(IF(B68="","",G68+H68+I68+IF(HojaMaestra!$A$2=15,BC68,M68)),0) -> 17427.50509 | BK68: =IFERROR(IF(B68="","",IF(B68<=HojaMaestra!$M$19,O68,AY68)),0) -> 791565.017 | BM68: =HojaMaestra!$A$4*12 -> 120 | BO68: =IF(B68<=Param!$EQ$8,HojaMaestra!$A$4*12+Param!$EQ$8,HojaMaestra!$A$4*12) -> 120 | BQ68: =IF(A68<=HojaMaestra!$M$19,HojaMaestra!$A$4*12+HojaMaestra!$M$19,HojaMaestra!$A$4*12) -> 120 | BS68: 59 | BU68: 0 | BW68: 335.6235672 | BX68: 83.9058918 | BY68: 237.4695051 | BZ68: 81.5178168 | CA68: 70.27398 | CB68: 727.2729441 | CC68: =IF(D68="","",IF(AX68=0,G68+H68+(I68/(1+Param!$T$8))+CB68,0)) -> 17381.7785
A69: 60 | B69: 60 | C69: 2028-11-01 | D69: =IFERROR(IF(B69="","",IF(OR(HojaMaestra!$A$2=12,HojaMaestra!$A$2=13),IF(AZ69<>0,AZ69,AY69),IF(HojaMaestra!$C$18="SI",AY69,AY69))),0) -> 782078.6081 | E69: 16222.58527 | F69: =IF(B69="","",HojaMaestra!$M$14) -> 0.102 | G69: =IFERROR(IF(B69="","",IF(D69=0,0,IF(HojaMaestra!$A$2<>15,D69*F69*AV69/360,(D69*F69*AV69/360)*(1+Param!$T$8)))),0) -> 6647.668169 | H69: 9574.917106 | I69: =IF(B69="","",IF(D69=0,0,VLOOKUP(HojaMaestra!$C$25,Param!$AJ$8:$AM$9,2,0))) -> 250 | J69: =IF(B69="","",IF(D69=0,0,IF(AND(HojaMaestra!$A$2=2,MOD(T69,2)=0),HojaMaestra!$C$16,0))) -> 0 | L69: =IFERROR(IF(B69="","",K69*VLOOKUP(HojaMaestra!$C$25,Param!$AJ$8:$AM$9,4,0)*(1+Param!$T$8)),"Sin Datos") -> 0 | M69: 730.6430615 | N69: =IFERROR(IF(B69="","",IF(AND(OR(HojaMaestra!$A$2=12,HojaMaestra!$A$2=13),B70<=Param!$EQ$8+1),BU69,IF(B70<=HojaMaestra!$M$19+1,0,BI69))),0) -> 17203.22834 | O69: 772503.691 | P69: -0.01850970995 | R69: 1.00133333 | S69: 31 | T69: 12 | U69: =IF(B69="","",D69*HLOOKUP($V$7,Param!$C$11:$F$14,2,0)/1000) -> 331.6013298 | V69: =IF(B69="","",D69*HLOOKUP($V$7,Param!$C$11:$F$14,3,0)/1000) -> 82.90033246 | W69: =IF(B69="","",IF($AB$3="SI",D69*HLOOKUP($V$7,Param!$C$11:$F$14,4,0)/1000,0)) -> 234.6235824 | X69: =IF($X$8="Si",$Q$6*Param!$D$9*Param!$D$8/1000+(($Q$6*Param!$D$9*Param!$D$8/1000)*Param!$T$8),0) -> 81.5178168 | Y69: =X69/(1+Param!$T$8) -> 70.27398 | Z69: 719.3992247 | AA69: =IFERROR(IF(D69="","",G69+H69+(I69/(1+Param!$T$8))+Z69),0) -> 17157.50174 | AD69: =(IF(B69<=HojaMaestra!$M$19,$D$10,IF($AN$9=0,$D$10,$AN$9))*($F$10*100))/1200 -> 10327.5 | AE69: =IF(B68<=HojaMaestra!$M$19,$AD$10+$U$10+$V$10+$W$10,IF(HojaMaestra!$M$19=0,$AD$10+$U$10+$V$10+$W$10,$AP$9)) -> 11335.95 | AF69: 11.196 | AG69: =(IF($K$9="Prepagos a Capital",IF(B69<=HojaMaestra!$M$19,$D$10,IF($AN$9=0,$D$10,$AN$9)),AK69)*$AF$10/1200)/(1-(1/((1+$AF$10/1200)^IF($K$9="Prepagos a Capital",$AL$10,AM69)))) -> 16871.71052 | AH69: 16953.22834 | AI69: =IFERROR(IF(B69<=HojaMaestra!$M$19,0,IF(D69<(AH69-M69-(D69*(F69*100)/1200)),D69 - ( J69+K69+L69),(AH69-M69-(D69*(F69*100)/1200)))),0) -> 9574.917106 | AK69: =IFERROR(IF(K68>0,D69,IF(B68=HojaMaestra!$M$19,D69,AK68)),0) -> 1215000 | AL69: =IF(K68>0,$AL$10-B68,(AL68-IF(B68=HojaMaestra!$M$19,HojaMaestra!$M$19,0))) -> 120 | AM69: =AL69+HojaMaestra!$M$19 -> 120 | AN69: =IF(AT68=HojaMaestra!$M$19,$D69,0) -> 0 | AP69: =IF(B68=HojaMaestra!$M$19,AD69+U69+V69+W69,0) -> 0 | AR69: =IF(B68=HojaMaestra!$M$19,AT68,0) -> 0 | AT69: 60 | AV69: 30 | AX69: =IFERROR(IF(Param!$EQ$8>=B69,B69,0),0) -> 0 | AY69: =IFERROR(IF(B69="","",IF(HojaMaestra!$M$19>=B68,$AY$10+SUM($G$10:G68)+SUM($M$10:M68)+SUM($I$10:I68),O68)),0) -> 782078.6081 | AZ69: =IF(AX69<>0,SUM($BA$10:BA69),IF(AX68=Param!$EQ$8,AZ68,0)) -> 0 | BA69: =IFERROR(IF(B69="","",IF(AX69<>0,HojaMaestra!$M$16/Param!$EQ$8,0)),0) -> 0 | BC69: =IF(B69="","",M69/(1+Param!$T$8)) -> 629.8647082 | BE69: 0 | BG69: =IFERROR(IF(B69<=HojaMaestra!$M$19,J69+K69,IF(D69<(AI69+J69+K69+L69),D69,(AI69+J69+K69+L69))),0) -> 9574.917106 | BI69: =IFERROR(IF(B69="","",G69+H69+I69+IF(HojaMaestra!$A$2=15,BC69,M69)),0) -> 17203.22834 | BK69: =IFERROR(IF(B69="","",IF(B69<=HojaMaestra!$M$19,O69,AY69)),0) -> 782078.6081 | BM69: =HojaMaestra!$A$4*12 -> 120 | BO69: =IF(B69<=Param!$EQ$8,HojaMaestra!$A$4*12+Param!$EQ$8,HojaMaestra!$A$4*12) -> 120 | BQ69: =IF(A69<=HojaMaestra!$M$19,HojaMaestra!$A$4*12+HojaMaestra!$M$19,HojaMaestra!$A$4*12) -> 120 | BS69: 60 | BU69: 0 | BW69: 331.6013298 | BX69: 82.90033246 | BY69: 234.6235824 | BZ69: 81.5178168 | CA69: 70.27398 | CB69: 719.3992247 | CC69: =IF(D69="","",IF(AX69=0,G69+H69+(I69/(1+Param!$T$8))+CB69,0)) -> 17157.50174
A70: 61 | B70: 61 | C70: 2028-12-01 | D70: =IFERROR(IF(B70="","",IF(OR(HojaMaestra!$A$2=12,HojaMaestra!$A$2=13),IF(AZ70<>0,AZ70,AY70),IF(HojaMaestra!$C$18="SI",AY70,AY70))),0) -> 772503.691 | E70: 16449.4085 | F70: =IF(B70="","",HojaMaestra!$M$14) -> 0.102 | G70: =IFERROR(IF(B70="","",IF(D70=0,0,IF(HojaMaestra!$A$2<>15,D70*F70*AV70/360,(D70*F70*AV70/360)*(1+Param!$T$8)))),0) -> 6785.157419 | H70: 9664.251082 | I70: =IF(B70="","",IF(D70=0,0,VLOOKUP(HojaMaestra!$C$25,Param!$AJ$8:$AM$9,2,0))) -> 250 | J70: =IF(B70="","",IF(D70=0,0,IF(AND(HojaMaestra!$A$2=2,MOD(T70,2)=0),HojaMaestra!$C$16,0))) -> 0 | L70: =IFERROR(IF(B70="","",K70*VLOOKUP(HojaMaestra!$C$25,Param!$AJ$8:$AM$9,4,0)*(1+Param!$T$8)),"Sin Datos") -> 0 | M70: 722.6958803 | N70: =IFERROR(IF(B70="","",IF(AND(OR(HojaMaestra!$A$2=12,HojaMaestra!$A$2=13),B71<=Param!$EQ$8+1),BU70,IF(B71<=HojaMaestra!$M$19+1,0,BI70))),0) -> 17422.10438 | O70: 762839.4399 | R70: 1.00133333 | S70: 31 | T70: 1 | U70: =IF(B70="","",D70*HLOOKUP($V$7,Param!$C$11:$F$14,2,0)/1000) -> 327.541565 | V70: =IF(B70="","",D70*HLOOKUP($V$7,Param!$C$11:$F$14,3,0)/1000) -> 81.88539124 | W70: =IF(B70="","",IF($AB$3="SI",D70*HLOOKUP($V$7,Param!$C$11:$F$14,4,0)/1000,0)) -> 231.7511073 | X70: =IF($X$8="Si",$Q$6*Param!$D$9*Param!$D$8/1000+(($Q$6*Param!$D$9*Param!$D$8/1000)*Param!$T$8),0) -> 81.5178168 | Y70: =X70/(1+Param!$T$8) -> 70.27398 | Z70: 711.4520435 | AA70: =IFERROR(IF(D70="","",G70+H70+(I70/(1+Param!$T$8))+Z70),0) -> 17376.37779 | AD70: =(IF(B70<=HojaMaestra!$M$19,$D$10,IF($AN$9=0,$D$10,$AN$9))*($F$10*100))/1200 -> 10327.5 | AE70: =IF(B69<=HojaMaestra!$M$19,$AD$10+$U$10+$V$10+$W$10,IF(HojaMaestra!$M$19=0,$AD$10+$U$10+$V$10+$W$10,$AP$9)) -> 11335.95 | AF70: 11.196 | AG70: =(IF($K$9="Prepagos a Capital",IF(B70<=HojaMaestra!$M$19,$D$10,IF($AN$9=0,$D$10,$AN$9)),AK70)*$AF$10/1200)/(1-(1/((1+$AF$10/1200)^IF($K$9="Prepagos a Capital",$AL$10,AM70)))) -> 16871.71052 | AH70: 16953.22834 | AI70: =IFERROR(IF(B70<=HojaMaestra!$M$19,0,IF(D70<(AH70-M70-(D70*(F70*100)/1200)),D70 - ( J70+K70+L70),(AH70-M70-(D70*(F70*100)/1200)))),0) -> 9664.251082 | AK70: =IFERROR(IF(K69>0,D70,IF(B69=HojaMaestra!$M$19,D70,AK69)),0) -> 1215000 | AL70: =IF(K69>0,$AL$10-B69,(AL69-IF(B69=HojaMaestra!$M$19,HojaMaestra!$M$19,0))) -> 120 | AM70: =AL70+HojaMaestra!$M$19 -> 120 | AN70: =IF(AT69=HojaMaestra!$M$19,$D70,0) -> 0 | AP70: =IF(B69=HojaMaestra!$M$19,AD70+U70+V70+W70,0) -> 0 | AR70: =IF(B69=HojaMaestra!$M$19,AT69,0) -> 0 | AT70: 61 | AV70: 31 | AX70: =IFERROR(IF(Param!$EQ$8>=B70,B70,0),0) -> 0 | AY70: =IFERROR(IF(B70="","",IF(HojaMaestra!$M$19>=B69,$AY$10+SUM($G$10:G69)+SUM($M$10:M69)+SUM($I$10:I69),O69)),0) -> 772503.691 | AZ70: =IF(AX70<>0,SUM($BA$10:BA70),IF(AX69=Param!$EQ$8,AZ69,0)) -> 0 | BA70: =IFERROR(IF(B70="","",IF(AX70<>0,HojaMaestra!$M$16/Param!$EQ$8,0)),0) -> 0 | BC70: =IF(B70="","",M70/(1+Param!$T$8)) -> 623.0136899 | BE70: 0 | BG70: =IFERROR(IF(B70<=HojaMaestra!$M$19,J70+K70,IF(D70<(AI70+J70+K70+L70),D70,(AI70+J70+K70+L70))),0) -> 9664.251082 | BI70: =IFERROR(IF(B70="","",G70+H70+I70+IF(HojaMaestra!$A$2=15,BC70,M70)),0) -> 17422.10438 | BK70: =IFERROR(IF(B70="","",IF(B70<=HojaMaestra!$M$19,O70,AY70)),0) -> 772503.691 | BM70: =HojaMaestra!$A$4*12 -> 120 | BO70: =IF(B70<=Param!$EQ$8,HojaMaestra!$A$4*12+Param!$EQ$8,HojaMaestra!$A$4*12) -> 120 | BQ70: =IF(A70<=HojaMaestra!$M$19,HojaMaestra!$A$4*12+HojaMaestra!$M$19,HojaMaestra!$A$4*12) -> 120 | BS70: 61 | BU70: 0 | BW70: 327.541565 | BX70: 81.88539124 | BY70: 231.7511073 | BZ70: 81.5178168 | CA70: 70.27398 | CB70: 711.4520435 | CC70: =IF(D70="","",IF(AX70=0,G70+H70+(I70/(1+Param!$T$8))+CB70,0)) -> 17376.37779
A71: 62 | B71: 62 | C71: 2029-01-01 | D71: =IFERROR(IF(B71="","",IF(OR(HojaMaestra!$A$2=12,HojaMaestra!$A$2=13),IF(AZ71<>0,AZ71,AY71),IF(HojaMaestra!$C$18="SI",AY71,AY71))),0) -> 762839.4399 | E71: 16454.69163 | F71: =IF(B71="","",HojaMaestra!$M$14) -> 0.102 | G71: =IFERROR(IF(B71="","",IF(D71=0,0,IF(HojaMaestra!$A$2<>15,D71*F71*AV71/360,(D71*F71*AV71/360)*(1+Param!$T$8)))),0) -> 6700.27308 | H71: 9754.418545 | I71: =IF(B71="","",IF(D71=0,0,VLOOKUP(HojaMaestra!$C$25,Param!$AJ$8:$AM$9,2,0))) -> 250 | J71: =IF(B71="","",IF(D71=0,0,IF(AND(HojaMaestra!$A$2=2,MOD(T71,2)=0),HojaMaestra!$C$16,0))) -> 0 | L71: =IFERROR(IF(B71="","",K71*VLOOKUP(HojaMaestra!$C$25,Param!$AJ$8:$AM$9,4,0)*(1+Param!$T$8)),"Sin Datos") -> 0 | M71: 714.6745519 | N71: =IFERROR(IF(B71="","",IF(AND(OR(HojaMaestra!$A$2=12,HojaMaestra!$A$2=13),B72<=Param!$EQ$8+1),BU71,IF(B72<=HojaMaestra!$M$19+1,0,BI71))),0) -> 17419.36618 | O71: 753085.0214 | R71: 1.00133333 | S71: 28 | T71: 2 | U71: =IF(B71="","",D71*HLOOKUP($V$7,Param!$C$11:$F$14,2,0)/1000) -> 323.4439225 | V71: =IF(B71="","",D71*HLOOKUP($V$7,Param!$C$11:$F$14,3,0)/1000) -> 80.86098063 | W71: =IF(B71="","",IF($AB$3="SI",D71*HLOOKUP($V$7,Param!$C$11:$F$14,4,0)/1000,0)) -> 228.851832 | X71: =IF($X$8="Si",$Q$6*Param!$D$9*Param!$D$8/1000+(($Q$6*Param!$D$9*Param!$D$8/1000)*Param!$T$8),0) -> 81.5178168 | Y71: =X71/(1+Param!$T$8) -> 70.27398 | Z71: 703.4307151 | AA71: =IFERROR(IF(D71="","",G71+H71+(I71/(1+Param!$T$8))+Z71),0) -> 17373.63958 | AD71: =(IF(B71<=HojaMaestra!$M$19,$D$10,IF($AN$9=0,$D$10,$AN$9))*($F$10*100))/1200 -> 10327.5 | AE71: =IF(B70<=HojaMaestra!$M$19,$AD$10+$U$10+$V$10+$W$10,IF(HojaMaestra!$M$19=0,$AD$10+$U$10+$V$10+$W$10,$AP$9)) -> 11335.95 | AF71: 11.196 | AG71: =(IF($K$9="Prepagos a Capital",IF(B71<=HojaMaestra!$M$19,$D$10,IF($AN$9=0,$D$10,$AN$9)),AK71)*$AF$10/1200)/(1-(1/((1+$AF$10/1200)^IF($K$9="Prepagos a Capital",$AL$10,AM71)))) -> 16871.71052 | AH71: 16953.22834 | AI71: =IFERROR(IF(B71<=HojaMaestra!$M$19,0,IF(D71<(AH71-M71-(D71*(F71*100)/1200)),D71 - ( J71+K71+L71),(AH71-M71-(D71*(F71*100)/1200)))),0) -> 9754.418545 | AK71: =IFERROR(IF(K70>0,D71,IF(B70=HojaMaestra!$M$19,D71,AK70)),0) -> 1215000 | AL71: =IF(K70>0,$AL$10-B70,(AL70-IF(B70=HojaMaestra!$M$19,HojaMaestra!$M$19,0))) -> 120 | AM71: =AL71+HojaMaestra!$M$19 -> 120 | AN71: =IF(AT70=HojaMaestra!$M$19,$D71,0) -> 0 | AP71: =IF(B70=HojaMaestra!$M$19,AD71+U71+V71+W71,0) -> 0 | AR71: =IF(B70=HojaMaestra!$M$19,AT70,0) -> 0 | AT71: 62 | AV71: 31 | AX71: =IFERROR(IF(Param!$EQ$8>=B71,B71,0),0) -> 0 | AY71: =IFERROR(IF(B71="","",IF(HojaMaestra!$M$19>=B70,$AY$10+SUM($G$10:G70)+SUM($M$10:M70)+SUM($I$10:I70),O70)),0) -> 762839.4399 | AZ71: =IF(AX71<>0,SUM($BA$10:BA71),IF(AX70=Param!$EQ$8,AZ70,0)) -> 0 | BA71: =IFERROR(IF(B71="","",IF(AX71<>0,HojaMaestra!$M$16/Param!$EQ$8,0)),0) -> 0 | BC71: =IF(B71="","",M71/(1+Param!$T$8)) -> 616.0987516 | BE71: 0 | BG71: =IFERROR(IF(B71<=HojaMaestra!$M$19,J71+K71,IF(D71<(AI71+J71+K71+L71),D71,(AI71+J71+K71+L71))),0) -> 9754.418545 | BI71: =IFERROR(IF(B71="","",G71+H71+I71+IF(HojaMaestra!$A$2=15,BC71,M71)),0) -> 17419.36618 | BK71: =IFERROR(IF(B71="","",IF(B71<=HojaMaestra!$M$19,O71,AY71)),0) -> 762839.4399 | BM71: =HojaMaestra!$A$4*12 -> 120 | BO71: =IF(B71<=Param!$EQ$8,HojaMaestra!$A$4*12+Param!$EQ$8,HojaMaestra!$A$4*12) -> 120 | BQ71: =IF(A71<=HojaMaestra!$M$19,HojaMaestra!$A$4*12+HojaMaestra!$M$19,HojaMaestra!$A$4*12) -> 120 | BS71: 62 | BU71: 0 | BW71: 323.4439225 | BX71: 80.86098063 | BY71: 228.851832 | BZ71: 81.5178168 | CA71: 70.27398 | CB71: 703.4307151 | CC71: =IF(D71="","",IF(AX71=0,G71+H71+(I71/(1+Param!$T$8))+CB71,0)) -> 17373.63958
A72: 63 | B72: 63 | C72: 2029-02-01 | D72: =IFERROR(IF(B72="","",IF(OR(HojaMaestra!$A$2=12,HojaMaestra!$A$2=13),IF(AZ72<>0,AZ72,AY72),IF(HojaMaestra!$C$18="SI",AY72,AY72))),0) -> 753085.0214 | E72: 15819.90177 | F72: =IF(B72="","",HojaMaestra!$M$14) -> 0.102 | G72: =IFERROR(IF(B72="","",IF(D72=0,0,IF(HojaMaestra!$A$2<>15,D72*F72*AV72/360,(D72*F72*AV72/360)*(1+Param!$T$8)))),0) -> 5974.474503 | H72: 9845.42727 | I72: =IF(B72="","",IF(D72=0,0,VLOOKUP(HojaMaestra!$C$25,Param!$AJ$8:$AM$9,2,0))) -> 250 | J72: =IF(B72="","",IF(D72=0,0,IF(AND(HojaMaestra!$A$2=2,MOD(T72,2)=0),HojaMaestra!$C$16,0))) -> 0 | L72: =IFERROR(IF(B72="","",K72*VLOOKUP(HojaMaestra!$C$25,Param!$AJ$8:$AM$9,4,0)*(1+Param!$T$8)),"Sin Datos") -> 0 | M72: 706.5783845 | N72: =IFERROR(IF(B72="","",IF(AND(OR(HojaMaestra!$A$2=12,HojaMaestra!$A$2=13),B73<=Param!$EQ$8+1),BU72,IF(B73<=HojaMaestra!$M$19+1,0,BI72))),0) -> 16776.48016 | O72: 743239.5941 | R72: 1.00133333 | S72: 31 | T72: 3 | U72: =IF(B72="","",D72*HLOOKUP($V$7,Param!$C$11:$F$14,2,0)/1000) -> 319.3080491 | V72: =IF(B72="","",D72*HLOOKUP($V$7,Param!$C$11:$F$14,3,0)/1000) -> 79.82701226 | W72: =IF(B72="","",IF($AB$3="SI",D72*HLOOKUP($V$7,Param!$C$11:$F$14,4,0)/1000,0)) -> 225.9255064 | X72: =IF($X$8="Si",$Q$6*Param!$D$9*Param!$D$8/1000+(($Q$6*Param!$D$9*Param!$D$8/1000)*Param!$T$8),0) -> 81.5178168 | Y72: =X72/(1+Param!$T$8) -> 70.27398 | Z72: 695.3345477 | AA72: =IFERROR(IF(D72="","",G72+H72+(I72/(1+Param!$T$8))+Z72),0) -> 16730.75356 | AD72: =(IF(B72<=HojaMaestra!$M$19,$D$10,IF($AN$9=0,$D$10,$AN$9))*($F$10*100))/1200 -> 10327.5 | AE72: =IF(B71<=HojaMaestra!$M$19,$AD$10+$U$10+$V$10+$W$10,IF(HojaMaestra!$M$19=0,$AD$10+$U$10+$V$10+$W$10,$AP$9)) -> 11335.95 | AF72: 11.196 | AG72: =(IF($K$9="Prepagos a Capital",IF(B72<=HojaMaestra!$M$19,$D$10,IF($AN$9=0,$D$10,$AN$9)),AK72)*$AF$10/1200)/(1-(1/((1+$AF$10/1200)^IF($K$9="Prepagos a Capital",$AL$10,AM72)))) -> 16871.71052 | AH72: 16953.22834 | AI72: =IFERROR(IF(B72<=HojaMaestra!$M$19,0,IF(D72<(AH72-M72-(D72*(F72*100)/1200)),D72 - ( J72+K72+L72),(AH72-M72-(D72*(F72*100)/1200)))),0) -> 9845.42727 | AK72: =IFERROR(IF(K71>0,D72,IF(B71=HojaMaestra!$M$19,D72,AK71)),0) -> 1215000 | AL72: =IF(K71>0,$AL$10-B71,(AL71-IF(B71=HojaMaestra!$M$19,HojaMaestra!$M$19,0))) -> 120 | AM72: =AL72+HojaMaestra!$M$19 -> 120 | AN72: =IF(AT71=HojaMaestra!$M$19,$D72,0) -> 0 | AP72: =IF(B71=HojaMaestra!$M$19,AD72+U72+V72+W72,0) -> 0 | AR72: =IF(B71=HojaMaestra!$M$19,AT71,0) -> 0 | AT72: 63 | AV72: 28 | AX72: =IFERROR(IF(Param!$EQ$8>=B72,B72,0),0) -> 0 | AY72: =IFERROR(IF(B72="","",IF(HojaMaestra!$M$19>=B71,$AY$10+SUM($G$10:G71)+SUM($M$10:M71)+SUM($I$10:I71),O71)),0) -> 753085.0214 | AZ72: =IF(AX72<>0,SUM($BA$10:BA72),IF(AX71=Param!$EQ$8,AZ71,0)) -> 0 | BA72: =IFERROR(IF(B72="","",IF(AX72<>0,HojaMaestra!$M$16/Param!$EQ$8,0)),0) -> 0 | BC72: =IF(B72="","",M72/(1+Param!$T$8)) -> 609.119297 | BE72: 0 | BG72: =IFERROR(IF(B72<=HojaMaestra!$M$19,J72+K72,IF(D72<(AI72+J72+K72+L72),D72,(AI72+J72+K72+L72))),0) -> 9845.42727 | BI72: =IFERROR(IF(B72="","",G72+H72+I72+IF(HojaMaestra!$A$2=15,BC72,M72)),0) -> 16776.48016 | BK72: =IFERROR(IF(B72="","",IF(B72<=HojaMaestra!$M$19,O72,AY72)),0) -> 753085.0214 | BM72: =HojaMaestra!$A$4*12 -> 120 | BO72: =IF(B72<=Param!$EQ$8,HojaMaestra!$A$4*12+Param!$EQ$8,HojaMaestra!$A$4*12) -> 120 | BQ72: =IF(A72<=HojaMaestra!$M$19,HojaMaestra!$A$4*12+HojaMaestra!$M$19,HojaMaestra!$A$4*12) -> 120 | BS72: 63 | BU72: 0 | BW72: 319.3080491 | BX72: 79.82701226 | BY72: 225.9255064 | BZ72: 81.5178168 | CA72: 70.27398 | CB72: 695.3345477 | CC72: =IF(D72="","",IF(AX72=0,G72+H72+(I72/(1+Param!$T$8))+CB72,0)) -> 16730.75356
A73: 64 | B73: 64 | C73: 2029-03-01 | D73: =IFERROR(IF(B73="","",IF(OR(HojaMaestra!$A$2=12,HojaMaestra!$A$2=13),IF(AZ73<>0,AZ73,AY73),IF(HojaMaestra!$C$18="SI",AY73,AY73))),0) -> 743239.5941 | E73: 16465.40621 | F73: =IF(B73="","",HojaMaestra!$M$14) -> 0.102 | G73: =IFERROR(IF(B73="","",IF(D73=0,0,IF(HojaMaestra!$A$2<>15,D73*F73*AV73/360,(D73*F73*AV73/360)*(1+Param!$T$8)))),0) -> 6528.121101 | H73: 9937.285106 | I73: =IF(B73="","",IF(D73=0,0,VLOOKUP(HojaMaestra!$C$25,Param!$AJ$8:$AM$9,2,0))) -> 250 | J73: =IF(B73="","",IF(D73=0,0,IF(AND(HojaMaestra!$A$2=2,MOD(T73,2)=0),HojaMaestra!$C$16,0))) -> 0 | L73: =IFERROR(IF(B73="","",K73*VLOOKUP(HojaMaestra!$C$25,Param!$AJ$8:$AM$9,4,0)*(1+Param!$T$8)),"Sin Datos") -> 0 | M73: 698.4066799 | N73: =IFERROR(IF(B73="","",IF(AND(OR(HojaMaestra!$A$2=12,HojaMaestra!$A$2=13),B74<=Param!$EQ$8+1),BU73,IF(B74<=HojaMaestra!$M$19+1,0,BI73))),0) -> 17413.81289 | O73: 733302.309 | R73: 1.00133333 | S73: 30 | T73: 4 | U73: =IF(B73="","",D73*HLOOKUP($V$7,Param!$C$11:$F$14,2,0)/1000) -> 315.1335879 | V73: =IF(B73="","",D73*HLOOKUP($V$7,Param!$C$11:$F$14,3,0)/1000) -> 78.78339697 | W73: =IF(B73="","",IF($AB$3="SI",D73*HLOOKUP($V$7,Param!$C$11:$F$14,4,0)/1000,0)) -> 222.9718782 | X73: =IF($X$8="Si",$Q$6*Param!$D$9*Param!$D$8/1000+(($Q$6*Param!$D$9*Param!$D$8/1000)*Param!$T$8),0) -> 81.5178168 | Y73: =X73/(1+Param!$T$8) -> 70.27398 | Z73: 687.1628431 | AA73: =IFERROR(IF(D73="","",G73+H73+(I73/(1+Param!$T$8))+Z73),0) -> 17368.08629 | AD73: =(IF(B73<=HojaMaestra!$M$19,$D$10,IF($AN$9=0,$D$10,$AN$9))*($F$10*100))/1200 -> 10327.5 | AE73: =IF(B72<=HojaMaestra!$M$19,$AD$10+$U$10+$V$10+$W$10,IF(HojaMaestra!$M$19=0,$AD$10+$U$10+$V$10+$W$10,$AP$9)) -> 11335.95 | AF73: 11.196 | AG73: =(IF($K$9="Prepagos a Capital",IF(B73<=HojaMaestra!$M$19,$D$10,IF($AN$9=0,$D$10,$AN$9)),AK73)*$AF$10/1200)/(1-(1/((1+$AF$10/1200)^IF($K$9="Prepagos a Capital",$AL$10,AM73)))) -> 16871.71052 | AH73: 16953.22834 | AI73: =IFERROR(IF(B73<=HojaMaestra!$M$19,0,IF(D73<(AH73-M73-(D73*(F73*100)/1200)),D73 - ( J73+K73+L73),(AH73-M73-(D73*(F73*100)/1200)))),0) -> 9937.285106 | AK73: =IFERROR(IF(K72>0,D73,IF(B72=HojaMaestra!$M$19,D73,AK72)),0) -> 1215000 | AL73: =IF(K72>0,$AL$10-B72,(AL72-IF(B72=HojaMaestra!$M$19,HojaMaestra!$M$19,0))) -> 120 | AM73: =AL73+HojaMaestra!$M$19 -> 120 | AN73: =IF(AT72=HojaMaestra!$M$19,$D73,0) -> 0 | AP73: =IF(B72=HojaMaestra!$M$19,AD73+U73+V73+W73,0) -> 0 | AR73: =IF(B72=HojaMaestra!$M$19,AT72,0) -> 0 | AT73: 64 | AV73: 31 | AX73: =IFERROR(IF(Param!$EQ$8>=B73,B73,0),0) -> 0 | AY73: =IFERROR(IF(B73="","",IF(HojaMaestra!$M$19>=B72,$AY$10+SUM($G$10:G72)+SUM($M$10:M72)+SUM($I$10:I72),O72)),0) -> 743239.5941 | AZ73: =IF(AX73<>0,SUM($BA$10:BA73),IF(AX72=Param!$EQ$8,AZ72,0)) -> 0 | BA73: =IFERROR(IF(B73="","",IF(AX73<>0,HojaMaestra!$M$16/Param!$EQ$8,0)),0) -> 0 | BC73: =IF(B73="","",M73/(1+Param!$T$8)) -> 602.074724 | BE73: 0 | BG73: =IFERROR(IF(B73<=HojaMaestra!$M$19,J73+K73,IF(D73<(AI73+J73+K73+L73),D73,(AI73+J73+K73+L73))),0) -> 9937.285106 | BI73: =IFERROR(IF(B73="","",G73+H73+I73+IF(HojaMaestra!$A$2=15,BC73,M73)),0) -> 17413.81289 | BK73: =IFERROR(IF(B73="","",IF(B73<=HojaMaestra!$M$19,O73,AY73)),0) -> 743239.5941 | BM73: =HojaMaestra!$A$4*12 -> 120 | BO73: =IF(B73<=Param!$EQ$8,HojaMaestra!$A$4*12+Param!$EQ$8,HojaMaestra!$A$4*12) -> 120 | BQ73: =IF(A73<=HojaMaestra!$M$19,HojaMaestra!$A$4*12+HojaMaestra!$M$19,HojaMaestra!$A$4*12) -> 120 | BS73: 64 | BU73: 0 | BW73: 315.1335879 | BX73: 78.78339697 | BY73: 222.9718782 | BZ73: 81.5178168 | CA73: 70.27398 | CB73: 687.1628431 | CC73: =IF(D73="","",IF(AX73=0,G73+H73+(I73/(1+Param!$T$8))+CB73,0)) -> 17368.08629
